Workbook

Sheet parameters (hidden)
A1: Cyr | B1: FY19
A2: Pyr | B2: FY18
A3: As of | B3: 2018-01-24
A5: Parameters | D5: Base | K5: Analysis of Aggregate Wealth Model Implementation
B6: Which version of foundation budget? | C6: 1 | D6: 1 | G6: FY18 C70 (GAA) | H6: 4746953714
B7: Effort reduction | C7: 0.85 | D7: 0 | K7: Progress Towards Target Local Share
B8: Pct downpayment on target aid share | C8: 0 | D8: 0 | G8: FY18 foundation aid increase | H8: ='Aid436'!I448 -> 107006250.4
D9: 0 | G9: FY18 downpayment increase | H9: 0 | L9: FY07 | M9: FY08 | N9: FY09 | O9: FY10 | P9: FY11 | Q9: FY12 | R9: FY13 | S9: FY14 | T9: FY15 | U9: FY16 | V9: FY17 | W9: FY18 | X9: FY19
G10: Minimum per pupil aid increase | H10: ='Aid436'!AF448 -> 9254970.688 | K10: excess effort before effort reduction | L10: 621.084157 | M10: 494.058912 | N10: 372.382091 | O10: 228.110232 | P10: 366 | Q10: 293.3 | R10: 229.8 | S10: 234.5 | T10: 307.903014 | U10: 235.358789 | V10: 299.86437 | W10: 151.670894 | X10: ='Townwide Contributions'!T361/1000000 -> 109.396361
G11: Non-op reduction | H11: ='Aid436'!AH448 -> 93649.63922 | K11: effort reduction | L11: 124.2168314 | M11: 123.514728 | N11: 122.88609 | O11: 34.216535 | P11: 109.8 | Q11: 58.7 | R11: 34.5 | S11: 35.2 | T11: 153.951507 | U11: 117.6793945 | V11: 254.8847145 | W11: 128.9202599 | X11: ='Townwide Contributions'!U361/1000000 -> 92.98690685
G12: FY19 Chapter 70 | H12: ='Aid436'!AJ448 -> 4850264565 | K12: net excess after effort reduction | L12: 496.8673256 | M12: 370.544184 | N12: 249.496001 | O12: 193.893697 | P12: 256.2 | Q12: =Q10-Q11 -> 234.6 | R12: =R10-R11 -> 195.3 | S12: 199.3 | T12: 152.0806983 | U12: 117.4829132 | V12: 44.97879348 | W12: 22.74921402 | X12: ='Townwide Contributions'!AA361/1000000 -> 16.36937834
G13: Devens | H13: =308558 -> 308558 | K13: shortfall below target before increment | L13: -321.452322 | M13: -352.174875 | N13: -359.193563 | O13: -427.2 | P13: -228 | Q13: -211 | R13: -200 | S13: -180.2 | T13: -162.972215 | U13: -132.627218 | V13: -96.928091 | W13: -103.17317 | X13: ='Townwide Contributions'!Y361/1000000 -> -102.706298
B14: Per pupil guaranteed increase | C14: 20 | D14: 0 | K14: additional increments toward target | L14: 0 | M14: -19.739149 | N14: -21.387588 | O14: -121.2 | P14: -10.6 | Q14: -10 | R14: -4.2 | S14: -3.9 | T14: -7.563093 | U14: -5.848739 | V14: -2.474215 | W14: -3.628178 | X14: ='Townwide Contributions'!S361/1000000*-1 -> -3.910493
B15: Which version of mrgf? | C15: 1 | D15: 1 | G15: Change in C70 Appropriation | H15: =H12+H13-H6 -> 103619409.5 | K15: net shortfall below target after increment | L15: -321.452322 | M15: -332.435726 | N15: -337.805975 | O15: -306 | P15: -217.4 | Q15: -200.9 | R15: -195.7 | S15: -176.3 | T15: -155.409122 | U15: -126.778479 | V15: -94.453876 | W15: -99.544992 | X15: ='Townwide Contributions'!Z361/1000000 -> -98.795805
B16: Below effort threshold 1 | C16: 2.5 | D16: 2.5 | G16: Percent Change | H16: =H15/H6 -> 0.02182861172 | K16: n of municipalities with effort too high | L16: 232 | M16: 218 | N16: 214 | O16: 193 | P16: 282 | Q16: 257 | R16: 249 | S16: 255 | T16: 279 | U16: 278 | V16: 303 | W16: 291 | X16: ='Townwide Contributions'!AA364 -> 269
B17: Below effort threshold 2 | C17: 7.5 | D17: 7.5
B18: Below effort contribution increment, 5-10% under | C18: 0.01 | D18: 0.01 | G18: N of Foundation Aid Districts | H18: ='Aid436'!X448 -> 117
B19: Below effort contribution increment, >10% under | C19: 0.02 | D19: 0.02 | G19: N of Districts with an Aid Increase | H19: ='Comparison to FY18'!O333 -> 320
B20: Maximum local contribution pct of foundation | C20: 0.825 | D20: 0.825 | G20: Total C70 Including Devens | H20: =H12+H13 -> 4850573123
B21: Statewide target for local contribution % of foundation | C21: 0.59 | D21: 0.59
B22: Cap contributions at fixed percentage of foundation | C22: 0.9 | D22: 0.9
B23: Percentage cut to base aid | C23: 0 | D23: 0
A24: Eqv/income percentages
B26: Target effort FY17 | C26: =C21*localcont!K1765 -> 6303496687
B27: Effort based upon following percentages | C27: ='Townwide Contributions'!J361 -> 6303496686
B28: Difference from target | C28: =IF(ABS(C27-C26)<10,0,C27-C26) -> 0
B29: Percentage of EQV | C29: 0.003642194466
B30: Percentage of INCOME | C30: =C29*1/C34 -> 0.0141741077
B32: Total EQV | C32: ='Townwide Contributions'!C361 -> 1106803717800
B33: Total Income | C33: ='Townwide Contributions'!E361 -> 284405513298
B34: State Average % of EQV | C34: =C33/C32 -> 0.2569611113
A37: See Progress Towards Targets
K42: Progress Towards Target Aid Share
L44: FY07 | M44: FY08 | N44: FY09 | O44: FY10 | P44: FY11 | Q44: FY12 | R44: FY13 | S44: FY14 | T44: FY15 | U44: FY16 | V44: FY17 | W44: FY18 | X44: FY19
K45: aid above target | L45: 394.9 | M45: 421 | N45: 440.4 | O45: 413.5991456 | P45: 489.2905867 | Q45: 360.5802896 | R45: 372.9139726 | S45: 385.3 | T45: 404.6539336 | U45: 419.0730779 | V45: 488.1362137 | W45: 497.4038449 | X45: ='Aid436'!AQ449/1000000 -> 474.4368341
K46: aid below target | L46: -176.3 | M46: -143 | N46: -105.5 | O46: -97.82363262 | P46: -75.73073977 | Q46: -110.4290612 | R46: -84.70629692 | S46: -66.9 | T46: -49.39921427 | U46: -44.48798888 | V46: -13.01302676 | W46: -7.202688836 | X46: ='Aid436'!AQ450/1000000 -> -4.601357046

Sheet Index
A1: Massachusetts Department of Elementary and Secondary Education | J1: =parameters!B3 -> 2018-01-24
A2: =parameters!B1& " Chapter 70 and Net School Spending Formula Spreadsheet" -> FY19 Chapter 70 and Net School Spending Formula Spreadsheet
A4: =VLOOKUP(lea_order, leas,4) -> 999
B6: Use the drop-down menu to select a municipal district LEA code (1-351) or regional district LEA code (406-915) and then go to
B7: any of the first four links below. Only municipal LEA codes will activate the Municipal Contribution Requirement and Regional Allocation reports.
B8: A list of codes begins on row 25 of this sheet.
B10: We recommend that you save this workbook to your computer before proceeding, then leave this browser, and open the workbook using Excel or My Computer.
B12: Summary
B13: Foundation Budget
B14: Municipal Contribution Requirement
B15: Regional Allocation
B17: Regional District Detail | D17: (go to this sheet to see any particular regional district's comparison of enrollment and minimum contributions to the prior year)
B19: There are also a number of "hidden" sheets which contain the underlying spreadsheet calculations.
B20: They can be accessed by right-clicking on any of the tabs below and choosing a sheet to unhide.
B22: Questions or comments about Chapter 70 may be directed to:
B23: Rob O'Donnell | D23: rodonnell@doe.mass.edu | G23: 781-338-6512
A25: LEA | B25: District
A26: 1 | B26: Abington
A27: 2 | B27: Acton
A28: 3 | B28: Acushnet
A29: 4 | B29: Adams
A30: 5 | B30: Agawam
A31: 6 | B31: Alford
A32: 7 | B32: Amesbury
A33: 8 | B33: Amherst
A34: 9 | B34: Andover
A35: 10 | B35: Arlington
A36: 11 | B36: Ashburnham
A37: 12 | B37: Ashby
A38: 13 | B38: Ashfield
A39: 14 | B39: Ashland
A40: 15 | B40: Athol
A41: 16 | B41: Attleboro
A42: 17 | B42: Auburn
A43: 18 | B43: Avon
A44: 19 | B44: Ayer
A45: 20 | B45: Barnstable
A46: 21 | B46: Barre
A47: 22 | B47: Becket
A48: 23 | B48: Bedford
A49: 24 | B49: Belchertown
A50: 25 | B50: Bellingham
A51: 26 | B51: Belmont
A52: 27 | B52: Berkley
A53: 28 | B53: Berlin
A54: 29 | B54: Bernardston
A55: 30 | B55: Beverly
A56: 31 | B56: Billerica
A57: 32 | B57: Blackstone
A58: 33 | B58: Blandford
A59: 34 | B59: Bolton
A60: 35 | B60: Boston
A61: 36 | B61: Bourne
A62: 37 | B62: Boxborough
A63: 38 | B63: Boxford
A64: 39 | B64: Boylston
A65: 40 | B65: Braintree
A66: 41 | B66: Brewster
A67: 42 | B67: Bridgewater
A68: 43 | B68: Brimfield
A69: 44 | B69: Brockton
A70: 45 | B70: Brookfield
A71: 46 | B71: Brookline
A72: 47 | B72: Buckland
A73: 48 | B73: Burlington
A74: 49 | B74: Cambridge
A75: 50 | B75: Canton
A76: 51 | B76: Carlisle
A77: 52 | B77: Carver
A78: 53 | B78: Charlemont
A79: 54 | B79: Charlton
A80: 55 | B80: Chatham
A81: 56 | B81: Chelmsford
A82: 57 | B82: Chelsea
A83: 58 | B83: Cheshire
A84: 59 | B84: Chester
A85: 60 | B85: Chesterfield
A86: 61 | B86: Chicopee
A87: 62 | B87: Chilmark
A88: 63 | B88: Clarksburg
A89: 64 | B89: Clinton
A90: 65 | B90: Cohasset
A91: 66 | B91: Colrain
A92: 67 | B92: Concord
A93: 68 | B93: Conway
A94: 69 | B94: Cummington
A95: 70 | B95: Dalton
A96: 71 | B96: Danvers
A97: 72 | B97: Dartmouth
A98: 73 | B98: Dedham
A99: 74 | B99: Deerfield
A100: 75 | B100: Dennis
A101: 76 | B101: Dighton
A102: 77 | B102: Douglas
A103: 78 | B103: Dover
A104: 79 | B104: Dracut
A105: 80 | B105: Dudley
A106: 81 | B106: Dunstable
A107: 82 | B107: Duxbury
A108: 83 | B108: East Bridgewater
A109: 84 | B109: East Brookfield
A110: 85 | B110: Eastham
A111: 86 | B111: Easthampton
A112: 87 | B112: East Longmeadow
A113: 88 | B113: Easton
A114: 89 | B114: Edgartown
A115: 90 | B115: Egremont
A116: 91 | B116: Erving
A117: 92 | B117: Essex
A118: 93 | B118: Everett
A119: 94 | B119: Fairhaven
A120: 95 | B120: Fall River
A121: 96 | B121: Falmouth
A122: 97 | B122: Fitchburg
A123: 98 | B123: Florida
A124: 99 | B124: Foxborough
A125: 100 | B125: Framingham
A126: 101 | B126: Franklin
A127: 102 | B127: Freetown
A128: 103 | B128: Gardner
A129: 104 | B129: Gay Head
A130: 105 | B130: Georgetown
A131: 106 | B131: Gill
A132: 107 | B132: Gloucester
A133: 108 | B133: Goshen
A134: 109 | B134: Gosnold
A135: 110 | B135: Grafton
A136: 111 | B136: Granby
A137: 112 | B137: Granville
A138: 113 | B138: Great Barrington
A139: 114 | B139: Greenfield
A140: 115 | B140: Groton
A141: 116 | B141: Groveland
A142: 117 | B142: Hadley
A143: 118 | B143: Halifax
A144: 119 | B144: Hamilton
A145: 120 | B145: Hampden
A146: 121 | B146: Hancock
A147: 122 | B147: Hanover
A148: 123 | B148: Hanson
A149: 124 | B149: Hardwick
A150: 125 | B150: Harvard
A151: 126 | B151: Harwich
A152: 127 | B152: Hatfield
A153: 128 | B153: Haverhill
A154: 129 | B154: Hawley
A155: 130 | B155: Heath
A156: 131 | B156: Hingham
A157: 132 | B157: Hinsdale
A158: 133 | B158: Holbrook
A159: 134 | B159: Holden
A160: 135 | B160: Holland
A161: 136 | B161: Holliston
A162: 137 | B162: Holyoke
A163: 138 | B163: Hopedale
A164: 139 | B164: Hopkinton
A165: 140 | B165: Hubbardston
A166: 141 | B166: Hudson
A167: 142 | B167: Hull
A168: 143 | B168: Huntington
A169: 144 | B169: Ipswich
A170: 145 | B170: Kingston
A171: 146 | B171: Lakeville
A172: 147 | B172: Lancaster
A173: 148 | B173: Lanesborough
A174: 149 | B174: Lawrence
A175: 150 | B175: Lee
A176: 151 | B176: Leicester
A177: 152 | B177: Lenox
A178: 153 | B178: Leominster
A179: 154 | B179: Leverett
A180: 155 | B180: Lexington
A181: 156 | B181: Leyden
A182: 157 | B182: Lincoln
A183: 158 | B183: Littleton
A184: 159 | B184: Longmeadow
A185: 160 | B185: Lowell
A186: 161 | B186: Ludlow
A187: 162 | B187: Lunenburg
A188: 163 | B188: Lynn
A189: 164 | B189: Lynnfield
A190: 165 | B190: Malden
A191: 166 | B191: Manchester
A192: 167 | B192: Mansfield
A193: 168 | B193: Marblehead
A194: 169 | B194: Marion
A195: 170 | B195: Marlborough
A196: 171 | B196: Marshfield
A197: 172 | B197: Mashpee
A198: 173 | B198: Mattapoisett
A199: 174 | B199: Maynard
A200: 175 | B200: Medfield
A201: 176 | B201: Medford
A202: 177 | B202: Medway
A203: 178 | B203: Melrose
A204: 179 | B204: Mendon
A205: 180 | B205: Merrimac
A206: 181 | B206: Methuen
A207: 182 | B207: Middleborough
A208: 183 | B208: Middlefield
... 255 more rows

Sheet MoreAboutData
B1: FY19 Chapter 70 and Net School Spending Formula | C1: FY18 Chapter 70 and Net School Spending Formula Spreadsheet | D1: FY18 Chapter 70 and Net School Spending Formula Spreadsheet | E1: FY18 Chapter 70 and Net School Spending Formula Spreadsheet | F1: FY18 Chapter 70 and Net School Spending Formula Spreadsheet | G1: Return to Index
B2: More about the data
A3: TABLE OF CONTENTS
A4: Index | E4: Back to the top
A5: Select the district you're interested in from the dropdown list on this sheet. Districts are listed by LEA number.
A7: Foundation Budget | E7: Back to the top
A8: This report displays the foundation enrollment and foundation budget for a single district. A district’s foundation budget is updated each year and it is derived by multiplying the number of pupils in thirteen enrollment categories by cost rates in eleven functional areas. More on calculating the foundation budget can be found here:
A10: http://www.doe.mass.edu/finance/chapter70/chapter-cal.docx
A11: Key Terms
A12: Foundation Enrollment: A count of the students for whom a school district is financially responsible on October 1st of any given year. Inflation: Foundation budget rates are adjusted each year by a statutorily defined inflationary factor. It affects all districts in the same way. Wage Adjustment Factor (WAF): Gives a district credit for having higher school costs if it is located in a geographic area where average wages are higher than in other areas of the state. Calculated using the latest available average wage data supplied by the state’s Executive Office of Labor and Workforce Development (EOLWD). Economically Disadvantaged Decile: Determined based on the relative concentration of economically disadvantaged students served in the district (decile 10 includes the districts with the greatest concentration of these students). Corresponds to a foundation budget rate for economically disadvantaged students.
A13: Municipal Contribution | E13: Back to the top
A14: This report displays the required local contribution for a single municipality. Each municipality has a target local share of its foundation budget, based on local ability to pay. The required local contribution for each municipality is based on the previous year's required contribution, and includes some transition factors so that the shift toward the target levels occurs over a period of several years.
A16: Key Terms
A17: Equalized Valuation (EQV): Calculated by DOR every two years. Full and fair cash value of all taxable property for each municipality. Income: Derived annually by DOR from state income tax returns. Includes all forms of wage, pension, interest, business, investment, and capital gains income. Combined Effort Yield (CEY): Sum of property and income effort. Based on DESE-calculated property and income percentages, which, when applied to all municipalities in the Commonwealth, yields 59% of statewide foundation coming from local revenue. Target Local Contribution/Share: Calculated for each municipality as an equitable share of its foundation budget based on property wealth and income. Municipal Revenue Growth Factor (MRGF): Calculated each year by DOR and quantifies the most recent annual percentage change in each community's local revenues (such as the annual increase in the Proposition 2½ levy limit) that should be available for schools.
A18: Regional Allocation | E18: Back to the top
A19: This report displays the allocation of a municipality's required local contribution across the districts to which it belongs. The municipality's required contribution is allocated in direct proportion to the district's share of the municipality's foundation budget.
A21: Summary | E21: Back to the top
A22: This report displays the Chapter 70 aid calculation for a single district. The aid calculation begins with each district's prior year Chapter 70 amount. The difference between each district's foundation budget and its required contribution equals foundation aid. In FY19, each district is guaranteed to receive at least $20 per pupil in additional Chapter 70 aid. On the right-hand side, there is a comparison to the prior year.
A24: Key Terms
A25: Foundation Aid: The amount of aid needed by a district to reach its foundation budget, after factoring in this year's required local contribution. Foundation budget - Required Local Contribution = Foundation Aid Minimum Aid: A guaranteed per pupil aid increase over the prior year. Required Net School Spending (NSS): The sum of this year's required local contribution and Chapter 70 aid. A district must spend this amount to be in compliance.
A26: Regional District Members | E26: Back to the top
A27: This report displays relevant data for municipal members of a single regional district.
A29: Key Terms
A30: District Foundation Enrollment: Foundation enrollment for the selected district, in total and by member. District Required Minimum Contribution: Total required minimum contribution for the selected district, in total and by member. District's Share of Town Foundation Budget: The proportion of the town's total foundation budget related to students at the selected district. Municipalities often belong to more than one district. Town Required Local Contribution: The total municipal required local contribution for all of its students across all of the districts to which it belongs.
A31: Comparison to FY17 | E31: Back to the top
A32: This report displays prior year and current year foundation enrollment, foundation budget, required local contribution and Chapter 70 aid for all operating districts.
A34: Rates | E34: Back to the top
A35: This sheet displays the FY19 foundation budget rates, and the prior year (FY18) foundation budget rates. Rates are annually adjusted for inflation.
A37: Townwide Contributions | E37: Back to the top
A38: This sheet calculates FY19 required local contributions for each municipality.
A40: Aid436 | E40: Back to the top
A41: This sheet calculates FY19 Chapter 70 aid for each district.

Sheet Foundation Budget
A1: Return to Index | R1: More about the data
A2: Massachusetts Department of Elementary and Secondary Education
A3: Office of School Finance
A4: =parameters!B1&" Chapter 70 Foundation Budget" -> FY19 Chapter 70 Foundation Budget
A5: =lea -> 999 | B5: =IF(lea=999,"State total cannot be computed on this page; Please enter an lea code on the index sheet",VLOOKUP(A5,dist915,2)) -> State total cannot be computed on this page; Please enter an lea code on the index sheet
C6: Base Foundation Components | N6: Incremental Costs Above The Base
C7: (1) | D7: (2) | E7: (3) | F7: (4) | G7: (5) | H7: (6) | I7: (7) | J7: (8) | K7: (9) | L7: (10) | N7: (11) | O7: (12) | P7: (13)
C8: Pre- | D8: ------ Kindergarten ------ | G8: Jr High/ | H8: High | I8: ELL | J8: ELL | K8: ELL | L8: Voca- | N8: Special Ed | O8: Special Ed | P8: Economically
C9: School | D9: Half-Day | E9: Full-Day | F9: Elementary | G9: Middle | H9: School | I9: PK | J9: K Half | K9: KF - 12 | L9: tional | N9: In District | O9: Out of Dist | P9: Disadvantaged | R9: TOTAL*
B10: Foundation Enrollment | C10: =IF($A$5<>999,VLOOKUP(lea,dist915,3),0) -> 0 | D10: =IF(A5<>999,VLOOKUP(lea,dist915,4),0) -> 0 | E10: =IF(A5<>999,VLOOKUP(lea,dist915,5),0) -> 0 | F10: =IF(A5<>999,VLOOKUP(lea,dist915,6),0) -> 0 | G10: =IF(A5<>999,VLOOKUP(lea,dist915,7),0) -> 0 | H10: =IF(A5<>999,VLOOKUP(lea,dist915,8),0) -> 0 | I10: =IF(A5<>999,VLOOKUP(lea,dist915,11),0) -> 0 | J10: =IF(A5<>999,VLOOKUP(lea,dist915,12),0) -> 0 | K10: =IF(A5<>999,VLOOKUP(lea,dist915,13),0) -> 0 | L10: =IF(A5<>999,VLOOKUP(lea,dist915,14),0) -> 0 | N10: =IF(A5<>999,VLOOKUP(lea,dist915,9),0) -> 0 | O10: =IF(A5<>999,VLOOKUP(lea,dist915,10),0) -> 0 | P10: =IF(A5<>999,VLOOKUP(lea,dist915,15),0) -> 0 | R10: =IF(A5<>999,VLOOKUP(lea,dist915,17),0) -> 0
A12: 1 | B12: Administration | C12: =(VLOOKUP(VALUE(C$7)/-1,newrates,$A12+2)*C$10*waf) -> 0 | D12: 0 | E12: 0 | F12: 0 | G12: 0 | H12: 0 | I12: =(VLOOKUP(9,newrates,$A12+2)*I$10*waf) -> 0 | J12: =(VLOOKUP(10,newrates,$A12+2)*J$10*waf) -> 0 | K12: =(VLOOKUP(11,newrates,$A12+2)*K$10*waf) -> 0 | L12: =(VLOOKUP(12,newrates,$A12+2)*L$10*waf) -> 0 | N12: =(VLOOKUP(7,newrates,$A12+2)*N$10*waf) -> 0 | O12: =(VLOOKUP(8,newrates,$A12+2)*O$10*waf) -> 0 | P12: =(VLOOKUP((VALUE(P$7)*-1)+$C$27-1, newrates, A12+2, FALSE))*P$10*waf -> 0 | R12: =SUM(C12:P12) -> 0
A13: 2 | B13: Instructional Leadership | C13: 0 | D13: 0 | E13: 0 | F13: 0 | G13: 0 | H13: 0 | I13: =(VLOOKUP(9,newrates,$A13+2)*I$10*waf) -> 0 | J13: =(VLOOKUP(10,newrates,$A13+2)*J$10*waf) -> 0 | K13: =(VLOOKUP(11,newrates,$A13+2)*K$10*waf) -> 0 | L13: =(VLOOKUP(12,newrates,$A13+2)*L$10*waf) -> 0 | N13: =(VLOOKUP(7,newrates,$A13+2)*N$10*waf) -> 0 | O13: =(VLOOKUP(8,newrates,$A13+2)*O$10*waf) -> 0 | P13: =(VLOOKUP((VALUE(P$7)*-1)+$C$27-1, newrates, A13+2, FALSE))*P$10*waf -> 0 | R13: 0
A14: 3 | B14: Classroom and Specialist Teachers | C14: 0 | D14: 0 | E14: 0 | F14: 0 | G14: 0 | H14: 0 | I14: =(VLOOKUP(9,newrates,$A14+2)*I$10*waf) -> 0 | J14: =(VLOOKUP(10,newrates,$A14+2)*J$10*waf) -> 0 | K14: =(VLOOKUP(11,newrates,$A14+2)*K$10*waf) -> 0 | L14: =(VLOOKUP(12,newrates,$A14+2)*L$10*waf) -> 0 | N14: =(VLOOKUP(7,newrates,$A14+2)*N$10*waf) -> 0 | O14: =(VLOOKUP(8,newrates,$A14+2)*O$10*waf) -> 0 | P14: =(VLOOKUP((VALUE(P$7)*-1)+$C$27-1, newrates, A14+2, FALSE))*P$10*waf -> 0 | R14: 0
A15: 4 | B15: Other Teaching Services | C15: 0 | D15: 0 | E15: 0 | F15: 0 | G15: 0 | H15: 0 | I15: =(VLOOKUP(9,newrates,$A15+2)*I$10*waf) -> 0 | J15: =(VLOOKUP(10,newrates,$A15+2)*J$10*waf) -> 0 | K15: =(VLOOKUP(11,newrates,$A15+2)*K$10*waf) -> 0 | L15: =(VLOOKUP(12,newrates,$A15+2)*L$10*waf) -> 0 | N15: =(VLOOKUP(7,newrates,$A15+2)*N$10*waf) -> 0 | O15: =(VLOOKUP(8,newrates,$A15+2)*O$10*waf) -> 0 | P15: =(VLOOKUP((VALUE(P$7)*-1)+$C$27-1, newrates, A15+2, FALSE))*P$10*waf -> 0 | R15: 0
A16: 5 | B16: Professional Development | C16: 0 | D16: 0 | E16: 0 | F16: 0 | G16: 0 | H16: 0 | I16: =(VLOOKUP(9,newrates,$A16+2)*I$10*waf) -> 0 | J16: =(VLOOKUP(10,newrates,$A16+2)*J$10*waf) -> 0 | K16: =(VLOOKUP(11,newrates,$A16+2)*K$10*waf) -> 0 | L16: =(VLOOKUP(12,newrates,$A16+2)*L$10*waf) -> 0 | N16: =(VLOOKUP(7,newrates,$A16+2)*N$10*waf) -> 0 | O16: =(VLOOKUP(8,newrates,$A16+2)*O$10*waf) -> 0 | P16: =(VLOOKUP((VALUE(P$7)*-1)+$C$27-1, newrates, A16+2, FALSE))*P$10*waf -> 0 | R16: 0
A17: 6 | B17: Instructional Equipment & Tech | C17: =(VLOOKUP(VALUE(C$7)/-1,newrates,$A17+2)*C$10) -> 0 | D17: 0 | E17: 0 | F17: 0 | G17: 0 | H17: 0 | I17: =(VLOOKUP(9,newrates,$A17+2)*I$10) -> 0 | J17: =(VLOOKUP(10,newrates,$A17+2)*J$10) -> 0 | K17: =(VLOOKUP(11,newrates,$A17+2)*K$10) -> 0 | L17: =(VLOOKUP(12,newrates,$A17+2)*L$10) -> 0 | N17: =(VLOOKUP(7,newrates,$A17+2)*N$10) -> 0 | O17: =(VLOOKUP(8,newrates,$A17+2)) -> 0 | P17: =(VLOOKUP((VALUE(P$7)*-1)+$C$27-1, newrates, A17+2, FALSE))*P$10 -> 0 | R17: 0
A18: 7 | B18: Guidance and Psychological | C18: =(VLOOKUP(VALUE(C$7)/-1,newrates,$A18+2)*C$10*waf) -> 0 | D18: 0 | E18: 0 | F18: 0 | G18: 0 | H18: 0 | I18: =(VLOOKUP(9,newrates,$A18+2)*I$10*waf) -> 0 | J18: =(VLOOKUP(10,newrates,$A18+2)*J$10*waf) -> 0 | K18: =(VLOOKUP(11,newrates,$A18+2)*K$10*waf) -> 0 | L18: =(VLOOKUP(12,newrates,$A18+2)*L$10*waf) -> 0 | N18: =(VLOOKUP(7,newrates,$A18+2)*N$10*waf) -> 0 | O18: =(VLOOKUP(8,newrates,$A18+2)*O$10*waf) -> 0 | P18: =(VLOOKUP((VALUE(P$7)*-1)+$C$27-1, newrates, A18+2, FALSE))*P$10*waf -> 0 | R18: 0
A19: 8 | B19: Pupil Services | C19: 0 | D19: 0 | E19: 0 | F19: 0 | G19: 0 | H19: 0 | I19: =(VLOOKUP(9,newrates,$A19+2)*I$10*waf) -> 0 | J19: =(VLOOKUP(10,newrates,$A19+2)*J$10*waf) -> 0 | K19: =(VLOOKUP(11,newrates,$A19+2)*K$10*waf) -> 0 | L19: =(VLOOKUP(12,newrates,$A19+2)*L$10*waf) -> 0 | N19: =(VLOOKUP(7,newrates,$A19+2)*N$10*waf) -> 0 | O19: =(VLOOKUP(8,newrates,$A19+2)*O$10*waf) -> 0 | P19: =(VLOOKUP((VALUE(P$7)*-1)+$C$27-1, newrates, A19+2, FALSE))*P$10*waf -> 0 | R19: 0
A20: 9 | B20: Operations and Maintenance | C20: 0 | D20: 0 | E20: 0 | F20: 0 | G20: 0 | H20: 0 | I20: =(VLOOKUP(9,newrates,$A20+2)*I$10*waf) -> 0 | J20: =(VLOOKUP(10,newrates,$A20+2)*J$10*waf) -> 0 | K20: =(VLOOKUP(11,newrates,$A20+2)*K$10*waf) -> 0 | L20: =(VLOOKUP(12,newrates,$A20+2)*L$10*waf) -> 0 | N20: =(VLOOKUP(7,newrates,$A20+2)*N$10*waf) -> 0 | O20: =(VLOOKUP(8,newrates,$A20+2)*O$10*waf) -> 0 | P20: =(VLOOKUP((VALUE(P$7)*-1)+$C$27-1, newrates, A20+2, FALSE))*P$10*waf -> 0 | R20: 0
A21: 10 | B21: Employee Benefits/Fixed Charges | C21: =(VLOOKUP(VALUE(C$7)/-1,newrates,$A21+2)*C$10) -> 0 | D21: 0 | E21: 0 | F21: 0 | G21: 0 | H21: 0 | I21: =(VLOOKUP(9,newrates,$A21+2)*I$10) -> 0 | J21: =(VLOOKUP(10,newrates,$A21+2)*J$10) -> 0 | K21: =(VLOOKUP(11,newrates,$A21+2)*K$10) -> 0 | L21: =(VLOOKUP(12,newrates,$A21+2)*L$10) -> 0 | N21: =(VLOOKUP(7,newrates,$A21+2)*N$10) -> 0 | O21: =(VLOOKUP(8,newrates,$A21+2)*O$10) -> 0 | P21: =(VLOOKUP((VALUE(P$7)*-1)+$C$27-1, newrates, A21+2, FALSE))*P$10 -> 0 | R21: 0
A22: 11 | B22: Special Ed Tuition | C22: 0 | D22: 0 | E22: 0 | F22: 0 | G22: 0 | H22: 0 | I22: =(VLOOKUP(9,newrates,$A22+2)*I$10) -> 0 | J22: =(VLOOKUP(10,newrates,$A22+2)*J$10) -> 0 | K22: =(VLOOKUP(11,newrates,$A22+2)*K$10) -> 0 | L22: =(VLOOKUP(12,newrates,$A22+2)*L$10) -> 0 | N22: =(VLOOKUP(7,newrates,$A22+2)*N$10) -> 0 | O22: =(VLOOKUP(8,newrates,$A22+2)*O$10) -> 0 | P22: =(VLOOKUP((VALUE(P$7)*-1)+$C$27-1, newrates, A22+2, FALSE))*P$10 -> 0 | R22: 0
A24: 12 | B24: Total | C24: =SUM(C12:C22) -> 0 | D24: 0 | E24: 0 | F24: 0 | G24: 0 | H24: 0 | I24: =SUM(I12:I22) -> 0 | J24: =SUM(J12:J22) -> 0 | K24: =SUM(K12:K22) -> 0 | L24: 0 | N24: =SUM(N12:N22) -> 0 | O24: =SUM(O12:O22) -> 0 | P24: =SUM(P12:P22) -> 0 | R24: =IF(A5=293, 90885420, SUM(R12:R23)) -> 0
A26: 13 | B26: Wage Adjustment Factor | C26: =VLOOKUP(lea,dist915,18) -> 1 | N26: Foundation Budget per Pupil | R26: =IF(A5<>999,R24/R10," ") -> 
A27: 14 | B27: Economically Disadvantaged Decile | C27: =VLOOKUP(lea,dist915,19) -> 0
A28: * | B28: Total foundation enrollment does not include columns 11 through 13, because those columns represent increments above the base. The pupils are already counted in columns 1 to 10.
B29: Total foundation enrollment assigns pupils in pre-kindergarten and half-time kindergarten an enrollment count of .5.
B30: Special education in-district headcount is an assumed percentage, representing 3.75 percent of K to 12 non-vocational enrollment and 4.75 percent of vocational enrollment.
B31: Special education out-of-district headcount is also an assumed percentage, representing 1 percent of non-vocational K-12 enrollment.
B32: Economically disadvantaged headcounts are the number of pupils in columns 1 through 10 who are directly certified as eligible for the Supplemental Nutrition
B33: Assistance Program (SNAP); the Transitional Assistance for Families with Dependent Children (TAFDC); and MassHealth (Medicaid).
B34: Each component of the foundation budget represents the enrollment on line 1 multiplied by the appropriate state-wide foundation allotment.
B35: The wage adjustment factor is applied to underlying rates in all functions except instructional equipment, benefits and special education tuition.
B36: The foundation budget shown on this page may differ from the final number used in the formula, due to rounding error.
B38: Return to Index

Sheet Municipal Contribution
M1: =IF(VLOOKUP(A6,town351,17)>0,"lo","hi") -> hi
A2: Return to Index | G2: More about the data
A3: Massachusetts Department of Elementary and Secondary Education
A4: Office of School Finance
A5: =parameters!B1&" Chapter 70 Determination of City and Town Total Required Contribution" -> FY19 Chapter 70 Determination of City and Town Total Required Contribution
A6: =lea -> 999 | B6: =IF(lea>351, "This lea code does not refer to a city or a town - this table shows municipal data only.",VLOOKUP(A6,aidcalc,2)) -> This lea code does not refer to a city or a town - this table shows municipal data only.
A8: Effort Goal | E8: =parameters!B1&" Increments Toward Goal" -> FY19 Increments Toward Goal
A10: 1) | B10: 2016 equalized valuation | C10: =IF(A6<352,VLOOKUP($A$6,town351,3)," ") ->  | E10: 13) | F10: Required local contribution FY18 | G10: =IF(A6<352,VLOOKUP($A$6,town351,13)," ") -> 
A11: 2) | B11: Property percentage | C11: =IF(A6<352,'Townwide Contributions'!D5," ") ->  | E11: 14) | F11: Municipal revenue growth factor (DOR) | G11: =IF(A$6<352,VLOOKUP($A$6,town351,14)," ") -> 
A12: 3) | B12: Local effort from property wealth | C12: =IF(A6<352,VLOOKUP($A$6,town351,4)," ") ->  | E12: 15) | F12: =parameters!B1&" preliminary contribution (13 x 14)" -> FY19 preliminary contribution (13 x 14) | G12: =IF(A$6<352,VLOOKUP($A$6,town351,15)," ") -> 
E13: 16) | F13: Preliminary contribution pct of foundation (15/8) | G13: =IF(A$6<352,VLOOKUP($A$6,town351,16)/100," ") -> 
A14: 4) | B14: 2015 income | C14: =IF(A6<352,VLOOKUP($A$6,town351,5)," ") -> 
A15: 5) | B15: Income percentage | C15: =IF(A6<352,'Townwide Contributions'!F5," ") ->  | E15: If preliminary contribution is above the target share:
A16: 6) | B16: Local effort from income | C16: =IF(A6<352,VLOOKUP($A$6,town351,6)," ") ->  | E16: 17) | F16: Excess local effort (15 - 10) | G16: =IF(AND(A$6<352,M$1="hi"),VLOOKUP($A$6,town351,20)," ") -> 
E17: 18) | F17: 85% reduction toward target (17 x 85%) | G17: =IF(AND(A$6<352,M$1="hi"),VLOOKUP($A$6,town351,21)," ") -> 
A18: 7) | B18: Combined effort yield (row 3+ row 6) | C18: =IF(A6<352,VLOOKUP($A$6,town351,7)," ") ->  | E18: 19) | F18: =parameters!B1&" required local contribution (15 - 18), capped at 90% of foundation" -> FY19 required local contribution (15 - 18), capped at 90% of foundation | G18: =IF(AND(A$6<352,M$1="hi"),VLOOKUP($A$6,town351,22)," ") -> 
E19: 20) | F19: Contribution as percentage of foundation (19 / 8) | G19: =IF(AND(A$6<352,M$1="hi"),VLOOKUP($A$6,town351,23)," ") -> 
A20: 8) | B20: Foundation budget FY19 | C20: =IF(A6<352,VLOOKUP($A$6,town351,8)," ") -> 
A21: 9) | B21: Maximum local contribution (82.5% * row 8) | C21: =IF(A6<352,VLOOKUP($A$6,town351,9)," ") ->  | E21: If preliminary contribution is below the target share:
E22: 21) | F22: Shortfall from target local share (11 - 16) | G22: =IF(AND(A$6<352,M1="lo"),VLOOKUP($A$6,town351,17)/100," ") -> 
A23: 10) | B23: Target local contribution (lesser of row 7 or row 9) | C23: =IF(A6<352,VLOOKUP($A$6,town351,10)," ") ->  | E23: 22) | F23: Added increment toward target (13 x 1% or 2%)* | G23: =IF(AND(A$6<352,M1="lo"),VLOOKUP($A$6,town351,19)," ") -> 
F24: *1% if shortfall is between 2.5% and 7.5%; 2% if shortfall > 7.5%
A25: 11) | B25: Target local share (row 10 as % of row 8) | C25: =IF(A6<352,VLOOKUP(lea,town351,11)/100," ") ->  | E25: 23) | F25: Shortfall from target after adding increment (10 - 15 - 22) | G25: =IF(AND(A$6<352,M1="lo"),VLOOKUP($A$6,town351,26)," ") -> 
A26: 12) | B26: Target aid share (100% minus row 11) | C26: =IF(A6<352,VLOOKUP(lea,aidcalc,10)/100," ") ->  | E26: 24) | F26: =parameters!B1&" required local contribution (15 + 22)" -> FY19 required local contribution (15 + 22) | G26: =IF(AND(A$6<352,M1="lo"),VLOOKUP($A$6,town351,22)," ") -> 
E27: 25) | F27: Contribution as percentage of foundation (24 / 8) | G27: =IF(AND(A$6<352,M1="lo"),VLOOKUP($A$6,town351,23)/100," ") -> 
B29: See a listing of all 351 communities

Sheet Regl Allocation
J1: More about the data
D2: Return to Index
D3: Massachusetts Department of Elementary and Secondary Education
D4: Office of School Finance
D5: FY19 Chapter 70 Apportionment of Local Contribution Across School Districts
E7: 4 | F7: 4 | G7: 3 | H7: 2 | I7: 1
A9: 5 | D9: =lea -> 999 | E9: =IF($D$9>351, "", IF(AND($D$9>0, VLOOKUP($D$9*5-E$7, order1755, $A9)<>0), VLOOKUP($D$9*5-E$7, order1755, $A9), "")) ->  | F9: =IF(OR($D$9="", $D$9>351), "", IF(AND($D$9>0, VLOOKUP($D$9*5-F$7, order1755, $A9)<>0), VLOOKUP($D$9*5-F$7, order1755, $A9), "")) ->  | G9: =IF(OR($D$9="", $D$9>351), "", IF(AND($D$9>0, VLOOKUP($D$9*5-G$7, order1755, $A9)<>0), VLOOKUP($D$9*5-G$7, order1755, $A9), "")) ->  | H9: =IF(OR($D$9="", $D$9>351), "", IF(AND($D$9>0, VLOOKUP($D$9*5-H$7, order1755, $A9)<>0), VLOOKUP($D$9*5-H$7, order1755, $A9), "")) ->  | I9: =IF(OR($D$9="", $D$9>351), "", IF(AND($D$9>0, VLOOKUP($D$9*5-I$7, order1755, $A9)<>0), VLOOKUP($D$9*5-I$7, order1755, $A9), "")) ->  | J9: Combined Total for All Districts
A10: 6
E11: Prior Year Data (for comparison purposes)
A13: 15 | D13: 1 | E13: =parameters!B2&" foundation enrollment" -> FY18 foundation enrollment | F13: =IF(OR($D$9="", $D$9>351), "", IF(AND($D$9>0, VLOOKUP($D$9*5-F$7, order1755, $A13)<>0), VLOOKUP($D$9*5-F$7, order1755, $A13), "")) ->  | J13: =IF(OR($D$9="", $D$9>351), "", VLOOKUP($D$9*5, order1755, $A13)) -> 
A14: 6 | D14: 2 | E14: =parameters!B2&" foundation budget" -> FY18 foundation budget | J14: =IF(OR($D$9="", $D$9>351), "", VLOOKUP($D$9*5, order1755, $A14)) -> 
A15: 7 | D15: 3 | E15: ="Each district's share of municipality's combined "& parameters!B2&" foundation" -> Each district's share of municipality's combined FY18 foundation | J15: =IF(OR($D$9="", $D$9>351), "", VLOOKUP($D$9*5, order1755, $A15)) -> 
A16: 12 | D16: 4 | E16: =parameters!B2&" required contribution" -> FY18 required contribution | J16: =IF(OR($D$9="", $D$9>351), "", VLOOKUP($D$9*5, order1755, $A16)) -> 
E17: =parameters!B1& " apportionment of contribution among community's districts" -> FY19 apportionment of contribution among community's districts
D18: 5 | E18: =parameters!B1&" total unapportioned required contribution ('municipal contribution' sheet row 19 or 24)" -> FY19 total unapportioned required contribution ('municipal contribution' sheet row 19 or 24) | J18: =IF(OR($D$9="", $D$9>351), "", VLOOKUP($D$9,town351,22)) -> 
A19: 20 | D19: 6 | E19: =parameters!B1&" foundation enrollment" -> FY19 foundation enrollment | F19: =IF(OR($D$9="", $D$9>351), "", IF(AND($D$9>0, VLOOKUP($D$9*5-F$7, order1755, $A19)<>0), VLOOKUP($D$9*5-F$7, order1755, $A19), "")) ->  | J19: =IF(OR($D$9="", $D$9>351), "", VLOOKUP($D$9*5, order1755, $A19)) -> 
A20: 8 | D20: 7 | E20: =parameters!B1&" foundation budget" -> FY19 foundation budget | J20: =IF(OR($D$9="", $D$9>351), "", VLOOKUP($D$9*5, order1755, $A20)) -> 
A21: 9 | D21: 8 | E21: ="Each district's share of municipality's total "& parameters!B1&" foundation " -> Each district's share of municipality's total FY19 foundation | J21: =IF(OR($D$9="", $D$9>351), "", VLOOKUP($D$9*5, order1755, $A21)) -> 
A22: 11 | D22: 9 | E22: =parameters!B1&" Required Contribution" -> FY19 Required Contribution | J22: =VLOOKUP($D$9*5, order1755, $A22) -> 6221070261
A24: 13 | D24: 10 | E24: ="Change "&parameters!B1&" to "&parameters!B2& " (9 - 4)" -> Change FY19 to FY18 (9 - 4) | F24: =IF(OR($D$9="", $D$9>351), "", IF(AND($D$9>0, VLOOKUP($D$9*5-F$7, order1755, $A24)<>0), VLOOKUP($D$9*5-F$7, order1755, $A24), "")) ->  | G24: =IF(OR($D$9="", $D$9>351), "", IF(AND($D$9>0, VLOOKUP($D$9*5-G$7, order1755, $A24)<>0), VLOOKUP($D$9*5-G$7, order1755, $A24), "")) ->  | H24: =IF(OR($D$9="", $D$9>351), "", IF(AND($D$9>0, VLOOKUP($D$9*5-H$7, order1755, $A24)<>0), VLOOKUP($D$9*5-H$7, order1755, $A24), "")) ->  | I24: =IF(OR($D$9="", $D$9>351), "", IF(AND($D$9>0, VLOOKUP($D$9*5-I$7, order1755, $A24)<>0), VLOOKUP($D$9*5-I$7, order1755, $A24), "")) ->  | J24: =IF(OR($D$9="", $D$9>351), "", VLOOKUP($D$9*5, order1755, $A24)) -> 

Sheet Summary
A1: Return to Index | I1: More about the data
I2: =parameters!B3 -> 2018-01-24
A3: Massachusetts Department of Elementary and Secondary Education
A4: =parameters!B1&" Chapter 70 Summary" -> FY19 Chapter 70 Summary
A6: =lea -> 999 | B6: =PROPER(VLOOKUP(A6,dist915,2)) -> State Total
A8: ="Aid Calculation " & parameters!B1 -> Aid Calculation FY19 | E8: ="Comparison to "& PYr -> Comparison to FY18
F10: =PYr -> FY18 | G10: =CYr -> FY19 | H10: Change | I10: Pct Chg | S10: FY06 | T10: FY07 | U10: FY08 | V10: FY09 | W10: FY10 | X10: FY11 | Y10: FY12 | Z10: FY13 | AA10: FY14 | AB10: FY15 | AC10: FY16 | AD10: FY17
A11: Prior Year Aid | E11: Enrollment | F11: =VLOOKUP(A6,aidcalc,17) -> 941303 | G11: =VLOOKUP(A6,aidcalc,18) -> 938401 | H11: =G11-F11 -> -2902 | I11: =IF(F11>0, H11/F11, 0) -> -0.003082960535 | R11: Foundation Budget | S11: =VLOOKUP($A$6,disthist,4) -> 7551933454 | T11: =VLOOKUP($A$6,disthist,7) -> 8014672861 | U11: =VLOOKUP($A$6,disthist,10) -> 8406096436 | V11: =VLOOKUP($A$6,disthist,13) -> 8811314229 | W11: =VLOOKUP($A$6,disthist,17) -> 9088557473 | X11: =VLOOKUP($A$6,disthist,21) -> 8921047970 | Y11: =VLOOKUP($A$6,disthist,26) -> 9119340580 | Z11: =VLOOKUP($A$6,disthist,29) -> 9467117141 | AA11: =VLOOKUP($A$6,disthist, 32) -> 9711217585 | AB11: =VLOOKUP($A$6,disthist, 35) -> 9866011313 | AC11: =VLOOKUP($A$6,disthist, 38) -> 1.009017727e+10 | AD11: =VLOOKUP($A$6, aidcalc, 6) -> 1.068389269e+10
A12: 1 | B12: ="Chapter 70 "&PYr -> Chapter 70 FY18 | C12: =VLOOKUP(A6,aidcalc,5) -> 4745645156 | E12: Foundation budget | F12: =VLOOKUP(A6,aidcalc,4) -> 1.037917384e+10 | G12: =VLOOKUP(A6,aidcalc,6) -> 1.068389269e+10 | H12: =G12-F12 -> 304718846.7 | I12: =IF(F12>0, H12/F12, 0) -> 0.02935868031 | R12: Required District Contribution | S12: =VLOOKUP($A$6,disthist,5) -> 4743946672 | T12: =VLOOKUP($A$6,disthist,8) -> 4876428772 | U12: =VLOOKUP($A$6,disthist,11) -> 4997705374 | V12: =VLOOKUP($A$6,disthist,14) -> 5110365426 | W12: =VLOOKUP($A$6,disthist,18) -> 5250106061 | X12: =VLOOKUP($A$6,disthist,22) -> 5302200670 | Y12: =VLOOKUP($A$6,disthist,27) -> 5413602268 | Z12: =VLOOKUP($A$6,disthist,30) -> 5582113529 | AA12: =VLOOKUP($A$6,disthist, 33) -> 5748475145 | AB12: =VLOOKUP($A$6,disthist, 36) -> 5817618237 | AC12: =VLOOKUP($A$6,disthist, 39) -> 5943909029 | AD12: =VLOOKUP($A$6, aidcalc, 7) -> 6221070261
E13: Required district contribution | F13: =VLOOKUP(A6,disthist,45) -> 6046916786 | G13: =VLOOKUP($A$6, aidcalc, 7) -> 6221070261 | H13: =G13-F13 -> 174153475 | I13: =IF(F13>0, H13/F13, 0) -> 0.02880037566 | R13: C70 Aid | S13: =VLOOKUP($A$6,disthist,6) -> 3288603062 | T13: =VLOOKUP($A$6,disthist,9) -> 3505192039 | U13: =VLOOKUP($A$6,disthist,12) -> 3725343327 | V13: =VLOOKUP($A$6,disthist,15)+VLOOKUP($A$6,disthist,16) -> 3948496062 | W13: =VLOOKUP($A$6,disthist,19)+VLOOKUP($A$6,disthist,20) -> 4043156700 | X13: =VLOOKUP($A$6,disthist,23)+VLOOKUP($A$6,disthist,24)+VLOOKUP($A$6,disthist,25) -> 4072032853 | Y13: =VLOOKUP($A$6,disthist,28) -> 3990504093 | Z13: =VLOOKUP($A$6,disthist,31) -> 4173223954 | AA13: =VLOOKUP($A$6,disthist,34) -> 4300854366 | AB13: =VLOOKUP($A$6,disthist,37) -> 4400335962 | AC13: =VLOOKUP($A$6,disthist,40) -> 4511521974 | AD13: =VLOOKUP($A$6, aidcalc, 35) -> 0
A14: Foundation Aid | E14: Chapter 70 aid | F14: =IF(A6=999, parameters!H6, VLOOKUP($A$6, disthist,46)) -> 4746953714 | G14: =IF(A6=999, parameters!H20, VLOOKUP($A$6, aidcalc, 36)) -> 4850573123 | H14: =G14-F14 -> 103619409.5 | I14: =IF(F14>0, H14/F14, 0) -> 0.02182861172
A15: 2 | B15: ="Foundation budget "&parameters!B1 -> Foundation budget FY19 | C15: =VLOOKUP($A$6, aidcalc, 6) -> 1.068389269e+10 | E15: Required net school spending (NSS) | F15: =F13+F14 -> 1.07938705e+10 | G15: =G13+G14 -> 1.107164338e+10 | H15: =G15-F15 -> 277772884.5 | I15: =IF(F15>0, H15/F15, 0) -> 0.02573431694
A16: 3 | B16: ="Required district contribution "& CYr -> Required district contribution FY19 | C16: =VLOOKUP($A$6, aidcalc, 7) -> 6221070261
A17: 4 | B17: Foundation aid (2 -3) | C17: =VLOOKUP($A$6, aidcalc, 8) -> 4462822436 | E17: Target aid share | F17: =VLOOKUP(A$6,disthist,3)/100 -> 0.41 | G17: =VLOOKUP(A6,aidcalc,10)/100 -> 0.41
A18: 5 | B18: ="Increase over " & PYr&" (4 - 1)" -> Increase over FY18 (4 - 1) | C18: =VLOOKUP($A$6, aidcalc, 9) -> 107006250.4 | E18: C70 % of foundation | F18: =IF(F12>0,F14/F12,IF(F14>0,1,0)) -> 0.4573537148 | G18: =IF(G12>0,G14/G12,IF(G14>0,1,0)) -> 0.4540080347
A20: Minimum Aid | E20: Required NSS % of foundation | F20: =IF(F12>0,F15/F12,IF(F15>0,1,0)) -> 1.039954688 | G20: =IF(G12>0,G15/G12,IF(G15>0,1,0)) -> 1.036293017
A21: 6 | B21: Minimum $20 per pupil increase | C21: =VLOOKUP($A$6, aidcalc, 32, FALSE) -> 9254970.688
A23: Non-Operating District Reduction to Foundation
A24: 7 | B24: Reduction to foundation | C24: =VLOOKUP($A$6, aidcalc, 34) -> 93649.63922
A27: =CYr&" Chapter 70 Aid" -> FY19 Chapter 70 Aid
A28: 9 | B28: sum of line 1, 5 minus 7 | C28: =VLOOKUP($A$6, aidcalc, 36) -> 4850264565

Sheet Regl Dist Members
E2: Return to Index | V2: More about the data
E4: =VLOOKUP(reg_order, regdistricts, 3, FALSE) -> 710
E6: Massachusetts Department of Elementary and Secondary Education
E7: Office of School Finance
E8: =CYr&" Chapter 70" -> FY19 Chapter 70
E9: Regional District Enrollment and Contributions by Member City or Town
B11: =VLOOKUP(E4, leas!D5:F445, 3, FALSE) -> 0710 | D11: 2 | E11: =VLOOKUP(reg_order, regdistricts, 2, FALSE) -> 710 Mendon Upton
G13: District Foundation Enrollment | K13: District Required Minimum Contribution | N13: District's Share of Town Foundation Budget | Q13: Town Required Local Contribution | T13: FY19 Town Target v Actual Local Share
B15: =VLOOKUP($E$4, regcount, 2, FALSE) -> 2 | E15: LEA | F15: Member | G15: =PYr -> FY18 | H15: =CYr -> FY19 | I15: Change | J15: Pct of Town Enrollment | K15: =PYr -> FY18 | L15: =CYr -> FY19 | M15: Change | N15: =PYr -> FY18 | O15: =CYr -> FY19 | P15: Change | Q15: =PYr -> FY18 | R15: =CYr -> FY19 | S15: Change | T15: Target | U15: Actual | V15: Above/Below Target
F17: District Total | G17: =SUM(G19:G66) -> 2143 | H17: =SUM(H19:H66) -> 2172 | I17: =SUM(I19:I61) -> 29 | K17: =SUM(K19:K66) -> 13867755 | L17: =SUM(L19:L66) -> 14786349 | M17: =SUM(M19:M61) -> 918594
A19: =IF($C19<=$B$15,VLOOKUP(E19,leas!D5:F445,3,FALSE),"") -> 0179 | B19: =$E$4*100+C19 -> 71001 | C19: 1 | E19: =IF($C19<=$B$15, VLOOKUP($B19, regdetail, 5), " ") -> 179 | F19: =IF($C19<=$B$15, VLOOKUP($B19, regdetail, 6), " ") -> MENDON | G19: =IF($C19<=$B$15,VLOOKUP(A19&$B$11, localcont!A10:X1764, 18, FALSE), "") -> 945.5283541 | H19: =IF($C19<=$B$15,VLOOKUP(A19&$B$11, localcont!$A$10:$X$1764, 23, FALSE), "") -> 962.3661202 | I19: =IF($C19<=$B$15, H19-G19, " ") -> 16.83776615 | J19: =IF($C19<=$B$15,H19/VLOOKUP(A19&"0999", localcont!$A$10:$X$1764, 23, FALSE), "") -> 0.9110156998 | K19: =IF($C19<=$B$15,VLOOKUP(A19&$B$11, localcont!$A$10:$X$1764, 15, FALSE), "") -> 6331069 | L19: =IF($C19<=$B$15,VLOOKUP(A19&$B$11, localcont!$A$10:$X$1764, 14, FALSE),"") -> 6729333 | M19: =IF($C19<=$B$15, L19-K19, " ") -> 398264 | N19: =IF($C19<=$B$15,VLOOKUP(A19&$B$11, localcont!$A$10:$X$1764, 10, FALSE), "") -> 0.8636038164 | O19: =IF($C19<=$B$15,VLOOKUP(A19&$B$11, localcont!$A$10:$X$1764, 12, FALSE), "") -> 0.8661350528 | P19: =IF($C19<=$B$15, O19-N19, " ") -> 0.002531236429 | Q19: =IF($C19<=$B$15,VLOOKUP(E19, town351, 13, FALSE), "") -> 7330988 | R19: =IF($C19<=$B$15,VLOOKUP(E19, town351, 22, FALSE), "") -> 7769381 | S19: =IF($C19<=$B$15, R19-Q19, " ") -> 438393 | T19: =IF($C19<=$B$15,VLOOKUP(E19, town351, 11, FALSE), "") -> 74.98 | U19: =IF($C19<=$B$15,VLOOKUP(E19, town351, 23, FALSE), "") -> 71.89260704 | V19: =IF(U19<T19, "Below", IF(U19>T19, "Above", "")) -> Below
A20: =IF($C20<=$B$15,VLOOKUP(E20,leas!D7:F447,3,FALSE),"") -> 0303 | B20: =$E$4*100+C20 -> 71002 | C20: 2 | E20: 303 | F20: UPTON | G20: =IF($C20<=$B$15,VLOOKUP(A20&$B$11, localcont!A11:X1765, 18, FALSE), "") -> 1197.471646 | H20: =IF($C20<=$B$15,VLOOKUP(A20&$B$11, localcont!$A$10:$X$1764, 23, FALSE), "") -> 1209.63388 | I20: =IF($C20<=$B$15, H20-G20, " ") -> 12.16223385 | J20: =IF($C20<=$B$15,H20/VLOOKUP(A20&"0999", localcont!$A$10:$X$1764, 23, FALSE), "") -> 0.917338693 | K20: =IF($C20<=$B$15,VLOOKUP(A20&$B$11, localcont!$A$10:$X$1764, 15, FALSE), "") -> 7536686 | L20: =IF($C20<=$B$15,VLOOKUP(A20&$B$11, localcont!$A$10:$X$1764, 14, FALSE),"") -> 8057016 | M20: =IF($C20<=$B$15, L20-K20, " ") -> 520330 | N20: =IF($C20<=$B$15,VLOOKUP(A20&$B$11, localcont!$A$10:$X$1764, 10, FALSE), "") -> 0.8621597712 | O20: =IF($C20<=$B$15,VLOOKUP(A20&$B$11, localcont!$A$10:$X$1764, 12, FALSE), "") -> 0.8750431809 | P20: =IF($C20<=$B$15, O20-N20, " ") -> 0.01288340979 | Q20: 8741635 | R20: 9207564 | S20: =IF($C20<=$B$15, R20-Q20, " ") -> 465929 | T20: 70.77 | U20: 68.48142877 | V20: =IF(U20<T20, "Below", IF(U20>T20, "Above", "")) -> Below
A21: =IF($C21<=$B$15,VLOOKUP(E21,leas!D8:F448,3,FALSE),"") ->  | B21: 71003 | C21: 3 | G21: =IF($C21<=$B$15,VLOOKUP(A21&$B$11, localcont!A12:X1766, 18, FALSE), "") ->  | H21: =IF($C21<=$B$15,VLOOKUP(A21&$B$11, localcont!$A$10:$X$1764, 23, FALSE), "") ->  | J21: =IF($C21<=$B$15,H21/VLOOKUP(A21&"0999", localcont!$A$10:$X$1764, 23, FALSE), "") ->  | K21: =IF($C21<=$B$15,VLOOKUP(A21&$B$11, localcont!$A$10:$X$1764, 15, FALSE), "") ->  | L21: =IF($C21<=$B$15,VLOOKUP(A21&$B$11, localcont!$A$10:$X$1764, 14, FALSE),"") ->  | N21: =IF($C21<=$B$15,VLOOKUP(A21&$B$11, localcont!$A$10:$X$1764, 10, FALSE), "") ->  | O21: =IF($C21<=$B$15,VLOOKUP(A21&$B$11, localcont!$A$10:$X$1764, 12, FALSE), "") -> 
A22: =IF($C22<=$B$15,VLOOKUP(E22,leas!D9:F449,3,FALSE),"") ->  | B22: 71004 | C22: 4 | G22: =IF($C22<=$B$15,VLOOKUP(A22&$B$11, localcont!A13:X1767, 18, FALSE), "") ->  | H22: =IF($C22<=$B$15,VLOOKUP(A22&$B$11, localcont!$A$10:$X$1764, 23, FALSE), "") ->  | J22: =IF($C22<=$B$15,H22/VLOOKUP(A22&"0999", localcont!$A$10:$X$1764, 23, FALSE), "") ->  | K22: =IF($C22<=$B$15,VLOOKUP(A22&$B$11, localcont!$A$10:$X$1764, 15, FALSE), "") ->  | L22: =IF($C22<=$B$15,VLOOKUP(A22&$B$11, localcont!$A$10:$X$1764, 14, FALSE),"") ->  | N22: =IF($C22<=$B$15,VLOOKUP(A22&$B$11, localcont!$A$10:$X$1764, 10, FALSE), "") ->  | O22: =IF($C22<=$B$15,VLOOKUP(A22&$B$11, localcont!$A$10:$X$1764, 12, FALSE), "") -> 
A23: =IF($C23<=$B$15,VLOOKUP(E23,leas!D10:F450,3,FALSE),"") ->  | B23: 71005 | C23: 5 | G23: =IF($C23<=$B$15,VLOOKUP(A23&$B$11, localcont!A14:X1768, 18, FALSE), "") ->  | H23: =IF($C23<=$B$15,VLOOKUP(A23&$B$11, localcont!$A$10:$X$1764, 23, FALSE), "") ->  | J23: =IF($C23<=$B$15,H23/VLOOKUP(A23&"0999", localcont!$A$10:$X$1764, 23, FALSE), "") ->  | K23: =IF($C23<=$B$15,VLOOKUP(A23&$B$11, localcont!$A$10:$X$1764, 15, FALSE), "") ->  | L23: =IF($C23<=$B$15,VLOOKUP(A23&$B$11, localcont!$A$10:$X$1764, 14, FALSE),"") ->  | N23: =IF($C23<=$B$15,VLOOKUP(A23&$B$11, localcont!$A$10:$X$1764, 10, FALSE), "") ->  | O23: =IF($C23<=$B$15,VLOOKUP(A23&$B$11, localcont!$A$10:$X$1764, 12, FALSE), "") -> 
A24: =IF($C24<=$B$15,VLOOKUP(E24,leas!D11:F451,3,FALSE),"") ->  | B24: 71006 | C24: 6 | G24: =IF($C24<=$B$15,VLOOKUP(A24&$B$11, localcont!A15:X1769, 18, FALSE), "") ->  | H24: =IF($C24<=$B$15,VLOOKUP(A24&$B$11, localcont!$A$10:$X$1764, 23, FALSE), "") ->  | J24: =IF($C24<=$B$15,H24/VLOOKUP(A24&"0999", localcont!$A$10:$X$1764, 23, FALSE), "") ->  | K24: =IF($C24<=$B$15,VLOOKUP(A24&$B$11, localcont!$A$10:$X$1764, 15, FALSE), "") ->  | L24: =IF($C24<=$B$15,VLOOKUP(A24&$B$11, localcont!$A$10:$X$1764, 14, FALSE),"") ->  | N24: =IF($C24<=$B$15,VLOOKUP(A24&$B$11, localcont!$A$10:$X$1764, 10, FALSE), "") ->  | O24: =IF($C24<=$B$15,VLOOKUP(A24&$B$11, localcont!$A$10:$X$1764, 12, FALSE), "") -> 
A25: =IF($C25<=$B$15,VLOOKUP(E25,leas!D12:F452,3,FALSE),"") ->  | B25: 71007 | C25: 7 | G25: =IF($C25<=$B$15,VLOOKUP(A25&$B$11, localcont!A16:X1770, 18, FALSE), "") ->  | H25: =IF($C25<=$B$15,VLOOKUP(A25&$B$11, localcont!$A$10:$X$1764, 23, FALSE), "") ->  | J25: =IF($C25<=$B$15,H25/VLOOKUP(A25&"0999", localcont!$A$10:$X$1764, 23, FALSE), "") ->  | K25: =IF($C25<=$B$15,VLOOKUP(A25&$B$11, localcont!$A$10:$X$1764, 15, FALSE), "") ->  | L25: =IF($C25<=$B$15,VLOOKUP(A25&$B$11, localcont!$A$10:$X$1764, 14, FALSE),"") ->  | N25: =IF($C25<=$B$15,VLOOKUP(A25&$B$11, localcont!$A$10:$X$1764, 10, FALSE), "") ->  | O25: =IF($C25<=$B$15,VLOOKUP(A25&$B$11, localcont!$A$10:$X$1764, 12, FALSE), "") -> 
A26: =IF($C26<=$B$15,VLOOKUP(E26,leas!D13:F453,3,FALSE),"") ->  | B26: 71008 | C26: 8 | G26: =IF($C26<=$B$15,VLOOKUP(A26&$B$11, localcont!A17:X1771, 18, FALSE), "") ->  | H26: =IF($C26<=$B$15,VLOOKUP(A26&$B$11, localcont!$A$10:$X$1764, 23, FALSE), "") ->  | J26: =IF($C26<=$B$15,H26/VLOOKUP(A26&"0999", localcont!$A$10:$X$1764, 23, FALSE), "") ->  | K26: =IF($C26<=$B$15,VLOOKUP(A26&$B$11, localcont!$A$10:$X$1764, 15, FALSE), "") ->  | L26: =IF($C26<=$B$15,VLOOKUP(A26&$B$11, localcont!$A$10:$X$1764, 14, FALSE),"") ->  | N26: =IF($C26<=$B$15,VLOOKUP(A26&$B$11, localcont!$A$10:$X$1764, 10, FALSE), "") ->  | O26: =IF($C26<=$B$15,VLOOKUP(A26&$B$11, localcont!$A$10:$X$1764, 12, FALSE), "") -> 
A27: =IF($C27<=$B$15,VLOOKUP(E27,leas!D14:F454,3,FALSE),"") ->  | B27: 71009 | C27: 9 | G27: =IF($C27<=$B$15,VLOOKUP(A27&$B$11, localcont!A18:X1772, 18, FALSE), "") ->  | H27: =IF($C27<=$B$15,VLOOKUP(A27&$B$11, localcont!$A$10:$X$1764, 23, FALSE), "") ->  | J27: =IF($C27<=$B$15,H27/VLOOKUP(A27&"0999", localcont!$A$10:$X$1764, 23, FALSE), "") ->  | K27: =IF($C27<=$B$15,VLOOKUP(A27&$B$11, localcont!$A$10:$X$1764, 15, FALSE), "") ->  | L27: =IF($C27<=$B$15,VLOOKUP(A27&$B$11, localcont!$A$10:$X$1764, 14, FALSE),"") ->  | N27: =IF($C27<=$B$15,VLOOKUP(A27&$B$11, localcont!$A$10:$X$1764, 10, FALSE), "") ->  | O27: =IF($C27<=$B$15,VLOOKUP(A27&$B$11, localcont!$A$10:$X$1764, 12, FALSE), "") -> 
A28: =IF($C28<=$B$15,VLOOKUP(E28,leas!D15:F455,3,FALSE),"") ->  | B28: 71010 | C28: 10 | G28: =IF($C28<=$B$15,VLOOKUP(A28&$B$11, localcont!A19:X1773, 18, FALSE), "") ->  | H28: =IF($C28<=$B$15,VLOOKUP(A28&$B$11, localcont!$A$10:$X$1764, 23, FALSE), "") ->  | J28: =IF($C28<=$B$15,H28/VLOOKUP(A28&"0999", localcont!$A$10:$X$1764, 23, FALSE), "") ->  | K28: =IF($C28<=$B$15,VLOOKUP(A28&$B$11, localcont!$A$10:$X$1764, 15, FALSE), "") ->  | L28: =IF($C28<=$B$15,VLOOKUP(A28&$B$11, localcont!$A$10:$X$1764, 14, FALSE),"") ->  | N28: =IF($C28<=$B$15,VLOOKUP(A28&$B$11, localcont!$A$10:$X$1764, 10, FALSE), "") ->  | O28: =IF($C28<=$B$15,VLOOKUP(A28&$B$11, localcont!$A$10:$X$1764, 12, FALSE), "") -> 
A29: =IF($C29<=$B$15,VLOOKUP(E29,leas!D16:F456,3,FALSE),"") ->  | B29: 71011 | C29: 11 | G29: =IF($C29<=$B$15,VLOOKUP(A29&$B$11, localcont!A20:X1774, 18, FALSE), "") ->  | H29: =IF($C29<=$B$15,VLOOKUP(A29&$B$11, localcont!$A$10:$X$1764, 23, FALSE), "") ->  | J29: =IF($C29<=$B$15,H29/VLOOKUP(A29&"0999", localcont!$A$10:$X$1764, 23, FALSE), "") ->  | K29: =IF($C29<=$B$15,VLOOKUP(A29&$B$11, localcont!$A$10:$X$1764, 15, FALSE), "") ->  | L29: =IF($C29<=$B$15,VLOOKUP(A29&$B$11, localcont!$A$10:$X$1764, 14, FALSE),"") ->  | N29: =IF($C29<=$B$15,VLOOKUP(A29&$B$11, localcont!$A$10:$X$1764, 10, FALSE), "") ->  | O29: =IF($C29<=$B$15,VLOOKUP(A29&$B$11, localcont!$A$10:$X$1764, 12, FALSE), "") -> 
A30: =IF($C30<=$B$15,VLOOKUP(E30,leas!D17:F457,3,FALSE),"") ->  | B30: 71012 | C30: 12 | G30: =IF($C30<=$B$15,VLOOKUP(A30&$B$11, localcont!A21:X1775, 18, FALSE), "") ->  | H30: =IF($C30<=$B$15,VLOOKUP(A30&$B$11, localcont!$A$10:$X$1764, 23, FALSE), "") ->  | J30: =IF($C30<=$B$15,H30/VLOOKUP(A30&"0999", localcont!$A$10:$X$1764, 23, FALSE), "") ->  | K30: =IF($C30<=$B$15,VLOOKUP(A30&$B$11, localcont!$A$10:$X$1764, 15, FALSE), "") ->  | L30: =IF($C30<=$B$15,VLOOKUP(A30&$B$11, localcont!$A$10:$X$1764, 14, FALSE),"") ->  | N30: =IF($C30<=$B$15,VLOOKUP(A30&$B$11, localcont!$A$10:$X$1764, 10, FALSE), "") ->  | O30: =IF($C30<=$B$15,VLOOKUP(A30&$B$11, localcont!$A$10:$X$1764, 12, FALSE), "") -> 
A31: =IF($C31<=$B$15,VLOOKUP(E31,leas!D18:F458,3,FALSE),"") ->  | B31: 71013 | C31: 13 | G31: =IF($C31<=$B$15,VLOOKUP(A31&$B$11, localcont!A22:X1776, 18, FALSE), "") ->  | H31: =IF($C31<=$B$15,VLOOKUP(A31&$B$11, localcont!$A$10:$X$1764, 23, FALSE), "") ->  | J31: =IF($C31<=$B$15,H31/VLOOKUP(A31&"0999", localcont!$A$10:$X$1764, 23, FALSE), "") ->  | K31: =IF($C31<=$B$15,VLOOKUP(A31&$B$11, localcont!$A$10:$X$1764, 15, FALSE), "") ->  | L31: =IF($C31<=$B$15,VLOOKUP(A31&$B$11, localcont!$A$10:$X$1764, 14, FALSE),"") ->  | N31: =IF($C31<=$B$15,VLOOKUP(A31&$B$11, localcont!$A$10:$X$1764, 10, FALSE), "") ->  | O31: =IF($C31<=$B$15,VLOOKUP(A31&$B$11, localcont!$A$10:$X$1764, 12, FALSE), "") -> 
A32: =IF($C32<=$B$15,VLOOKUP(E32,leas!D19:F459,3,FALSE),"") ->  | B32: 71014 | C32: 14 | G32: =IF($C32<=$B$15,VLOOKUP(A32&$B$11, localcont!A23:X1777, 18, FALSE), "") ->  | H32: =IF($C32<=$B$15,VLOOKUP(A32&$B$11, localcont!$A$10:$X$1764, 23, FALSE), "") ->  | J32: =IF($C32<=$B$15,H32/VLOOKUP(A32&"0999", localcont!$A$10:$X$1764, 23, FALSE), "") ->  | K32: =IF($C32<=$B$15,VLOOKUP(A32&$B$11, localcont!$A$10:$X$1764, 15, FALSE), "") ->  | L32: =IF($C32<=$B$15,VLOOKUP(A32&$B$11, localcont!$A$10:$X$1764, 14, FALSE),"") ->  | N32: =IF($C32<=$B$15,VLOOKUP(A32&$B$11, localcont!$A$10:$X$1764, 10, FALSE), "") ->  | O32: =IF($C32<=$B$15,VLOOKUP(A32&$B$11, localcont!$A$10:$X$1764, 12, FALSE), "") -> 
A33: =IF($C33<=$B$15,VLOOKUP(E33,leas!D20:F460,3,FALSE),"") ->  | B33: 71015 | C33: 15 | G33: =IF($C33<=$B$15,VLOOKUP(A33&$B$11, localcont!A24:X1778, 18, FALSE), "") ->  | H33: =IF($C33<=$B$15,VLOOKUP(A33&$B$11, localcont!$A$10:$X$1764, 23, FALSE), "") ->  | J33: =IF($C33<=$B$15,H33/VLOOKUP(A33&"0999", localcont!$A$10:$X$1764, 23, FALSE), "") ->  | K33: =IF($C33<=$B$15,VLOOKUP(A33&$B$11, localcont!$A$10:$X$1764, 15, FALSE), "") ->  | L33: =IF($C33<=$B$15,VLOOKUP(A33&$B$11, localcont!$A$10:$X$1764, 14, FALSE),"") ->  | N33: =IF($C33<=$B$15,VLOOKUP(A33&$B$11, localcont!$A$10:$X$1764, 10, FALSE), "") ->  | O33: =IF($C33<=$B$15,VLOOKUP(A33&$B$11, localcont!$A$10:$X$1764, 12, FALSE), "") -> 
A34: =IF($C34<=$B$15,VLOOKUP(E34,leas!D21:F461,3,FALSE),"") ->  | B34: 71016 | C34: 16 | G34: =IF($C34<=$B$15,VLOOKUP(A34&$B$11, localcont!A25:X1779, 18, FALSE), "") ->  | H34: =IF($C34<=$B$15,VLOOKUP(A34&$B$11, localcont!$A$10:$X$1764, 23, FALSE), "") ->  | J34: =IF($C34<=$B$15,H34/VLOOKUP(A34&"0999", localcont!$A$10:$X$1764, 23, FALSE), "") ->  | K34: =IF($C34<=$B$15,VLOOKUP(A34&$B$11, localcont!$A$10:$X$1764, 15, FALSE), "") ->  | L34: =IF($C34<=$B$15,VLOOKUP(A34&$B$11, localcont!$A$10:$X$1764, 14, FALSE),"") ->  | N34: =IF($C34<=$B$15,VLOOKUP(A34&$B$11, localcont!$A$10:$X$1764, 10, FALSE), "") ->  | O34: =IF($C34<=$B$15,VLOOKUP(A34&$B$11, localcont!$A$10:$X$1764, 12, FALSE), "") -> 
A35: =IF($C35<=$B$15,VLOOKUP(E35,leas!D22:F462,3,FALSE),"") ->  | B35: 71017 | C35: 17 | G35: =IF($C35<=$B$15,VLOOKUP(A35&$B$11, localcont!A26:X1780, 18, FALSE), "") ->  | H35: =IF($C35<=$B$15,VLOOKUP(A35&$B$11, localcont!$A$10:$X$1764, 23, FALSE), "") ->  | J35: =IF($C35<=$B$15,H35/VLOOKUP(A35&"0999", localcont!$A$10:$X$1764, 23, FALSE), "") ->  | K35: =IF($C35<=$B$15,VLOOKUP(A35&$B$11, localcont!$A$10:$X$1764, 15, FALSE), "") ->  | L35: =IF($C35<=$B$15,VLOOKUP(A35&$B$11, localcont!$A$10:$X$1764, 14, FALSE),"") ->  | N35: =IF($C35<=$B$15,VLOOKUP(A35&$B$11, localcont!$A$10:$X$1764, 10, FALSE), "") ->  | O35: =IF($C35<=$B$15,VLOOKUP(A35&$B$11, localcont!$A$10:$X$1764, 12, FALSE), "") -> 
A36: =IF($C36<=$B$15,VLOOKUP(E36,leas!D23:F463,3,FALSE),"") ->  | B36: 71018 | C36: 18 | G36: =IF($C36<=$B$15,VLOOKUP(A36&$B$11, localcont!A27:X1781, 18, FALSE), "") ->  | H36: =IF($C36<=$B$15,VLOOKUP(A36&$B$11, localcont!$A$10:$X$1764, 23, FALSE), "") ->  | J36: =IF($C36<=$B$15,H36/VLOOKUP(A36&"0999", localcont!$A$10:$X$1764, 23, FALSE), "") ->  | K36: =IF($C36<=$B$15,VLOOKUP(A36&$B$11, localcont!$A$10:$X$1764, 15, FALSE), "") ->  | L36: =IF($C36<=$B$15,VLOOKUP(A36&$B$11, localcont!$A$10:$X$1764, 14, FALSE),"") ->  | N36: =IF($C36<=$B$15,VLOOKUP(A36&$B$11, localcont!$A$10:$X$1764, 10, FALSE), "") ->  | O36: =IF($C36<=$B$15,VLOOKUP(A36&$B$11, localcont!$A$10:$X$1764, 12, FALSE), "") -> 
A37: =IF($C37<=$B$15,VLOOKUP(E37,leas!D24:F464,3,FALSE),"") ->  | B37: 71019 | C37: 19 | G37: =IF($C37<=$B$15,VLOOKUP(A37&$B$11, localcont!A28:X1782, 18, FALSE), "") ->  | H37: =IF($C37<=$B$15,VLOOKUP(A37&$B$11, localcont!$A$10:$X$1764, 23, FALSE), "") ->  | J37: =IF($C37<=$B$15,H37/VLOOKUP(A37&"0999", localcont!$A$10:$X$1764, 23, FALSE), "") ->  | K37: =IF($C37<=$B$15,VLOOKUP(A37&$B$11, localcont!$A$10:$X$1764, 15, FALSE), "") ->  | L37: =IF($C37<=$B$15,VLOOKUP(A37&$B$11, localcont!$A$10:$X$1764, 14, FALSE),"") ->  | N37: =IF($C37<=$B$15,VLOOKUP(A37&$B$11, localcont!$A$10:$X$1764, 10, FALSE), "") ->  | O37: =IF($C37<=$B$15,VLOOKUP(A37&$B$11, localcont!$A$10:$X$1764, 12, FALSE), "") -> 
A38: =IF($C38<=$B$15,VLOOKUP(E38,leas!D25:F465,3,FALSE),"") ->  | B38: 71020 | C38: 20 | G38: =IF($C38<=$B$15,VLOOKUP(A38&$B$11, localcont!A29:X1783, 18, FALSE), "") ->  | H38: =IF($C38<=$B$15,VLOOKUP(A38&$B$11, localcont!$A$10:$X$1764, 23, FALSE), "") ->  | J38: =IF($C38<=$B$15,H38/VLOOKUP(A38&"0999", localcont!$A$10:$X$1764, 23, FALSE), "") ->  | K38: =IF($C38<=$B$15,VLOOKUP(A38&$B$11, localcont!$A$10:$X$1764, 15, FALSE), "") ->  | L38: =IF($C38<=$B$15,VLOOKUP(A38&$B$11, localcont!$A$10:$X$1764, 14, FALSE),"") ->  | N38: =IF($C38<=$B$15,VLOOKUP(A38&$B$11, localcont!$A$10:$X$1764, 10, FALSE), "") ->  | O38: =IF($C38<=$B$15,VLOOKUP(A38&$B$11, localcont!$A$10:$X$1764, 12, FALSE), "") -> 
A39: =IF($C39<=$B$15,VLOOKUP(E39,leas!D26:F466,3,FALSE),"") ->  | B39: 71021 | C39: 21 | G39: =IF($C39<=$B$15,VLOOKUP(A39&$B$11, localcont!A30:X1784, 18, FALSE), "") ->  | H39: =IF($C39<=$B$15,VLOOKUP(A39&$B$11, localcont!$A$10:$X$1764, 23, FALSE), "") ->  | J39: =IF($C39<=$B$15,H39/VLOOKUP(A39&"0999", localcont!$A$10:$X$1764, 23, FALSE), "") ->  | K39: =IF($C39<=$B$15,VLOOKUP(A39&$B$11, localcont!$A$10:$X$1764, 15, FALSE), "") ->  | L39: =IF($C39<=$B$15,VLOOKUP(A39&$B$11, localcont!$A$10:$X$1764, 14, FALSE),"") ->  | N39: =IF($C39<=$B$15,VLOOKUP(A39&$B$11, localcont!$A$10:$X$1764, 10, FALSE), "") ->  | O39: =IF($C39<=$B$15,VLOOKUP(A39&$B$11, localcont!$A$10:$X$1764, 12, FALSE), "") -> 
A40: =IF($C40<=$B$15,VLOOKUP(E40,leas!D27:F467,3,FALSE),"") ->  | B40: 71022 | C40: 22 | G40: =IF($C40<=$B$15,VLOOKUP(A40&$B$11, localcont!A31:X1785, 18, FALSE), "") ->  | H40: =IF($C40<=$B$15,VLOOKUP(A40&$B$11, localcont!$A$10:$X$1764, 23, FALSE), "") ->  | J40: =IF($C40<=$B$15,H40/VLOOKUP(A40&"0999", localcont!$A$10:$X$1764, 23, FALSE), "") ->  | K40: =IF($C40<=$B$15,VLOOKUP(A40&$B$11, localcont!$A$10:$X$1764, 15, FALSE), "") ->  | L40: =IF($C40<=$B$15,VLOOKUP(A40&$B$11, localcont!$A$10:$X$1764, 14, FALSE),"") ->  | N40: =IF($C40<=$B$15,VLOOKUP(A40&$B$11, localcont!$A$10:$X$1764, 10, FALSE), "") ->  | O40: =IF($C40<=$B$15,VLOOKUP(A40&$B$11, localcont!$A$10:$X$1764, 12, FALSE), "") -> 
A41: =IF($C41<=$B$15,VLOOKUP(E41,leas!D28:F468,3,FALSE),"") ->  | B41: 71023 | C41: 23 | G41: =IF($C41<=$B$15,VLOOKUP(A41&$B$11, localcont!A32:X1786, 18, FALSE), "") ->  | H41: =IF($C41<=$B$15,VLOOKUP(A41&$B$11, localcont!$A$10:$X$1764, 23, FALSE), "") ->  | J41: =IF($C41<=$B$15,H41/VLOOKUP(A41&"0999", localcont!$A$10:$X$1764, 23, FALSE), "") ->  | K41: =IF($C41<=$B$15,VLOOKUP(A41&$B$11, localcont!$A$10:$X$1764, 15, FALSE), "") ->  | L41: =IF($C41<=$B$15,VLOOKUP(A41&$B$11, localcont!$A$10:$X$1764, 14, FALSE),"") ->  | N41: =IF($C41<=$B$15,VLOOKUP(A41&$B$11, localcont!$A$10:$X$1764, 10, FALSE), "") ->  | O41: =IF($C41<=$B$15,VLOOKUP(A41&$B$11, localcont!$A$10:$X$1764, 12, FALSE), "") -> 
A42: =IF($C42<=$B$15,VLOOKUP(E42,leas!D29:F469,3,FALSE),"") ->  | B42: 71024 | C42: 24 | G42: =IF($C42<=$B$15,VLOOKUP(A42&$B$11, localcont!A33:X1787, 18, FALSE), "") ->  | H42: =IF($C42<=$B$15,VLOOKUP(A42&$B$11, localcont!$A$10:$X$1764, 23, FALSE), "") ->  | J42: =IF($C42<=$B$15,H42/VLOOKUP(A42&"0999", localcont!$A$10:$X$1764, 23, FALSE), "") ->  | K42: =IF($C42<=$B$15,VLOOKUP(A42&$B$11, localcont!$A$10:$X$1764, 15, FALSE), "") ->  | L42: =IF($C42<=$B$15,VLOOKUP(A42&$B$11, localcont!$A$10:$X$1764, 14, FALSE),"") ->  | N42: =IF($C42<=$B$15,VLOOKUP(A42&$B$11, localcont!$A$10:$X$1764, 10, FALSE), "") ->  | O42: =IF($C42<=$B$15,VLOOKUP(A42&$B$11, localcont!$A$10:$X$1764, 12, FALSE), "") -> 
A43: =IF($C43<=$B$15,VLOOKUP(E43,leas!D30:F470,3,FALSE),"") ->  | B43: 71025 | C43: 25 | G43: =IF($C43<=$B$15,VLOOKUP(A43&$B$11, localcont!A34:X1788, 18, FALSE), "") ->  | H43: =IF($C43<=$B$15,VLOOKUP(A43&$B$11, localcont!$A$10:$X$1764, 23, FALSE), "") ->  | J43: =IF($C43<=$B$15,H43/VLOOKUP(A43&"0999", localcont!$A$10:$X$1764, 23, FALSE), "") ->  | K43: =IF($C43<=$B$15,VLOOKUP(A43&$B$11, localcont!$A$10:$X$1764, 15, FALSE), "") ->  | L43: =IF($C43<=$B$15,VLOOKUP(A43&$B$11, localcont!$A$10:$X$1764, 14, FALSE),"") ->  | N43: =IF($C43<=$B$15,VLOOKUP(A43&$B$11, localcont!$A$10:$X$1764, 10, FALSE), "") ->  | O43: =IF($C43<=$B$15,VLOOKUP(A43&$B$11, localcont!$A$10:$X$1764, 12, FALSE), "") -> 
A44: =IF($C44<=$B$15,VLOOKUP(E44,leas!D31:F471,3,FALSE),"") ->  | B44: 71026 | C44: 26 | G44: =IF($C44<=$B$15,VLOOKUP(A44&$B$11, localcont!A35:X1789, 18, FALSE), "") ->  | H44: =IF($C44<=$B$15,VLOOKUP(A44&$B$11, localcont!$A$10:$X$1764, 23, FALSE), "") ->  | J44: =IF($C44<=$B$15,H44/VLOOKUP(A44&"0999", localcont!$A$10:$X$1764, 23, FALSE), "") ->  | K44: =IF($C44<=$B$15,VLOOKUP(A44&$B$11, localcont!$A$10:$X$1764, 15, FALSE), "") ->  | L44: =IF($C44<=$B$15,VLOOKUP(A44&$B$11, localcont!$A$10:$X$1764, 14, FALSE),"") ->  | N44: =IF($C44<=$B$15,VLOOKUP(A44&$B$11, localcont!$A$10:$X$1764, 10, FALSE), "") ->  | O44: =IF($C44<=$B$15,VLOOKUP(A44&$B$11, localcont!$A$10:$X$1764, 12, FALSE), "") -> 
A45: =IF($C45<=$B$15,VLOOKUP(E45,leas!D32:F472,3,FALSE),"") ->  | B45: 71027 | C45: 27 | G45: =IF($C45<=$B$15,VLOOKUP(A45&$B$11, localcont!A36:X1790, 18, FALSE), "") ->  | H45: =IF($C45<=$B$15,VLOOKUP(A45&$B$11, localcont!$A$10:$X$1764, 23, FALSE), "") ->  | J45: =IF($C45<=$B$15,H45/VLOOKUP(A45&"0999", localcont!$A$10:$X$1764, 23, FALSE), "") ->  | K45: =IF($C45<=$B$15,VLOOKUP(A45&$B$11, localcont!$A$10:$X$1764, 15, FALSE), "") ->  | L45: =IF($C45<=$B$15,VLOOKUP(A45&$B$11, localcont!$A$10:$X$1764, 14, FALSE),"") ->  | N45: =IF($C45<=$B$15,VLOOKUP(A45&$B$11, localcont!$A$10:$X$1764, 10, FALSE), "") ->  | O45: =IF($C45<=$B$15,VLOOKUP(A45&$B$11, localcont!$A$10:$X$1764, 12, FALSE), "") -> 
A46: =IF($C46<=$B$15,VLOOKUP(E46,leas!D33:F473,3,FALSE),"") ->  | B46: 71028 | C46: 28 | G46: =IF($C46<=$B$15,VLOOKUP(A46&$B$11, localcont!A37:X1791, 18, FALSE), "") ->  | H46: =IF($C46<=$B$15,VLOOKUP(A46&$B$11, localcont!$A$10:$X$1764, 23, FALSE), "") ->  | J46: =IF($C46<=$B$15,H46/VLOOKUP(A46&"0999", localcont!$A$10:$X$1764, 23, FALSE), "") ->  | K46: =IF($C46<=$B$15,VLOOKUP(A46&$B$11, localcont!$A$10:$X$1764, 15, FALSE), "") ->  | L46: =IF($C46<=$B$15,VLOOKUP(A46&$B$11, localcont!$A$10:$X$1764, 14, FALSE),"") ->  | N46: =IF($C46<=$B$15,VLOOKUP(A46&$B$11, localcont!$A$10:$X$1764, 10, FALSE), "") ->  | O46: =IF($C46<=$B$15,VLOOKUP(A46&$B$11, localcont!$A$10:$X$1764, 12, FALSE), "") -> 
A47: =IF($C47<=$B$15,VLOOKUP(E47,leas!D34:F474,3,FALSE),"") ->  | B47: 71029 | C47: 29 | G47: =IF($C47<=$B$15,VLOOKUP(A47&$B$11, localcont!A38:X1792, 18, FALSE), "") ->  | H47: =IF($C47<=$B$15,VLOOKUP(A47&$B$11, localcont!$A$10:$X$1764, 23, FALSE), "") ->  | J47: =IF($C47<=$B$15,H47/VLOOKUP(A47&"0999", localcont!$A$10:$X$1764, 23, FALSE), "") ->  | K47: =IF($C47<=$B$15,VLOOKUP(A47&$B$11, localcont!$A$10:$X$1764, 15, FALSE), "") ->  | L47: =IF($C47<=$B$15,VLOOKUP(A47&$B$11, localcont!$A$10:$X$1764, 14, FALSE),"") ->  | N47: =IF($C47<=$B$15,VLOOKUP(A47&$B$11, localcont!$A$10:$X$1764, 10, FALSE), "") ->  | O47: =IF($C47<=$B$15,VLOOKUP(A47&$B$11, localcont!$A$10:$X$1764, 12, FALSE), "") -> 
A48: =IF($C48<=$B$15,VLOOKUP(E48,leas!D35:F475,3,FALSE),"") ->  | B48: 71030 | C48: 30 | G48: =IF($C48<=$B$15,VLOOKUP(A48&$B$11, localcont!A39:X1793, 18, FALSE), "") ->  | H48: =IF($C48<=$B$15,VLOOKUP(A48&$B$11, localcont!$A$10:$X$1764, 23, FALSE), "") ->  | J48: =IF($C48<=$B$15,H48/VLOOKUP(A48&"0999", localcont!$A$10:$X$1764, 23, FALSE), "") ->  | K48: =IF($C48<=$B$15,VLOOKUP(A48&$B$11, localcont!$A$10:$X$1764, 15, FALSE), "") ->  | L48: =IF($C48<=$B$15,VLOOKUP(A48&$B$11, localcont!$A$10:$X$1764, 14, FALSE),"") ->  | N48: =IF($C48<=$B$15,VLOOKUP(A48&$B$11, localcont!$A$10:$X$1764, 10, FALSE), "") ->  | O48: =IF($C48<=$B$15,VLOOKUP(A48&$B$11, localcont!$A$10:$X$1764, 12, FALSE), "") -> 
A49: =IF($C49<=$B$15,VLOOKUP(E49,leas!D36:F476,3,FALSE),"") ->  | B49: 71031 | C49: 31 | G49: =IF($C49<=$B$15,VLOOKUP(A49&$B$11, localcont!A40:X1794, 18, FALSE), "") ->  | H49: =IF($C49<=$B$15,VLOOKUP(A49&$B$11, localcont!$A$10:$X$1764, 23, FALSE), "") ->  | J49: =IF($C49<=$B$15,H49/VLOOKUP(A49&"0999", localcont!$A$10:$X$1764, 23, FALSE), "") ->  | K49: =IF($C49<=$B$15,VLOOKUP(A49&$B$11, localcont!$A$10:$X$1764, 15, FALSE), "") ->  | L49: =IF($C49<=$B$15,VLOOKUP(A49&$B$11, localcont!$A$10:$X$1764, 14, FALSE),"") ->  | N49: =IF($C49<=$B$15,VLOOKUP(A49&$B$11, localcont!$A$10:$X$1764, 10, FALSE), "") ->  | O49: =IF($C49<=$B$15,VLOOKUP(A49&$B$11, localcont!$A$10:$X$1764, 12, FALSE), "") -> 
A50: =IF($C50<=$B$15,VLOOKUP(E50,leas!D37:F477,3,FALSE),"") ->  | B50: 71032 | C50: 32 | G50: =IF($C50<=$B$15,VLOOKUP(A50&$B$11, localcont!A41:X1795, 18, FALSE), "") ->  | H50: =IF($C50<=$B$15,VLOOKUP(A50&$B$11, localcont!$A$10:$X$1764, 23, FALSE), "") ->  | J50: =IF($C50<=$B$15,H50/VLOOKUP(A50&"0999", localcont!$A$10:$X$1764, 23, FALSE), "") ->  | K50: =IF($C50<=$B$15,VLOOKUP(A50&$B$11, localcont!$A$10:$X$1764, 15, FALSE), "") ->  | L50: =IF($C50<=$B$15,VLOOKUP(A50&$B$11, localcont!$A$10:$X$1764, 14, FALSE),"") ->  | N50: =IF($C50<=$B$15,VLOOKUP(A50&$B$11, localcont!$A$10:$X$1764, 10, FALSE), "") ->  | O50: =IF($C50<=$B$15,VLOOKUP(A50&$B$11, localcont!$A$10:$X$1764, 12, FALSE), "") -> 
A51: =IF($C51<=$B$15,VLOOKUP(E51,leas!D38:F478,3,FALSE),"") ->  | B51: 71033 | C51: 33 | F51: =IF($C51<=$B$15, VLOOKUP($B51, regdetail, 6), " ") ->  | G51: =IF($C51<=$B$15,VLOOKUP(A51&$B$11, localcont!A42:X1796, 18, FALSE), "") ->  | H51: =IF($C51<=$B$15,VLOOKUP(A51&$B$11, localcont!$A$10:$X$1764, 23, FALSE), "") ->  | J51: =IF($C51<=$B$15,H51/VLOOKUP(A51&"0999", localcont!$A$10:$X$1764, 23, FALSE), "") ->  | K51: =IF($C51<=$B$15,VLOOKUP(A51&$B$11, localcont!$A$10:$X$1764, 15, FALSE), "") ->  | L51: =IF($C51<=$B$15,VLOOKUP(A51&$B$11, localcont!$A$10:$X$1764, 14, FALSE),"") ->  | N51: =IF($C51<=$B$15,VLOOKUP(A51&$B$11, localcont!$A$10:$X$1764, 10, FALSE), "") ->  | O51: =IF($C51<=$B$15,VLOOKUP(A51&$B$11, localcont!$A$10:$X$1764, 12, FALSE), "") ->  | Q51: =IF($C51<=$B$15,VLOOKUP(E51, town351, 13, FALSE), "") ->  | R51: =IF($C51<=$B$15,VLOOKUP(E51, town351, 22, FALSE), "") ->  | T51: =IF($C51<=$B$15,VLOOKUP(E51, town351, 11, FALSE), "") ->  | U51: =IF($C51<=$B$15,VLOOKUP(E51, town351, 23, FALSE), "") -> 
A52: =IF($C52<=$B$15,VLOOKUP(E52,leas!D39:F479,3,FALSE),"") ->  | B52: 71034 | C52: 34 | G52: =IF($C52<=$B$15,VLOOKUP(A52&$B$11, localcont!A43:X1797, 18, FALSE), "") ->  | H52: =IF($C52<=$B$15,VLOOKUP(A52&$B$11, localcont!$A$10:$X$1764, 23, FALSE), "") ->  | J52: =IF($C52<=$B$15,H52/VLOOKUP(A52&"0999", localcont!$A$10:$X$1764, 23, FALSE), "") ->  | K52: =IF($C52<=$B$15,VLOOKUP(A52&$B$11, localcont!$A$10:$X$1764, 15, FALSE), "") ->  | L52: =IF($C52<=$B$15,VLOOKUP(A52&$B$11, localcont!$A$10:$X$1764, 14, FALSE),"") ->  | N52: =IF($C52<=$B$15,VLOOKUP(A52&$B$11, localcont!$A$10:$X$1764, 10, FALSE), "") ->  | O52: =IF($C52<=$B$15,VLOOKUP(A52&$B$11, localcont!$A$10:$X$1764, 12, FALSE), "") -> 
A53: =IF($C53<=$B$15,VLOOKUP(E53,leas!D40:F480,3,FALSE),"") ->  | B53: 71035 | C53: 35 | G53: =IF($C53<=$B$15,VLOOKUP(A53&$B$11, localcont!A44:X1798, 18, FALSE), "") ->  | H53: =IF($C53<=$B$15,VLOOKUP(A53&$B$11, localcont!$A$10:$X$1764, 23, FALSE), "") ->  | J53: =IF($C53<=$B$15,H53/VLOOKUP(A53&"0999", localcont!$A$10:$X$1764, 23, FALSE), "") ->  | K53: =IF($C53<=$B$15,VLOOKUP(A53&$B$11, localcont!$A$10:$X$1764, 15, FALSE), "") ->  | L53: =IF($C53<=$B$15,VLOOKUP(A53&$B$11, localcont!$A$10:$X$1764, 14, FALSE),"") ->  | N53: =IF($C53<=$B$15,VLOOKUP(A53&$B$11, localcont!$A$10:$X$1764, 10, FALSE), "") ->  | O53: =IF($C53<=$B$15,VLOOKUP(A53&$B$11, localcont!$A$10:$X$1764, 12, FALSE), "") -> 
A54: =IF($C54<=$B$15,VLOOKUP(E54,leas!D41:F481,3,FALSE),"") ->  | B54: 71036 | C54: 36 | G54: =IF($C54<=$B$15,VLOOKUP(A54&$B$11, localcont!A45:X1799, 18, FALSE), "") ->  | H54: =IF($C54<=$B$15,VLOOKUP(A54&$B$11, localcont!$A$10:$X$1764, 23, FALSE), "") ->  | J54: =IF($C54<=$B$15,H54/VLOOKUP(A54&"0999", localcont!$A$10:$X$1764, 23, FALSE), "") ->  | K54: =IF($C54<=$B$15,VLOOKUP(A54&$B$11, localcont!$A$10:$X$1764, 15, FALSE), "") ->  | L54: =IF($C54<=$B$15,VLOOKUP(A54&$B$11, localcont!$A$10:$X$1764, 14, FALSE),"") ->  | N54: =IF($C54<=$B$15,VLOOKUP(A54&$B$11, localcont!$A$10:$X$1764, 10, FALSE), "") ->  | O54: =IF($C54<=$B$15,VLOOKUP(A54&$B$11, localcont!$A$10:$X$1764, 12, FALSE), "") -> 
A55: =IF($C55<=$B$15,VLOOKUP(E55,leas!D42:F482,3,FALSE),"") ->  | B55: 71037 | C55: 37 | G55: =IF($C55<=$B$15,VLOOKUP(A55&$B$11, localcont!A46:X1800, 18, FALSE), "") ->  | H55: =IF($C55<=$B$15,VLOOKUP(A55&$B$11, localcont!$A$10:$X$1764, 23, FALSE), "") ->  | J55: =IF($C55<=$B$15,H55/VLOOKUP(A55&"0999", localcont!$A$10:$X$1764, 23, FALSE), "") ->  | K55: =IF($C55<=$B$15,VLOOKUP(A55&$B$11, localcont!$A$10:$X$1764, 15, FALSE), "") ->  | L55: =IF($C55<=$B$15,VLOOKUP(A55&$B$11, localcont!$A$10:$X$1764, 14, FALSE),"") ->  | N55: =IF($C55<=$B$15,VLOOKUP(A55&$B$11, localcont!$A$10:$X$1764, 10, FALSE), "") ->  | O55: =IF($C55<=$B$15,VLOOKUP(A55&$B$11, localcont!$A$10:$X$1764, 12, FALSE), "") -> 
A56: =IF($C56<=$B$15,VLOOKUP(E56,leas!D43:F483,3,FALSE),"") ->  | B56: 71038 | C56: 38 | G56: =IF($C56<=$B$15,VLOOKUP(A56&$B$11, localcont!A47:X1801, 18, FALSE), "") ->  | H56: =IF($C56<=$B$15,VLOOKUP(A56&$B$11, localcont!$A$10:$X$1764, 23, FALSE), "") ->  | J56: =IF($C56<=$B$15,H56/VLOOKUP(A56&"0999", localcont!$A$10:$X$1764, 23, FALSE), "") ->  | K56: =IF($C56<=$B$15,VLOOKUP(A56&$B$11, localcont!$A$10:$X$1764, 15, FALSE), "") ->  | L56: =IF($C56<=$B$15,VLOOKUP(A56&$B$11, localcont!$A$10:$X$1764, 14, FALSE),"") ->  | N56: =IF($C56<=$B$15,VLOOKUP(A56&$B$11, localcont!$A$10:$X$1764, 10, FALSE), "") ->  | O56: =IF($C56<=$B$15,VLOOKUP(A56&$B$11, localcont!$A$10:$X$1764, 12, FALSE), "") -> 
A57: =IF($C57<=$B$15,VLOOKUP(E57,leas!D44:F484,3,FALSE),"") ->  | B57: 71039 | C57: 39 | G57: =IF($C57<=$B$15,VLOOKUP(A57&$B$11, localcont!A48:X1802, 18, FALSE), "") ->  | H57: =IF($C57<=$B$15,VLOOKUP(A57&$B$11, localcont!$A$10:$X$1764, 23, FALSE), "") ->  | J57: =IF($C57<=$B$15,H57/VLOOKUP(A57&"0999", localcont!$A$10:$X$1764, 23, FALSE), "") ->  | K57: =IF($C57<=$B$15,VLOOKUP(A57&$B$11, localcont!$A$10:$X$1764, 15, FALSE), "") ->  | L57: =IF($C57<=$B$15,VLOOKUP(A57&$B$11, localcont!$A$10:$X$1764, 14, FALSE),"") ->  | N57: =IF($C57<=$B$15,VLOOKUP(A57&$B$11, localcont!$A$10:$X$1764, 10, FALSE), "") ->  | O57: =IF($C57<=$B$15,VLOOKUP(A57&$B$11, localcont!$A$10:$X$1764, 12, FALSE), "") -> 
A58: =IF($C58<=$B$15,VLOOKUP(E58,leas!D45:F485,3,FALSE),"") ->  | B58: 71040 | C58: 40 | G58: =IF($C58<=$B$15,VLOOKUP(A58&$B$11, localcont!A49:X1803, 18, FALSE), "") ->  | H58: =IF($C58<=$B$15,VLOOKUP(A58&$B$11, localcont!$A$10:$X$1764, 23, FALSE), "") ->  | J58: =IF($C58<=$B$15,H58/VLOOKUP(A58&"0999", localcont!$A$10:$X$1764, 23, FALSE), "") ->  | K58: =IF($C58<=$B$15,VLOOKUP(A58&$B$11, localcont!$A$10:$X$1764, 15, FALSE), "") ->  | L58: =IF($C58<=$B$15,VLOOKUP(A58&$B$11, localcont!$A$10:$X$1764, 14, FALSE),"") ->  | N58: =IF($C58<=$B$15,VLOOKUP(A58&$B$11, localcont!$A$10:$X$1764, 10, FALSE), "") ->  | O58: =IF($C58<=$B$15,VLOOKUP(A58&$B$11, localcont!$A$10:$X$1764, 12, FALSE), "") -> 
A59: =IF($C59<=$B$15,VLOOKUP(E59,leas!D46:F486,3,FALSE),"") ->  | B59: 71041 | C59: 41 | G59: =IF($C59<=$B$15,VLOOKUP(A59&$B$11, localcont!A50:X1804, 18, FALSE), "") ->  | H59: =IF($C59<=$B$15,VLOOKUP(A59&$B$11, localcont!$A$10:$X$1764, 23, FALSE), "") ->  | J59: =IF($C59<=$B$15,H59/VLOOKUP(A59&"0999", localcont!$A$10:$X$1764, 23, FALSE), "") ->  | K59: =IF($C59<=$B$15,VLOOKUP(A59&$B$11, localcont!$A$10:$X$1764, 15, FALSE), "") ->  | L59: =IF($C59<=$B$15,VLOOKUP(A59&$B$11, localcont!$A$10:$X$1764, 14, FALSE),"") ->  | N59: =IF($C59<=$B$15,VLOOKUP(A59&$B$11, localcont!$A$10:$X$1764, 10, FALSE), "") ->  | O59: =IF($C59<=$B$15,VLOOKUP(A59&$B$11, localcont!$A$10:$X$1764, 12, FALSE), "") -> 
A60: =IF($C60<=$B$15,VLOOKUP(E60,leas!D47:F487,3,FALSE),"") ->  | B60: 71042 | C60: 42 | G60: =IF($C60<=$B$15,VLOOKUP(A60&$B$11, localcont!A51:X1805, 18, FALSE), "") ->  | H60: =IF($C60<=$B$15,VLOOKUP(A60&$B$11, localcont!$A$10:$X$1764, 23, FALSE), "") ->  | J60: =IF($C60<=$B$15,H60/VLOOKUP(A60&"0999", localcont!$A$10:$X$1764, 23, FALSE), "") ->  | K60: =IF($C60<=$B$15,VLOOKUP(A60&$B$11, localcont!$A$10:$X$1764, 15, FALSE), "") ->  | L60: =IF($C60<=$B$15,VLOOKUP(A60&$B$11, localcont!$A$10:$X$1764, 14, FALSE),"") ->  | N60: =IF($C60<=$B$15,VLOOKUP(A60&$B$11, localcont!$A$10:$X$1764, 10, FALSE), "") ->  | O60: =IF($C60<=$B$15,VLOOKUP(A60&$B$11, localcont!$A$10:$X$1764, 12, FALSE), "") -> 
A61: =IF($C61<=$B$15,VLOOKUP(E61,leas!D48:F488,3,FALSE),"") ->  | B61: 71043 | C61: 43 | G61: =IF($C61<=$B$15,VLOOKUP(A61&$B$11, localcont!A52:X1806, 18, FALSE), "") ->  | H61: =IF($C61<=$B$15,VLOOKUP(A61&$B$11, localcont!$A$10:$X$1764, 23, FALSE), "") ->  | J61: =IF($C61<=$B$15,H61/VLOOKUP(A61&"0999", localcont!$A$10:$X$1764, 23, FALSE), "") ->  | K61: =IF($C61<=$B$15,VLOOKUP(A61&$B$11, localcont!$A$10:$X$1764, 15, FALSE), "") ->  | L61: =IF($C61<=$B$15,VLOOKUP(A61&$B$11, localcont!$A$10:$X$1764, 14, FALSE),"") ->  | N61: =IF($C61<=$B$15,VLOOKUP(A61&$B$11, localcont!$A$10:$X$1764, 10, FALSE), "") ->  | O61: =IF($C61<=$B$15,VLOOKUP(A61&$B$11, localcont!$A$10:$X$1764, 12, FALSE), "") -> 
A62: =IF($C62<=$B$15,VLOOKUP(E62,leas!D49:F489,3,FALSE),"") ->  | B62: 71044 | C62: 44 | G62: =IF($C62<=$B$15,VLOOKUP(A62&$B$11, localcont!A53:X1807, 18, FALSE), "") ->  | H62: =IF($C62<=$B$15,VLOOKUP(A62&$B$11, localcont!$A$10:$X$1764, 23, FALSE), "") ->  | J62: =IF($C62<=$B$15,H62/VLOOKUP(A62&"0999", localcont!$A$10:$X$1764, 23, FALSE), "") ->  | K62: =IF($C62<=$B$15,VLOOKUP(A62&$B$11, localcont!$A$10:$X$1764, 15, FALSE), "") ->  | L62: =IF($C62<=$B$15,VLOOKUP(A62&$B$11, localcont!$A$10:$X$1764, 14, FALSE),"") ->  | N62: =IF($C62<=$B$15,VLOOKUP(A62&$B$11, localcont!$A$10:$X$1764, 10, FALSE), "") ->  | O62: =IF($C62<=$B$15,VLOOKUP(A62&$B$11, localcont!$A$10:$X$1764, 12, FALSE), "") -> 
A63: =IF($C63<=$B$15,VLOOKUP(E63,leas!D50:F490,3,FALSE),"") ->  | B63: 71045 | C63: 45 | G63: =IF($C63<=$B$15,VLOOKUP(A63&$B$11, localcont!A54:X1808, 18, FALSE), "") ->  | H63: =IF($C63<=$B$15,VLOOKUP(A63&$B$11, localcont!$A$10:$X$1764, 23, FALSE), "") ->  | J63: =IF($C63<=$B$15,H63/VLOOKUP(A63&"0999", localcont!$A$10:$X$1764, 23, FALSE), "") ->  | K63: =IF($C63<=$B$15,VLOOKUP(A63&$B$11, localcont!$A$10:$X$1764, 15, FALSE), "") ->  | L63: =IF($C63<=$B$15,VLOOKUP(A63&$B$11, localcont!$A$10:$X$1764, 14, FALSE),"") ->  | N63: =IF($C63<=$B$15,VLOOKUP(A63&$B$11, localcont!$A$10:$X$1764, 10, FALSE), "") ->  | O63: =IF($C63<=$B$15,VLOOKUP(A63&$B$11, localcont!$A$10:$X$1764, 12, FALSE), "") -> 
A64: =IF($C64<=$B$15,VLOOKUP(E64,leas!D51:F491,3,FALSE),"") ->  | B64: 71046 | C64: 46 | G64: =IF($C64<=$B$15,VLOOKUP(A64&$B$11, localcont!A55:X1809, 18, FALSE), "") ->  | H64: =IF($C64<=$B$15,VLOOKUP(A64&$B$11, localcont!$A$10:$X$1764, 23, FALSE), "") ->  | J64: =IF($C64<=$B$15,H64/VLOOKUP(A64&"0999", localcont!$A$10:$X$1764, 23, FALSE), "") ->  | K64: =IF($C64<=$B$15,VLOOKUP(A64&$B$11, localcont!$A$10:$X$1764, 15, FALSE), "") ->  | L64: =IF($C64<=$B$15,VLOOKUP(A64&$B$11, localcont!$A$10:$X$1764, 14, FALSE),"") ->  | N64: =IF($C64<=$B$15,VLOOKUP(A64&$B$11, localcont!$A$10:$X$1764, 10, FALSE), "") ->  | O64: =IF($C64<=$B$15,VLOOKUP(A64&$B$11, localcont!$A$10:$X$1764, 12, FALSE), "") -> 
A65: =IF($C65<=$B$15,VLOOKUP(E65,leas!D52:F492,3,FALSE),"") ->  | B65: 71047 | C65: 47 | G65: =IF($C65<=$B$15,VLOOKUP(A65&$B$11, localcont!A56:X1810, 18, FALSE), "") ->  | H65: =IF($C65<=$B$15,VLOOKUP(A65&$B$11, localcont!$A$10:$X$1764, 23, FALSE), "") ->  | J65: =IF($C65<=$B$15,H65/VLOOKUP(A65&"0999", localcont!$A$10:$X$1764, 23, FALSE), "") ->  | K65: =IF($C65<=$B$15,VLOOKUP(A65&$B$11, localcont!$A$10:$X$1764, 15, FALSE), "") ->  | L65: =IF($C65<=$B$15,VLOOKUP(A65&$B$11, localcont!$A$10:$X$1764, 14, FALSE),"") ->  | N65: =IF($C65<=$B$15,VLOOKUP(A65&$B$11, localcont!$A$10:$X$1764, 10, FALSE), "") ->  | O65: =IF($C65<=$B$15,VLOOKUP(A65&$B$11, localcont!$A$10:$X$1764, 12, FALSE), "") -> 
A66: =IF($C66<=$B$15,VLOOKUP(E66,leas!D53:F493,3,FALSE),"") ->  | B66: 71048 | C66: 48 | G66: =IF($C66<=$B$15,VLOOKUP(A66&$B$11, localcont!A57:X1811, 18, FALSE), "") ->  | H66: =IF($C66<=$B$15,VLOOKUP(A66&$B$11, localcont!$A$10:$X$1764, 23, FALSE), "") ->  | J66: =IF($C66<=$B$15,H66/VLOOKUP(A66&"0999", localcont!$A$10:$X$1764, 23, FALSE), "") ->  | K66: =IF($C66<=$B$15,VLOOKUP(A66&$B$11, localcont!$A$10:$X$1764, 15, FALSE), "") ->  | L66: =IF($C66<=$B$15,VLOOKUP(A66&$B$11, localcont!$A$10:$X$1764, 14, FALSE),"") ->  | N66: =IF($C66<=$B$15,VLOOKUP(A66&$B$11, localcont!$A$10:$X$1764, 10, FALSE), "") ->  | O66: =IF($C66<=$B$15,VLOOKUP(A66&$B$11, localcont!$A$10:$X$1764, 12, FALSE), "") -> 
A67: =IF($C67<=$B$15,VLOOKUP(E67,leas!D54:F494,3,FALSE),"") ->  | B67: 71049 | C67: 49 | G67: =IF($C67<=$B$15,VLOOKUP(A67&$B$11, localcont!A58:X1812, 18, FALSE), "") ->  | H67: =IF($C67<=$B$15,VLOOKUP(A67&$B$11, localcont!$A$10:$X$1764, 23, FALSE), "") ->  | J67: =IF($C67<=$B$15,H67/VLOOKUP(A67&"0999", localcont!$A$10:$X$1764, 23, FALSE), "") ->  | K67: =IF($C67<=$B$15,VLOOKUP(A67&$B$11, localcont!$A$10:$X$1764, 15, FALSE), "") ->  | L67: =IF($C67<=$B$15,VLOOKUP(A67&$B$11, localcont!$A$10:$X$1764, 14, FALSE),"") ->  | N67: =IF($C67<=$B$15,VLOOKUP(A67&$B$11, localcont!$A$10:$X$1764, 10, FALSE), "") ->  | O67: =IF($C67<=$B$15,VLOOKUP(A67&$B$11, localcont!$A$10:$X$1764, 12, FALSE), "") -> 

Sheet ceyregionalcalc (hidden)
F1: Total CEY for town | G1: FB for school district/town combo | H1: CEY*% of town's fb
A2: Calculation of CEY as a % of Foundation
F7: FY16 Total | G7: FY16 Proportional | H7: FY16 Prop
F8: CEY | G8: Foundation | H8: CEY
A9: Order | B9: LEA | C9: School District | D9: Town | E9: City or Town | F9: Members | G9: Members | H9: Members
A10: 1 | B10: 1 | C10: ABINGTON | D10: 1 | E10: ABINGTON | F10: =VLOOKUP(D10, town351, 7) -> 14791766 | G10: =VLOOKUP(A10, localcont!$D$10:$L$1764, 8) -> 21210731.95 | H10: =VLOOKUP(A10, localcont!$D$10:$L$1764, 9)*F10 -> 13560629.97
A11: 6 | B11: 2 | C11: ACTON | D11: 2 | E11: ACTON | F11: 36140965 | G11: =VLOOKUP(A11, localcont!$D$10:$L$1764, 8) -> 0 | H11: =VLOOKUP(A11, localcont!$D$10:$L$1764, 9)*F11 -> 0
A12: 11 | B12: 3 | C12: ACUSHNET | D12: 3 | E12: ACUSHNET | F12: 8395464 | G12: =VLOOKUP(A12, localcont!$D$10:$L$1764, 8) -> 12201816.85 | H12: =VLOOKUP(A12, localcont!$D$10:$L$1764, 9)*F12 -> 7043554.388
A13: 16 | B13: 4 | C13: ADAMS | D13: 4 | E13: ADAMS | F13: 4404708 | G13: =VLOOKUP(A13, localcont!$D$10:$L$1764, 8) -> 0 | H13: =VLOOKUP(A13, localcont!$D$10:$L$1764, 9)*F13 -> 0
A14: 21 | B14: 5 | C14: AGAWAM | D14: 5 | E14: AGAWAM | F14: 22267656 | G14: =VLOOKUP(A14, localcont!$D$10:$L$1764, 8) -> 41091729.2 | H14: =VLOOKUP(A14, localcont!$D$10:$L$1764, 9)*F14 -> 22267656
A15: 26 | B15: 6 | C15: ALFORD | D15: 6 | E15: ALFORD | F15: 1365543 | G15: =VLOOKUP(A15, localcont!$D$10:$L$1764, 8) -> 0 | H15: =VLOOKUP(A15, localcont!$D$10:$L$1764, 9)*F15 -> 0
A16: 31 | B16: 7 | C16: AMESBURY | D16: 7 | E16: AMESBURY | F16: 15821845 | G16: =VLOOKUP(A16, localcont!$D$10:$L$1764, 8) -> 22649795.19 | H16: =VLOOKUP(A16, localcont!$D$10:$L$1764, 9)*F16 -> 15012245.11
A17: 36 | B17: 8 | C17: AMHERST | D17: 8 | E17: AMHERST | F17: 18416924 | G17: =VLOOKUP(A17, localcont!$D$10:$L$1764, 8) -> 11780035.8 | H17: =VLOOKUP(A17, localcont!$D$10:$L$1764, 9)*F17 -> 8820641.367
A18: 41 | B18: 9 | C18: ANDOVER | D18: 9 | E18: ANDOVER | F18: 68386998 | G18: =VLOOKUP(A18, localcont!$D$10:$L$1764, 8) -> 60272067.79 | H18: =VLOOKUP(A18, localcont!$D$10:$L$1764, 9)*F18 -> 67776604.82
A19: 46 | B19: 10 | C19: ARLINGTON | D19: 10 | E19: ARLINGTON | F19: 68987663 | G19: =VLOOKUP(A19, localcont!$D$10:$L$1764, 8) -> 57771939.9 | H19: =VLOOKUP(A19, localcont!$D$10:$L$1764, 9)*F19 -> 66616222.91
A20: 51 | B20: 11 | C20: ASHBURNHAM | D20: 11 | E20: ASHBURNHAM | F20: 5237165 | G20: =VLOOKUP(A20, localcont!$D$10:$L$1764, 8) -> 0 | H20: =VLOOKUP(A20, localcont!$D$10:$L$1764, 9)*F20 -> 0
A21: 56 | B21: 12 | C21: ASHBY | D21: 12 | E21: ASHBY | F21: 2471508 | G21: =VLOOKUP(A21, localcont!$D$10:$L$1764, 8) -> 0 | H21: =VLOOKUP(A21, localcont!$D$10:$L$1764, 9)*F21 -> 0
A22: 61 | B22: 13 | C22: ASHFIELD | D22: 13 | E22: ASHFIELD | F22: 1519514 | G22: =VLOOKUP(A22, localcont!$D$10:$L$1764, 8) -> 233471.35 | H22: =VLOOKUP(A22, localcont!$D$10:$L$1764, 9)*F22 -> 161560.2053
A23: 66 | B23: 14 | C23: ASHLAND | D23: 14 | E23: ASHLAND | F23: 20951225 | G23: =VLOOKUP(A23, localcont!$D$10:$L$1764, 8) -> 26202162.06 | H23: =VLOOKUP(A23, localcont!$D$10:$L$1764, 9)*F23 -> 20065312.09
A24: 71 | B24: 15 | C24: ATHOL | D24: 15 | E24: ATHOL | F24: 5663820 | G24: =VLOOKUP(A24, localcont!$D$10:$L$1764, 8) -> 13812.51 | H24: =VLOOKUP(A24, localcont!$D$10:$L$1764, 9)*F24 -> 4124.744727
A25: 76 | B25: 16 | C25: ATTLEBORO | D25: 16 | E25: ATTLEBORO | F25: 35137250 | G25: =VLOOKUP(A25, localcont!$D$10:$L$1764, 8) -> 72430197.34 | H25: =VLOOKUP(A25, localcont!$D$10:$L$1764, 9)*F25 -> 34881399.23
A26: 81 | B26: 17 | C26: AUBURN | D26: 17 | E26: AUBURN | F26: 15259054 | G26: =VLOOKUP(A26, localcont!$D$10:$L$1764, 8) -> 25472685.17 | H26: =VLOOKUP(A26, localcont!$D$10:$L$1764, 9)*F26 -> 14485429.39
A27: 86 | B27: 18 | C27: AVON | D27: 18 | E27: AVON | F27: 5085190 | G27: =VLOOKUP(A27, localcont!$D$10:$L$1764, 8) -> 6167207.96 | H27: =VLOOKUP(A27, localcont!$D$10:$L$1764, 9)*F27 -> 4344636.021
A28: 91 | B28: 19 | C28: AYER | D28: 19 | E28: AYER | F28: 7720944 | G28: =VLOOKUP(A28, localcont!$D$10:$L$1764, 8) -> 0 | H28: =VLOOKUP(A28, localcont!$D$10:$L$1764, 9)*F28 -> 0
A29: 96 | B29: 20 | C29: BARNSTABLE | D29: 20 | E29: BARNSTABLE | F29: 73553020 | G29: =VLOOKUP(A29, localcont!$D$10:$L$1764, 8) -> 59769566.03 | H29: =VLOOKUP(A29, localcont!$D$10:$L$1764, 9)*F29 -> 70022103.69
A30: 101 | B30: 21 | C30: BARRE | D30: 21 | E30: BARRE | F30: 3529759 | G30: =VLOOKUP(A30, localcont!$D$10:$L$1764, 8) -> 0 | H30: =VLOOKUP(A30, localcont!$D$10:$L$1764, 9)*F30 -> 0
A31: 106 | B31: 22 | C31: BECKET | D31: 22 | E31: BECKET | F31: 2571227 | G31: =VLOOKUP(A31, localcont!$D$10:$L$1764, 8) -> 192033.82 | H31: =VLOOKUP(A31, localcont!$D$10:$L$1764, 9)*F31 -> 210858.8093
A32: 111 | B32: 23 | C32: BEDFORD | D32: 23 | E32: BEDFORD | F32: 25482987 | G32: =VLOOKUP(A32, localcont!$D$10:$L$1764, 8) -> 27789125.48 | H32: =VLOOKUP(A32, localcont!$D$10:$L$1764, 9)*F32 -> 25208598.84
A33: 116 | B33: 24 | C33: BELCHERTOWN | D33: 24 | E33: BELCHERTOWN | F33: 12316879 | G33: =VLOOKUP(A33, localcont!$D$10:$L$1764, 8) -> 23526829.37 | H33: =VLOOKUP(A33, localcont!$D$10:$L$1764, 9)*F33 -> 11447348.29
A34: 121 | B34: 25 | C34: BELLINGHAM | D34: 25 | E34: BELLINGHAM | F34: 16577103 | G34: =VLOOKUP(A34, localcont!$D$10:$L$1764, 8) -> 23721894.4 | H34: =VLOOKUP(A34, localcont!$D$10:$L$1764, 9)*F34 -> 15646812.29
A35: 126 | B35: 26 | C35: BELMONT | D35: 26 | E35: BELMONT | F35: 54815043 | G35: =VLOOKUP(A35, localcont!$D$10:$L$1764, 8) -> 45276968.61 | H35: =VLOOKUP(A35, localcont!$D$10:$L$1764, 9)*F35 -> 54342829.01
A36: 131 | B36: 27 | C36: BERKLEY | D36: 27 | E36: BERKLEY | F36: 6158832 | G36: =VLOOKUP(A36, localcont!$D$10:$L$1764, 8) -> 7473874.18 | H36: =VLOOKUP(A36, localcont!$D$10:$L$1764, 9)*F36 -> 3811695.836
A37: 136 | B37: 28 | C37: BERLIN | D37: 28 | E37: BERLIN | F37: 4379850 | G37: =VLOOKUP(A37, localcont!$D$10:$L$1764, 8) -> 1633905.736 | H37: =VLOOKUP(A37, localcont!$D$10:$L$1764, 9)*F37 -> 1795560.634
A38: 141 | B38: 29 | C38: BERNARDSTON | D38: 29 | E38: BERNARDSTON | F38: 1653692 | G38: =VLOOKUP(A38, localcont!$D$10:$L$1764, 8) -> 0 | H38: =VLOOKUP(A38, localcont!$D$10:$L$1764, 9)*F38 -> 0
A39: 146 | B39: 30 | C39: BEVERLY | D39: 30 | E39: BEVERLY | F39: 47127725 | G39: =VLOOKUP(A39, localcont!$D$10:$L$1764, 8) -> 46149415.87 | H39: =VLOOKUP(A39, localcont!$D$10:$L$1764, 9)*F39 -> 45117834.81
A40: 151 | B40: 31 | C40: BILLERICA | D40: 31 | E40: BILLERICA | F40: 44053593 | G40: =VLOOKUP(A40, localcont!$D$10:$L$1764, 8) -> 49779831.2 | H40: =VLOOKUP(A40, localcont!$D$10:$L$1764, 9)*F40 -> 36666203.2
A41: 156 | B41: 32 | C41: BLACKSTONE | D41: 32 | E41: BLACKSTONE | F41: 7104189 | G41: =VLOOKUP(A41, localcont!$D$10:$L$1764, 8) -> 302533.9 | H41: =VLOOKUP(A41, localcont!$D$10:$L$1764, 9)*F41 -> 146505.454
A42: 161 | B42: 33 | C42: BLANDFORD | D42: 33 | E42: BLANDFORD | F42: 1151476 | G42: =VLOOKUP(A42, localcont!$D$10:$L$1764, 8) -> 110500.08 | H42: =VLOOKUP(A42, localcont!$D$10:$L$1764, 9)*F42 -> 99724.92079
A43: 166 | B43: 34 | C43: BOLTON | D43: 34 | E43: BOLTON | F43: 9186468 | G43: =VLOOKUP(A43, localcont!$D$10:$L$1764, 8) -> 14239.59656 | H43: =VLOOKUP(A43, localcont!$D$10:$L$1764, 9)*F43 -> 12295.21169
A44: 171 | B44: 35 | C44: BOSTON | D44: 35 | E44: BOSTON | F44: 952735545 | G44: =VLOOKUP(A44, localcont!$D$10:$L$1764, 8) -> 851831126.4 | H44: =VLOOKUP(A44, localcont!$D$10:$L$1764, 9)*F44 -> 952735545
A45: 176 | B45: 36 | C45: BOURNE | D45: 36 | E45: BOURNE | F45: 25290559 | G45: =VLOOKUP(A45, localcont!$D$10:$L$1764, 8) -> 20892765.63 | H45: =VLOOKUP(A45, localcont!$D$10:$L$1764, 9)*F45 -> 22273352.37
A46: 181 | B46: 37 | C46: BOXBOROUGH | D46: 37 | E46: BOXBOROUGH | F46: 8251282 | G46: =VLOOKUP(A46, localcont!$D$10:$L$1764, 8) -> 106521.8 | H46: =VLOOKUP(A46, localcont!$D$10:$L$1764, 9)*F46 -> 101317.318
A47: 186 | B47: 38 | C47: BOXFORD | D47: 38 | E47: BOXFORD | F47: 18605707 | G47: =VLOOKUP(A47, localcont!$D$10:$L$1764, 8) -> 6636568.764 | H47: =VLOOKUP(A47, localcont!$D$10:$L$1764, 9)*F47 -> 8713724.504
A48: 191 | B48: 39 | C48: BOYLSTON | D48: 39 | E48: BOYLSTON | F48: 5961338 | G48: =VLOOKUP(A48, localcont!$D$10:$L$1764, 8) -> 2831930.57 | H48: =VLOOKUP(A48, localcont!$D$10:$L$1764, 9)*F48 -> 2583310.564
A49: 196 | B49: 40 | C49: BRAINTREE | D49: 40 | E49: BRAINTREE | F49: 44534882 | G49: =VLOOKUP(A49, localcont!$D$10:$L$1764, 8) -> 60064709.85 | H49: =VLOOKUP(A49, localcont!$D$10:$L$1764, 9)*F49 -> 42449676.02
A50: 201 | B50: 41 | C50: BREWSTER | D50: 41 | E50: BREWSTER | F50: 18070957 | G50: =VLOOKUP(A50, localcont!$D$10:$L$1764, 8) -> 4788303.2 | H50: =VLOOKUP(A50, localcont!$D$10:$L$1764, 9)*F50 -> 7585439.695
A51: 206 | B51: 42 | C51: BRIDGEWATER | D51: 42 | E51: BRIDGEWATER | F51: 22094551 | G51: =VLOOKUP(A51, localcont!$D$10:$L$1764, 8) -> 124312.59 | H51: =VLOOKUP(A51, localcont!$D$10:$L$1764, 9)*F51 -> 80363.30243
A52: 211 | B52: 43 | C52: BRIMFIELD | D52: 43 | E52: BRIMFIELD | F52: 3301203 | G52: =VLOOKUP(A52, localcont!$D$10:$L$1764, 8) -> 2574180.8 | H52: =VLOOKUP(A52, localcont!$D$10:$L$1764, 9)*F52 -> 1527661.112
A53: 216 | B53: 44 | C53: BROCKTON | D53: 44 | E53: BROCKTON | F53: 50747187 | G53: =VLOOKUP(A53, localcont!$D$10:$L$1764, 8) -> 216450172.1 | H53: =VLOOKUP(A53, localcont!$D$10:$L$1764, 9)*F53 -> 47215363.9
A54: 221 | B54: 45 | C54: BROOKFIELD | D54: 45 | E54: BROOKFIELD | F54: 2259981 | G54: =VLOOKUP(A54, localcont!$D$10:$L$1764, 8) -> 2521316.45 | H54: =VLOOKUP(A54, localcont!$D$10:$L$1764, 9)*F54 -> 1094970.726
A55: 226 | B55: 46 | C55: BROOKLINE | D55: 46 | E55: BROOKLINE | F55: 140660756 | G55: =VLOOKUP(A55, localcont!$D$10:$L$1764, 8) -> 79123194.13 | H55: =VLOOKUP(A55, localcont!$D$10:$L$1764, 9)*F55 -> 140660756
A56: 231 | B56: 47 | C56: BUCKLAND | D56: 47 | E56: BUCKLAND | F56: 1358679 | G56: =VLOOKUP(A56, localcont!$D$10:$L$1764, 8) -> 27625.02 | H56: =VLOOKUP(A56, localcont!$D$10:$L$1764, 9)*F56 -> 17195.49619
A57: 236 | B57: 48 | C57: BURLINGTON | D57: 48 | E57: BURLINGTON | F57: 38875648 | G57: =VLOOKUP(A57, localcont!$D$10:$L$1764, 8) -> 37295872.45 | H57: =VLOOKUP(A57, localcont!$D$10:$L$1764, 9)*F57 -> 36966369.24
A58: 241 | B58: 49 | C58: CAMBRIDGE | D58: 49 | E58: CAMBRIDGE | F58: 236472395 | G58: =VLOOKUP(A58, localcont!$D$10:$L$1764, 8) -> 87801935.87 | H58: =VLOOKUP(A58, localcont!$D$10:$L$1764, 9)*F58 -> 236472395
A59: 246 | B59: 50 | C59: CANTON | D59: 50 | E59: CANTON | F59: 35809356 | G59: =VLOOKUP(A59, localcont!$D$10:$L$1764, 8) -> 34756319.33 | H59: =VLOOKUP(A59, localcont!$D$10:$L$1764, 9)*F59 -> 34642887.25
A60: 251 | B60: 51 | C60: CARLISLE | D60: 51 | E60: CARLISLE | F60: 13825250 | G60: =VLOOKUP(A60, localcont!$D$10:$L$1764, 8) -> 5476099.617 | H60: =VLOOKUP(A60, localcont!$D$10:$L$1764, 9)*F60 -> 8382438.164
A61: 256 | B61: 52 | C61: CARVER | D61: 52 | E61: CARVER | F61: 9384732 | G61: =VLOOKUP(A61, localcont!$D$10:$L$1764, 8) -> 16888007.49 | H61: =VLOOKUP(A61, localcont!$D$10:$L$1764, 9)*F61 -> 8623267.036
A62: 261 | B62: 53 | C62: CHARLEMONT | D62: 53 | E62: CHARLEMONT | F62: 945444 | G62: =VLOOKUP(A62, localcont!$D$10:$L$1764, 8) -> 178221.31 | H62: =VLOOKUP(A62, localcont!$D$10:$L$1764, 9)*F62 -> 91988.60736
A63: 266 | B63: 54 | C63: CHARLTON | D63: 54 | E63: CHARLTON | F63: 12035894 | G63: =VLOOKUP(A63, localcont!$D$10:$L$1764, 8) -> 41437.53 | H63: =VLOOKUP(A63, localcont!$D$10:$L$1764, 9)*F63 -> 21206.49854
A64: 271 | B64: 55 | C64: CHATHAM | D64: 55 | E64: CHATHAM | F64: 28927787 | G64: =VLOOKUP(A64, localcont!$D$10:$L$1764, 8) -> 0 | H64: =VLOOKUP(A64, localcont!$D$10:$L$1764, 9)*F64 -> 0
A65: 276 | B65: 56 | C65: CHELMSFORD | D65: 56 | E65: CHELMSFORD | F65: 45637152 | G65: =VLOOKUP(A65, localcont!$D$10:$L$1764, 8) -> 50627915.1 | H65: =VLOOKUP(A65, localcont!$D$10:$L$1764, 9)*F65 -> 42909011.46
A66: 281 | B66: 57 | C66: CHELSEA | D66: 57 | E66: CHELSEA | F66: 19645965 | G66: =VLOOKUP(A66, localcont!$D$10:$L$1764, 8) -> 93471175.07 | H66: =VLOOKUP(A66, localcont!$D$10:$L$1764, 9)*F66 -> 18806190.06
A67: 286 | B67: 58 | C67: CHESHIRE | D67: 58 | E67: CHESHIRE | F67: 2374427 | G67: =VLOOKUP(A67, localcont!$D$10:$L$1764, 8) -> 0 | H67: =VLOOKUP(A67, localcont!$D$10:$L$1764, 9)*F67 -> 0
A68: 291 | B68: 59 | C68: CHESTER | D68: 59 | E68: CHESTER | F68: 870961 | G68: =VLOOKUP(A68, localcont!$D$10:$L$1764, 8) -> 55250.04 | H68: =VLOOKUP(A68, localcont!$D$10:$L$1764, 9)*F68 -> 28000.20103
A69: 296 | B69: 60 | C69: CHESTERFIELD | D69: 60 | E69: CHESTERFIELD | F69: 958743 | G69: =VLOOKUP(A69, localcont!$D$10:$L$1764, 8) -> 261096.37 | H69: =VLOOKUP(A69, localcont!$D$10:$L$1764, 9)*F69 -> 180170.0033
A70: 301 | B70: 61 | C70: CHICOPEE | D70: 61 | E70: CHICOPEE | F70: 29787201 | G70: =VLOOKUP(A70, localcont!$D$10:$L$1764, 8) -> 92889949.43 | H70: =VLOOKUP(A70, localcont!$D$10:$L$1764, 9)*F70 -> 29787201
A71: 306 | B71: 62 | C71: CHILMARK | D71: 62 | E71: CHILMARK | F71: 12992260 | G71: =VLOOKUP(A71, localcont!$D$10:$L$1764, 8) -> 0 | H71: =VLOOKUP(A71, localcont!$D$10:$L$1764, 9)*F71 -> 0
A72: 311 | B72: 63 | C72: CLARKSBURG | D72: 63 | E72: CLARKSBURG | F72: 920610 | G72: =VLOOKUP(A72, localcont!$D$10:$L$1764, 8) -> 1734766.7 | H72: =VLOOKUP(A72, localcont!$D$10:$L$1764, 9)*F72 -> 672678.0853
A73: 316 | B73: 64 | C73: CLINTON | D73: 64 | E73: CLINTON | F73: 10172104 | G73: =VLOOKUP(A73, localcont!$D$10:$L$1764, 8) -> 22549396.35 | H73: =VLOOKUP(A73, localcont!$D$10:$L$1764, 9)*F73 -> 10172104
A74: 321 | B74: 65 | C74: COHASSET | D74: 65 | E74: COHASSET | F74: =VLOOKUP(D74, town351, 7) -> 22776894 | G74: =VLOOKUP(A74, localcont!$D$10:$L$1764, 8) -> 15090374.64 | H74: =VLOOKUP(A74, localcont!$D$10:$L$1764, 9)*F74 -> 22675776.85
A75: 326 | B75: 66 | C75: COLRAIN | D75: 66 | E75: COLRAIN | F75: 1309870 | G75: =VLOOKUP(A75, localcont!$D$10:$L$1764, 8) -> 0 | H75: =VLOOKUP(A75, localcont!$D$10:$L$1764, 9)*F75 -> 0
A76: 331 | B76: 67 | C76: CONCORD | D76: 67 | E76: CONCORD | F76: 56193102 | G76: =VLOOKUP(A76, localcont!$D$10:$L$1764, 8) -> 19519914.53 | H76: =VLOOKUP(A76, localcont!$D$10:$L$1764, 9)*F76 -> 35488825.38
A77: 336 | B77: 68 | C77: CONWAY | D77: 68 | E77: CONWAY | F77: 1882692 | G77: =VLOOKUP(A77, localcont!$D$10:$L$1764, 8) -> 993670.92 | H77: =VLOOKUP(A77, localcont!$D$10:$L$1764, 9)*F77 -> 851467.6412
A78: 341 | B78: 69 | C78: CUMMINGTON | D78: 69 | E78: CUMMINGTON | F78: 896725 | G78: =VLOOKUP(A78, localcont!$D$10:$L$1764, 8) -> 110500.08 | H78: =VLOOKUP(A78, localcont!$D$10:$L$1764, 9)*F78 -> 118790.6534
A79: 346 | B79: 70 | C79: DALTON | D79: 70 | E79: DALTON | F79: 5093908 | G79: =VLOOKUP(A79, localcont!$D$10:$L$1764, 8) -> 247283.86 | H79: =VLOOKUP(A79, localcont!$D$10:$L$1764, 9)*F79 -> 129329.8904
A80: 351 | B80: 71 | C80: DANVERS | D80: 71 | E80: DANVERS | F80: 32687444 | G80: =VLOOKUP(A80, localcont!$D$10:$L$1764, 8) -> 35167941.89 | H80: =VLOOKUP(A80, localcont!$D$10:$L$1764, 9)*F80 -> 30615856.14
A81: 356 | B81: 72 | C81: DARTMOUTH | D81: 72 | E81: DARTMOUTH | F81: 36810811 | G81: =VLOOKUP(A81, localcont!$D$10:$L$1764, 8) -> 37419916.72 | H81: =VLOOKUP(A81, localcont!$D$10:$L$1764, 9)*F81 -> 31868083.75
A82: 361 | B82: 73 | C82: DEDHAM | D82: 73 | E82: DEDHAM | F82: 36532673 | G82: =VLOOKUP(A82, localcont!$D$10:$L$1764, 8) -> 28281722.45 | H82: =VLOOKUP(A82, localcont!$D$10:$L$1764, 9)*F82 -> 34425766.99
A83: 366 | B83: 74 | C83: DEERFIELD | D83: 74 | E83: DEERFIELD | F83: 5378749 | G83: =VLOOKUP(A83, localcont!$D$10:$L$1764, 8) -> 3051328.99 | H83: =VLOOKUP(A83, localcont!$D$10:$L$1764, 9)*F83 -> 2678267.261
A84: 371 | B84: 75 | C84: DENNIS | D84: 75 | E84: DENNIS | F84: 30858766 | G84: =VLOOKUP(A84, localcont!$D$10:$L$1764, 8) -> 0 | H84: =VLOOKUP(A84, localcont!$D$10:$L$1764, 9)*F84 -> 0
A85: 376 | B85: 76 | C85: DIGHTON | D85: 76 | E85: DIGHTON | F85: 6757735 | G85: =VLOOKUP(A85, localcont!$D$10:$L$1764, 8) -> 0 | H85: =VLOOKUP(A85, localcont!$D$10:$L$1764, 9)*F85 -> 0
A86: 381 | B86: 77 | C86: DOUGLAS | D86: 77 | E86: DOUGLAS | F86: 7755786 | G86: =VLOOKUP(A86, localcont!$D$10:$L$1764, 8) -> 12666958.57 | H86: =VLOOKUP(A86, localcont!$D$10:$L$1764, 9)*F86 -> 6818829.112
A87: 386 | B87: 78 | C87: DOVER | D87: 78 | E87: DOVER | F87: 27276879 | G87: =VLOOKUP(A87, localcont!$D$10:$L$1764, 8) -> 4616750.636 | H87: =VLOOKUP(A87, localcont!$D$10:$L$1764, 9)*F87 -> 10881666.78
A88: 391 | B88: 79 | C88: DRACUT | D88: 79 | E88: DRACUT | F88: 26343773 | G88: =VLOOKUP(A88, localcont!$D$10:$L$1764, 8) -> 39369104.24 | H88: =VLOOKUP(A88, localcont!$D$10:$L$1764, 9)*F88 -> 21844822.88
A89: 396 | B89: 80 | C89: DUDLEY | D89: 80 | E89: DUDLEY | F89: 7884078 | G89: =VLOOKUP(A89, localcont!$D$10:$L$1764, 8) -> 27625.02 | H89: =VLOOKUP(A89, localcont!$D$10:$L$1764, 9)*F89 -> 10921.26306
A90: 401 | B90: 81 | C90: DUNSTABLE | D90: 81 | E90: DUNSTABLE | F90: 4373438 | G90: =VLOOKUP(A90, localcont!$D$10:$L$1764, 8) -> 13812.51 | H90: =VLOOKUP(A90, localcont!$D$10:$L$1764, 9)*F90 -> 10876.31006
A91: 406 | B91: 82 | C91: DUXBURY | D91: 82 | E91: DUXBURY | F91: 32518118 | G91: =VLOOKUP(A91, localcont!$D$10:$L$1764, 8) -> 29922126.97 | H91: =VLOOKUP(A91, localcont!$D$10:$L$1764, 9)*F91 -> 32518118
A92: 411 | B92: 83 | C92: EAST BRIDGEWATER | D92: 83 | E92: EAST BRIDGEWATER | F92: 12269932 | G92: =VLOOKUP(A92, localcont!$D$10:$L$1764, 8) -> 22054896.81 | H92: =VLOOKUP(A92, localcont!$D$10:$L$1764, 9)*F92 -> 11573644.34
A93: 416 | B93: 84 | C93: EAST BROOKFIELD | D93: 84 | E93: EAST BROOKFIELD | F93: 1738660 | G93: =VLOOKUP(A93, localcont!$D$10:$L$1764, 8) -> 247283.86 | H93: =VLOOKUP(A93, localcont!$D$10:$L$1764, 9)*F93 -> 128553.5817
A94: 421 | B94: 85 | C94: EASTHAM | D94: 85 | E94: EASTHAM | F94: 12883448 | G94: =VLOOKUP(A94, localcont!$D$10:$L$1764, 8) -> 1725649.16 | H94: =VLOOKUP(A94, localcont!$D$10:$L$1764, 9)*F94 -> 4750998.299
A95: 426 | B95: 86 | C95: EASTHAMPTON | D95: 86 | E95: EASTHAMPTON | F95: 12046249 | G95: =VLOOKUP(A95, localcont!$D$10:$L$1764, 8) -> 17867693.98 | H95: =VLOOKUP(A95, localcont!$D$10:$L$1764, 9)*F95 -> 12046249
A96: 431 | B96: 87 | C96: EAST LONGMEADOW | D96: 87 | E96: EAST LONGMEADOW | F96: 16579731 | G96: =VLOOKUP(A96, localcont!$D$10:$L$1764, 8) -> 27670599.84 | H96: =VLOOKUP(A96, localcont!$D$10:$L$1764, 9)*F96 -> 16579731
A97: 436 | B97: 88 | C97: EASTON | D97: 88 | E97: EASTON | F97: 28486243 | G97: =VLOOKUP(A97, localcont!$D$10:$L$1764, 8) -> 35950261.55 | H97: =VLOOKUP(A97, localcont!$D$10:$L$1764, 9)*F97 -> 27363378.72
A98: 441 | B98: 89 | C98: EDGARTOWN | D98: 89 | E98: EDGARTOWN | F98: 31443520 | G98: =VLOOKUP(A98, localcont!$D$10:$L$1764, 8) -> 4208766.51 | H98: =VLOOKUP(A98, localcont!$D$10:$L$1764, 9)*F98 -> 20384918.76
A99: 446 | B99: 90 | C99: EGREMONT | D99: 90 | E99: EGREMONT | F99: 2011928 | G99: =VLOOKUP(A99, localcont!$D$10:$L$1764, 8) -> 0 | H99: =VLOOKUP(A99, localcont!$D$10:$L$1764, 9)*F99 -> 0
A100: 451 | B100: 91 | C100: ERVING | D100: 91 | E100: ERVING | F100: 3710408 | G100: =VLOOKUP(A100, localcont!$D$10:$L$1764, 8) -> 2302912.77 | H100: =VLOOKUP(A100, localcont!$D$10:$L$1764, 9)*F100 -> 3060291.976
A101: 456 | B101: 92 | C101: ESSEX | D101: 92 | E101: ESSEX | F101: 5986351 | G101: =VLOOKUP(A101, localcont!$D$10:$L$1764, 8) -> 0 | H101: =VLOOKUP(A101, localcont!$D$10:$L$1764, 9)*F101 -> 0
A102: 461 | B102: 93 | C102: EVERETT | D102: 93 | E102: EVERETT | F102: 29588937 | G102: =VLOOKUP(A102, localcont!$D$10:$L$1764, 8) -> 95255826.12 | H102: =VLOOKUP(A102, localcont!$D$10:$L$1764, 9)*F102 -> 29588937
A103: 466 | B103: 94 | C103: FAIRHAVEN | D103: 94 | E103: FAIRHAVEN | F103: 13608124 | G103: =VLOOKUP(A103, localcont!$D$10:$L$1764, 8) -> 19395593.06 | H103: =VLOOKUP(A103, localcont!$D$10:$L$1764, 9)*F103 -> 11602977.61
A104: 471 | B104: 95 | C104: FALL RIVER | D104: 95 | E104: FALL RIVER | F104: 40698566 | G104: =VLOOKUP(A104, localcont!$D$10:$L$1764, 8) -> 148117900.7 | H104: =VLOOKUP(A104, localcont!$D$10:$L$1764, 9)*F104 -> 36195207.79
A105: 476 | B105: 96 | C105: FALMOUTH | D105: 96 | E105: FALMOUTH | F105: 60452629 | G105: =VLOOKUP(A105, localcont!$D$10:$L$1764, 8) -> 37009427.57 | H105: =VLOOKUP(A105, localcont!$D$10:$L$1764, 9)*F105 -> 56318133.57
A106: 481 | B106: 97 | C106: FITCHBURG | D106: 97 | E106: FITCHBURG | F106: 19286215 | G106: =VLOOKUP(A106, localcont!$D$10:$L$1764, 8) -> 69660388.06 | H106: =VLOOKUP(A106, localcont!$D$10:$L$1764, 9)*F106 -> 17701950.74
A107: 486 | B107: 98 | C107: FLORIDA | D107: 98 | E107: FLORIDA | F107: 624016 | G107: =VLOOKUP(A107, localcont!$D$10:$L$1764, 8) -> 616514.06 | H107: =VLOOKUP(A107, localcont!$D$10:$L$1764, 9)*F107 -> 426249.5852
A108: 491 | B108: 99 | C108: FOXBOROUGH | D108: 99 | E108: FOXBOROUGH | F108: 22966304 | G108: =VLOOKUP(A108, localcont!$D$10:$L$1764, 8) -> 27752918.94 | H108: =VLOOKUP(A108, localcont!$D$10:$L$1764, 9)*F108 -> 22367948.95
A109: 496 | B109: 100 | C109: FRAMINGHAM | D109: 100 | E109: FRAMINGHAM | F109: 65374924 | G109: =VLOOKUP(A109, localcont!$D$10:$L$1764, 8) -> 107224944.9 | H109: =VLOOKUP(A109, localcont!$D$10:$L$1764, 9)*F109 -> 60325805.52
A110: 501 | B110: 101 | C110: FRANKLIN | D110: 101 | E110: FRANKLIN | F110: 40609682 | G110: =VLOOKUP(A110, localcont!$D$10:$L$1764, 8) -> 57665492.76 | H110: =VLOOKUP(A110, localcont!$D$10:$L$1764, 9)*F110 -> 38359302.46
A111: 506 | B111: 102 | C111: FREETOWN | D111: 102 | E111: FREETOWN | F111: 9080037 | G111: =VLOOKUP(A111, localcont!$D$10:$L$1764, 8) -> 1251573.13 | H111: =VLOOKUP(A111, localcont!$D$10:$L$1764, 9)*F111 -> 823871.2998
A112: 511 | B112: 103 | C112: GARDNER | D112: 103 | E112: GARDNER | F112: 10176250 | G112: =VLOOKUP(A112, localcont!$D$10:$L$1764, 8) -> 28644226.19 | H112: =VLOOKUP(A112, localcont!$D$10:$L$1764, 9)*F112 -> 9241119.585
A113: 516 | B113: 104 | C113: AQUINNAH | D113: 104 | E113: AQUINNAH | F113: 2710533 | G113: =VLOOKUP(A113, localcont!$D$10:$L$1764, 8) -> 0 | H113: =VLOOKUP(A113, localcont!$D$10:$L$1764, 9)*F113 -> 0
A114: 521 | B114: 105 | C114: GEORGETOWN | D114: 105 | E114: GEORGETOWN | F114: 10167762 | G114: =VLOOKUP(A114, localcont!$D$10:$L$1764, 8) -> 12961153.99 | H114: =VLOOKUP(A114, localcont!$D$10:$L$1764, 9)*F114 -> 9593526.77
A115: 526 | B115: 106 | C115: GILL | D115: 106 | E115: GILL | F115: 1111975 | G115: =VLOOKUP(A115, localcont!$D$10:$L$1764, 8) -> 0 | H115: =VLOOKUP(A115, localcont!$D$10:$L$1764, 9)*F115 -> 0
A116: 531 | B116: 107 | C116: GLOUCESTER | D116: 107 | E116: GLOUCESTER | F116: 38388856 | G116: =VLOOKUP(A116, localcont!$D$10:$L$1764, 8) -> 33692191.69 | H116: =VLOOKUP(A116, localcont!$D$10:$L$1764, 9)*F116 -> 36495134.84
A117: 536 | B117: 108 | C117: GOSHEN | D117: 108 | E117: GOSHEN | F117: 740455 | G117: =VLOOKUP(A117, localcont!$D$10:$L$1764, 8) -> 138125.1 | H117: =VLOOKUP(A117, localcont!$D$10:$L$1764, 9)*F117 -> 87454.47963
A118: 541 | B118: 109 | C118: GOSNOLD | D118: 109 | E118: GOSNOLD | F118: 867243 | G118: =VLOOKUP(A118, localcont!$D$10:$L$1764, 8) -> 22523.79 | H118: =VLOOKUP(A118, localcont!$D$10:$L$1764, 9)*F118 -> 867243
A119: 546 | B119: 110 | C119: GRAFTON | D119: 110 | E119: GRAFTON | F119: 20897964 | G119: =VLOOKUP(A119, localcont!$D$10:$L$1764, 8) -> 30566617.26 | H119: =VLOOKUP(A119, localcont!$D$10:$L$1764, 9)*F119 -> 20279346.84
A120: 551 | B120: 111 | C120: GRANBY | D120: 111 | E120: GRANBY | F120: 4960100 | G120: =VLOOKUP(A120, localcont!$D$10:$L$1764, 8) -> 7006720.12 | H120: =VLOOKUP(A120, localcont!$D$10:$L$1764, 9)*F120 -> 4754192.546
A121: 556 | B121: 112 | C121: GRANVILLE | D121: 112 | E121: GRANVILLE | F121: 1483036 | G121: =VLOOKUP(A121, localcont!$D$10:$L$1764, 8) -> 0 | H121: =VLOOKUP(A121, localcont!$D$10:$L$1764, 9)*F121 -> 0
A122: 561 | B122: 113 | C122: GREAT BARRINGTON | D122: 113 | E122: GREAT BARRINGTON | F122: 9060012 | G122: =VLOOKUP(A122, localcont!$D$10:$L$1764, 8) -> 0 | H122: =VLOOKUP(A122, localcont!$D$10:$L$1764, 9)*F122 -> 0
A123: 566 | B123: 114 | C123: GREENFIELD | D123: 114 | E123: GREENFIELD | F123: 10586186 | G123: =VLOOKUP(A123, localcont!$D$10:$L$1764, 8) -> 21921338.47 | H123: =VLOOKUP(A123, localcont!$D$10:$L$1764, 9)*F123 -> 9850849.935
A124: 571 | B124: 115 | C124: GROTON | D124: 115 | E124: GROTON | F124: 16963114 | G124: =VLOOKUP(A124, localcont!$D$10:$L$1764, 8) -> 0 | H124: =VLOOKUP(A124, localcont!$D$10:$L$1764, 9)*F124 -> 0
A125: 576 | B125: 116 | C125: GROVELAND | D125: 116 | E125: GROVELAND | F125: 6870936 | G125: =VLOOKUP(A125, localcont!$D$10:$L$1764, 8) -> 205846.33 | H125: =VLOOKUP(A125, localcont!$D$10:$L$1764, 9)*F125 -> 140343.9811
A126: 581 | B126: 117 | C126: HADLEY | D126: 117 | E126: HADLEY | F126: 6012094 | G126: =VLOOKUP(A126, localcont!$D$10:$L$1764, 8) -> 5734422.42 | H126: =VLOOKUP(A126, localcont!$D$10:$L$1764, 9)*F126 -> 6012094
A127: 586 | B127: 118 | C127: HALIFAX | D127: 118 | E127: HALIFAX | F127: 6707071 | G127: =VLOOKUP(A127, localcont!$D$10:$L$1764, 8) -> 6320122.504 | H127: =VLOOKUP(A127, localcont!$D$10:$L$1764, 9)*F127 -> 3342913.774
A128: 591 | B128: 119 | C128: HAMILTON | D128: 119 | E128: HAMILTON | F128: 13073359 | G128: =VLOOKUP(A128, localcont!$D$10:$L$1764, 8) -> 0 | H128: =VLOOKUP(A128, localcont!$D$10:$L$1764, 9)*F128 -> 0
A129: 596 | B129: 120 | C129: HAMPDEN | D129: 120 | E129: HAMPDEN | F129: 5090718 | G129: =VLOOKUP(A129, localcont!$D$10:$L$1764, 8) -> 0 | H129: =VLOOKUP(A129, localcont!$D$10:$L$1764, 9)*F129 -> 0
A130: 601 | B130: 121 | C130: HANCOCK | D130: 121 | E130: HANCOCK | F130: 1250760 | G130: =VLOOKUP(A130, localcont!$D$10:$L$1764, 8) -> 595189.52 | H130: =VLOOKUP(A130, localcont!$D$10:$L$1764, 9)*F130 -> 1250760
A131: 606 | B131: 122 | C131: HANOVER | D131: 122 | E131: HANOVER | F131: 20429404 | G131: =VLOOKUP(A131, localcont!$D$10:$L$1764, 8) -> 25124850.69 | H131: =VLOOKUP(A131, localcont!$D$10:$L$1764, 9)*F131 -> 19821717.46
A132: 611 | B132: 123 | C132: HANSON | D132: 123 | E132: HANSON | F132: 9640222 | G132: =VLOOKUP(A132, localcont!$D$10:$L$1764, 8) -> 82875.06 | H132: =VLOOKUP(A132, localcont!$D$10:$L$1764, 9)*F132 -> 47012.2223
A133: 616 | B133: 124 | C133: HARDWICK | D133: 124 | E133: HARDWICK | F133: 1555856 | G133: =VLOOKUP(A133, localcont!$D$10:$L$1764, 8) -> 13812.51 | H133: =VLOOKUP(A133, localcont!$D$10:$L$1764, 9)*F133 -> 5238.835662
A134: 621 | B134: 125 | C134: HARVARD | D134: 125 | E134: HARVARD | F134: 10098311 | G134: =VLOOKUP(A134, localcont!$D$10:$L$1764, 8) -> 9189682.378 | H134: =VLOOKUP(A134, localcont!$D$10:$L$1764, 9)*F134 -> 10027632.14
A135: 626 | B135: 126 | C135: HARWICH | D135: 126 | E135: HARWICH | F135: 25181256 | G135: =VLOOKUP(A135, localcont!$D$10:$L$1764, 8) -> 0 | H135: =VLOOKUP(A135, localcont!$D$10:$L$1764, 9)*F135 -> 0
A136: 631 | B136: 127 | C136: HATFIELD | D136: 127 | E136: HATFIELD | F136: 3548647 | G136: =VLOOKUP(A136, localcont!$D$10:$L$1764, 8) -> 3430866.1 | H136: =VLOOKUP(A136, localcont!$D$10:$L$1764, 9)*F136 -> 3548647
A137: 636 | B137: 128 | C137: HAVERHILL | D137: 128 | E137: HAVERHILL | F137: 45969119 | G137: =VLOOKUP(A137, localcont!$D$10:$L$1764, 8) -> 94646673.77 | H137: =VLOOKUP(A137, localcont!$D$10:$L$1764, 9)*F137 -> 40242167.31
A138: 641 | B138: 129 | C138: HAWLEY | D138: 129 | E138: HAWLEY | F138: =VLOOKUP(D138, town351, 7) -> 266206 | G138: =VLOOKUP(A138, localcont!$D$10:$L$1764, 8) -> 13812.51 | H138: =VLOOKUP(A138, localcont!$D$10:$L$1764, 9)*F138 -> 10345.01622
A139: 646 | B139: 130 | C139: HEATH | D139: 130 | E139: HEATH | F139: 478015 | G139: =VLOOKUP(A139, localcont!$D$10:$L$1764, 8) -> 0 | H139: =VLOOKUP(A139, localcont!$D$10:$L$1764, 9)*F139 -> 0
A140: 651 | B140: 131 | C140: HINGHAM | D140: 131 | E140: HINGHAM | F140: 61294079 | G140: =VLOOKUP(A140, localcont!$D$10:$L$1764, 8) -> 42684162.67 | H140: =VLOOKUP(A140, localcont!$D$10:$L$1764, 9)*F140 -> 61294079
A141: 656 | B141: 132 | C141: HINSDALE | D141: 132 | E141: HINSDALE | F141: 1997932 | G141: =VLOOKUP(A141, localcont!$D$10:$L$1764, 8) -> 124312.59 | H141: =VLOOKUP(A141, localcont!$D$10:$L$1764, 9)*F141 -> 117469.1716
A142: 661 | B142: 133 | C142: HOLBROOK | D142: 133 | E142: HOLBROOK | F142: 8682660 | G142: =VLOOKUP(A142, localcont!$D$10:$L$1764, 8) -> 13662146.16 | H142: =VLOOKUP(A142, localcont!$D$10:$L$1764, 9)*F142 -> 7444514.911
A143: 666 | B143: 134 | C143: HOLDEN | D143: 134 | E143: HOLDEN | F143: 18937119 | G143: =VLOOKUP(A143, localcont!$D$10:$L$1764, 8) -> 13812.51 | H143: =VLOOKUP(A143, localcont!$D$10:$L$1764, 9)*F143 -> 8197.13385
A144: 671 | B144: 135 | C144: HOLLAND | D144: 135 | E144: HOLLAND | F144: 2278828 | G144: =VLOOKUP(A144, localcont!$D$10:$L$1764, 8) -> 1744451.9 | H144: =VLOOKUP(A144, localcont!$D$10:$L$1764, 9)*F144 -> 1010786.93
A145: 676 | B145: 136 | C145: HOLLISTON | D145: 136 | E145: HOLLISTON | F145: 20383589 | G145: =VLOOKUP(A145, localcont!$D$10:$L$1764, 8) -> 26673552.03 | H145: =VLOOKUP(A145, localcont!$D$10:$L$1764, 9)*F145 -> 19622789.52
A146: 681 | B146: 137 | C146: HOLYOKE | D146: 137 | E146: HOLYOKE | F146: 17061676 | G146: =VLOOKUP(A146, localcont!$D$10:$L$1764, 8) -> 80272516.45 | H146: =VLOOKUP(A146, localcont!$D$10:$L$1764, 9)*F146 -> 17061676
A147: 686 | B147: 138 | C147: HOPEDALE | D147: 138 | E147: HOPEDALE | F147: 5989488 | G147: =VLOOKUP(A147, localcont!$D$10:$L$1764, 8) -> 9972114.11 | H147: =VLOOKUP(A147, localcont!$D$10:$L$1764, 9)*F147 -> 5621543.945
A148: 691 | B148: 139 | C148: HOPKINTON | D148: 139 | E148: HOPKINTON | F148: 32815305 | G148: =VLOOKUP(A148, localcont!$D$10:$L$1764, 8) -> 37113559.57 | H148: =VLOOKUP(A148, localcont!$D$10:$L$1764, 9)*F148 -> 32508240.82
A149: 696 | B149: 140 | C149: HUBBARDSTON | D149: 140 | E149: HUBBARDSTON | F149: 3679657 | G149: =VLOOKUP(A149, localcont!$D$10:$L$1764, 8) -> 0 | H149: =VLOOKUP(A149, localcont!$D$10:$L$1764, 9)*F149 -> 0
A150: 701 | B150: 141 | C150: HUDSON | D150: 141 | E150: HUDSON | F150: 19302589 | G150: =VLOOKUP(A150, localcont!$D$10:$L$1764, 8) -> 28992133.73 | H150: =VLOOKUP(A150, localcont!$D$10:$L$1764, 9)*F150 -> 17066375.75
A151: 706 | B151: 142 | C151: HULL | D151: 142 | E151: HULL | F151: 13086115 | G151: =VLOOKUP(A151, localcont!$D$10:$L$1764, 8) -> 10148098.74 | H151: =VLOOKUP(A151, localcont!$D$10:$L$1764, 9)*F151 -> 13086115
A152: 711 | B152: 143 | C152: HUNTINGTON | D152: 143 | E152: HUNTINGTON | F152: 1623678 | G152: =VLOOKUP(A152, localcont!$D$10:$L$1764, 8) -> 371596.45 | H152: =VLOOKUP(A152, localcont!$D$10:$L$1764, 9)*F152 -> 204800.4994
A153: 716 | B153: 144 | C153: IPSWICH | D153: 144 | E153: IPSWICH | F153: 19069225 | G153: =VLOOKUP(A153, localcont!$D$10:$L$1764, 8) -> 17728722.34 | H153: =VLOOKUP(A153, localcont!$D$10:$L$1764, 9)*F153 -> 18584724.67
A154: 721 | B154: 145 | C154: KINGSTON | D154: 145 | E154: KINGSTON | F154: 14047944 | G154: =VLOOKUP(A154, localcont!$D$10:$L$1764, 8) -> 10556979.79 | H154: =VLOOKUP(A154, localcont!$D$10:$L$1764, 9)*F154 -> 6605851.335
A155: 726 | B155: 146 | C155: LAKEVILLE | D155: 146 | E155: LAKEVILLE | F155: 11650997 | G155: =VLOOKUP(A155, localcont!$D$10:$L$1764, 8) -> 192033.82 | H155: =VLOOKUP(A155, localcont!$D$10:$L$1764, 9)*F155 -> 123204.4062
A156: 731 | B156: 147 | C156: LANCASTER | D156: 147 | E156: LANCASTER | F156: 7128704 | G156: =VLOOKUP(A156, localcont!$D$10:$L$1764, 8) -> 13812.51 | H156: =VLOOKUP(A156, localcont!$D$10:$L$1764, 9)*F156 -> 9605.301748
A157: 736 | B157: 148 | C157: LANESBOROUGH | D157: 148 | E157: LANESBOROUGH | F157: 2566289 | G157: =VLOOKUP(A157, localcont!$D$10:$L$1764, 8) -> 0 | H157: =VLOOKUP(A157, localcont!$D$10:$L$1764, 9)*F157 -> 0
A158: 741 | B158: 149 | C158: LAWRENCE | D158: 149 | E158: LAWRENCE | F158: 29877916 | G158: =VLOOKUP(A158, localcont!$D$10:$L$1764, 8) -> 194290561.8 | H158: =VLOOKUP(A158, localcont!$D$10:$L$1764, 9)*F158 -> 26784112.68
A159: 746 | B159: 150 | C159: LEE | D159: 150 | E159: LEE | F159: 5808428 | G159: =VLOOKUP(A159, localcont!$D$10:$L$1764, 8) -> 6932523.87 | H159: =VLOOKUP(A159, localcont!$D$10:$L$1764, 9)*F159 -> 5808428
A160: 751 | B160: 151 | C160: LEICESTER | D160: 151 | E160: LEICESTER | F160: 7983477 | G160: =VLOOKUP(A160, localcont!$D$10:$L$1764, 8) -> 16915437.71 | H160: =VLOOKUP(A160, localcont!$D$10:$L$1764, 9)*F160 -> 7983477
A161: 756 | B161: 152 | C161: LENOX | D161: 152 | E161: LENOX | F161: 7857898 | G161: =VLOOKUP(A161, localcont!$D$10:$L$1764, 8) -> 5262338.97 | H161: =VLOOKUP(A161, localcont!$D$10:$L$1764, 9)*F161 -> 7857898
A162: 761 | B162: 153 | C162: LEOMINSTER | D162: 153 | E162: LEOMINSTER | F162: 28690870 | G162: =VLOOKUP(A162, localcont!$D$10:$L$1764, 8) -> 71706672.16 | H162: =VLOOKUP(A162, localcont!$D$10:$L$1764, 9)*F162 -> 28690870
A163: 766 | B163: 154 | C163: LEVERETT | D163: 154 | E163: LEVERETT | F163: 1979251 | G163: =VLOOKUP(A163, localcont!$D$10:$L$1764, 8) -> 1030447.06 | H163: =VLOOKUP(A163, localcont!$D$10:$L$1764, 9)*F163 -> 976669.4862
A164: 771 | B164: 155 | C164: LEXINGTON | D164: 155 | E164: LEXINGTON | F164: 92706139 | G164: =VLOOKUP(A164, localcont!$D$10:$L$1764, 8) -> 75867612.28 | H164: =VLOOKUP(A164, localcont!$D$10:$L$1764, 9)*F164 -> 91583563.07
A165: 776 | B165: 156 | C165: LEYDEN | D165: 156 | E165: LEYDEN | F165: 695822 | G165: =VLOOKUP(A165, localcont!$D$10:$L$1764, 8) -> 0 | H165: =VLOOKUP(A165, localcont!$D$10:$L$1764, 9)*F165 -> 0
A166: 781 | B166: 157 | C166: LINCOLN | D166: 157 | E166: LINCOLN | F166: 20486967 | G166: =VLOOKUP(A166, localcont!$D$10:$L$1764, 8) -> 6163048.075 | H166: =VLOOKUP(A166, localcont!$D$10:$L$1764, 9)*F166 -> 15053783.23
A167: 786 | B167: 158 | C167: LITTLETON | D167: 158 | E167: LITTLETON | F167: 12848952 | G167: =VLOOKUP(A167, localcont!$D$10:$L$1764, 8) -> 15838763.52 | H167: =VLOOKUP(A167, localcont!$D$10:$L$1764, 9)*F167 -> 12415669.77
A168: 791 | B168: 159 | C168: LONGMEADOW | D168: 159 | E168: LONGMEADOW | F168: 22977533 | G168: =VLOOKUP(A168, localcont!$D$10:$L$1764, 8) -> 27803260.72 | H168: =VLOOKUP(A168, localcont!$D$10:$L$1764, 9)*F168 -> 22977533
A169: 796 | B169: 160 | C169: LOWELL | D169: 160 | E169: LOWELL | F169: 58856938 | G169: =VLOOKUP(A169, localcont!$D$10:$L$1764, 8) -> 196654914.2 | H169: =VLOOKUP(A169, localcont!$D$10:$L$1764, 9)*F169 -> 51114785.14
A170: 801 | B170: 161 | C170: LUDLOW | D170: 161 | E170: LUDLOW | F170: 15615431 | G170: =VLOOKUP(A170, localcont!$D$10:$L$1764, 8) -> 27414757.55 | H170: =VLOOKUP(A170, localcont!$D$10:$L$1764, 9)*F170 -> 15615431
A171: 806 | B171: 162 | C171: LUNENBURG | D171: 162 | E171: LUNENBURG | F171: 10331392 | G171: =VLOOKUP(A171, localcont!$D$10:$L$1764, 8) -> 17109019.16 | H171: =VLOOKUP(A171, localcont!$D$10:$L$1764, 9)*F171 -> 9587315.776
A172: 811 | B172: 163 | C172: LYNN | D172: 163 | E172: LYNN | F172: 51008890 | G172: =VLOOKUP(A172, localcont!$D$10:$L$1764, 8) -> 214464891.4 | H172: =VLOOKUP(A172, localcont!$D$10:$L$1764, 9)*F172 -> 51008890
A173: 816 | B173: 164 | C173: LYNNFIELD | D173: 164 | E173: LYNNFIELD | F173: 24643517 | G173: =VLOOKUP(A173, localcont!$D$10:$L$1764, 8) -> 22056386.59 | H173: =VLOOKUP(A173, localcont!$D$10:$L$1764, 9)*F173 -> 24234432.62
A174: 821 | B174: 165 | C174: MALDEN | D174: 165 | E174: MALDEN | F174: 44653270 | G174: =VLOOKUP(A174, localcont!$D$10:$L$1764, 8) -> 89637409.32 | H174: =VLOOKUP(A174, localcont!$D$10:$L$1764, 9)*F174 -> 43385363.87
A175: 826 | B175: 166 | C175: MANCHESTER | D175: 166 | E175: MANCHESTER | F175: 18443122 | G175: =VLOOKUP(A175, localcont!$D$10:$L$1764, 8) -> 0 | H175: =VLOOKUP(A175, localcont!$D$10:$L$1764, 9)*F175 -> 0
A176: 831 | B176: 167 | C176: MANSFIELD | D176: 167 | E176: MANSFIELD | F176: 28435963 | G176: =VLOOKUP(A176, localcont!$D$10:$L$1764, 8) -> 41362272.98 | H176: =VLOOKUP(A176, localcont!$D$10:$L$1764, 9)*F176 -> 27488129.27
A177: 836 | B177: 168 | C177: MARBLEHEAD | D177: 168 | E177: MARBLEHEAD | F177: 45795536 | G177: =VLOOKUP(A177, localcont!$D$10:$L$1764, 8) -> 31364862.14 | H177: =VLOOKUP(A177, localcont!$D$10:$L$1764, 9)*F177 -> 45143167.11
A178: 841 | B178: 169 | C178: MARION | D178: 169 | E178: MARION | F178: 9896844 | G178: =VLOOKUP(A178, localcont!$D$10:$L$1764, 8) -> 4458333.72 | H178: =VLOOKUP(A178, localcont!$D$10:$L$1764, 9)*F178 -> 5374295.633
A179: 846 | B179: 170 | C179: MARLBOROUGH | D179: 170 | E179: MARLBOROUGH | F179: 39158843 | G179: =VLOOKUP(A179, localcont!$D$10:$L$1764, 8) -> 60233827.35 | H179: =VLOOKUP(A179, localcont!$D$10:$L$1764, 9)*F179 -> 34862285.8
A180: 851 | B180: 171 | C180: MARSHFIELD | D180: 171 | E180: MARSHFIELD | F180: 35122817 | G180: =VLOOKUP(A180, localcont!$D$10:$L$1764, 8) -> 41672969.69 | H180: =VLOOKUP(A180, localcont!$D$10:$L$1764, 9)*F180 -> 35122817
A181: 856 | B181: 172 | C181: MASHPEE | D181: 172 | E181: MASHPEE | F181: 25647856 | G181: =VLOOKUP(A181, localcont!$D$10:$L$1764, 8) -> 17363149.67 | H181: =VLOOKUP(A181, localcont!$D$10:$L$1764, 9)*F181 -> 24394104.18
A182: 861 | B182: 173 | C182: MATTAPOISETT | D182: 173 | E182: MATTAPOISETT | F182: 11222676 | G182: =VLOOKUP(A182, localcont!$D$10:$L$1764, 8) -> 4334872.89 | H182: =VLOOKUP(A182, localcont!$D$10:$L$1764, 9)*F182 -> 5408737.834
A183: 866 | B183: 174 | C183: MAYNARD | D183: 174 | E183: MAYNARD | F183: 10473434 | G183: =VLOOKUP(A183, localcont!$D$10:$L$1764, 8) -> 15120772.3 | H183: =VLOOKUP(A183, localcont!$D$10:$L$1764, 9)*F183 -> 9722704.447
A184: 871 | B184: 175 | C184: MEDFIELD | D184: 175 | E184: MEDFIELD | F184: 26230327 | G184: =VLOOKUP(A184, localcont!$D$10:$L$1764, 8) -> 24745029.45 | H184: =VLOOKUP(A184, localcont!$D$10:$L$1764, 9)*F184 -> 25947248.03
A185: 876 | B185: 176 | C185: MEDFORD | D185: 176 | E185: MEDFORD | F185: 62309439 | G185: =VLOOKUP(A185, localcont!$D$10:$L$1764, 8) -> 55101162.01 | H185: =VLOOKUP(A185, localcont!$D$10:$L$1764, 9)*F185 -> 62309439
A186: 881 | B186: 177 | C186: MEDWAY | D186: 177 | E186: MEDWAY | F186: 16152664 | G186: =VLOOKUP(A186, localcont!$D$10:$L$1764, 8) -> 22198165.84 | H186: =VLOOKUP(A186, localcont!$D$10:$L$1764, 9)*F186 -> 15349061.83
A187: 886 | B187: 178 | C187: MELROSE | D187: 178 | E187: MELROSE | F187: 35349301 | G187: =VLOOKUP(A187, localcont!$D$10:$L$1764, 8) -> 39497622.39 | H187: =VLOOKUP(A187, localcont!$D$10:$L$1764, 9)*F187 -> 34704820.13
A188: 891 | B188: 179 | C188: MENDON | D188: 179 | E188: MENDON | F188: 8102604 | G188: =VLOOKUP(A188, localcont!$D$10:$L$1764, 8) -> 125728.7191 | H188: =VLOOKUP(A188, localcont!$D$10:$L$1764, 9)*F188 -> 94266.39932
A189: 896 | B189: 180 | C189: MERRIMAC | D189: 180 | E189: MERRIMAC | F189: 5986940 | G189: =VLOOKUP(A189, localcont!$D$10:$L$1764, 8) -> 96687.57 | H189: =VLOOKUP(A189, localcont!$D$10:$L$1764, 9)*F189 -> 61415.59475
A190: 901 | B190: 181 | C190: METHUEN | D190: 181 | E190: METHUEN | F190: 39312342 | G190: =VLOOKUP(A190, localcont!$D$10:$L$1764, 8) -> 81067304.79 | H190: =VLOOKUP(A190, localcont!$D$10:$L$1764, 9)*F190 -> 36869204.61
A191: 906 | B191: 182 | C191: MIDDLEBOROUGH | D191: 182 | E191: MIDDLEBOROUGH | F191: 18401201 | G191: =VLOOKUP(A191, localcont!$D$10:$L$1764, 8) -> 31801065.5 | H191: =VLOOKUP(A191, localcont!$D$10:$L$1764, 9)*F191 -> 15989348.17
A192: 911 | B192: 183 | C192: MIDDLEFIELD | D192: 183 | E192: MIDDLEFIELD | F192: 384824 | G192: =VLOOKUP(A192, localcont!$D$10:$L$1764, 8) -> 55250.04 | H192: =VLOOKUP(A192, localcont!$D$10:$L$1764, 9)*F192 -> 45388.52277
A193: 916 | B193: 184 | C193: MIDDLETON | D193: 184 | E193: MIDDLETON | F193: 13705306 | G193: =VLOOKUP(A193, localcont!$D$10:$L$1764, 8) -> 6269538.236 | H193: =VLOOKUP(A193, localcont!$D$10:$L$1764, 9)*F193 -> 6246150.078
A194: 921 | B194: 185 | C194: MILFORD | D194: 185 | E194: MILFORD | F194: 25023857 | G194: =VLOOKUP(A194, localcont!$D$10:$L$1764, 8) -> 48535273.71 | H194: =VLOOKUP(A194, localcont!$D$10:$L$1764, 9)*F194 -> 23789861.51
A195: 926 | B195: 186 | C195: MILLBURY | D195: 186 | E195: MILLBURY | F195: 11676355 | G195: =VLOOKUP(A195, localcont!$D$10:$L$1764, 8) -> 18304219.43 | H195: =VLOOKUP(A195, localcont!$D$10:$L$1764, 9)*F195 -> 11039041.39
A196: 931 | B196: 187 | C196: MILLIS | D196: 187 | E196: MILLIS | F196: 8987972 | G196: =VLOOKUP(A196, localcont!$D$10:$L$1764, 8) -> 11900970.4 | H196: =VLOOKUP(A196, localcont!$D$10:$L$1764, 9)*F196 -> 8372133.167
A197: 936 | B197: 188 | C197: MILLVILLE | D197: 188 | E197: MILLVILLE | F197: 2417883 | G197: =VLOOKUP(A197, localcont!$D$10:$L$1764, 8) -> 124312.59 | H197: =VLOOKUP(A197, localcont!$D$10:$L$1764, 9)*F197 -> 53010.50981
A198: 941 | B198: 189 | C198: MILTON | D198: 189 | E198: MILTON | F198: 45437129 | G198: =VLOOKUP(A198, localcont!$D$10:$L$1764, 8) -> 41749102.24 | H198: =VLOOKUP(A198, localcont!$D$10:$L$1764, 9)*F198 -> 44426249.63
A199: 946 | B199: 190 | C199: MONROE | D199: 190 | E199: MONROE | F199: 108499 | G199: =VLOOKUP(A199, localcont!$D$10:$L$1764, 8) -> 52740.58 | H199: =VLOOKUP(A199, localcont!$D$10:$L$1764, 9)*F199 -> 55438.55483
A200: 951 | B200: 191 | C200: MONSON | D200: 191 | E200: MONSON | F200: 6327022 | G200: =VLOOKUP(A200, localcont!$D$10:$L$1764, 8) -> 9729249.18 | H200: =VLOOKUP(A200, localcont!$D$10:$L$1764, 9)*F200 -> 5506430.764
A201: 956 | B201: 192 | C201: MONTAGUE | D201: 192 | E201: MONTAGUE | F201: 5682742 | G201: =VLOOKUP(A201, localcont!$D$10:$L$1764, 8) -> 0 | H201: =VLOOKUP(A201, localcont!$D$10:$L$1764, 9)*F201 -> 0
A202: 961 | B202: 193 | C202: MONTEREY | D202: 193 | E202: MONTEREY | F202: =VLOOKUP(D202, town351, 7) -> 2237075 | G202: =VLOOKUP(A202, localcont!$D$10:$L$1764, 8) -> 0 | H202: =VLOOKUP(A202, localcont!$D$10:$L$1764, 9)*F202 -> 0
A203: 966 | B203: 194 | C203: MONTGOMERY | D203: 194 | E203: MONTGOMERY | F203: 800300 | G203: =VLOOKUP(A203, localcont!$D$10:$L$1764, 8) -> 82875.06 | H203: =VLOOKUP(A203, localcont!$D$10:$L$1764, 9)*F203 -> 81490.90738
A204: 971 | B204: 195 | C204: MOUNT WASHINGTON | D204: 195 | E204: MOUNT WASHINGTON | F204: 373948 | G204: =VLOOKUP(A204, localcont!$D$10:$L$1764, 8) -> 25626.37 | H204: =VLOOKUP(A204, localcont!$D$10:$L$1764, 9)*F204 -> 373948
... 617 more rows

Sheet Comparison to FY18
B1: Return to Index | Q1: More about the data
A2: Massachusetts Department of Elementary and Secondary Education
A3: =CYr&" Chapter 70 Comparison to "&PYr -> FY19 Chapter 70 Comparison to FY18
D7: =PYr -> FY18 | E7: =CYr -> FY19 | G7: =PYr -> FY18 | H7: =CYr -> FY19 | J7: =PYr -> FY18 | K7: =CYr -> FY19 | M7: =PYr -> FY18 | N7: =CYr -> FY19
B8: Operating | D8: Foundation | E8: Foundation | G8: Foundation | H8: Foundation | J8: Minimum | K8: Minimum | M8: Chapter 70 | N8: Chapter 70
A9: LEA | B9: District name | C9: Non-Op | D9: Enrollment | E9: Enrollment | F9: change | G9: Budget | H9: Budget | I9: chg pp | J9: Contribution | K9: Contribution | L9: chg pp | M9: aid | N9: aid | O9: change | P9: chg pp | Q9: pct chg
A10: 1 | B10: Abington | C10: 1 | D10: =VLOOKUP(A10,aidcalc,17) -> 1930 | E10: =VLOOKUP(A10,aidcalc,18) -> 2002 | F10: =E10-D10 -> 72 | G10: =VLOOKUP(A10,aidcalc,4) -> 19699144.43 | H10: =VLOOKUP(A10,aidcalc,6) -> 21210731.95 | I10: =(H10-G10)/$E10 -> 755.0387197 | J10: =SUMIF(dist1755,A10,pynetmin) -> 12922903 | K10: =VLOOKUP(A10,aidcalc,7) -> 13603424 | L10: =(K10-J10)/$E10 -> 339.9205794 | M10: =VLOOKUP(A10,disthist,46) -> 7637749 | N10: =VLOOKUP(A10,aidcalc,36) -> 7677789 | O10: =N10-M10 -> 40040 | P10: =(N10-M10)/$E10 -> 20 | Q10: =ROUND(IF(G10>0,(N10-M10)*100/M10,100),2) -> 0.52 | R10: =F10/D10 -> 0.03730569948
A11: 3 | B11: Acushnet | C11: 1 | D11: =VLOOKUP(A11,aidcalc,17) -> 1210 | E11: =VLOOKUP(A11,aidcalc,18) -> 1214 | F11: =E11-D11 -> 4 | G11: =VLOOKUP(A11,aidcalc,4) -> 11736546.35 | H11: =VLOOKUP(A11,aidcalc,6) -> 12201816.85 | I11: =(H11-G11)/$E11 -> 383.254122 | J11: =SUMIF(dist1755,A11,pynetmin) -> 6867294 | K11: =VLOOKUP(A11,aidcalc,7) -> 7073504 | L11: =(K11-J11)/$E11 -> 169.8599671 | M11: 6286522 | N11: 6310802 | O11: =N11-M11 -> 24280 | P11: =(N11-M11)/$E11 -> 20 | Q11: =ROUND(IF(G11>0,(N11-M11)*100/M11,100),2) -> 0.39 | R11: =F11/D11 -> 0.003305785124
A12: 5 | B12: Agawam | C12: 1 | D12: 3831 | E12: 3765 | F12: -66 | G12: 40549530.34 | H12: 41091729.2 | I12: 144.0103223 | J12: 22135293 | K12: 22358035 | L12: 59.16122178 | M12: 19253911.81 | N12: 19329211.81 | O12: 75300 | P12: 20 | Q12: 0.39 | R12: -0.01722787784
A13: 7 | B13: Amesbury | C13: 1 | D13: 2217 | E13: 2191 | F13: -26 | G13: 22137199.05 | H13: 22649795.19 | I13: 233.9553353 | J13: 14640237 | K13: 15041590 | L13: 183.182565 | M13: 9061587 | N13: 9105407 | O13: 43820 | P13: 20 | Q13: 0.48 | R13: -0.01172755977
A14: 8 | B14: Amherst | C14: 1 | D14: 1136 | E14: 1094 | F14: -42 | G14: 11871248.34 | H14: 11780035.8 | I14: -83.3752693 | J14: 8817279 | K14: 8871384 | L14: 49.45612431 | M14: 6055023 | N14: 6076903 | O14: 21880 | P14: 20 | Q14: 0.36 | R14: -0.03697183099
A15: 9 | B15: Andover | C15: 1 | D15: 5911 | E15: 5800 | F15: -111 | G15: 59213763.71 | H15: 60272067.79 | I15: 182.4662223 | J15: 49146929 | K15: 49959399 | L15: 140.0810345 | M15: 10066835 | N15: 10312669 | O15: 245834 | P15: 42.38517241 | Q15: 2.44 | R15: -0.01877854847
A16: 10 | B16: Arlington | C16: 1 | D16: 5607 | E16: 5785 | F16: 178 | G16: 54501493.56 | H16: 57771939.9 | I16: 565.3321248 | J16: 43805119 | K16: 46237254 | L16: 420.4209162 | M16: 11180879 | N16: 11534686 | O16: 353807 | P16: 61.1593777 | Q16: 3.16 | R16: 0.03174603175
A17: 14 | B17: Ashland | C17: 1 | D17: 2547 | E17: 2577 | F17: 30 | G17: 24948345.56 | H17: 26202162.06 | I17: 486.5411328 | J17: 19465664 | K17: 20109586 | L17: 249.8727202 | M17: 6012213 | N17: 6092576 | O17: 80363 | P17: 31.1847109 | Q17: 1.34 | R17: 0.01177856302
A18: 16 | B18: Attleboro | C18: 1 | D18: 6251 | E18: 6284 | F18: 33 | G18: 69495854.73 | H18: 72430197.34 | I18: 466.9545839 | J18: 33973326 | K18: 34948759 | L18: 155.2248568 | M18: 35846981 | N18: 37481438 | O18: 1634457 | P18: 260.0981859 | Q18: 4.56 | R18: 0.005279155335
A19: 17 | B19: Auburn | C19: 1 | D19: 2431 | E19: 2486 | F19: 55 | G19: 24064548.39 | H19: 25472685.17 | I19: 566.4267002 | J19: 13986014 | K19: 14512608 | L19: 211.8238134 | M19: 10078534 | N19: 10960077 | O19: 881543 | P19: 354.6029767 | Q19: 8.75 | R19: 0.02262443439
A20: 18 | B20: Avon | C20: 1 | D20: 538 | E20: 561 | F20: 23 | G20: 5634205.663 | H20: 6167207.96 | I20: 950.0932203 | J20: 4254900 | K20: 4362327 | L20: 191.4919786 | M20: 1430611 | N20: 1804881 | O20: 374270 | P20: =(N20-M20)/$E20 -> 667.1479501 | Q20: 26.16 | R20: 0.04275092937
A21: 20 | B21: Barnstable | C21: 1 | D21: 5475 | E21: 5449 | F21: -26 | G21: 58000134.65 | H21: 59769566.03 | I21: 324.7258904 | J21: 48045485 | K21: 49457580 | L21: 259.14755 | M21: 10011348 | N21: 10311986 | O21: 300638 | P21: 55.17305928 | Q21: 3 | R21: -0.004748858447
A22: 23 | B22: Bedford | C22: 1 | D22: 2647 | E22: 2660 | F22: 13 | G22: 26915524.99 | H22: 27789125.48 | I22: 328.421235 | J22: 22291183 | K22: 23019572 | L22: 273.8304511 | M22: 4624342 | N22: 4769553 | O22: 145211 | P22: 54.5906015 | Q22: 3.14 | R22: 0.004911220249
A23: 24 | B23: Belchertown | C23: 1 | D23: 2374 | E23: 2316 | F23: -58 | G23: 23338797.01 | H23: 23526829.37 | I23: 81.18841251 | J23: 11231898 | K23: 11483301 | L23: 108.5505181 | M23: 13744526 | N23: 13790846 | O23: 46320 | P23: 20 | Q23: 0.34 | R23: -0.02443133951
A24: 25 | B24: Bellingham | C24: 1 | D24: 2332 | E24: 2328 | F24: -4 | G24: 22943454.17 | H24: 23721894.4 | I24: 334.3815405 | J24: 15348243 | K24: 15709803 | L24: 155.3092784 | M24: 8503945 | N24: 8550505 | O24: 46560 | P24: 20 | Q24: 0.55 | R24: -0.001715265866
A25: 26 | B25: Belmont | C25: 1 | D25: 4355 | E25: 4485 | F25: 130 | G25: 42643514.6 | H25: 45276968.61 | I25: 587.1692331 | J25: 34843282 | K25: 36385744 | L25: 343.9157191 | M25: 7800233 | N25: 8891225 | O25: 1090992 | P25: 243.2535117 | Q25: 13.99 | R25: 0.02985074627
A26: 27 | B26: Berkley | C26: 1 | D26: 784 | E26: 769 | F26: -15 | G26: 7359719.096 | H26: 7473874.18 | I26: 148.4461429 | J26: 3696563 | K26: 3819740 | L26: 160.1781534 | M26: 3957968 | N26: 3973348 | O26: 15380 | P26: 20 | Q26: 0.39 | R26: -0.01913265306
A27: 28 | B27: Berlin | C27: 1 | D27: 160 | E27: 159 | F27: -1 | G27: 1603891.135 | H27: 1633905.736 | I27: 188.7710715 | J27: 1339179 | K27: 1354535 | L27: 96.57861635 | M27: 454305 | N27: 457485 | O27: 3180 | P27: 20 | Q27: 0.7 | R27: -0.00625
A28: 30 | B28: Beverly | C28: 1 | D28: 4444 | E28: 4384 | F28: -60 | G28: 45588032.86 | H28: 46149415.87 | I28: 128.0526942 | J28: 37741029 | K28: 38245221 | L28: 115.0072993 | M28: 7884162 | N28: 7971842 | O28: 87680 | P28: 20 | Q28: 1.11 | R28: -0.01350135014
A29: 31 | B29: Billerica | C29: 1 | D29: 5034 | E29: 4908 | F29: -126 | G29: 49374269.01 | H29: 49779831.2 | I29: 82.6328818 | J29: 35556235 | K29: 36759415 | L29: 245.1466993 | M29: 19055514.05 | N29: 19153674.05 | O29: 98160 | P29: 20 | Q29: 0.52 | R29: -0.02502979738
A30: 35 | B30: Boston | C30: 1 | D30: 64602 | E30: 64462 | F30: -140 | G30: 829896970.5 | H30: 851831126.4 | I30: 340.2648981 | J30: 686260642 | K30: 705669388 | L30: 301.088176 | M30: 218066495 | N30: 219355735 | O30: 1289240 | P30: 20 | Q30: 0.59 | R30: -0.002167115569
A31: 36 | B31: Bourne | C31: 1 | D31: 1981 | E31: 1989 | F31: 8 | G31: 20067959.03 | H31: 20892765.63 | I31: 414.6840599 | J31: 16608266 | K31: 17301689 | L31: 348.6289593 | M31: 5094043 | N31: 5133823 | O31: 39780 | P31: 20 | Q31: 0.78 | R31: 0.004038364462
A32: 38 | B32: Boxford | C32: 1 | D32: 739 | E32: 704 | F32: -35 | G32: 6728318.945 | H32: 6636568.764 | I32: -130.3269613 | J32: 5579890 | K32: 5510007 | L32: -99.265625 | M32: 1705633 | N32: 1719713 | O32: 14080 | P32: 20 | Q32: 0.83 | R32: -0.04736129905
A33: 39 | B33: Boylston | C33: 1 | D33: 275 | E33: 284 | F33: 9 | G33: 2629403.776 | H33: 2831930.57 | I33: 713.1225146 | J33: 2172204 | K33: 2249422 | L33: 271.8943662 | M33: 473687.8802 | N33: 582509 | O33: 108821.1198 | P33: 383.1729571 | Q33: 22.97 | R33: 0.03272727273
A34: 40 | B34: Braintree | C34: 1 | D34: 5667 | E34: 5680 | F34: 13 | G34: 58118969.9 | H34: 60064709.85 | I34: 342.5598509 | J34: 40917885 | K34: 42463529 | L34: 272.1204225 | M34: 17201085 | N34: 17601181 | O34: 400096 | P34: 70.43943662 | Q34: 2.33 | R34: 0.002293982707
A35: 41 | B35: Brewster | C35: 1 | D35: 490 | E35: 472 | F35: -18 | G35: 4863009.865 | H35: 4788303.2 | I35: -158.2768329 | J35: 4034625 | K35: 3976343 | L35: -123.4788136 | M35: 983449 | N35: 992889 | O35: 9440 | P35: 20 | Q35: 0.96 | R35: -0.03673469388
A36: 43 | B36: Brimfield | C36: 1 | D36: 268 | E36: 263 | F36: -5 | G36: 2534076.571 | H36: 2574180.8 | I36: 152.4875643 | J36: 1459687 | K36: 1531246 | L36: 272.0874525 | M36: 1231392 | N36: 1236652 | O36: 5260 | P36: 20 | Q36: 0.43 | R36: -0.01865671642
A37: 44 | B37: Brockton | C37: 1 | D37: 17888 | E37: 17802 | F37: -86 | G37: 210658023.2 | H37: 216450172.1 | I37: 325.3650669 | J37: 42271112 | K37: 43599345 | L37: 74.61144815 | M37: 171549638 | N37: 172850827 | O37: 1301189 | P37: 73.092293 | Q37: 0.76 | R37: -0.004807692308
A38: 45 | B38: Brookfield | C38: 1 | D38: 234 | E38: 244 | F38: 10 | G38: 2393041.947 | H38: 2521316.45 | I38: 525.7151747 | J38: 1030082 | K38: 1095856 | L38: 269.5655738 | M38: 1426350 | N38: 1431230 | O38: 4880 | P38: 20 | Q38: 0.34 | R38: 0.04273504274
A39: 46 | B39: Brookline | C39: 1 | D39: 7541 | E39: 7662 | F39: 121 | G39: 75819883.37 | H39: 79123194.13 | I39: 431.1290462 | J39: 62590117 | K39: 64824584 | L39: 291.6297311 | M39: 13229766 | N39: 14298610 | O39: 1068844 | P39: 139.4993474 | Q39: 8.08 | R39: 0.01604561729
A40: 48 | B40: Burlington | C40: 1 | D40: 3495 | E40: 3514 | F40: 19 | G40: 35700016.02 | H40: 37295872.45 | I40: 454.1424104 | J40: 29571420 | K40: 30847151 | L40: 363.0424018 | M40: 6128596 | N40: 6448721 | O40: 320125 | P40: 91.09988617 | Q40: 5.22 | R40: 0.005436337625
A41: 49 | B41: Cambridge | C41: 1 | D41: 7159 | E41: 7315 | F41: 156 | G41: 84055799.77 | H41: 87801935.87 | I41: 512.1170326 | J41: 69688258 | K41: 72688127 | L41: 410.0982912 | M41: 14367542 | N41: 15113809 | O41: 746267 | P41: 102.0187286 | Q41: 5.19 | R41: 0.0217907529
A42: 50 | B42: Canton | C42: 1 | D42: 3340 | E42: 3318 | F42: -22 | G42: 33816147.85 | H42: 34756319.33 | I42: 283.3548743 | J42: 27788653 | K42: 28741408 | L42: 287.1473779 | M42: 6027495 | N42: 6093855 | O42: 66360 | P42: 20 | Q42: 1.1 | R42: -0.006586826347
A43: 51 | B43: Carlisle | C43: 1 | D43: 563 | E43: 577 | F43: 14 | G43: 5148187.653 | H43: 5476099.617 | I43: 568.304964 | J43: 4284734 | K43: 4537271 | L43: 437.6724437 | M43: 931172.0969 | N43: 942712.0969 | O43: 11540 | P43: 20 | Q43: 1.24 | R43: 0.02486678508
A44: 52 | B44: Carver | C44: 1 | D44: 1651 | E44: 1599 | F44: -52 | G44: 16782096.61 | H44: 16888007.49 | I44: 66.2357013 | J44: 8454008 | K44: 8644059 | L44: 118.8561601 | M44: 9913049 | N44: 9945029 | O44: 31980 | P44: 20 | Q44: 0.32 | R44: -0.03149606299
A45: 56 | B45: Chelmsford | C45: 1 | D45: 4932 | E45: 5091 | F45: 159 | G45: 47405594.17 | H45: 50627915.1 | I45: 632.9445949 | J45: 37968938 | K45: 40215743 | L45: 441.3288156 | M45: 10894328 | N45: 10996148 | O45: 101820 | P45: 20 | Q45: 0.93 | R45: 0.03223844282
A46: 57 | B46: Chelsea | C46: 1 | D46: 7143 | E46: 7211 | F46: 68 | G46: 87574481.05 | H46: 93471175.07 | I46: 817.7359605 | J46: 16070465 | K46: 17300828 | L46: 170.6230759 | M46: 71895368 | N46: 76170347 | O46: 4274979 | P46: 592.8413535 | Q46: 5.95 | R46: 0.009519809604
A47: 61 | B47: Chicopee | C47: 1 | D47: 7758 | E47: 7636 | F47: -122 | G47: 91782958.02 | H47: 92889949.43 | I47: 144.9700639 | J47: 29420367 | K47: 29889281 | L47: 61.40832897 | M47: 62362591 | N47: 63000668 | O47: 638077 | P47: 83.56168151 | Q47: 1.02 | R47: -0.0157257025
A48: 63 | B48: Clarksburg | C48: 1 | D48: 180 | E48: 160 | F48: -20 | G48: 1862062.324 | H48: 1734766.7 | I48: -795.5976473 | J48: 641854 | K48: 674156 | L48: 201.8875 | M48: 1788625 | N48: 1791825 | O48: 3200 | P48: 20 | Q48: 0.18 | R48: -0.1111111111
A49: 64 | B49: Clinton | C49: 1 | D49: 2026 | E49: 2014 | F49: -12 | G49: 21918110.25 | H49: 22549396.35 | I49: 313.4489092 | J49: 9770470 | K49: 10199353 | L49: 212.9508441 | M49: 12147640 | N49: 12350043 | O49: 202403 | P49: 100.4980139 | Q49: 1.67 | R49: -0.005923000987
A50: 65 | B50: Cohasset | C50: 1 | D50: 1525 | E50: 1542 | F50: 17 | G50: 14375663.8 | H50: 15090374.64 | I50: 463.496007 | J50: 11992671 | K50: 12465327 | L50: 306.5214008 | M50: 2545614 | N50: 2625048 | O50: 79434 | P50: 51.51361868 | Q50: 3.12 | R50: 0.01114754098
A51: 67 | B51: Concord | C51: 1 | D51: 2029 | E51: 2031 | F51: 2 | G51: 18805576.71 | H51: 19519914.53 | I51: 351.7172909 | J51: 15575689 | K51: 16124007 | L51: 269.9743968 | M51: 3229888 | N51: 3395908 | O51: 166020 | P51: 81.74298375 | Q51: 5.14 | R51: 0.0009857072449
A52: 68 | B52: Conway | C52: 1 | D52: 117 | E52: 97 | F52: -20 | G52: 1137791.556 | H52: 993670.92 | I52: -1485.779752 | J52: 909237 | K52: 824008 | L52: -878.6494845 | M52: 620884 | N52: 622824 | O52: 1940 | P52: 20 | Q52: 0.31 | R52: -0.1709401709
A53: 71 | B53: Danvers | C53: 1 | D53: 3460 | E53: 3508 | F53: 48 | G53: 33833411.73 | H53: 35167941.89 | I53: 380.4247889 | J53: 28261906 | K53: 29014953 | L53: 214.6656214 | M53: 6732852.445 | N53: 6803012.445 | O53: 70160 | P53: 20 | Q53: 1.04 | R53: 0.01387283237
A54: 72 | B54: Dartmouth | C54: 1 | D54: 3646 | E54: 3637 | F54: -9 | G54: 36194408.01 | H54: 37419916.72 | I54: 336.9559281 | J54: 30013628 | K54: 30907407 | L54: 245.7462194 | M54: 9732331 | N54: 9805071 | O54: 72740 | P54: 20 | Q54: 0.75 | R54: -0.002468458585
A55: 73 | B55: Dedham | C55: 1 | D55: 2612 | E55: 2645 | F55: 33 | G55: 27026023.75 | H55: 28281722.45 | I55: 474.7443102 | J55: 22421830 | K55: 23231951 | L55: 306.2839319 | M55: 4604194 | N55: 5049771 | O55: 445577 | P55: 168.4601134 | Q55: 9.68 | R55: 0.01263399694
A56: 74 | B56: Deerfield | C56: 1 | D56: 329 | E56: 306 | F56: -23 | G56: 3148595.095 | H56: 3051328.99 | I56: -317.8630895 | J56: 2614687 | K56: 2528891 | L56: -280.379085 | M56: 1095493 | N56: 1101613 | O56: 6120 | P56: 20 | Q56: 0.56 | R56: -0.06990881459
A57: 77 | B57: Douglas | C57: 1 | D57: 1328 | E57: 1260 | F57: -68 | G57: 12935870.45 | H57: 12666958.57 | I57: -213.4221269 | J57: 6783425 | K57: 6827254 | L57: 34.78492063 | M57: 8684255 | N57: 8709455 | O57: 25200 | P57: 20 | Q57: 0.29 | R57: -0.05120481928
A58: 78 | B58: Dover | C58: 1 | D58: 485 | E58: 487 | F58: 2 | G58: 4468986.363 | H58: 4616750.636 | I58: 303.4173967 | J58: 3701130 | K58: 3814346 | L58: 232.476386 | M58: 767856 | N58: 802405 | O58: 34549 | P58: 70.94250513 | Q58: 4.5 | R58: 0.00412371134
A59: 79 | B59: Dracut | C59: 1 | D59: 3769 | E59: 3838 | F59: 69 | G59: 37300000.77 | H59: 39369104.24 | I59: 539.1098146 | J59: 20889283 | K59: 21858491 | L59: 252.5294424 | M59: 19182047 | N59: 19258807 | O59: 76760 | P59: 20 | Q59: 0.4 | R59: 0.0183072433
A60: 82 | B60: Duxbury | C60: 1 | D60: 3028 | E60: 3002 | F60: -26 | G60: 29298212.85 | H60: 29922126.97 | I60: 207.8328171 | J60: 24357911 | K60: 24797341 | L60: 146.3790806 | M60: 5122424.238 | N60: 5182464.238 | O60: 60040 | P60: 20 | Q60: 1.17 | R60: -0.00858652576
A61: 83 | B61: East Bridgewater | C61: 1 | D61: 2153 | E61: 2186 | F61: 33 | G61: 21105299.53 | H61: 22054896.81 | I61: 434.3994885 | J61: 11373002 | K61: 11593371 | L61: 100.8092406 | M61: 10543697 | N61: 10587417 | O61: 43720 | P61: 20 | Q61: 0.41 | R61: 0.01532745007
A62: 85 | B62: Eastham | C62: 1 | D62: 183 | E62: 166 | F62: -17 | G62: 1861930.382 | H62: 1725649.16 | I62: -820.9712147 | J62: 1558793 | K62: 1438425 | L62: -725.1084337 | M62: 354681 | N62: 358001 | O62: 3320 | P62: 20 | Q62: 0.94 | R62: -0.09289617486
A63: 86 | B63: Easthampton | C63: 1 | D63: 1771 | E63: 1636 | F63: -135 | G63: 18534768.1 | H63: 17867693.98 | I63: -407.7470169 | J63: 11761853 | K63: 12059164 | L63: 181.7304401 | M63: 7926222 | N63: 7958942 | O63: 32720 | P63: 20 | Q63: 0.41 | R63: -0.07622811971
A64: 87 | B64: East Longmeadow | C64: 1 | D64: 2678 | E64: 2707 | F64: 29 | G64: 26517601.93 | H64: 27670599.84 | I64: 425.9319957 | J64: 15918988 | K64: 16509582 | L64: 218.1728851 | M64: 10598614 | N64: 11161018 | O64: 562404 | P64: 207.759143 | Q64: 5.31 | R64: 0.01082897685
A65: 88 | B65: Easton | C65: 1 | D65: 3648 | E65: 3618 | F65: -30 | G65: 34946347.83 | H65: 35950261.55 | I65: 277.4775353 | J65: 26650276 | K65: 27408467 | L65: 209.5608071 | M65: 9933051 | N65: 10005411 | O65: 72360 | P65: 20 | Q65: 0.73 | R65: -0.008223684211
A66: 89 | B66: Edgartown | C66: 1 | D66: 410 | E66: 396 | F66: -14 | G66: 4120509.473 | H66: 4208766.51 | I66: 222.8713054 | J66: 3417460 | K66: 3480506 | L66: 159.2070707 | M66: 703049 | N66: 728261 | O66: 25212 | P66: 63.66666667 | Q66: 3.59 | R66: -0.03414634146
A67: 91 | B67: Erving | C67: 1 | D67: 226 | E67: 233 | F67: 7 | G67: 2174084.473 | H67: 2302912.77 | I67: 552.9111467 | J67: 1812979 | K67: 1907118 | L67: 404.0300429 | M67: 457975 | N67: 462635 | O67: 4660 | P67: 20 | Q67: 1.02 | R67: 0.03097345133
A68: 93 | B68: Everett | C68: 1 | D68: 7635 | E68: 7727 | F68: 92 | G68: 90558887.12 | H68: 95255826.12 | I68: 607.8606185 | J68: 27455803 | K68: 28814865 | L68: 175.8848195 | M68: 64721582 | N68: 66440961 | O68: 1719379 | P68: 222.5157241 | Q68: 2.66 | R68: 0.01204977079
A69: 94 | B69: Fairhaven | C69: 1 | D69: 1801 | E69: 1809 | F69: 8 | G69: 18758475.28 | H69: 19395593.06 | I69: 352.1933553 | J69: 11557489 | K69: 11675866 | L69: 65.43781095 | M69: 7580960 | N69: 7719727 | O69: 138767 | P69: 76.70923162 | Q69: 1.83 | R69: 0.00444197668
A70: 95 | B70: Fall River | C70: 1 | D70: 11662 | E70: 11796 | F70: 134 | G70: 140367627.1 | H70: 148117900.7 | I70: 657.0255724 | J70: 27932437 | K70: 29653676 | L70: 145.9171753 | M70: 112435190 | N70: 118464225 | O70: 6029035 | P70: 511.1084266 | Q70: 5.36 | R70: 0.01149031041
A71: 96 | B71: Falmouth | C71: 1 | D71: =VLOOKUP(A71,aidcalc,17) -> 3442 | E71: =VLOOKUP(A71,aidcalc,18) -> 3392 | F71: =E71-D71 -> -50 | G71: =VLOOKUP(A71,aidcalc,4) -> 35776347.34 | H71: =VLOOKUP(A71,aidcalc,6) -> 37009427.57 | I71: =(H71-G71)/$E71 -> 363.5260109 | J71: =SUMIF(dist1755,A71,pynetmin) -> 29665659 | K71: =VLOOKUP(A71,aidcalc,7) -> 30538632 | L71: =(K71-J71)/$E71 -> 257.3623231 | M71: 6110688 | N71: 6470796 | O71: =N71-M71 -> 360108 | P71: =(N71-M71)/$E71 -> 106.1639151 | Q71: 5.89 | R71: -0.01452643812
A72: 97 | B72: Fitchburg | C72: 1 | D72: 5757 | E72: 5794 | F72: 37 | G72: 66887262.05 | H72: 69660388.06 | I72: 478.6202982 | J72: 17058113 | K72: 17709864 | L72: 112.4872282 | M72: 49829149 | N72: 51950524 | O72: 2121375 | P72: 366.1330687 | Q72: 4.26 | R72: 0.006426958485
A73: 98 | B73: Florida | C73: 1 | D73: 85 | E73: 58 | F73: -27 | G73: 837564.7254 | H73: 616514.06 | I73: -3811.21837 | J73: 470893 | K73: 427125 | L73: -754.6206897 | M73: 546637 | N73: 547797 | O73: 1160 | P73: 20 | Q73: 0.21 | R73: -0.3176470588
A74: 99 | B74: Foxborough | C74: 1 | D74: 2597 | E74: 2654 | F74: 57 | G74: 26331117.52 | H74: 27752918.94 | I74: 535.7202031 | J74: 21807366 | K74: 22525271 | L74: 270.4992464 | M74: =VLOOKUP(A74,disthist,46) -> 8888190 | N74: =VLOOKUP(A74,aidcalc,36) -> 8941270 | O74: 53080 | P74: 20 | Q74: =ROUND(IF(G74>0,(N74-M74)*100/M74,100),2) -> 0.6 | R74: 0.021948402
A75: 100 | B75: Framingham | C75: 1 | D75: 9061 | E75: 9242 | F75: 181 | G75: 100719920.9 | H75: 107224944.9 | I75: 703.854568 | J75: 59331897 | K75: 60557361 | L75: 132.5972733 | M75: 42363221 | N75: 46667584 | O75: 4304363 | P75: 465.7393421 | Q75: 10.16 | R75: =F75/D75 -> 0.01997572012
A76: 101 | B76: Franklin | C76: 1 | D76: 5818 | E76: 5674 | F76: -144 | G76: 57148940.33 | H76: 57665492.76 | I76: 91.03849665 | J76: 36769474 | K76: 38376942 | L76: 283.3041946 | M76: 28078451 | N76: 28191931 | O76: 113480 | P76: 20 | Q76: 0.4 | R76: -0.02475077346
A77: 103 | B77: Gardner | C77: 1 | D77: 2531 | E77: 2503 | F77: -28 | G77: 28300931.48 | H77: 28644226.19 | I77: 137.1532989 | J77: 8779067 | K77: 9085400 | L77: 122.3863364 | M77: 19521864 | N77: 19571924 | O77: 50060 | P77: 20 | Q77: 0.26 | R77: -0.01106282102
A78: 105 | B78: Georgetown | C78: 1 | D78: 1347 | E78: 1331 | F78: -16 | G78: 12771696.51 | H78: 12961153.99 | I78: 142.3422053 | J78: 9356963 | K78: 9605551 | L78: 186.7678437 | M78: 5448358 | N78: 5474978 | O78: 26620 | P78: 20 | Q78: 0.49 | R78: -0.01187824796
A79: 107 | B79: Gloucester | C79: 1 | D79: 3189 | E79: 2939 | F79: -250 | G79: 35423863.38 | H79: 33692191.69 | I79: -589.2043861 | J79: 29347381 | K79: 28128591 | L79: -414.6954747 | M79: 6509407.491 | N79: 6568187.491 | O79: 58780 | P79: 20 | Q79: 0.9 | R79: -0.07839448103
A80: 110 | B80: Grafton | C80: 1 | D80: 3151 | E80: 3105 | F80: -46 | G80: 30005660.38 | H80: 30566617.26 | I80: 180.6624411 | J80: 19822623 | K80: 20345736 | L80: 168.4743961 | M80: 10921955 | N80: 10984055 | O80: 62100 | P80: 20 | Q80: 0.57 | R80: -0.01459854015
A81: 111 | B81: Granby | C81: 1 | D81: 742 | E81: 668 | F81: -74 | G81: 7516650.876 | H81: 7006720.12 | I81: -763.369395 | J81: 4649745 | K81: 4761219 | L81: 166.8772455 | M81: 4622810 | N81: 4636170 | O81: 13360 | P81: 20 | Q81: 0.29 | R81: -0.09973045822
A82: 114 | B82: Greenfield | C82: 1 | D82: 1913 | E82: 1964 | F82: 51 | G82: 20807903.15 | H82: 21921338.47 | I82: 566.922262 | J82: 9604767 | K82: 9897267 | L82: 148.9307536 | M82: 12197397.36 | N82: 12236677.36 | O82: 39280 | P82: 20 | Q82: 0.32 | R82: 0.02665969681
A83: 117 | B83: Hadley | C83: 1 | D83: 565 | E83: 550 | F83: -15 | G83: 5654945.375 | H83: 5734422.42 | I83: 144.5037188 | J83: 4724445 | K83: 4751474 | L83: 49.14363636 | M83: 1002763.995 | N83: 1013763.995 | O83: 11000 | P83: 20 | Q83: 1.1 | R83: -0.02654867257
A84: 118 | B84: Halifax | C84: 1 | D84: 633 | E84: 635 | F84: 2 | G84: 6142874.29 | H84: 6320122.504 | I84: 279.1310446 | J84: 3223996 | K84: 3351877 | L84: 201.3874016 | M84: 2918878 | N84: 2968246 | O84: 49368 | P84: 77.74488189 | Q84: 1.69 | R84: 0.003159557662
A85: 121 | B85: Hancock | C85: 1 | D85: 70 | E85: 57 | F85: -13 | G85: 672606.5336 | H85: 595189.52 | I85: -1358.19322 | J85: 562854 | K85: 502311 | L85: -1062.157895 | M85: 207160 | N85: 208300 | O85: 1140 | P85: 20 | Q85: 0.55 | R85: -0.1857142857
A86: 122 | B86: Hanover | C86: 1 | D86: 2530 | E86: 2529 | F86: -1 | G86: 24249684.48 | H86: 25124850.69 | I86: 346.0522741 | J86: 19005451 | K86: 19688075 | L86: 269.9185449 | M86: 6871448.713 | N86: 6922028.713 | O86: 50580 | P86: 20 | Q86: 0.74 | R86: -0.000395256917
A87: 125 | B87: Harvard | C87: 1 | D87: 980 | E87: 946 | F87: -34 | G87: 9274857.153 | H87: 9189682.378 | I87: -90.03676047 | J87: 7706220 | K87: 7645350 | L87: -64.34460888 | M87: 1926361 | N87: 1945281 | O87: 18920 | P87: 20 | Q87: 0.98 | R87: -0.03469387755
A88: 127 | B88: Hatfield | C88: 1 | D88: 354 | E88: 327 | F88: -27 | G88: 3456804.28 | H88: 3430866.1 | I88: -79.32165132 | J88: 2864170 | K88: 2850772 | L88: -40.97247706 | M88: 825616 | N88: 832156 | O88: 6540 | P88: 20 | Q88: 0.79 | R88: -0.07627118644
A89: 128 | B89: Haverhill | C89: 1 | D89: 8304 | E89: 8304 | F89: 0 | G89: 91533733.13 | H89: 94646673.77 | I89: 374.8724275 | J89: 39059148 | K89: 40297223 | L89: 149.0938102 | M89: 52474585 | N89: 54349451 | O89: 1874866 | P89: 225.7786609 | Q89: 3.57 | R89: 0
A90: 131 | B90: Hingham | C90: 1 | D90: 4328 | E90: 4318 | F90: -10 | G90: 41440808 | H90: 42684162.67 | I90: 287.946889 | J90: 34293632 | K90: 35255326 | L90: 222.7174618 | M90: 7147176 | N90: 7428837 | O90: 281661 | P90: 65.2295044 | Q90: 3.94 | R90: -0.002310536044
A91: 133 | B91: Holbrook | C91: 1 | D91: 1165 | E91: 1228 | F91: 63 | G91: 12628237.27 | H91: 13662146.16 | I91: 841.9453547 | J91: 7152474 | K91: 7478571 | L91: 265.5513029 | M91: 5652634 | N91: 6183575 | O91: 530941 | P91: 432.3623779 | Q91: 9.39 | R91: 0.05407725322
A92: 135 | B92: Holland | C92: 1 | D92: 152 | E92: 162 | F92: 10 | G92: 1612152.099 | H92: 1744451.9 | I92: 816.6654384 | J92: 930261 | K92: 1011208 | L92: 499.6728395 | M92: 923658 | N92: 926898 | O92: 3240 | P92: 20 | Q92: 0.35 | R92: 0.06578947368
A93: 136 | B93: Holliston | C93: 1 | D93: 2612 | E93: 2650 | F93: 38 | G93: 25340457.44 | H93: 26673552.03 | I93: 503.054562 | J93: 18649605 | K93: 19397011 | L93: 282.04 | M93: 7441479.661 | N93: 7494479.661 | O93: 53000 | P93: 20 | Q93: 0.71 | R93: 0.0145482389
A94: 137 | B94: Holyoke | C94: 1 | D94: 6463 | E94: 6189 | F94: -274 | G94: 81981180.87 | H94: 80272516.45 | I94: -276.0808561 | J94: 10580654 | K94: 10886435 | L94: 49.40717402 | M94: 71400527 | N94: 71524307 | O94: 123780 | P94: 20 | Q94: 0.17 | R94: -0.04239517252
A95: 138 | B95: Hopedale | C95: 1 | D95: 1019 | E95: 983 | F95: -36 | G95: 9875547.132 | H95: 9972114.11 | I95: 98.23700646 | J95: 5451538 | K95: 5614729 | L95: 166.0132248 | M95: 6029670 | N95: 6049330 | O95: 19660 | P95: 20 | Q95: 0.33 | R95: -0.03532875368
A96: 139 | B96: Hopkinton | C96: 1 | D96: 3471 | E96: 3529 | F96: 58 | G96: 34051687.92 | H96: 37113559.57 | I96: 867.6315251 | J96: 28376314 | K96: 30428757 | L96: 581.5933692 | M96: 6256963.403 | N96: 6684803 | O96: 427839.5973 | P96: 121.2353634 | Q96: 6.84 | R96: 0.01670988188
A97: 141 | B97: Hudson | C97: 1 | D97: 2712 | E97: 2698 | F97: -14 | G97: 28097682.16 | H97: 28992133.73 | I97: 331.5239297 | J97: 16800420 | K97: 17130631 | L97: 122.3910304 | M97: 11571901 | N97: 11861503 | O97: 289602 | P97: 107.3395107 | Q97: 2.5 | R97: -0.005162241888
A98: 142 | B98: Hull | C98: 1 | D98: 971 | E98: 935 | F98: -36 | G98: 10207764.98 | H98: 10148098.74 | I98: -63.81416585 | J98: 8510548 | K98: 8427531 | L98: -88.78823529 | M98: 3818486 | N98: 3837186 | O98: 18700 | P98: 20 | Q98: 0.49 | R98: -0.03707518023
A99: 144 | B99: Ipswich | C99: 1 | D99: 1744 | E99: 1707 | F99: -37 | G99: 17585142.68 | H99: 17728722.34 | I99: 84.11227471 | J99: 14661641 | K99: 14711189 | L99: 29.02636204 | M99: 3231029.529 | N99: 3265169.529 | O99: 34140 | P99: 20 | Q99: 1.06 | R99: -0.02121559633
A100: 145 | B100: Kingston | C100: 1 | D100: 1046 | E100: 1060 | F100: 14 | G100: 10083448.84 | H100: 10556979.79 | I100: 446.7273136 | J100: 6275524 | K100: 6612112 | L100: 317.5358491 | M100: 4308264.536 | N100: 4329464.536 | O100: 21200 | P100: 20 | Q100: 0.49 | R100: 0.01338432122
A101: 149 | B101: Lawrence | C101: 1 | D101: 15312 | E101: 15364 | F101: 52 | G101: 189722671.7 | H101: 194290561.8 | I101: 297.3112557 | J101: 9390191 | K101: 10120196 | L101: 47.51399375 | M101: 180332481 | N101: 184170366 | O101: 3837885 | P101: 249.7972533 | Q101: 2.13 | R101: 0.003396029258
A102: 150 | B102: Lee | C102: 1 | D102: 621 | E102: 615 | F102: -6 | G102: 6757761.956 | H102: 6932523.87 | I102: 284.1657131 | J102: 5587191 | K102: 5737979 | L102: 245.1837398 | M102: 2047989 | N102: 2060289 | O102: 12300 | P102: 20 | Q102: 0.6 | R102: -0.009661835749
A103: 151 | B103: Leicester | C103: 1 | D103: 1572 | E103: 1572 | F103: 0 | G103: 16281458.22 | H103: 16915437.71 | I103: 403.2948396 | J103: 7799077 | K103: 8009280 | L103: 133.7169211 | M103: 9708447 | N103: 9739887 | O103: 31440 | P103: 20 | Q103: 0.32 | R103: 0
A104: 152 | B104: Lenox | C104: 1 | D104: 521 | E104: 497 | F104: -24 | G104: 5339115.734 | H104: 5262338.97 | I104: -154.4804097 | J104: 4429745 | K104: 4374412 | L104: -111.334004 | M104: 1242525 | N104: 1252465 | O104: 9940 | P104: 20 | Q104: 0.8 | R104: -0.04606525912
A105: 153 | B105: Leominster | C105: 1 | D105: 6123 | E105: 6109 | F105: -14 | G105: 69633698.05 | H105: 71706672.16 | I105: 339.331169 | J105: 27880085 | K105: 28745315 | L105: 141.6320183 | M105: 44073487 | N105: 44195667 | O105: 122180 | P105: 20 | Q105: 0.28 | R105: -0.002286460885
A106: 154 | B106: Leverett | C106: 1 | D106: 123 | E106: 102 | F106: -21 | G106: 1195068.007 | H106: 1030447.06 | I106: -1613.930853 | J106: 990119 | K106: 856147 | L106: -1313.45098 | M106: 289061 | N106: 291101 | O106: 2040 | P106: 20 | Q106: 0.71 | R106: -0.1707317073
A107: 155 | B107: Lexington | C107: 1 | D107: 7126 | E107: 7302 | F107: 176 | G107: 74054892.12 | H107: 75867612.28 | I107: 248.249817 | J107: 60055998 | K107: 62633409 | L107: 352.973295 | M107: 13998894 | N107: 14144934 | O107: 146040 | P107: 20 | Q107: 1.04 | R107: 0.02469828796
A108: 157 | B108: Lincoln | C108: 1 | D108: 653 | E108: 626 | F108: -27 | G108: 6203608.579 | H108: 6163048.075 | I108: -64.79313734 | J108: 5157876 | K108: 5120548 | L108: -59.62939297 | M108: 1052081 | N108: 1064601 | O108: 12520 | P108: 20 | Q108: 1.19 | R108: -0.04134762634
A109: 158 | B109: Littleton | C109: 1 | D109: 1589 | E109: 1599 | F109: 10 | G109: 15312226.68 | H109: 15838763.52 | I109: 329.2913283 | J109: 12240112 | K109: 12516415 | L109: 172.7973734 | M109: 3943487.508 | N109: 3975467.508 | O109: 31980 | P109: 20 | Q109: 0.81 | R109: 0.006293266205
A110: 159 | B110: Longmeadow | C110: 1 | D110: 2824 | E110: 2851 | F110: 27 | G110: 26663231.19 | H110: 27803260.72 | I110: 399.8700566 | J110: 22022317 | K110: 22667571 | L110: 226.3254998 | M110: 4672411 | N110: 5135690 | O110: 463279 | P110: 162.4970186 | Q110: 9.92 | R110: 0.009560906516
A111: 160 | B111: Lowell | C111: 1 | D111: 16025 | E111: 16168 | F111: 143 | G111: 189897177 | H111: 196654914.2 | I111: 417.9698936 | J111: 45829544 | K111: 47390803 | L111: 96.56475755 | M111: 144067633 | N111: 149264111 | O111: 5196478 | P111: 321.4051212 | Q111: 3.61 | R111: 0.008923556942
A112: 161 | B112: Ludlow | C112: 1 | D112: 2602 | E112: 2559 | F112: -43 | G112: 27107617.46 | H112: 27414757.55 | I112: 120.0234815 | J112: 15438923 | K112: 15673946 | L112: 91.84173505 | M112: 13642593 | N112: 13693773 | O112: 51180 | P112: 20 | Q112: 0.38 | R112: -0.01652574942
A113: 162 | B113: Lunenburg | C113: 1 | D113: 1705 | E113: 1715 | F113: 10 | G113: 16554528.4 | H113: 17109019.16 | I113: 323.318229 | J113: 9282023 | K113: 9614845 | L113: 194.0653061 | M113: 7272505 | N113: 7494174 | O113: 221669 | P113: 129.2530612 | Q113: 3.05 | R113: 0.005865102639
A114: 163 | B114: Lynn | C114: 1 | D114: 16852 | E114: 17150 | F114: 298 | G114: 201554686.7 | H114: 214464891.4 | I114: 752.7816194 | J114: 48112261 | K114: 50739190 | L114: 153.1737026 | M114: 153442426 | N114: 163725701 | O114: 10283275 | P114: 599.6078717 | Q114: 6.7 | R114: 0.01768336103
A115: 164 | B115: Lynnfield | C115: 1 | D115: 2191 | E115: 2216 | F115: 25 | G115: 21073446.15 | H115: 22056386.59 | I115: 443.5651796 | J115: 17422551 | K115: 18198658 | L115: 350.2287906 | M115: 4272061 | N115: 4316381 | O115: 44320 | P115: 20 | Q115: 1.04 | R115: 0.01141031492
A116: 165 | B116: Malden | C116: 1 | D116: 7529 | E116: 7507 | F116: -22 | G116: 87320752.24 | H116: 89637409.32 | I116: 308.5995845 | J116: 38872647 | K116: 41262542 | L116: 318.3555348 | M116: 49072289 | N116: 49222429 | O116: 150140 | P116: 20 | Q116: 0.31 | R116: -0.002922034799
A117: 167 | B117: Mansfield | C117: 1 | D117: 3932 | E117: 3937 | F117: 5 | G117: 40453621.25 | H117: 41362272.98 | I117: 230.7980005 | J117: 27314680 | K117: 27637653 | L117: 82.03530607 | M117: 18728069 | N117: 18806809 | O117: 78740 | P117: 20 | Q117: 0.42 | R117: 0.001271617497
A118: 168 | B118: Marblehead | C118: 1 | D118: 3233 | E118: 3185 | F118: -48 | G118: 30825074.04 | H118: 31364862.14 | I118: 169.4782091 | J118: 25552661 | K118: 25960015 | L118: 127.8976452 | M118: 5741619 | N118: 5805319 | O118: 63700 | P118: 20 | Q118: 1.11 | R118: -0.01484689143
A119: 169 | B119: Marion | C119: 1 | D119: 455 | E119: 452 | F119: -3 | G119: 4343663.515 | H119: 4458333.72 | I119: 253.6951439 | J119: 3510380 | K119: 3648632 | L119: 305.8672566 | M119: 833284 | N119: 842324 | O119: 9040 | P119: 20 | Q119: 1.08 | R119: -0.006593406593
A120: 170 | B120: Marlborough | C120: 1 | D120: 5081 | E120: 5160 | F120: 79 | G120: 56761909.56 | H120: 60233827.35 | I120: 672.8522849 | J120: 32073087 | K120: 33562356 | L120: 288.6180233 | M120: 24688823 | N120: 26671471 | O120: 1982648 | P120: 384.2341085 | Q120: 8.03 | R120: 0.01554812045
A121: 171 | B121: Marshfield | C121: 1 | D121: 4128 | E121: 4076 | F121: -52 | G121: 41036767.22 | H121: 41672969.69 | I121: 156.0850024 | J121: 33760457 | K121: 34520186 | L121: 186.3908243 | M121: 14421163 | N121: 14502683 | O121: 81520 | P121: 20 | Q121: 0.57 | R121: -0.01259689922
A122: 172 | B122: Mashpee | C122: 1 | D122: 1590 | E122: 1621 | F122: 31 | G122: 16431104.57 | H122: 17363149.67 | I122: 574.9815575 | J122: 13722805 | K122: 14331085 | L122: 375.2498458 | M122: 4541226 | N122: 4573646 | O122: 32420 | P122: 20 | Q122: 0.71 | R122: 0.01949685535
A123: 173 | B123: Mattapoisett | C123: 1 | D123: 451 | E123: 447 | F123: -4 | G123: 4222689.915 | H123: 4334872.89 | I123: 250.9686242 | J123: 3517981 | K123: 3587389 | L123: 155.2751678 | M123: 812995 | N123: 821935 | O123: 8940 | P123: 20 | Q123: 1.1 | R123: -0.008869179601
A124: 174 | B124: Maynard | C124: 1 | D124: 1429 | E124: 1410 | F124: -19 | G124: 14745073.19 | H124: 15120772.3 | I124: 266.4532636 | J124: 9744969 | K124: 9762476 | L124: 12.41631206 | M124: 5000104 | N124: 5358296 | O124: 358192 | P124: 254.0368794 | Q124: 7.16 | R124: -0.0132960112
A125: 175 | B125: Medfield | C125: 1 | D125: 2490 | E125: 2512 | F125: 22 | G125: 23865982.22 | H125: 24745029.45 | I125: 349.9391822 | J125: 19763909 | K125: 20432561 | L125: 266.183121 | M125: 6137784 | N125: 6188024 | O125: 50240 | P125: 20 | Q125: 0.82 | R125: 0.008835341365
A126: 176 | B126: Medford | C126: 1 | D126: 4847 | E126: 4661 | F126: -186 | G126: 54710623.72 | H126: 55101162.01 | I126: 83.78851917 | J126: 45337673 | K126: 45707607 | L126: 79.36794679 | M126: 11864786 | N126: 11958006 | O126: 93220 | P126: 20 | Q126: 0.79 | R126: -0.03837425211
A127: 177 | B127: Medway | C127: 1 | D127: 2248 | E127: 2197 | F127: -51 | G127: 22011641.94 | H127: 22198165.84 | I127: 84.89936139 | J127: 14975709 | K127: 15395125 | L127: 190.9039599 | M127: 10368909 | N127: 10412849 | O127: 43940 | P127: 20 | Q127: 0.42 | R127: -0.02268683274
A128: 178 | B128: Melrose | C128: 1 | D128: 3799 | E128: 3868 | F128: 69 | G128: 37544107.27 | H128: 39497622.39 | I128: 505.0452753 | J128: 31014280 | K128: 32331825 | L128: 340.626939 | M128: 8280046 | N128: 8357406 | O128: 77360 | P128: 20 | Q128: 0.93 | R128: 0.01816267439
A129: 181 | B129: Methuen | C129: 1 | D129: 7088 | E129: 7164 | F129: 76 | G129: 76802334.29 | H129: 81067304.79 | I129: 595.3336827 | J129: 35661626 | K129: 36909697 | L129: 174.2142658 | M129: 42360163 | N129: 44157608 | O129: 1797445 | P129: 250.8996371 | Q129: 4.24 | R129: 0.01072234763
A130: 182 | B130: Middleborough | C130: 1 | D130: =VLOOKUP(A130,aidcalc,17) -> 2870 | E130: =VLOOKUP(A130,aidcalc,18) -> 3019 | F130: =E130-D130 -> 149 | G130: =VLOOKUP(A130,aidcalc,4) -> 29289460.26 | H130: =VLOOKUP(A130,aidcalc,6) -> 31801065.5 | I130: =(H130-G130)/$E130 -> 831.9328387 | J130: =SUMIF(dist1755,A130,pynetmin) -> 15577573 | K130: =VLOOKUP(A130,aidcalc,7) -> 16047030 | L130: =(K130-J130)/$E130 -> 155.5008281 | M130: 17796089 | N130: 17856469 | O130: =N130-M130 -> 60380 | P130: =(N130-M130)/$E130 -> 20 | Q130: 0.34 | R130: 0.05191637631
A131: 184 | B131: Middleton | C131: 1 | D131: 666 | E131: 653 | F131: -13 | G131: 6172360.672 | H131: 6269538.236 | I131: 148.8170966 | J131: 5171627 | K131: 5205611 | L131: 52.04287902 | M131: 1626461 | N131: 1639521 | O131: 13060 | P131: 20 | Q131: 0.8 | R131: -0.01951951952
A132: 185 | B132: Milford | C132: 1 | D132: 4244 | E132: 4252 | F132: 8 | G132: 46388900.53 | H132: 48535273.71 | I132: 504.7914349 | J132: 23243232 | K132: 23833478 | L132: 138.8160865 | M132: 23145669 | N132: 24701796 | O132: 1556127 | P132: 365.9753057 | Q132: 6.72 | R132: 0.001885014138
A133: 186 | B133: Millbury | C133: 1 | D133: 1748 | E133: 1752 | F133: 4 | G133: 17780962.15 | H133: 18304219.43 | I133: 298.6628293 | J133: 10630390 | K133: 11053535 | L133: 241.5211187 | M133: 7150572 | N133: 7250684 | O133: 100112 | P133: 57.14155251 | Q133: 1.4 | R133: 0.002288329519
A134: 187 | B134: Millis | C134: 1 | D134: 1199 | E134: 1176 | F134: -23 | G134: 11737004.51 | H134: 11900970.4 | I134: 139.4267771 | J134: 8397650 | K134: 8404819 | L134: 6.096088435 | M134: 4761621.532 | N134: 4785141.532 | O134: 23520 | P134: 20 | Q134: 0.49 | R134: -0.01918265221
A135: 189 | B135: Milton | C135: 1 | D135: 4093 | E135: 4161 | F135: 68 | G135: 39699383.47 | H135: 41749102.24 | I135: 492.6024431 | J135: 32142381 | K135: 33539693 | L135: 335.8115838 | M135: 7557002 | N135: 8209409 | O135: 652407 | P135: 156.7909156 | Q135: 8.63 | R135: 0.01661373076
A136: 191 | B136: Monson | C136: 1 | D136: 967 | E136: 932 | F136: -35 | G136: 9765311.131 | H136: 9729249.18 | I136: -38.69308017 | J136: 5261486 | K136: 5509001 | L136: 265.5740343 | M136: 7484975 | N136: 7503615 | O136: 18640 | P136: 20 | Q136: 0.25 | R136: -0.03619441572
A137: 196 | B137: Nahant | C137: 1 | D137: 270 | E137: 138 | F137: -132 | G137: 2576635.396 | H137: 1354769.52 | I137: -8854.100552 | J137: 2132494 | K137: 1219293 | L137: -6617.398551 | M137: =VLOOKUP(A137,disthist,46) -> 508003 | N137: =VLOOKUP(A137,aidcalc,36) -> 510763 | O137: 2760 | P137: 20 | Q137: =ROUND(IF(G137>0,(N137-M137)*100/M137,100),2) -> 0.54 | R137: -0.4888888889
A138: 197 | B138: Nantucket | C138: 1 | D138: 1583 | E138: 1615 | F138: 32 | G138: 16351990.16 | H138: 17494422.46 | I138: 707.3884222 | J138: 13342499 | K138: 14000284 | L138: 407.2972136 | M138: 3114564 | N138: 3494138 | O138: 379574 | P138: 235.0303406 | Q138: 12.19 | R138: =F138/D138 -> 0.02021478206
A139: 198 | B139: Natick | C139: 1 | D139: 5466 | E139: 5492 | F139: 26 | G139: 53048542.56 | H139: 55563876.1 | I139: 457.9995521 | J139: 43988233 | K139: 45925643 | L139: 352.7694829 | M139: 9281825 | N139: 9638233 | O139: 356408 | P139: 64.89584851 | Q139: 3.84 | R139: 0.004756677644
A140: 199 | B140: Needham | C140: 1 | D140: 5447 | E140: 5490 | F140: 43 | G140: 54000176.56 | H140: 56196206.39 | I140: 400.0054334 | J140: 44833817 | K140: 46572923 | L140: 316.7770492 | M140: 9166360 | N140: 9623283 | O140: 456923 | P140: 83.22823315 | Q140: 4.98 | R140: 0.007894253718
A141: 201 | B141: New Bedford | C141: 1 | D141: 13624 | E141: 13726 | F141: 102 | G141: 165003222.2 | H141: 171850640.8 | I141: 498.8648257 | J141: 27078190 | K141: 28496221 | L141: 103.3098499 | M141: 137925032 | N141: 143354420 | O141: 5429388 | P141: 395.5550051 | Q141: 3.94 | R141: 0.007486788021
A142: 204 | B142: Newburyport | C142: 1 | D142: 2395 | E142: 2387 | F142: -8 | G142: 22572192.43 | H142: 23292265.33 | I142: 301.664391 | J142: 18688498 | K142: 19254430 | L142: 237.0892333 | M142: 3923141.666 | N142: 4037835 | O142: 114693.3339 | P142: 48.04915539 | Q142: 2.92 | R142: -0.003340292276
A143: 207 | B143: Newton | C143: 1 | D143: 12857 | E143: 12946 | F143: 89 | G143: 131452274.4 | H143: 136627353.7 | I143: 399.7434922 | J143: 108662422 | K143: 112819948 | L143: 321.1436737 | M143: 22789852 | N143: 23807406 | O143: 1017554 | P143: 78.59987641 | Q143: 4.46 | R143: 0.006922299137
A144: 208 | B144: Norfolk | C144: 1 | D144: 892 | E144: 903 | F144: 11 | G144: 8254868.142 | H144: 8612410.026 | I144: 395.9489299 | J144: 6844844 | K144: 7126380 | L144: 311.7785161 | M144: 3406815 | N144: 3424875 | O144: 18060 | P144: 20 | Q144: 0.53 | R144: 0.01233183857
A145: 209 | B145: North Adams | C145: 1 | D145: 1506 | E145: 1473 | F145: -33 | G145: 17145309.63 | H145: 17217948.56 | I145: 49.31359839 | J145: 5100302 | K145: 5081683 | L145: -12.64019009 | M145: 13721833 | N145: 13751293 | O145: 29460 | P145: 20 | Q145: 0.21 | R145: -0.0219123506
A146: 210 | B146: Northampton | C146: 1 | D146: 2746 | E146: 2710 | F146: -36 | G146: 27919380.15 | H146: 28448308.9 | I146: 195.1766621 | J146: 23143930 | K146: 23546119 | L146: 148.4092251 | M146: 7395919 | N146: 7450119 | O146: 54200 | P146: 20 | Q146: 0.73 | R146: -0.01310997815
A147: 211 | B147: North Andover | C147: 1 | D147: 4811 | E147: 4845 | F147: 34 | G147: 46314260.8 | H147: 48493980.76 | I147: 449.8906002 | J147: 38259940 | K147: 39662324 | L147: 289.449742 | M147: 8326307 | N147: 8831657 | O147: 505350 | P147: 104.3034056 | Q147: 6.07 | R147: 0.007067137809
A148: 212 | B148: North Attleborough | C148: 1 | D148: 4346 | E148: 4285 | F148: -61 | G148: 42205783.55 | H148: 43015998.51 | I148: 189.0816704 | J148: 25945113 | K148: 26512414 | L148: 132.3922987 | M148: 20427791 | N148: 20513491 | O148: 85700 | P148: 20 | Q148: 0.42 | R148: -0.01403589508
A149: 213 | B149: Northborough | C149: 1 | D149: 1642 | E149: 1607 | F149: -35 | G149: 15015400.58 | H149: 15148746.27 | I149: 82.97802908 | J149: 12501814 | K149: 12523724 | L149: 13.63410081 | M149: 3899030.038 | N149: 3931170.038 | O149: 32140 | P149: 20 | Q149: 0.82 | R149: -0.02131546894
A150: 214 | B150: Northbridge | C150: 1 | D150: 2305 | E150: 2216 | F150: -89 | G150: 23615219.38 | H150: 23358419.3 | I150: -115.8845115 | J150: 11369969 | K150: 11808642 | L150: 197.95713 | M150: 15473041 | N150: 15517361 | O150: 44320 | P150: 20 | Q150: 0.29 | R150: -0.03861171367
A151: 215 | B151: North Brookfield | C151: 1 | D151: 596 | E151: 604 | F151: 8 | G151: 6199650.47 | H151: 6392225.87 | I151: 318.8334437 | J151: 2812304 | K151: 2856997 | L151: 73.99503311 | M151: 4254298 | N151: 4266378 | O151: 12080 | P151: 20 | Q151: 0.28 | R151: 0.01342281879
A152: 217 | B152: North Reading | C152: 1 | D152: 2426 | E152: 2425 | F152: -1 | G152: 23960205.84 | H152: 24835131.88 | I152: 360.7942417 | J152: 19895201 | K152: 20508073 | L152: 252.7307216 | M152: 7010717 | N152: 7059217 | O152: 48500 | P152: 20 | Q152: 0.69 | R152: -0.0004122011542
A153: 218 | B153: Norton | C153: 1 | D153: 2517 | E153: 2521 | F153: 4 | G153: 24605799.04 | H153: 25516737.32 | I153: 361.3400566 | J153: 16138030 | K153: 16452105 | L153: 124.5834986 | M153: 12678650 | N153: 12729070 | O153: 50420 | P153: 20 | Q153: 0.4 | R153: 0.001589193484
A154: 219 | B154: Norwell | C154: 1 | D154: 2145 | E154: 2142 | F154: -3 | G154: 20701123.01 | H154: 21319820.97 | I154: 288.8412539 | J154: 17167966 | K154: 17625120 | L154: 213.4239029 | M154: 3600307.944 | N154: 3694701 | O154: 94393.05632 | P154: 44.06772004 | Q154: 2.62 | R154: -0.001398601399
A155: 220 | B155: Norwood | C155: 1 | D155: 3442 | E155: 3430 | F155: -12 | G155: 36598980.15 | H155: 37836446.03 | I155: 360.7772237 | J155: 30391526 | K155: 31268492 | L155: 255.6752187 | M155: 6207454 | N155: 6567954 | O155: 360500 | P155: 105.1020408 | Q155: 5.81 | R155: -0.003486345148
A156: 221 | B156: Oak Bluffs | C156: 1 | D156: 459 | E156: 420 | F156: -39 | G156: 4614741.475 | H156: 4468549.28 | I156: -348.0766544 | J156: 3814150 | K156: 3720899 | L156: -222.0261905 | M156: 924052 | N156: 932452 | O156: 8400 | P156: 20 | Q156: 0.91 | R156: -0.08496732026
A157: 223 | B157: Orange | C157: 1 | D157: 615 | E157: 605 | F157: -10 | G157: 6801556.001 | H157: 6799193.19 | I157: -3.905471929 | J157: 1896835 | K157: 1871136 | L157: -42.47768595 | M157: 5240609 | N157: 5252709 | O157: 12100 | P157: 20 | Q157: 0.23 | R157: -0.0162601626
A158: 224 | B158: Orleans | C158: 1 | D158: 220 | E158: 227 | F158: 7 | G158: 2186402.508 | H158: 2294332.27 | I158: 475.4615046 | J158: 1814388 | K158: 1896409 | L158: 361.3259912 | M158: 372015 | N158: 397923 | O158: 25908 | P158: 114.1321586 | Q158: 6.96 | R158: 0.03181818182
A159: 226 | B159: Oxford | C159: 1 | D159: 1785 | E159: 1753 | F159: -32 | G159: 18658337.21 | H159: 18869433.69 | I159: 120.4201255 | J159: 8970216 | K159: 9416652 | L159: 254.6697091 | M159: 10461744 | N159: 10496804 | O159: 35060 | P159: 20 | Q159: 0.34 | R159: -0.01792717087
A160: 227 | B160: Palmer | C160: 1 | D160: 1495 | E160: 1465 | F160: -30 | G160: 15937384.12 | H160: 16228827.15 | I160: 198.9372249 | J160: 6595198 | K160: 6706881 | L160: 76.23412969 | M160: 10829000 | N160: 10858300 | O160: 29300 | P160: 20 | Q160: 0.27 | R160: -0.02006688963
A161: 229 | B161: Peabody | C161: 1 | D161: 5892 | E161: 5879 | F161: -13 | G161: 63749465.75 | H161: 64871749.07 | I161: 190.896975 | J161: 45449042 | K161: 46443270 | L161: 169.1151556 | M161: 19247212 | N161: 19364792 | O161: 117580 | P161: 20 | Q161: 0.61 | R161: -0.002206381534
A162: 230 | B162: Pelham | C162: 1 | D162: 81 | E162: 82 | F162: 1 | G162: 830020.5818 | H162: 849502.31 | I162: 237.5820516 | J162: 620333 | K162: 666623 | L162: 564.5121951 | M162: 230581 | N162: 232221 | O162: 1640 | P162: 20 | Q162: 0.71 | R162: 0.01234567901
A163: 231 | B163: Pembroke | C163: 1 | D163: 3005 | E163: 2898 | F163: -107 | G163: 30076801.77 | H163: 29971042.6 | I163: -36.4938478 | J163: 18988785 | K163: 19738662 | L163: 258.7567288 | M163: 13434662.3 | N163: 13492622.3 | O163: 57960 | P163: 20 | Q163: 0.43 | R163: -0.03560732113
A164: 234 | B164: Petersham | C164: 1 | D164: 70 | E164: 70 | F164: 0 | G164: 716629.186 | H164: 770362.2 | I164: 767.6144854 | J164: 573272 | K164: 578016 | L164: 67.77142857 | M164: 431323 | N164: 432723 | O164: 1400 | P164: 20 | Q164: 0.32 | R164: 0
A165: 236 | B165: Pittsfield | C165: 1 | D165: 6026 | E165: 5933 | F165: -93 | G165: 68570957.77 | H165: 69817961.9 | I165: 210.1810427 | J165: 28025316 | K165: 28120602 | L165: 16.06034047 | M165: 40545642 | N165: 41697360 | O165: 1151718 | P165: 194.1206809 | Q165: 2.84 | R165: -0.01543312313
A166: 238 | B166: Plainville | C166: 1 | D166: 701 | E166: 691 | F166: -10 | G166: 6634193.243 | H166: 6729725.82 | I166: 138.2526439 | J166: 4712959 | K166: 4787495 | L166: 107.8668596 | M166: 2885980.596 | N166: 2899800.596 | O166: 13820 | P166: 20 | Q166: 0.48 | R166: -0.01426533524
A167: 239 | B167: Plymouth | C167: 1 | D167: 8212 | E167: 8093 | F167: -119 | G167: 88349686.53 | H167: 89481884.67 | I167: 139.898448 | J167: 62464730 | K167: 64496468 | L167: 251.0488076 | M167: 25884957 | N167: 26046817 | O167: 161860 | P167: 20 | Q167: 0.63 | R167: -0.0144909888
A168: 240 | B168: Plympton | C168: 1 | D168: 221 | E168: 217 | F168: -4 | G168: 2208586.389 | H168: 2238487.122 | I168: 137.7913954 | J168: 1594867 | K168: 1607913 | L168: 60.11981567 | M168: 727660.2589 | N168: 732000.2589 | O168: 4340 | P168: 20 | Q168: 0.6 | R168: -0.01809954751
A169: 242 | B169: Provincetown | C169: 1 | D169: 115 | E169: 113 | F169: -2 | G169: 1300534.311 | H169: 1271823.95 | I169: -254.0739892 | J169: 1090154 | K169: 1056524 | L169: -297.6106195 | M169: 283851 | N169: 286111 | O169: 2260 | P169: 20 | Q169: 0.8 | R169: -0.01739130435
A170: 243 | B170: Quincy | C170: 1 | D170: 9321 | E170: 9433 | F170: 112 | G170: 112465494 | H170: 116799148 | I170: 459.4141888 | J170: 87353305 | K170: 89751257 | L170: 254.2088413 | M170: 27043396.29 | N170: 27232056.29 | O170: 188660 | P170: 20 | Q170: 0.7 | R170: 0.01201587812
A171: 244 | B171: Randolph | C171: 1 | D171: 3266 | E171: 3312 | F171: 46 | G171: 37100685.94 | H171: 38971777.15 | I171: 564.9429975 | J171: 20804157 | K171: 21683113 | L171: 265.3852657 | M171: 16296529 | N171: 17288664 | O171: 992135 | P171: 299.5576691 | Q171: 6.09 | R171: 0.01408450704
A172: 246 | B172: Reading | C172: 1 | D172: 4191 | E172: 4076 | F172: -115 | G172: 40268620.86 | H172: 40508997.76 | I172: 58.97372387 | J172: 33365588 | K172: 33610571 | L172: 60.10377821 | M172: 10591299 | N172: 10672819 | O172: 81520 | P172: 20 | Q172: 0.77 | R172: -0.02743975185
A173: 248 | B173: Revere | C173: 1 | D173: 7655 | E173: 7845 | F173: 190 | G173: 88195564.57 | H173: 95132047.98 | I173: 884.1916395 | J173: 31495119 | K173: 32911587 | L173: 180.5567878 | M173: 56739156 | N173: 62220461 | O173: 5481305 | P173: 698.7004461 | Q173: 9.66 | R173: 0.02482037884
A174: 249 | B174: Richmond | C174: 1 | D174: 123 | E174: 112 | F174: -11 | G174: 1268580.5 | H174: 1207354.1 | I174: -546.6642878 | J174: 1047475 | K174: 1009152 | L174: -342.1696429 | M174: 357479 | N174: 359719 | O174: 2240 | P174: 20 | Q174: 0.63 | R174: -0.08943089431
A175: 250 | B175: Rochester | C175: 1 | D175: 467 | E175: 496 | F175: 29 | G175: 4319981.404 | H175: 4775194.18 | I175: 917.7676934 | J175: 2706641 | K175: 2935162 | L175: 460.7278226 | M175: 1802732 | N175: 1840032 | O175: 37300 | P175: 75.2016129 | Q175: 2.07 | R175: 0.06209850107
A176: 251 | B176: Rockland | C176: 1 | D176: 2361 | E176: 2274 | F176: -87 | G176: 25966055.37 | H176: 25683474.38 | I176: -124.2660456 | J176: 12806197 | K176: 13243654 | L176: 192.3733509 | M176: 13706495 | N176: 13751975 | O176: 45480 | P176: 20 | Q176: 0.33 | R176: -0.03684879288
A177: 252 | B177: Rockport | C177: 1 | D177: 735 | E177: 687 | F177: -48 | G177: 7549140.322 | H177: 7328797.547 | I177: -320.7318408 | J177: 6289613 | K177: 6092364 | L177: -287.1164483 | M177: 1461146 | N177: 1474886 | O177: 13740 | P177: 20 | Q177: 0.94 | R177: -0.06530612245
A178: 253 | B178: Rowe | C178: 1 | D178: 64 | E178: 54 | F178: -10 | G178: 637861.2716 | H178: 597217.16 | I178: -752.6687328 | J178: 530325 | K178: 500941 | L178: -544.1481481 | M178: 136715 | N178: 137795 | O178: 1080 | P178: 20 | Q178: 0.79 | R178: -0.15625
A179: 258 | B179: Salem | C179: 1 | D179: 4537 | E179: 4499 | F179: -38 | G179: 52768572.01 | H179: 54105038.64 | I179: 297.0585966 | J179: 32317455 | K179: 33343413 | L179: 228.0413425 | M179: 21736742.19 | N179: 21826722.19 | O179: 89980 | P179: 20 | Q179: 0.41 | R179: -0.008375578576
A180: 261 | B180: Sandwich | C180: 1 | D180: 2886 | E180: 2737 | F180: -149 | G180: 28141702.86 | H180: 27599518.89 | I180: -198.0942516 | J180: 23400169 | K180: 22968503 | L180: -157.7150164 | M180: 6989398 | N180: 7044138 | O180: 54740 | P180: 20 | Q180: 0.78 | R180: -0.05162855163
A181: 262 | B181: Saugus | C181: 1 | D181: 2678 | E181: 2676 | F181: -2 | G181: 27708148.93 | H181: 28619760.5 | I181: 340.6620214 | J181: 23048854 | K181: 23632888 | L181: 218.2488789 | M181: 5569152.018 | N181: 5622672.018 | O181: 53520 | P181: 20 | Q181: 0.96 | R181: -0.0007468259895
A182: 263 | B182: Savoy | C182: 1 | D182: 60 | E182: 58 | F182: -2 | G182: 634366.3495 | H182: 667407.66 | I182: 569.6777672 | J182: 316323 | K182: 357428 | L182: 708.7068966 | M182: 512309 | N182: 513469 | O182: 1160 | P182: 20 | Q182: 0.23 | R182: -0.03333333333
A183: 264 | B183: Scituate | C183: 1 | D183: 2932 | E183: 2897 | F183: -35 | G183: 28537003.2 | H183: 29093638.88 | I183: 192.1421075 | J183: 23614603 | K183: 24078876 | L183: 160.2599241 | M183: 5434351 | N183: 5492291 | O183: 57940 | P183: 20 | Q183: 1.07 | R183: -0.0119372442
A184: 265 | B184: Seekonk | C184: 1 | D184: 1912 | E184: 2001 | F184: 89 | G184: 18642353.39 | H184: 20060667.49 | I184: 708.8026498 | J184: 14172922 | K184: 14639742 | L184: 233.2933533 | M184: 5143574.974 | N184: 5420925 | O184: 277350.0262 | P184: 138.6057103 | Q184: 5.39 | R184: 0.04654811715
A185: 266 | B185: Sharon | C185: 1 | D185: 3401 | E185: 3458 | F185: 57 | G185: 33110463.78 | H185: 34797917.28 | I185: 487.9853963 | J185: 27317316 | K185: 28416084 | L185: 317.7466744 | M185: 7240547 | N185: 7309707 | O185: 69160 | P185: 20 | Q185: 0.96 | R185: 0.01675977654
A186: 269 | B186: Sherborn | C186: 1 | D186: 415 | E186: 404 | F186: -11 | G186: 3806638.946 | H186: 3852058.965 | I186: 112.4257907 | J186: 3143918 | K186: 3179083 | L186: 87.04207921 | M186: 662721 | N186: 672976 | O186: 10255 | P186: 25.38366337 | Q186: 1.55 | R186: -0.0265060241
A187: 271 | B187: Shrewsbury | C187: 1 | D187: 6039 | E187: 6037 | F187: -2 | G187: 58194036.86 | H187: 60188317.36 | I187: 330.3429678 | J187: 44655044 | K187: 46691314 | L187: 337.298327 | M187: 19706038 | N187: 19826778 | O187: 120740 | P187: 20 | Q187: 0.61 | R187: -0.000331180659
A188: 272 | B188: Shutesbury | C188: 1 | D188: 116 | E188: 112 | F188: -4 | G188: 1157848.557 | H188: 1117815.93 | I188: -357.4341659 | J188: 680124 | K188: 653533 | L188: -237.4196429 | M188: 623336 | N188: 625576 | O188: 2240 | P188: 20 | Q188: 0.36 | R188: -0.03448275862
A189: 273 | B189: Somerset | C189: 1 | D189: 1804 | E189: 1789 | F189: -15 | G189: 17125371.88 | H189: 17656517.44 | I189: 296.8952283 | J189: 9582995 | K189: 9561936 | L189: -11.77138066 | M189: 7542377 | N189: 8094581 | O189: 552204 | P189: 308.666294 | Q189: 7.32 | R189: -0.008314855876
A190: 274 | B190: Somerville | C190: 1 | D190: 5353 | E190: 5276 | F190: -77 | G190: 64130648.11 | H190: 65465128.69 | I190: 252.9341511 | J190: 53229236 | K190: 54300607 | L190: 203.0650114 | M190: 20170688 | N190: 20276208 | O190: 105520 | P190: 20 | Q190: 0.52 | R190: -0.01438445731
A191: 275 | B191: Southampton | C191: 1 | D191: 492 | E191: 480 | F191: -12 | G191: 4863203.523 | H191: 4900004.73 | I191: 76.66918096 | J191: 3146804 | K191: 3294854 | L191: 308.4375 | M191: 2522746 | N191: 2532346 | O191: 9600 | P191: 20 | Q191: 0.38 | R191: -0.0243902439
A192: 276 | B192: Southborough | C192: 1 | D192: 1235 | E192: 1212 | F192: -23 | G192: 11409894.39 | H192: 11624181.78 | I192: 176.8047817 | J192: 9486965 | K192: 9629521 | L192: 117.620462 | M192: 2914531 | N192: 2938771 | O192: 24240 | P192: 20 | Q192: 0.83 | R192: -0.01862348178
A193: 277 | B193: Southbridge | C193: 1 | D193: =VLOOKUP(A193,aidcalc,17) -> 2380 | E193: =VLOOKUP(A193,aidcalc,18) -> 2307 | F193: =E193-D193 -> -73 | G193: =VLOOKUP(A193,aidcalc,4) -> 28503932.08 | H193: =VLOOKUP(A193,aidcalc,6) -> 28404907.52 | I193: =(H193-G193)/$E193 -> -42.9235215 | J193: =SUMIF(dist1755,A193,pynetmin) -> 7316033 | K193: =VLOOKUP(A193,aidcalc,7) -> 7466909 | L193: =(K193-J193)/$E193 -> 65.39921977 | M193: 21187899 | N193: 21234039 | O193: =N193-M193 -> 46140 | P193: =(N193-M193)/$E193 -> 20 | Q193: 0.22 | R193: -0.03067226891
A194: 278 | B194: South Hadley | C194: 1 | D194: 1900 | E194: 1908 | F194: 8 | G194: 19637074.33 | H194: 20391798.19 | I194: 395.5575781 | J194: 12896757 | K194: 13155150 | L194: 135.4261006 | M194: 7933784 | N194: 7971944 | O194: 38160 | P194: 20 | Q194: 0.48 | R194: 0.004210526316
A195: 281 | B195: Springfield | C195: 1 | D195: 29533 | E195: 29599 | F195: 66 | G195: 370375982.6 | H195: 380228842 | I195: 332.8781177 | J195: 37357582 | K195: 38246693 | L195: 30.0385486 | M195: 333018401 | N195: 341982149 | O195: 8963748 | P195: 302.8395554 | Q195: 2.69 | R195: 0.002234788203
A196: 284 | B196: Stoneham | C196: 1 | D196: 2425 | E196: 2402 | F196: -23 | G196: 24538424.86 | H196: 25155224.95 | I196: 256.7860517 | J196: 20290210 | K196: 20822513 | L196: 221.6082431 | M196: 4248215 | N196: 4332712 | O196: 84497 | P196: 35.17776853 | Q196: 1.99 | R196: -0.009484536082
A197: 285 | B197: Stoughton | C197: 1 | D197: 3651 | E197: 3707 | F197: 56 | G197: 38830414.52 | H197: 40900909.63 | I197: 558.5365846 | J197: 23973760 | K197: 25177300 | L197: 324.6668465 | M197: 15439562 | N197: 15723610 | O197: 284048 | P197: 76.62476396 | Q197: 1.84 | R197: 0.01533826349
A198: 287 | B198: Sturbridge | C198: 1 | D198: 871 | E198: 870 | F198: -1 | G198: 8170415.968 | H198: 8399346.44 | I198: 263.1384739 | J198: 4697967 | K198: 4833602 | L198: 155.9022989 | M198: 3795214 | N198: 3812614 | O198: 17400 | P198: 20 | Q198: 0.46 | R198: -0.001148105626
A199: 288 | B199: Sudbury | C199: 1 | D199: 2788 | E199: 2712 | F199: -76 | G199: 25474395.71 | H199: 25597782.38 | I199: 45.49656193 | J199: 21173624 | K199: 21248678 | L199: 27.67477876 | M199: 4829178 | N199: 4883418 | O199: 54240 | P199: 20 | Q199: 1.12 | R199: -0.02725968436
A200: 289 | B200: Sunderland | C200: 1 | D200: 197 | E200: 192 | F200: -5 | G200: 2030461.998 | H200: 2064175.93 | I200: 175.5933945 | J200: 1547169 | K200: 1569862 | L200: 118.1927083 | M200: 861528 | N200: 865368 | O200: 3840 | P200: 20 | Q200: 0.45 | R200: -0.02538071066
A201: 290 | B201: Sutton | C201: 1 | D201: 1422 | E201: 1383 | F201: -39 | G201: 13414412.03 | H201: 13455206.63 | I201: 29.49717892 | J201: 9713548 | K201: 9934493 | L201: 159.757773 | M201: =VLOOKUP(A201,disthist,46) -> 5398395 | N201: =VLOOKUP(A201,aidcalc,36) -> 5426055 | O201: 27660 | P201: 20 | Q201: =ROUND(IF(G201>0,(N201-M201)*100/M201,100),2) -> 0.51 | R201: -0.02742616034
A202: 291 | B202: Swampscott | C202: 1 | D202: 2119 | E202: 2121 | F202: 2 | G202: 20655963.82 | H202: 21232055.89 | I202: 271.6134253 | J202: 17159833 | K202: 17554276 | L202: 185.970297 | M202: 3496131 | N202: 3677780 | O202: 181649 | P202: 85.64309288 | Q202: 5.2 | R202: =F202/D202 -> 0.0009438414346
A203: 292 | B203: Swansea | C203: 1 | D203: 2049 | E203: 2072 | F203: 23 | G203: 20221515.14 | H203: 21037497.07 | I203: 393.8136716 | J203: 12930499 | K203: 13381665 | L203: 217.7442085 | M203: 7389327 | N203: 7655832 | O203: 266505 | P203: 128.6221042 | Q203: 3.61 | R203: 0.0112249878
... 131 more rows

Sheet Rates
A3: Massachusetts Department of Elementary and Secondary Education
A4: Office of School Finance
A6: ="Foundation Budget Rates Per Pupil, "& CYr &" Chapter 70" -> Foundation Budget Rates Per Pupil, FY19 Chapter 70
C8: Administration | D8: Instructional Leadership | E8: Teachers | F8: Other Teaching Services | G8: Professional Development | H8: Instructional Materials, Equipment & Technology | I8: Guidance & Psychological Services | J8: Pupil Services | K8: Operations & Maintenance | L8: Employee Benefits & Fixed Charges | M8: Special Education Tuition | N8: Total, All Categories
A10: 1 | B10: Pre-School | C10: 188.89 | D10: 341.14 | E10: 1564.22 | F10: 401.18 | G10: 61.86 | H10: 226.4 | I10: 113.81 | J10: 45.26 | K10: 434.37 | L10: 469.33 | M10: 0 | N10: 3846.46
A11: 2 | B11: Kindergarten-Half | C11: 188.89 | D11: 341.14 | E11: 1564.22 | F11: 401.18 | G11: 61.86 | H11: 226.4 | I11: 113.81 | J11: 45.26 | K11: 434.37 | L11: 469.33 | M11: 0 | N11: 3846.46
A12: 3 | B12: Kindergarten-Full | C12: 377.76 | D12: 682.27 | E12: 3128.44 | F12: 802.38 | G12: 123.78 | H12: 452.8 | I12: 227.65 | J12: 90.57 | K12: 868.72 | L12: 938.63 | M12: 0 | N12: 7693
A13: 4 | B13: Elementary | C13: 377.76 | D13: 682.27 | E13: 3128.4 | F13: 802.38 | G13: 123.8 | H13: 452.8 | I13: 227.65 | J13: 135.84 | K13: 868.72 | L13: 938.67 | M13: 0 | N13: 7738.29
A14: 5 | B14: Junior/Middle | C14: 377.76 | D14: 682.27 | E14: 2753.01 | F14: 577.59 | G14: 134.21 | H14: 452.8 | I14: 303.02 | J14: 221.89 | K14: 941.81 | L14: 948.39 | M14: 0 | N14: 7392.75
A15: 6 | B15: High School | C15: 377.76 | D15: 682.27 | E15: 4048.52 | F15: 480.85 | G15: 130.13 | H15: 724.48 | I15: 379.85 | J15: 511.66 | K15: 913.19 | L15: 868.1 | M15: 0 | N15: 9116.81
A16: 7 | B16: Special Ed-In School | C16: 2607.21 | D16: 0 | E16: 8603.13 | F16: 8032.63 | G16: 415.01 | H16: 362.24 | I16: 0 | J16: 0 | K16: 2912.38 | L16: 3351.1 | M16: 0 | N16: 26283.7
A17: 8 | B17: Special Ed-Tuitioned Out | C17: 2607.21 | D17: 0 | E17: 0 | F17: 39.83 | G17: 0 | H17: 0 | I17: 0 | J17: 0 | K17: 0 | L17: 0 | M17: 24754.08 | N17: 27401.12
A18: 9 | B18: ELL PK | C18: 188.9 | D18: 341.14 | E18: 2355.77 | F18: 320.79 | G18: 83.81 | H18: 226.4 | I18: 151.5 | J18: 67.92 | K18: 588.06 | L18: 549.93 | M18: 0 | N18: 4874.22
A19: 10 | B19: ELL K Half Time | C19: 188.9 | D19: 341.14 | E19: 2355.77 | F19: 320.79 | G19: 83.81 | H19: 226.4 | I19: 151.5 | J19: 67.92 | K19: 588.06 | L19: 549.93 | M19: 0 | N19: 4874.22
A20: 11 | B20: ELL Full Time | C20: 377.76 | D20: 682.27 | E20: 4711.51 | F20: 641.58 | G20: 167.57 | H20: 452.8 | I20: 303.02 | J20: 135.84 | K20: 1176.06 | L20: 1075.41 | M20: 0 | N20: 9723.82
A21: 12 | B21: Vocational | C21: 377.76 | D21: 682.27 | E21: 6882.53 | F21: 480.85 | G21: 215.14 | H21: 1267.83 | I21: 379.85 | J21: 511.66 | K21: 1709.06 | L21: 1305.56 | M21: 0 | N21: 13812.51
A22: 13 | B22: Economically Disadvantaged Decile 1 | C22: 0 | D22: 0 | E22: 2823.26 | F22: 0 | G22: 72.39 | H22: 0 | I22: 0 | J22: 0 | K22: 434.35 | L22: 289.57 | M22: 0 | N22: 3619.57
A23: 14 | B23: Economically Disadvantaged Decile 2 | C23: 0 | D23: 0 | E23: 2854.46 | F23: 0 | G23: 73.19 | H23: 0 | I23: 0 | J23: 0 | K23: 439.15 | L23: 292.77 | M23: 0 | N23: 3659.57
A24: 15 | B24: Economically Disadvantaged Decile 3 | C24: 0 | D24: 0 | E24: 2885.66 | F24: 0 | G24: 73.99 | H24: 0 | I24: 0 | J24: 0 | K24: 443.95 | L24: 295.97 | M24: 0 | N24: 3699.57
A25: 16 | B25: Economically Disadvantaged Decile 4 | C25: 0 | D25: 0 | E25: 2916.86 | F25: 0 | G25: 74.79 | H25: 0 | I25: 0 | J25: 0 | K25: 448.75 | L25: 299.17 | M25: 0 | N25: 3739.57
A26: 17 | B26: Economically Disadvantaged Decile 5 | C26: 0 | D26: 0 | E26: 2948.06 | F26: 0 | G26: 75.59 | H26: 0 | I26: 0 | J26: 0 | K26: 453.55 | L26: 302.37 | M26: 0 | N26: 3779.57
A27: 18 | B27: Economically Disadvantaged Decile 6 | C27: 0 | D27: 0 | E27: 2979.26 | F27: 0 | G27: 76.39 | H27: 0 | I27: 0 | J27: 0 | K27: 458.35 | L27: 305.57 | M27: 0 | N27: 3819.57
A28: 19 | B28: Economically Disadvantaged Decile 7 | C28: 0 | D28: 0 | E28: 3010.46 | F28: 0 | G28: 77.19 | H28: 0 | I28: 0 | J28: 0 | K28: 463.15 | L28: 308.77 | M28: 0 | N28: 3859.57
A29: 20 | B29: Economically Disadvantaged Decile 8 | C29: 0 | D29: 0 | E29: 3041.66 | F29: 0 | G29: 77.99 | H29: 0 | I29: 0 | J29: 0 | K29: 467.95 | L29: 311.97 | M29: 0 | N29: 3899.57
A30: 21 | B30: Economically Disadvantaged Decile 9 | C30: 0 | D30: 0 | E30: 3072.86 | F30: 0 | G30: 78.79 | H30: 0 | I30: 0 | J30: 0 | K30: 472.75 | L30: 315.17 | M30: 0 | N30: 3939.57
A31: 22 | B31: Economically Disadvantaged Decile 10 | C31: 0 | D31: 0 | E31: 3104.06 | F31: 0 | G31: 79.59 | H31: 0 | I31: 0 | J31: 0 | K31: 477.55 | L31: 318.37 | M31: 0 | N31: 3979.57
B33: FY19 Foundation Budget Rates (Inflation set at 2.64%)

Sheet Townwide Contributions
A1: 1 | B1: 2 | C1: 3 | D1: 4 | E1: From DOR, 1/5/2018 2015 income 5 | F1: 6 | G1: 7 | H1: 8 | I1: 9 | J1: 10 | K1: 11 | L1: 12 | M1: c70fy18 13 | N1: 14 | O1: 15 | P1: 16 | Q1: 17 | R1: 18 | S1: 19 | T1: 20 | U1: 21 | V1: 22 | W1: 23 | X1: 24 | Y1: 25 | Z1: 26 | AA1: 27 | AB1: 28 | AC1: 29 | AD1: 30 | AE1: 31 | AF1: 32 | AH1: Gov 1/3/18 3.5%
B2: Return to Index | C2: 1. Calculation of effort goal (target local share) | M2: 2. Calculation of annual increments toward goal (required local contribution) | Y2: Analysis of Gap Closing
B3: More about the data | R3: Increments | S3: Thresholds
D4: property percentage | F4: income percentage | N4: Version | R4: =parameters!C18 -> 0.01 | S4: =parameters!C16 -> 2.5 | U4: Effort Reduction | AF4: -0.05
D5: =parameters!C29 -> 0.003642194466 | F5: =parameters!C30 -> 0.0141741077 | N5: =mrgfvers -> 1 | R5: =parameters!C19 -> 0.02 | S5: =parameters!C17 -> 7.5 | U5: =effortred -> 0.85 | AF5: -0.1
I6: maximum | J6: target local | M6: required | P6: preliminary | R6: percentage | S6: dollar | AF6: 0.02
D7: local effort | E7: DOR total | F7: local effort | G7: combined | I7: local contribution | J7: contribution | K7: target | M7: local | O7: preliminary | P7: contribution | Q7: shortfall | R7: increment | S7: increment | U7: excess effort | V7: required | Y7: Before | Z7: After implementation | AF7: 0.01 | AH7: 1 | AI7: 2 | AJ7: 3 | AK7: 4
C8: total | D8: from property | E8: income | F8: from income | G8: effort | H8: =CYr -> FY19 | I8: foundation pct= | J8: (lesser of max local | K8: local | M8: contribution | N8: mrgf | O8: contribution | P8: percentage of | Q8: from target | R8: toward | S8: toward | T8: excess | U8: times effort | V8: contribution | W8: percentage | Y8: below effort | Z8: below effort | AA8: above effort | AB8: distance from | AD8: % distance | AE8: Points | AF8: x% of | AH8: mrgf | AI8: mrgf | AJ8: mrgf | AK8: mrgf
A9: Lea | B9: District | C9: EQV 2016 | D9: wealth | E9: 2015 | F9: wealth | G9: yield | H9: foundation | I9: =maxloc -> 0.825 | J9: or effort yield) | K9: share | M9: =PYr -> FY18 | N9: =CYr -> FY19 | O9: =CYr -> FY19 | P9: foundation | Q9: local share | R9: target | S9: target | T9: effort | U9: reduction % | V9: =CYr -> FY19 | W9: of foundation | Y9: shortfall | Z9: shortfall | AA9: excess | AB9: target | AD9: from target | AE9: from target | AF9: the gap
A10: 1 | B10: Abington | C10: 1892537300 | D10: =D$5*C10 -> 6892988.881 | E10: 557268000 | F10: =E10*F$5 -> 7898776.65 | G10: =ROUND(D10+F10,0) -> 14791766 | H10: =(SUMIF(town1755,A10,found1755)/2) -> 23136401.8 | I10: =ROUND(H10*maxloc,0) -> 19087531 | J10: =MIN(G10,I10) -> 14791766 | K10: =IF(H10>0, ROUND((J10*100/H10), 2), 0) -> 63.93 | M10: 14459512 | N10: =IF($N$5=1,AH10, IF( $N$5=2,AI10, IF( $N$5=3, AJ10, IF($N$5=4, AK10, 0)))) -> 0.0445 | O10: =ROUND(M10*(1+N10),0) -> 15102960 | P10: =O10*100/H10 -> 65.27791197 | Q10: =IF(K10>P10,K10-P10,0) -> 0 | R10: =IF(AND(Q10>$S$4,Q10<=$S$5),$R$4,IF(Q10>$S$5,$R$5,0)) -> 0 | S10: =ROUND(R10*M10,0) -> 0 | T10: =MAX(O10-J10,0) -> 311194 | U10: =MAX(T10*(U$5),0) -> 264514.9 | V10: =MIN(H10*parameters!C$22,ROUND(O10+S10-U10,0)) -> 14838445 | W10: =V10*100/H10 -> 64.13462702 | Y10: =IF(P10<K10, O10-J10, 0) -> 0 | Z10: =MAX(J10-(O10+S10),0) -> 0 | AA10: =IF(P10>K10, V10-J10,0) -> 46679 | AB10: =W10-K10 -> 0.2046270205 | AD10: =(O10-J10)/J10 -> 0.02103832632 | AE10: =P10-K10 -> 1.347911972 | AF10: =IF(AD10<$AF$5, $AF$6*(M10), IF(AND(AD10<$AF$4, AD10>$AF$5), $AF$7*(M10), 0)) -> 0 | AH10: 0.0445 | AM10: 14459512 | AN10: =AM10-M10 -> 0
A11: 2 | B11: Acton | C11: 4306412900 | D11: 15684793.23 | E11: 1443207000 | F11: =E11*F$5 -> 20456171.45 | G11: 36140965 | H11: =(SUMIF(town1755,A11,found1755)/2) -> 47008839.51 | I11: =ROUND(H11*maxloc,0) -> 38782293 | J11: =MIN(G11,I11) -> 36140965 | K11: =IF(H11>0, ROUND((J11*100/H11), 2), 0) -> 76.88 | M11: 35792300 | N11: =IF($N$5=1,AH11, IF( $N$5=2,AI11, IF( $N$5=3, AJ11, IF($N$5=4, AK11, 0)))) -> 0.0419 | O11: =ROUND(M11*(1+N11),0) -> 37291997 | P11: =O11*100/H11 -> 79.32975455 | Q11: =IF(K11>P11,K11-P11,0) -> 0 | R11: =IF(AND(Q11>$S$4,Q11<=$S$5),$R$4,IF(Q11>$S$5,$R$5,0)) -> 0 | S11: =ROUND(R11*M11,0) -> 0 | T11: =MAX(O11-J11,0) -> 1151032 | U11: 978377.2 | V11: =MIN(H11*parameters!C$22,ROUND(O11+S11-U11,0)) -> 36313620 | W11: =V11*100/H11 -> 77.24849279 | Y11: =IF(P11<K11, O11-J11, 0) -> 0 | Z11: 0 | AA11: =IF(P11>K11, V11-J11,0) -> 172655 | AB11: =W11-K11 -> 0.3684927943 | AD11: 0.0318484025 | AE11: =P11-K11 -> 2.449754553 | AF11: 0 | AH11: 0.0419 | AM11: 35792300 | AN11: =AM11-M11 -> 0
A12: 3 | B12: Acushnet | C12: 1105676500 | D12: 4027088.83 | E12: 308194000 | F12: =E12*F$5 -> 4368374.949 | G12: 8395464 | H12: 14543781.23 | I12: 11998620 | J12: 8395464 | K12: 57.73 | M12: 8231744 | N12: 0.0488 | O12: 8633453 | P12: 59.36181838 | Q12: 0 | R12: 0 | S12: 0 | T12: 237989 | U12: 202290.65 | V12: =MIN(H12*parameters!C$22,ROUND(O12+S12-U12,0)) -> 8431162 | W12: 57.97090775 | Y12: 0 | Z12: 0 | AA12: 35698 | AB12: 0.2409077486 | AD12: 0.02834733137 | AE12: 1.631818385 | AF12: 0 | AH12: 0.0488 | AM12: 8231744 | AN12: 0
A13: 4 | B13: Adams | C13: 497127100 | D13: 1810633.573 | E13: 183015000 | F13: 2594074.321 | G13: 4404708 | H13: 12897524.39 | I13: 10640458 | J13: 4404708 | K13: 34.15 | M13: 4304378 | N13: 0.0385 | O13: 4470097 | P13: 34.65856597 | Q13: 0 | R13: 0 | S13: 0 | T13: 65389 | U13: 55580.65 | V13: =MIN(H13*parameters!C$22,ROUND(O13+S13-U13,0)) -> 4414516 | W13: 34.2276228 | Y13: 0 | Z13: 0 | AA13: 9808 | AB13: 0.07762280116 | AD13: 0.01484525194 | AE13: 0.5085659675 | AF13: 0 | AH13: 0.0385 | AM13: 4304378 | AN13: 0
A14: 5 | B14: Agawam | C14: 2949078000 | D14: 10741115.57 | E14: 813211000 | F14: 11526540.3 | G14: 22267656 | H14: 41091729.2 | I14: 33900677 | J14: 22267656 | K14: 54.19 | M14: 22135293 | N14: 0.0332 | O14: 22870185 | P14: 55.65641905 | Q14: 0 | R14: 0 | S14: 0 | T14: 602529 | U14: 512149.65 | V14: =MIN(H14*parameters!C$22,ROUND(O14+S14-U14,0)) -> 22358035 | W14: 54.41006119 | Y14: 0 | Z14: 0 | AA14: 90379 | AB14: 0.2200611857 | AD14: 0.02705848339 | AE14: 1.466419054 | AF14: 0 | AH14: 0.0332 | AM14: 22135293 | AN14: 0
A15: 6 | B15: Alford | C15: 297724600 | D15: 1084370.891 | E15: 19837000 | F15: 281171.7744 | G15: 1365543 | H15: 275467.8495 | I15: 227261 | J15: 227261 | K15: 82.5 | M15: 175951 | N15: 0.0343 | O15: 181986 | P15: 66.06433395 | Q15: 16.43566605 | R15: 0.02 | S15: 3519 | T15: 0 | U15: 0 | V15: =MIN(H15*parameters!C$22,ROUND(O15+S15-U15,0)) -> 185505 | W15: 67.34179701 | Y15: -45275 | Z15: 41756 | AA15: 0 | AB15: -15.15820299 | AD15: -0.1992202798 | AE15: -16.43566605 | AF15: 3519.02 | AH15: 0.0343 | AM15: 175951 | AN15: 0
A16: 7 | B16: Amesbury | C16: 2035493900 | D16: 7413664.618 | E16: 593207000 | F16: 8408179.907 | G16: 15821845 | H16: 23871282.82 | I16: 19693808 | J16: 15821845 | K16: 66.28 | M16: 15395280 | N16: 0.0411 | O16: 16028026 | P16: 67.143547 | Q16: 0 | R16: 0 | S16: 0 | T16: 206181 | U16: 175253.85 | V16: =MIN(H16*parameters!C$22,ROUND(O16+S16-U16,0)) -> 15852772 | W16: 66.40938452 | Y16: 0 | Z16: 0 | AA16: 30927 | AB16: 0.1293845234 | AD16: 0.01303141321 | AE16: 0.8635469951 | AF16: 0 | AH16: 0.0411 | AM16: 15395280 | AN16: 0
A17: 8 | B17: Amherst | C17: 2348821000 | D17: 8554862.848 | E17: 695780000 | F17: 9862060.656 | G17: 18416924 | H17: 24595946.6 | I17: 20291656 | J17: 18416924 | K17: 74.88 | M17: 18385964 | N17: 0.0401 | O17: 19123241 | P17: 77.74956301 | Q17: 0 | R17: 0 | S17: 0 | T17: 706317 | U17: 600369.45 | V17: =MIN(H17*parameters!C$22,ROUND(O17+S17-U17,0)) -> 18522872 | W17: 75.30863643 | Y17: 0 | Z17: 0 | AA17: 105948 | AB17: 0.4286364262 | AD17: 0.03835151842 | AE17: 2.869563014 | AF17: 0 | AH17: 0.0401 | AM17: 18385964 | AN17: 0
A18: 9 | B18: Andover | C18: 7972993500 | D18: 29039192.8 | E18: 2776034000 | F18: 39347804.9 | G18: 68386998 | H18: 60814875.44 | I18: 50172272 | J18: 50172272 | K18: 82.5 | M18: 49628563 | N18: 0.0428 | O18: 51752665 | P18: 85.0986944 | Q18: 0 | R18: 0 | S18: 0 | T18: 1580393 | U18: 1343334.05 | V18: =MIN(H18*parameters!C$22,ROUND(O18+S18-U18,0)) -> 50409331 | W18: 82.88980391 | Y18: 0 | Z18: 0 | AA18: 237059 | AB18: 0.3898039087 | AD18: 0.03149933095 | AE18: 2.598694399 | AF18: 0 | AH18: 0.0428 | AM18: 49628563 | AN18: 0
A19: 10 | B19: Arlington | C19: 9073201400 | D19: 33046363.93 | E19: 2535701000 | F19: 35941299.07 | G19: 68987663 | H19: 59828536.46 | I19: 49358543 | J19: 49358543 | K19: 82.5 | M19: 45590053 | N19: 0.0403 | O19: 47427332 | P19: 79.27209123 | Q19: 3.227908775 | R19: 0.01 | S19: 455901 | T19: 0 | U19: 0 | V19: =MIN(H19*parameters!C$22,ROUND(O19+S19-U19,0)) -> 47883233 | W19: 80.03410385 | Y19: -1931211 | Z19: 1475310 | AA19: 0 | AB19: -2.465896152 | AD19: -0.03912617518 | AE19: -3.227908775 | AF19: 0 | AH19: 0.0403 | AM19: 45590053 | AN19: 0
A20: 11 | B20: Ashburnham | C20: 600324900 | D20: 2186500.029 | E20: 215228000 | F20: 3050664.852 | G20: 5237165 | H20: 11823586.17 | I20: 9754459 | J20: 5237165 | K20: 44.29 | M20: 4999310 | N20: 0.0339 | O20: 5168787 | P20: 43.7158991 | Q20: 0.5741009029 | R20: 0 | S20: 0 | T20: 0 | U20: 0 | V20: =MIN(H20*parameters!C$22,ROUND(O20+S20-U20,0)) -> 5168787 | W20: 43.7158991 | Y20: -68378 | Z20: 68378 | AA20: 0 | AB20: -0.5741009029 | AD20: -0.0130563005 | AE20: -0.5741009029 | AF20: 0 | AH20: 0.0339 | AM20: 4999310 | AN20: 0
A21: 12 | B21: Ashby | C21: 288229500 | D21: 1049787.89 | E21: 100304000 | F21: 1421719.699 | G21: 2471508 | H21: 4234102.179 | I21: 3493134 | J21: 2471508 | K21: 58.37 | M21: 2361519 | N21: 0.0359 | O21: 2446298 | P21: 57.77607381 | Q21: 0.5939261886 | R21: 0 | S21: 0 | T21: 0 | U21: 0 | V21: =MIN(H21*parameters!C$22,ROUND(O21+S21-U21,0)) -> 2446298 | W21: 57.77607381 | Y21: -25210 | Z21: 25210 | AA21: 0 | AB21: -0.5939261886 | AD21: -0.01020025021 | AE21: -0.5939261886 | AF21: 0 | AH21: 0.0359 | AM21: 2361519 | AN21: 0
A22: 13 | B22: Ashfield | C22: 241758400 | D22: 880531.1066 | E22: 45081000 | F22: 638982.9492 | G22: 1519514 | H22: 2195856.239 | I22: 1811581 | J22: 1519514 | K22: 69.2 | M22: 1544933 | N22: 0.036 | O22: 1600551 | P22: 72.88960777 | Q22: 0 | R22: 0 | S22: 0 | T22: 81037 | U22: 68881.45 | V22: =MIN(H22*parameters!C$22,ROUND(O22+S22-U22,0)) -> 1531670 | W22: 69.75274486 | Y22: 0 | Z22: 0 | AA22: 12156 | AB22: 0.5527448584 | AD22: 0.05333086763 | AE22: 3.689607772 | AF22: 0 | AH22: 0.036 | AM22: 1544933 | AN22: 0
A23: 14 | B23: Ashland | C23: 2509720800 | D23: 9140891.209 | E23: 833233000 | F23: 11810334.28 | G23: 20951225 | H23: 27359025.88 | I23: 22571196 | J23: 20951225 | K23: 76.58 | M23: 20301200 | N23: 0.0472 | O23: 21259417 | P23: 77.70531413 | Q23: 0 | R23: 0 | S23: 0 | T23: 308192 | U23: 261963.2 | V23: =MIN(H23*parameters!C$22,ROUND(O23+S23-U23,0)) -> 20997454 | W23: 76.74781293 | Y23: 0 | Z23: 0 | AA23: 46229 | AB23: 0.1678129311 | AD23: 0.01470997519 | AE23: 1.125314127 | AF23: 0 | AH23: 0.0472 | AM23: 20301200 | AN23: 0
A24: 15 | B24: Athol | C24: 673223300 | D24: 2452010.178 | E24: 226597000 | F24: 3211810.283 | G24: 5663820 | H24: 18966402.91 | I24: 15647282 | J24: 5663820 | K24: 29.86 | M24: 2845384 | N24: 0.0314 | O24: 2934729 | P24: 15.47330305 | Q24: 14.38669695 | R24: 0.02 | S24: 56908 | T24: 0 | U24: 0 | V24: =MIN(H24*parameters!C$22,ROUND(O24+S24-U24,0)) -> 2991637 | W24: 15.7733494 | Y24: -2729091 | Z24: 2672183 | AA24: 0 | AB24: -14.0866506 | AD24: -0.481846351 | AE24: -14.38669695 | AF24: 56907.68 | AH24: 0.0314 | AM24: 2845384 | AN24: 0
A25: 16 | B25: Attleboro | C25: 4266596600 | D25: 15539774.53 | E25: 1382625000 | F25: 19597475.66 | G25: 35137250 | H25: 72961463.93 | I25: 60193208 | J25: 35137250 | K25: 48.16 | M25: 34240533 | N25: 0.0394 | O25: 35589610 | P25: 48.77864024 | Q25: 0 | R25: 0 | S25: 0 | T25: 452360 | U25: 384506 | V25: =MIN(H25*parameters!C$22,ROUND(O25+S25-U25,0)) -> 35205104 | W25: 48.25164149 | Y25: 0 | Z25: 0 | AA25: 67854 | AB25: 0.09164149079 | AD25: 0.01287408662 | AE25: 0.6186402369 | AF25: 0 | AH25: 0.0394 | AM25: 34240533 | AN25: 0
A26: 17 | B26: Auburn | C26: 2042948200 | D26: 7440814.629 | E26: 551586000 | F26: 7818239.37 | G26: 15259054 | H26: 26833107.11 | I26: 22137313 | J26: 15259054 | K26: 56.87 | M26: 14832871 | N26: 0.0416 | O26: 15449918 | P26: 57.57781957 | Q26: 0 | R26: 0 | S26: 0 | T26: 190864 | U26: 162234.4 | V26: =MIN(H26*parameters!C$22,ROUND(O26+S26-U26,0)) -> 15287684 | W26: 56.97321572 | Y26: 0 | Z26: 0 | AA26: 28630 | AB26: 0.1032157189 | AD26: 0.01250824592 | AE26: 0.7078195738 | AF26: 0 | AH26: 0.0416 | AM26: 14832871 | AN26: 0
A27: 18 | B27: Avon | C27: 823961800 | D27: 3001029.108 | E27: 147040000 | F27: 2084160.796 | G27: 5085190 | H27: 7218423.844 | I27: 5955200 | J27: 5085190 | K27: 70.45 | M27: 4926654 | N27: 0.0602 | O27: 5223239 | P27: 72.35982692 | Q27: 0 | R27: 0 | S27: 0 | T27: 138049 | U27: 117341.65 | V27: =MIN(H27*parameters!C$22,ROUND(O27+S27-U27,0)) -> 5105897 | W27: 70.73423659 | Y27: 0 | Z27: 0 | AA27: 20707 | AB27: 0.2842365919 | AD27: 0.0271472649 | AE27: 1.909826922 | AF27: 0 | AH27: 0.0602 | AM27: 4926654 | AN27: 0
A28: 19 | B28: Ayer | C28: 1102998400 | D28: 4017334.669 | E28: 261294000 | F28: 3703609.297 | G28: 7720944 | H28: 10717535.09 | I28: 8841966 | J28: 7720944 | K28: 72.04 | M28: 7363897 | N28: 0.0565 | O28: 7779957 | P28: 72.59091696 | Q28: 0 | R28: 0 | S28: 0 | T28: 59013 | U28: 50161.05 | V28: =MIN(H28*parameters!C$22,ROUND(O28+S28-U28,0)) -> 7729796 | W28: 72.12288957 | Y28: 0 | Z28: 0 | AA28: 8852 | AB28: 0.08288956847 | AD28: 0.007643236371 | AE28: 0.5509169606 | AF28: 0 | AH28: 0.0565 | AM28: 7363897 | AN28: 0
A29: 20 | B29: Barnstable | C29: 13665091900 | D29: 49770922.1 | E29: 1677855000 | F29: 23782097.48 | G29: 73553020 | H29: 62783490.55 | I29: 51796380 | J29: 51796380 | K29: 82.5 | M29: 50531433 | N29: 0.0455 | O29: 52830613 | P29: 84.14730136 | Q29: 0 | R29: 0 | S29: 0 | T29: 1034233 | U29: 879098.05 | V29: =MIN(H29*parameters!C$22,ROUND(O29+S29-U29,0)) -> 51951515 | W29: 82.74709568 | Y29: 0 | Z29: 0 | AA29: 155135 | AB29: 0.2470956798 | AD29: 0.01996728343 | AE29: 1.647301358 | AF29: 0 | AH29: 0.0455 | AM29: 50531433 | AN29: 0
A30: 21 | B30: Barre | C30: 431266200 | D30: 1570755.367 | E30: 138210000 | F30: 1959003.425 | G30: 3529759 | H30: 8977055.519 | I30: 7406071 | J30: 3529759 | K30: 39.32 | M30: 3546550 | N30: 0.0365 | O30: 3675999 | P30: 40.94882773 | Q30: 0 | R30: 0 | S30: 0 | T30: 146240 | U30: 124304 | V30: =MIN(H30*parameters!C$22,ROUND(O30+S30-U30,0)) -> 3551695 | W30: 39.56414208 | Y30: 0 | Z30: 0 | AA30: 21936 | AB30: 0.2441420795 | AD30: 0.04143059059 | AE30: 1.628827734 | AF30: 0 | AH30: 0.0365 | AM30: 3546550 | AN30: 0
A31: 22 | B31: Becket | C31: 518810500 | D31: 1889608.732 | E31: 48089000 | F31: 681618.6652 | G31: 2571227 | H31: 2341673.77 | I31: 1931881 | J31: 1931881 | K31: 82.5 | M31: 1771907 | N31: 0.0321 | O31: 1828785 | P31: 78.09734315 | Q31: 4.402656847 | R31: 0.01 | S31: 17719 | T31: 0 | U31: 0 | V31: =MIN(H31*parameters!C$22,ROUND(O31+S31-U31,0)) -> 1846504 | W31: 78.85402413 | Y31: -103096 | Z31: 85377 | AA31: 0 | AB31: -3.645975869 | AD31: -0.05336560585 | AE31: -4.402656847 | AF31: 17719.07 | AH31: 0.0321 | AM31: 1771907 | AN31: 0
A32: 23 | B32: Bedford | C32: 3503731500 | D32: 12761271.48 | E32: 897532000 | F32: 12721715.23 | G32: 25482987 | H32: 28091601.91 | I32: 23175572 | J32: 23175572 | K32: 82.5 | M32: 22558495 | N32: 0.0553 | O32: 23805980 | P32: 84.74411702 | Q32: 0 | R32: 0 | S32: 0 | T32: 630408 | U32: 535846.8 | V32: =MIN(H32*parameters!C$22,ROUND(O32+S32-U32,0)) -> 23270133 | W32: 82.83661812 | Y32: 0 | Z32: 0 | AA32: 94561 | AB32: 0.336618116 | AD32: 0.02720139982 | AE32: 2.244117025 | AF32: 0 | AH32: 0.0553 | AM32: 22558495 | AN32: 0
A33: 24 | B33: Belchertown | C33: 1458257000 | D33: 5311255.576 | E33: 494255000 | F33: 7005623.601 | G33: 12316879 | H33: 25313907.06 | I33: 20883973 | J33: 12316879 | K33: 48.66 | M33: 12034426 | N33: 0.0449 | O33: 12574772 | P33: 49.67535028 | Q33: 0 | R33: 0 | S33: 0 | T33: 257893 | U33: 219209.05 | V33: =MIN(H33*parameters!C$22,ROUND(O33+S33-U33,0)) -> 12355563 | W33: 48.80938755 | Y33: 0 | Z33: 0 | AA33: 38684 | AB33: 0.1493875533 | AD33: 0.0209381776 | AE33: 1.015350281 | AF33: 0 | AH33: 0.0449 | AM33: 12034426 | AN33: 0
A34: 25 | B34: Bellingham | C34: 2306766000 | D34: 8401690.36 | E34: 576785000 | F34: 8175412.71 | G34: 16577103 | H34: 25132294.01 | I34: 20734143 | J34: 16577103 | K34: 65.96 | M34: 16328065 | N34: 0.0425 | O34: 17022008 | P34: 67.72962306 | Q34: 0 | R34: 0 | S34: 0 | T34: 444905 | U34: 378169.25 | V34: =MIN(H34*parameters!C$22,ROUND(O34+S34-U34,0)) -> 16643839 | W34: 66.22490964 | Y34: 0 | Z34: 0 | AA34: 66736 | AB34: 0.2649096448 | AD34: 0.0268385254 | AE34: 1.769623062 | AF34: 0 | AH34: 0.0425 | AM34: 16328065 | AN34: 0
A35: 26 | B35: Belmont | C35: 6932749000 | D35: 25250420.04 | E35: 2085819000 | F35: 29564623.15 | G35: 54815043 | H35: 45670404.47 | I35: 37678084 | J35: 37678084 | K35: 82.5 | M35: 35263181 | N35: 0.0408 | O35: 36701919 | P35: 80.36258803 | Q35: 2.137411966 | R35: 0 | S35: 0 | T35: 0 | U35: 0 | V35: =MIN(H35*parameters!C$22,ROUND(O35+S35-U35,0)) -> 36701919 | W35: 80.36258803 | Y35: -976165 | Z35: 976165 | AA35: 0 | AB35: -2.137411966 | AD35: -0.02590803184 | AE35: -2.137411966 | AF35: 0 | AH35: 0.0408 | AM35: 35263181 | AN35: 0
A36: 27 | B36: Berkley | C36: 772614400 | D36: 2814011.892 | E36: 235981000 | F36: 3344820.109 | G36: 6158832 | H36: 12076077.8 | I36: 9962764 | J36: 6158832 | K36: 51 | M36: 6023222 | N36: 0.0369 | O36: 6245479 | P36: 51.71777711 | Q36: 0 | R36: 0 | S36: 0 | T36: 86647 | U36: 73649.95 | V36: =MIN(H36*parameters!C$22,ROUND(O36+S36-U36,0)) -> 6171829 | W36: 51.10789366 | Y36: 0 | Z36: 0 | AA36: 12997 | AB36: 0.1078936553 | AD36: 0.01406873901 | AE36: 0.7177771061 | AF36: 0 | AH36: 0.0369 | AM36: 6023222 | AN36: 0
A37: 28 | B37: Berlin | C37: 600240900 | D37: 2186194.084 | E37: 154765000 | F37: 2193655.778 | G37: 4379850 | H37: 3985530.702 | I37: 3288063 | J37: 3288063 | K37: 82.5 | M37: 3205340 | N37: 0.0591 | O37: 3394776 | P37: 85.1775147 | Q37: 0 | R37: 0 | S37: 0 | T37: 106713 | U37: 90706.05 | V37: =MIN(H37*parameters!C$22,ROUND(O37+S37-U37,0)) -> 3304070 | W37: 82.9016321 | Y37: 0 | Z37: 0 | AA37: 16007 | AB37: 0.4016320951 | AD37: 0.03245467012 | AE37: 2.677514701 | AF37: 0 | AH37: 0.0591 | AM37: 3205340 | AN37: 0
A38: 29 | B38: Bernardston | C38: 216985900 | D38: 790304.8442 | E38: 60913000 | F38: 863387.4223 | G38: 1653692 | H38: 2954168.762 | I38: 2437189 | J38: 1653692 | K38: 55.98 | M38: 1612576 | N38: 0.0416 | O38: 1679659 | P38: 56.85724599 | Q38: 0 | R38: 0 | S38: 0 | T38: 25967 | U38: 22071.95 | V38: =MIN(H38*parameters!C$22,ROUND(O38+S38-U38,0)) -> 1657587 | W38: 56.11009843 | Y38: 0 | Z38: 0 | AA38: 3895 | AB38: 0.1300984288 | AD38: 0.01570244036 | AE38: 0.8772459948 | AF38: 0 | AH38: 0.0416 | AM38: 1612576 | AN38: 0
A39: 30 | B39: Beverly | C39: 6145554700 | D39: 22383305.32 | E39: 1745748000 | F39: 24744420.17 | G39: 47127725 | H39: 48205260.49 | I39: 39769340 | J39: 39769340 | K39: 82.5 | M39: 39360839 | N39: 0.0408 | O39: 40966761 | P39: 84.98400503 | Q39: 0 | R39: 0 | S39: 0 | T39: 1197421 | U39: 1017807.85 | V39: =MIN(H39*parameters!C$22,ROUND(O39+S39-U39,0)) -> 39948953 | W39: 82.87260061 | Y39: 0 | Z39: 0 | AA39: 179613 | AB39: 0.3726006074 | AD39: 0.03010914941 | AE39: 2.484005026 | AF39: 0 | AH39: 0.0408 | AM39: 39360839 | AN39: 0
A40: 31 | B40: Billerica | C40: 6134145700 | D40: 22341751.52 | E40: 1531796000 | F40: 21711841.48 | G40: 44053593 | H40: 59809312.99 | I40: 49342683 | J40: 44053593 | K40: 73.66 | M40: 42695329 | N40: 0.0493 | O40: 44800209 | P40: 74.90507207 | Q40: 0 | R40: 0 | S40: 0 | T40: 746616 | U40: 634623.6 | V40: =MIN(H40*parameters!C$22,ROUND(O40+S40-U40,0)) -> 44165585 | W40: 73.84399317 | Y40: 0 | Z40: 0 | AA40: 111992 | AB40: 0.183993169 | AD40: 0.01694790252 | AE40: 1.245072068 | AF40: 0 | AH40: 0.0493 | AM40: 42695329 | AN40: 0
A41: 32 | B41: Blackstone | C41: 894520200 | D41: 3258016.522 | E41: 271352000 | F41: 3846172.473 | G41: 7104189 | H41: 14670156.95 | I41: 12102879 | J41: 7104189 | K41: 48.43 | M41: 6951173 | N41: 0.038 | O41: 7215318 | P41: 49.18364559 | Q41: 0 | R41: 0 | S41: 0 | T41: 111129 | U41: 94459.65 | V41: =MIN(H41*parameters!C$22,ROUND(O41+S41-U41,0)) -> 7120858 | W41: 48.53975336 | Y41: 0 | Z41: 0 | AA41: 16669 | AB41: 0.1097533618 | AD41: 0.01564274261 | AE41: 0.753645587 | AF41: 0 | AH41: 0.038 | AM41: 6951173 | AN41: 0
A42: 33 | B42: Blandford | C42: 174294800 | D42: 634815.556 | E42: 36451000 | F42: 516660.3998 | G42: 1151476 | H42: 1275891.614 | I42: 1052611 | J42: 1052611 | K42: 82.5 | M42: 1083006 | N42: 0.0319 | O42: 1117554 | P42: 87.59004197 | Q42: 0 | R42: 0 | S42: 0 | T42: 64943 | U42: 55201.55 | V42: =MIN(H42*parameters!C$22,ROUND(O42+S42-U42,0)) -> 1062352 | W42: 83.26349892 | Y42: 0 | Z42: 0 | AA42: 9741 | AB42: 0.7634989164 | AD42: 0.06169705618 | AE42: 5.090041971 | AF42: 0 | AH42: 0.0319 | AM42: 1083006 | AN42: 0
A43: 34 | B43: Bolton | C43: 1007514900 | D43: 3669565.193 | E43: 389224000 | F43: 5516902.896 | G43: 9186468 | H43: 10639231.07 | I43: 8777366 | J43: 8777366 | K43: 82.5 | M43: 8252797 | N43: 0.0403 | O43: 8585385 | P43: 80.69554038 | Q43: 1.804459625 | R43: 0 | S43: 0 | T43: 0 | U43: 0 | V43: =MIN(H43*parameters!C$22,ROUND(O43+S43-U43,0)) -> 8585385 | W43: 80.69554038 | Y43: -191981 | Z43: 191981 | AA43: 0 | AB43: -1.804459625 | AD43: -0.02187227922 | AE43: -1.804459625 | AF43: 0 | AH43: 0.0403 | AM43: 8252797 | AN43: 0
A44: 35 | B44: Boston | C44: 143576209500 | D44: 522932475.7 | E44: 30323113000 | F44: 429803069.5 | G44: 952735545 | H44: 851831126.4 | I44: 702760679 | J44: 702760679 | K44: 82.5 | M44: 686260642 | N44: 0.0523 | O44: 722152074 | P44: 84.77643651 | Q44: 0 | R44: 0 | S44: 0 | T44: 19391395 | U44: 16482685.75 | V44: =MIN(H44*parameters!C$22,ROUND(O44+S44-U44,0)) -> 705669388 | W44: 82.84146542 | Y44: 0 | Z44: 0 | AA44: 2908709 | AB44: 0.3414654191 | AD44: 0.02759317016 | AE44: 2.276436505 | AF44: 0 | AH44: 0.0523 | AM44: 686260642 | AN44: 0
A45: 36 | B45: Bourne | C45: 4397828000 | D45: 16017744.8 | E45: 654208000 | F45: 9272814.65 | G45: 25290559 | H45: 23722954.36 | I45: 19571437 | J45: 19571437 | K45: 82.5 | M45: 19132893 | N45: 0.0487 | O45: 20064665 | P45: 84.57911563 | Q45: 0 | R45: 0 | S45: 0 | T45: 493228 | U45: 419243.8 | V45: =MIN(H45*parameters!C$22,ROUND(O45+S45-U45,0)) -> 19645421 | W45: 82.81186525 | Y45: 0 | Z45: 0 | AA45: 73984 | AB45: 0.3118652508 | AD45: 0.0252014198 | AE45: 2.079115626 | AF45: 0 | AH45: 0.0487 | AM45: 19132893 | AN45: 0
A46: 37 | B46: Boxborough | C46: 1104126800 | D46: 4021444.521 | E46: 298420000 | F46: 4229837.22 | G46: 8251282 | H46: 8675134.991 | I46: 7156986 | J46: 7156986 | K46: 82.5 | M46: 6841765 | N46: 0.0456 | O46: 7153749 | P46: 82.46268222 | Q46: =IF(K46>P46,K46-P46,0) -> 0.03731778085 | R46: 0 | S46: 0 | T46: 0 | U46: 0 | V46: =MIN(H46*parameters!C$22,ROUND(O46+S46-U46,0)) -> 7153749 | W46: 82.46268222 | Y46: -3237 | Z46: 3237 | AA46: 0 | AB46: -0.03731778085 | AD46: -0.0004522853615 | AE46: -0.03731778085 | AF46: 0 | AH46: 0.0456 | AM46: 6841765 | AN46: 0
A47: 38 | B47: Boxford | C47: 1748702500 | D47: 6369114.568 | E47: 863306000 | F47: 12236592.22 | G47: 18605707 | H47: 14170525.34 | I47: 11690683 | J47: 11690683 | K47: 82.5 | M47: 11777896 | N47: 0.0347 | O47: 12186589 | P47: 85.99955687 | Q47: 0 | R47: 0 | S47: 0 | T47: 495906 | U47: 421520.1 | V47: =MIN(H47*parameters!C$22,ROUND(O47+S47-U47,0)) -> 11765069 | W47: 83.02493179 | Y47: 0 | Z47: 0 | AA47: 74386 | AB47: 0.5249317909 | AD47: 0.04241890743 | AE47: 3.499556865 | AF47: 0 | AH47: 0.0347 | AM47: 11777896 | AN47: 0
A48: 39 | B48: Boylston | C48: 686459600 | D48: 2500219.356 | E48: 244186000 | F48: 3461118.663 | G48: 5961338 | H48: 6535062.241 | I48: 5391426 | J48: 5391426 | K48: 82.5 | M48: 4925836 | N48: 0.0438 | O48: 5141588 | P48: 78.67695533 | Q48: 3.823044668 | R48: 0.01 | S48: 49258 | T48: 0 | U48: 0 | V48: =MIN(H48*parameters!C$22,ROUND(O48+S48-U48,0)) -> 5190846 | W48: 79.43070485 | Y48: -249838 | Z48: 200580 | AA48: 0 | AB48: -3.069295153 | AD48: -0.04633987372 | AE48: -3.823044668 | AF48: 0 | AH48: 0.0438 | AM48: 4925836 | AN48: 0
A49: 40 | B49: Braintree | C49: 6327219800 | D49: 23044964.94 | E49: 1516139000 | F49: 21489917.47 | G49: 44534882 | H49: 63015198.61 | I49: 51987539 | J49: 44534882 | K49: 70.67 | M49: 42935807 | N49: 0.0395 | O49: 44631771 | P49: 70.8269941 | Q49: 0 | R49: 0 | S49: 0 | T49: 96889 | U49: 82355.65 | V49: =MIN(H49*parameters!C$22,ROUND(O49+S49-U49,0)) -> 44549415 | W49: 70.69630182 | Y49: 0 | Z49: 0 | AA49: 14533 | AB49: 0.02630181507 | AD49: 0.002175575541 | AE49: 0.1569940954 | AF49: 0 | AH49: 0.0395 | AM49: 42935807 | AN49: 0
A50: 41 | B50: Brewster | C50: 3720926000 | D50: 13552336.09 | E50: 318794000 | F50: 4518620.49 | G50: 18070957 | H50: 11407278.25 | I50: 9411005 | J50: 9411005 | K50: 82.5 | M50: 9366735 | N50: 0.0488 | O50: 9823832 | P50: 86.11898287 | Q50: 0 | R50: 0 | S50: 0 | T50: 412827 | U50: 350902.95 | V50: =MIN(H50*parameters!C$22,ROUND(O50+S50-U50,0)) -> 9472929 | W50: 83.04285031 | Y50: 0 | Z50: 0 | AA50: 61924 | AB50: 0.5428503136 | AD50: 0.04386640959 | AE50: 3.61898287 | AF50: 0 | AH50: 0.0488 | AM50: 9366735 | AN50: 0
A51: 42 | B51: Bridgewater | C51: 2684073900 | D51: 9775919.105 | E51: 869094000 | F51: 12318631.96 | G51: 22094551 | H51: 34177675.34 | I51: 28196582 | J51: 22094551 | K51: 64.65 | M51: 21063017 | N51: 0.047 | O51: 22052979 | P51: 64.52451426 | Q51: 0.1254857384 | R51: 0 | S51: 0 | T51: 0 | U51: 0 | V51: =MIN(H51*parameters!C$22,ROUND(O51+S51-U51,0)) -> 22052979 | W51: 64.52451426 | Y51: -41572 | Z51: 41572 | AA51: 0 | AB51: -0.1254857384 | AD51: -0.00188154989 | AE51: -0.1254857384 | AF51: 0 | AH51: 0.047 | AM51: 21063017 | AN51: 0
A52: 43 | B52: Brimfield | C52: 417860100 | D52: 1521927.744 | E52: 125530000 | F52: 1779275.74 | G52: 3301203 | H52: 5562682.268 | I52: 4589213 | J52: 3301203 | K52: 59.35 | M52: 3225135 | N52: 0.0396 | O52: 3352850 | P52: 60.27398005 | Q52: 0 | R52: 0 | S52: 0 | T52: 51647 | U52: 43899.95 | V52: =MIN(H52*parameters!C$22,ROUND(O52+S52-U52,0)) -> 3308950 | W52: 59.48479242 | Y52: 0 | Z52: 0 | AA52: 7747 | AB52: 0.1347924222 | AD52: 0.01564490278 | AE52: 0.9239800458 | AF52: 0 | AH52: 0.0396 | AM52: 3225135 | AN52: 0
A53: 44 | B53: Brockton | C53: 6479586800 | D53: 23599915.19 | E53: 1915272000 | F53: 27147271.6 | G53: 50747187 | H53: 232641167.1 | I53: 191928963 | J53: 50747187 | K53: 21.81 | M53: 45425243 | N53: 0.0316 | O53: 46860681 | P53: 20.14290144 | Q53: 1.667098555 | R53: 0 | S53: 0 | T53: 0 | U53: 0 | V53: =MIN(H53*parameters!C$22,ROUND(O53+S53-U53,0)) -> 46860681 | W53: 20.14290144 | Y53: -3886506 | Z53: 3886506 | AA53: 0 | AB53: -1.667098555 | AD53: -0.07658564405 | AE53: -1.667098555 | AF53: 454252.43 | AH53: 0.0316 | AM53: 45425243 | AN53: 0
A54: 45 | B54: Brookfield | C54: 262013600 | D54: 954304.484 | E54: 92117000 | F54: 1305676.279 | G54: 2259981 | H54: 5203908.319 | I54: 4293224 | J54: 2259981 | K54: 43.43 | M54: 2210489 | N54: 0.0279 | O54: 2272162 | P54: 43.66260627 | Q54: 0 | R54: 0 | S54: 0 | T54: 12181 | U54: 10353.85 | V54: =MIN(H54*parameters!C$22,ROUND(O54+S54-U54,0)) -> 2261808 | W54: 43.46364043 | Y54: 0 | Z54: 0 | AA54: 1827 | AB54: 0.03364043239 | AD54: 0.005389868322 | AE54: 0.2326062743 | AF54: 0 | AH54: 0.0279 | AM54: 2210489 | AN54: 0
A55: 46 | B55: Brookline | C55: 20944753300 | D55: 76284864.56 | E55: 4541795000 | F55: 64375891.48 | G55: 140660756 | H55: 79123194.13 | I55: 65276635 | J55: 65276635 | K55: 82.5 | M55: 62590117 | N55: 0.0357 | O55: 64824584 | P55: 81.92867429 | Q55: 0.571325714 | R55: 0 | S55: 0 | T55: 0 | U55: 0 | V55: =MIN(H55*parameters!C$22,ROUND(O55+S55-U55,0)) -> 64824584 | W55: 81.92867429 | Y55: -452051 | Z55: 452051 | AA55: 0 | AB55: -0.571325714 | AD55: -0.00692515783 | AE55: -0.571325714 | AF55: 0 | AH55: 0.0357 | AM55: 62590117 | AN55: 0
A56: 47 | B56: Buckland | C56: 222381700 | D56: 809957.3971 | E56: 38712950 | F56: 548721.5227 | G56: 1358679 | H56: 2182753.793 | I56: 1800772 | J56: 1358679 | K56: 62.25 | M56: 1337963 | N56: 0.0358 | O56: 1385862 | P56: 63.49144847 | Q56: 0 | R56: 0 | S56: 0 | T56: 27183 | U56: 23105.55 | V56: =MIN(H56*parameters!C$22,ROUND(O56+S56-U56,0)) -> 1362756 | W56: 62.43287741 | Y56: 0 | Z56: 0 | AA56: 4077 | AB56: 0.1828774081 | AD56: 0.0200069332 | AE56: 1.24144847 | AF56: 0 | AH56: 0.0358 | AM56: 1337963 | AN56: 0
A57: 48 | B57: Burlington | C57: 6191239400 | D57: 22549697.88 | E57: 1151815000 | F57: 16325949.86 | G57: 38875648 | H57: 39222169.75 | I57: 32358290 | J57: 32358290 | K57: 82.5 | M57: 31213755 | N57: 0.0542 | O57: 32905541 | P57: 83.89525926 | Q57: 0 | R57: 0 | S57: 0 | T57: 547251 | U57: 465163.35 | V57: =MIN(H57*parameters!C$22,ROUND(O57+S57-U57,0)) -> 32440378 | W57: 82.70928968 | Y57: 0 | Z57: 0 | AA57: 82088 | AB57: 0.2092896841 | AD57: 0.01691223486 | AE57: 1.395259259 | AF57: 0 | AH57: 0.0542 | AM57: 31213755 | AN57: 0
A58: 49 | B58: Cambridge | C58: 39570828700 | D58: 144124653.3 | E58: 6515242000 | F58: 92347741.8 | G58: 236472395 | H58: 87801935.87 | I58: 72436597 | J58: 72436597 | K58: 82.5 | M58: 69688258 | N58: 0.0635 | O58: 74113462 | P58: 84.40982681 | Q58: 0 | R58: 0 | S58: 0 | T58: 1676865 | U58: 1425335.25 | V58: =MIN(H58*parameters!C$22,ROUND(O58+S58-U58,0)) -> 72688127 | W58: 82.78647422 | Y58: 0 | Z58: 0 | AA58: 251530 | AB58: 0.2864742188 | AD58: 0.02314941714 | AE58: 1.909826809 | AF58: 0 | AH58: 0.0635 | AM58: 69688258 | AN58: 0
A59: 50 | B59: Canton | C59: 4615563300 | D59: 16810779.11 | E59: 1340372000 | F59: 18998577.09 | G59: 35809356 | H59: 35926607.47 | I59: 29639451 | J59: 29639451 | K59: 82.5 | M59: 28722664 | N59: 0.0481 | O59: 30104224 | P59: 83.79367304 | Q59: 0 | R59: 0 | S59: 0 | T59: 464773 | U59: 395057.05 | V59: =MIN(H59*parameters!C$22,ROUND(O59+S59-U59,0)) -> 29709167 | W59: 82.69405071 | Y59: 0 | Z59: 0 | AA59: 69716 | AB59: 0.1940507054 | AD59: 0.01568089099 | AE59: 1.29367304 | AF59: 0 | AH59: 0.0481 | AM59: 28722664 | AN59: 0
A60: 51 | B60: Carlisle | C60: 1517185600 | D60: 5525884.996 | E60: 585530000 | F60: 8299365.282 | G60: 13825250 | H60: 9031792.988 | I60: 7451229 | J60: 7451229 | K60: 82.5 | M60: 7412032 | N60: 0.0342 | O60: 7665523 | P60: 84.8726605 | Q60: 0 | R60: 0 | S60: 0 | T60: 214294 | U60: 182149.9 | V60: =MIN(H60*parameters!C$22,ROUND(O60+S60-U60,0)) -> 7483373 | W60: 82.85589594 | Y60: 0 | Z60: 0 | AA60: 32144 | AB60: 0.3558959406 | AD60: 0.02875955094 | AE60: 2.372660499 | AF60: 0 | AH60: 0.0342 | AM60: 7412032 | AN60: 0
A61: 52 | B61: Carver | C61: 1242705100 | D61: 4526173.638 | E61: 342777000 | F61: 4858558.115 | G61: 9384732 | H61: 18379278.26 | I61: 15162905 | J61: 9384732 | K61: 51.06 | M61: 9174127 | N61: 0.0394 | O61: 9535588 | P61: 51.8822767 | Q61: 0 | R61: 0 | S61: 0 | T61: 150856 | U61: 128227.6 | V61: =MIN(H61*parameters!C$22,ROUND(O61+S61-U61,0)) -> 9407360 | W61: 51.18459969 | Y61: 0 | Z61: 0 | AA61: 22628 | AB61: 0.1245996856 | AD61: 0.01607461993 | AE61: 0.8222767011 | AF61: 0 | AH61: 0.0394 | AM61: 9174127 | AN61: 0
A62: 53 | B62: Charlemont | C62: 137142200 | D62: 499498.5619 | E62: 31462000 | F62: 445945.7765 | G62: 945444 | H62: 1831729.744 | I62: 1511177 | J62: 945444 | K62: 51.61 | M62: 885809 | N62: 0.0488 | O62: 929036 | P62: 50.71905411 | Q62: 0.8909458889 | R62: 0 | S62: 0 | T62: 0 | U62: 0 | V62: =MIN(H62*parameters!C$22,ROUND(O62+S62-U62,0)) -> 929036 | W62: 50.71905411 | Y62: -16408 | Z62: 16408 | AA62: 0 | AB62: -0.8909458889 | AD62: -0.01735480896 | AE62: -0.8909458889 | AF62: 0 | AH62: 0.0488 | AM62: 885809 | AN62: 0
A63: 54 | B63: Charlton | C63: 1487604400 | D63: 5418144.513 | E63: 466890000 | F63: 6617749.144 | G63: 12035894 | H63: 23518154.95 | I63: 19402478 | J63: 12035894 | K63: 51.18 | M63: 11690706 | N63: 0.0412 | O63: 12172363 | P63: 51.7573042 | Q63: 0 | R63: 0 | S63: 0 | T63: 136469 | U63: 115998.65 | V63: =MIN(H63*parameters!C$22,ROUND(O63+S63-U63,0)) -> 12056364 | W63: 51.26407248 | Y63: 0 | Z63: 0 | AA63: 20470 | AB63: 0.08407247916 | AD63: 0.01133850132 | AE63: 0.5773041984 | AF63: 0 | AH63: 0.0412 | AM63: 11690706 | AN63: 0
A64: 55 | B64: Chatham | C64: 6588014300 | D64: 23994829.23 | E64: 348026000 | F64: 4932958.006 | G64: 28927787 | H64: 5307866.342 | I64: 4378990 | J64: 4378990 | K64: 82.5 | M64: 4388459 | N64: 0.0407 | O64: 4567069 | P64: 86.04340625 | Q64: 0 | R64: 0 | S64: 0 | T64: 188079 | U64: 159867.15 | V64: =MIN(H64*parameters!C$22,ROUND(O64+S64-U64,0)) -> 4407202 | W64: 83.03151805 | Y64: 0 | Z64: 0 | AA64: 28212 | AB64: 0.531518048 | AD64: 0.04295031503 | AE64: 3.543406247 | AF64: 0 | AH64: 0.0407 | AM64: 4388459 | AN64: 0
A65: 56 | B65: Chelmsford | C65: 5436078900 | D65: 19799256.49 | E65: 1822894000 | F65: 25837895.88 | G65: 45637152 | H65: 53846820.94 | I65: 44423627 | J65: 44423627 | K65: 82.5 | M65: 40408735 | N65: 0.0485 | O65: 42368559 | P65: 78.68349192 | Q65: 3.816508083 | R65: 0.01 | S65: 404087 | T65: 0 | U65: 0 | V65: =MIN(H65*parameters!C$22,ROUND(O65+S65-U65,0)) -> 42772646 | W65: 79.43392991 | Y65: -2055068 | Z65: 1650981 | AA65: 0 | AB65: -3.066070094 | AD65: -0.04626069816 | AE65: -3.816508083 | AF65: 0 | AH65: 0.0485 | AM65: 40408735 | AN65: 0
A66: 57 | B66: Chelsea | C66: 2791398900 | D66: 10166817.63 | E66: 668765000 | F66: 9479147.136 | G66: 19645965 | H66: 97645053.49 | I66: 80557169 | J66: 19645965 | K66: 20.12 | M66: 16751675 | N66: 0.0789 | O66: 18073382 | P66: 18.5092653 | Q66: 1.610734703 | R66: 0 | S66: 0 | T66: 0 | U66: 0 | V66: =MIN(H66*parameters!C$22,ROUND(O66+S66-U66,0)) -> 18073382 | W66: 18.5092653 | Y66: -1572583 | Z66: 1572583 | AA66: 0 | AB66: -1.610734703 | AD66: -0.08004610616 | AE66: -1.610734703 | AF66: 167516.75 | AH66: 0.0789 | AM66: 16751675 | AN66: 0
A67: 58 | B67: Cheshire | C67: 311065100 | D67: 1132959.586 | E67: 87587000 | F67: 1241467.571 | G67: 2374427 | H67: 4837361.42 | I67: 3990823 | J67: 2374427 | K67: 49.09 | M67: 2326269 | N67: 0.0391 | O67: 2417226 | P67: 49.96992761 | Q67: 0 | R67: 0 | S67: 0 | T67: 42799 | U67: 36379.15 | V67: =MIN(H67*parameters!C$22,ROUND(O67+S67-U67,0)) -> 2380847 | W67: 49.2178854 | Y67: 0 | Z67: 0 | AA67: 6420 | AB67: 0.1278853964 | AD67: 0.01802498034 | AE67: 0.8799276119 | AF67: 0 | AH67: 0.0391 | AM67: 2326269 | AN67: 0
A68: 59 | B68: Chester | C68: 122249300 | D68: 445255.7239 | E68: 30034000 | F68: 425705.1507 | G68: 870961 | H68: 1718581.593 | I68: 1417830 | J68: 870961 | K68: 50.68 | M68: 866968 | N68: 0.0342 | O68: 896618 | P68: 52.17197739 | Q68: 0 | R68: 0 | S68: 0 | T68: 25657 | U68: 21808.45 | V68: =MIN(H68*parameters!C$22,ROUND(O68+S68-U68,0)) -> 874810 | W68: 50.90302396 | Y68: 0 | Z68: 0 | AA68: 3849 | AB68: 0.2230239619 | AD68: 0.02945826507 | AE68: 1.491977388 | AF68: 0 | AH68: 0.0342 | AM68: 866968 | AN68: 0
A69: 60 | B69: Chesterfield | C69: 157173400 | D69: 572456.0877 | E69: 27253000 | F69: 386286.9572 | G69: 958743 | H69: 1389378.434 | I69: 1146237 | J69: 958743 | K69: 69.01 | M69: 918789 | N69: 0.0365 | O69: 952325 | P69: 68.54324039 | Q69: 0.4667596103 | R69: 0 | S69: 0 | T69: 0 | U69: 0 | V69: =MIN(H69*parameters!C$22,ROUND(O69+S69-U69,0)) -> 952325 | W69: 68.54324039 | Y69: -6418 | Z69: 6418 | AA69: 0 | AB69: -0.4667596103 | AD69: -0.006694181861 | AE69: -0.4667596103 | AF69: 0 | AH69: 0.0365 | AM69: 918789 | AN69: 0
A70: 61 | B70: Chicopee | C70: 3898874600 | D70: 14200459.49 | E70: 1099663000 | F70: 15586741.8 | G70: 29787201 | H70: 92889949.43 | I70: 76634208 | J70: 29787201 | K70: 32.07 | M70: 29420367 | N70: 0.0356 | O70: 30467732 | P70: 32.79981547 | Q70: 0 | R70: 0 | S70: 0 | T70: 680531 | U70: 578451.35 | V70: =MIN(H70*parameters!C$22,ROUND(O70+S70-U70,0)) -> 29889281 | W70: 32.17708825 | Y70: 0 | Z70: 0 | AA70: 102080 | AB70: 0.1070882463 | AD70: 0.0228464232 | AE70: 0.7298154665 | AF70: 0 | AH70: 0.0356 | AM70: 29420367 | AN70: 0
A71: 62 | B71: Chilmark | C71: 3324185000 | D71: 12107328.21 | E71: 62433000 | F71: 884932.066 | G71: 12992260 | H71: 1176118.429 | I71: 970298 | J71: 970298 | K71: 82.5 | M71: 935493 | N71: 0.0396 | O71: 972539 | P71: 82.69056723 | Q71: 0 | R71: 0 | S71: 0 | T71: 2241 | U71: 1904.85 | V71: =MIN(H71*parameters!C$22,ROUND(O71+S71-U71,0)) -> 970634 | W71: 82.52859374 | Y71: 0 | Z71: 0 | AA71: 336 | AB71: 0.02859374137 | AD71: 0.002309599731 | AE71: 0.1905672258 | AF71: 0 | AH71: 0.0396 | AM71: 935493 | AN71: 0
A72: 63 | B72: Clarksburg | C72: 114006000 | D72: 415232.0223 | E72: 35655000 | F72: 505377.8101 | G72: 920610 | H72: 2374157.277 | I72: 1958680 | J72: 920610 | K72: 38.78 | M72: 896871 | N72: 0.0415 | O72: 934091 | P72: 39.34410786 | Q72: 0 | R72: 0 | S72: 0 | T72: 13481 | U72: 11458.85 | V72: =MIN(H72*parameters!C$22,ROUND(O72+S72-U72,0)) -> 922632 | W72: 38.86145239 | Y72: 0 | Z72: 0 | AA72: 2022 | AB72: 0.0814523879 | AD72: 0.01464355156 | AE72: 0.5641078593 | AF72: 0 | AH72: 0.0415 | AM72: 896871 | AN72: 0
A73: 64 | B73: Clinton | C73: 1197036900 | D73: 4359841.173 | E73: 410062000 | F73: 5812262.952 | G73: 10172104 | H73: 22549396.35 | I73: 18603252 | J73: 10172104 | K73: 45.11 | M73: 9770470 | N73: 0.0597 | O73: 10353767 | P73: 45.91593868 | Q73: 0 | R73: 0 | S73: 0 | T73: 181663 | U73: 154413.55 | V73: =MIN(H73*parameters!C$22,ROUND(O73+S73-U73,0)) -> 10199353 | W73: 45.2311576 | Y73: 0 | Z73: 0 | AA73: 27249 | AB73: 0.1211575959 | AD73: 0.01785894049 | AE73: 0.8059386766 | AF73: 0 | AH73: 0.0597 | AM73: 9770470 | AN73: 0
A74: 65 | B74: Cohasset | C74: 2746663500 | D74: 10003882.6 | E74: 901151000 | F74: 12773011.33 | G74: 22776894 | H74: 15157666.52 | I74: 12505075 | J74: 12505075 | K74: 82.5 | M74: 12060692 | N74: 0.0456 | O74: 12610660 | P74: 83.19657897 | Q74: 0 | R74: 0 | S74: 0 | T74: 105585 | U74: =MAX(T74*(U$5),0) -> 89747.25 | V74: =MIN(H74*parameters!C$22,ROUND(O74+S74-U74,0)) -> 12520913 | W74: 82.60448916 | Y74: 0 | Z74: =MAX(J74-(O74+S74),0) -> 0 | AA74: 15838 | AB74: 0.1044891578 | AD74: =(O74-J74)/J74 -> 0.008443371991 | AE74: 0.6965789749 | AF74: =IF(AD74<$AF$5, $AF$6*(M74), IF(AND(AD74<$AF$4, AD74>$AF$5), $AF$7*(M74), 0)) -> 0 | AH74: 0.0456 | AM74: 12060692 | AN74: 0
A75: 66 | B75: Colrain | C75: 177586600 | D75: =D$5*C75 -> 646804.9318 | E75: 46780000 | F75: 663064.7582 | G75: =ROUND(D75+F75,0) -> 1309870 | H75: =(SUMIF(town1755,A75,found1755)/2) -> 2099857.986 | I75: =ROUND(H75*maxloc,0) -> 1732383 | J75: =MIN(G75,I75) -> 1309870 | K75: =IF(H75>0, ROUND((J75*100/H75), 2), 0) -> 62.38 | M75: 1230128 | N75: =IF($N$5=1,AH75, IF( $N$5=2,AI75, IF( $N$5=3, AJ75, IF($N$5=4, AK75, 0)))) -> 0.037 | O75: =ROUND(M75*(1+N75),0) -> 1275643 | P75: =O75*100/H75 -> 60.74901295 | Q75: =IF(K75>P75,K75-P75,0) -> 1.630987051 | R75: =IF(AND(Q75>$S$4,Q75<=$S$5),$R$4,IF(Q75>$S$5,$R$5,0)) -> 0 | S75: =ROUND(R75*M75,0) -> 0 | T75: =MAX(O75-J75,0) -> 0 | U75: 0 | V75: =MIN(H75*parameters!C$22,ROUND(O75+S75-U75,0)) -> 1275643 | W75: =V75*100/H75 -> 60.74901295 | Y75: =IF(P75<K75, O75-J75, 0) -> -34227 | Z75: 34227 | AA75: =IF(P75>K75, V75-J75,0) -> 0 | AB75: =W75-K75 -> -1.630987051 | AD75: -0.02613007398 | AE75: =P75-K75 -> -1.630987051 | AF75: 0 | AH75: 0.037 | AM75: 1230128 | AN75: =AM75-M75 -> 0
A76: 67 | B76: Concord | C76: 6238214600 | D76: 22720790.69 | E76: 2361511000 | F76: =E76*F$5 -> 33472311.25 | G76: 56193102 | H76: 30907885.4 | I76: 25499005 | J76: 25499005 | K76: 82.5 | M76: 24573204 | N76: 0.0463 | O76: 25710943 | P76: 83.18570703 | Q76: 0 | R76: 0 | S76: 0 | T76: 211938 | U76: 180147.3 | V76: =MIN(H76*parameters!C$22,ROUND(O76+S76-U76,0)) -> 25530796 | W76: 82.60285576 | Y76: 0 | Z76: 0 | AA76: 31791 | AB76: 0.1028557646 | AD76: 0.008311618434 | AE76: 0.6857070262 | AF76: 0 | AH76: 0.0463 | AM76: 24573204 | AN76: 0
A77: 68 | B77: Conway | C77: 251373100 | D77: 915549.7137 | E77: 68233000 | F77: 967141.8907 | G77: 1882692 | H77: 2197119.657 | I77: 1812624 | J77: 1812624 | K77: 82.5 | M77: 1809818 | N77: 0.036 | O77: 1874971 | P77: 85.33768264 | Q77: 0 | R77: 0 | S77: 0 | T77: 62347 | U77: 52994.95 | V77: =MIN(H77*parameters!C$22,ROUND(O77+S77-U77,0)) -> 1821976 | W77: 82.92566107 | Y77: 0 | Z77: 0 | AA77: 9352 | AB77: 0.4256610692 | AD77: 0.03439599167 | AE77: 2.837682637 | AF77: 0 | AH77: 0.036 | AM77: 1809818 | AN77: 0
A78: 69 | B78: Cummington | C78: 132105600 | D78: 481154.2853 | E78: 29319000 | F78: 415570.6637 | G78: 896725 | H78: 834141.2513 | I78: 688167 | J78: 688167 | K78: 82.5 | M78: 733711 | N78: 0.0494 | O78: 769956 | P78: 92.30522993 | Q78: 0 | R78: 0 | S78: 0 | T78: 81789 | U78: 69520.65 | V78: =MIN(H78*parameters!C$22,ROUND(O78+S78-U78,0)) -> 700435 | W78: 83.97079018 | Y78: 0 | Z78: 0 | AA78: 12268 | AB78: 1.470790184 | AD78: 0.1188505116 | AE78: 9.805229932 | AF78: 0 | AH78: 0.0494 | AM78: 733711 | AN78: 0
A79: 70 | B79: Dalton | C79: 610490000 | D79: 2223523.3 | E79: 202509000 | F79: 2870384.376 | G79: 5093908 | H79: 9739753.344 | I79: 8035297 | J79: 5093908 | K79: 52.3 | M79: 5061698 | N79: 0.0346 | O79: 5236833 | P79: 53.76761418 | Q79: 0 | R79: 0 | S79: 0 | T79: 142925 | U79: 121486.25 | V79: =MIN(H79*parameters!C$22,ROUND(O79+S79-U79,0)) -> 5115347 | W79: 52.52029306 | Y79: 0 | Z79: 0 | AA79: 21439 | AB79: 0.220293065 | AD79: 0.02805802539 | AE79: 1.46761418 | AF79: 0 | AH79: 0.0346 | AM79: 5061698 | AN79: 0
A80: 71 | B80: Danvers | C80: 4637914500 | D80: 16892186.53 | E80: 1114374000 | F80: 15795257.09 | G80: 32687444 | H80: 37547541.57 | I80: 30976722 | J80: 30976722 | K80: 82.5 | M80: 30002603 | N80: 0.0328 | O80: 30986688 | P80: 82.52654289 | Q80: 0 | R80: 0 | S80: 0 | T80: 9966 | U80: 8471.1 | V80: =MIN(H80*parameters!C$22,ROUND(O80+S80-U80,0)) -> 30978217 | W80: 82.50398216 | Y80: 0 | Z80: 0 | AA80: 1495 | AB80: 0.003982160793 | AD80: 0.0003217254557 | AE80: 0.02654289219 | AF80: 0 | AH80: 0.0328 | AM80: 30002603 | AN80: 0
A81: 72 | B81: Dartmouth | C81: 5465842900 | D81: 19907662.76 | E81: 1192537000 | F81: 16903147.87 | G81: 36810811 | H81: 43223731.09 | I81: 35659578 | J81: 35659578 | K81: 82.5 | M81: 34494736 | N81: 0.0418 | O81: 35936616 | P81: 83.14093924 | Q81: 0 | R81: 0 | S81: 0 | T81: 277038 | U81: 235482.3 | V81: =MIN(H81*parameters!C$22,ROUND(O81+S81-U81,0)) -> 35701134 | W81: 82.59614129 | Y81: 0 | Z81: 0 | AA81: 41556 | AB81: 0.09614129426 | AD81: 0.007768964624 | AE81: 0.6409392423 | AF81: 0 | AH81: 0.0418 | AM81: 34494736 | AN81: 0
A82: 73 | B82: Dedham | C82: 4726182700 | D82: 17213676.48 | E82: 1362978000 | F82: 19318996.97 | G82: 36532673 | H82: 30012604.17 | I82: 24760398 | J82: 24760398 | K82: 82.5 | M82: 23843114 | N82: 0.034 | O82: 24653780 | P82: 82.14475445 | Q82: 0.3552455536 | R82: 0 | S82: 0 | T82: 0 | U82: 0 | V82: =MIN(H82*parameters!C$22,ROUND(O82+S82-U82,0)) -> 24653780 | W82: 82.14475445 | Y82: -106618 | Z82: 106618 | AA82: 0 | AB82: -0.3552455536 | AD82: -0.004305988943 | AE82: -0.3552455536 | AF82: 0 | AH82: 0.034 | AM82: 23843114 | AN82: 0
A83: 74 | B83: Deerfield | C83: 701406100 | D83: 2554657.416 | E83: 199243000 | F83: 2824091.741 | G83: 5378749 | H83: 6127966.76 | I83: 5055573 | J83: 5055573 | K83: 82.5 | M83: 5050538 | N83: 0.0316 | O83: 5210135 | P83: 85.02224643 | Q83: 0 | R83: 0 | S83: 0 | T83: 154562 | U83: 131377.7 | V83: =MIN(H83*parameters!C$22,ROUND(O83+S83-U83,0)) -> 5078757 | W83: 82.87833793 | Y83: 0 | Z83: 0 | AA83: 23184 | AB83: 0.3783379302 | AD83: 0.0305725978 | AE83: 2.522246426 | AF83: 0 | AH83: 0.0316 | AM83: 5050538 | AN83: 0
A84: 75 | B84: Dennis | C84: 6726007200 | D84: 24497426.2 | E84: 448800000 | F84: 6361339.536 | G84: 30858766 | H84: 13564326.03 | I84: 11190569 | J84: 11190569 | K84: 82.5 | M84: 11348940 | N84: 0.033 | O84: 11723455 | P84: 86.42858463 | Q84: 0 | R84: 0 | S84: 0 | T84: 532886 | U84: 452953.1 | V84: =MIN(H84*parameters!C$22,ROUND(O84+S84-U84,0)) -> 11270502 | W84: 83.0892886 | Y84: 0 | Z84: 0 | AA84: 79933 | AB84: 0.5892886043 | AD84: 0.04761920506 | AE84: 3.92858463 | AF84: 0 | AH84: 0.033 | AM84: 11348940 | AN84: 0
A85: 76 | B85: Dighton | C85: 893256400 | D85: 3253413.517 | E85: 247234000 | F85: 3504321.343 | G85: 6757735 | H85: 14331369.58 | I85: 11823380 | J85: 6757735 | K85: 47.15 | M85: 6541030 | N85: 0.0576 | O85: 6917793 | P85: 48.27028541 | Q85: 0 | R85: 0 | S85: 0 | T85: 160058 | U85: 136049.3 | V85: =MIN(H85*parameters!C$22,ROUND(O85+S85-U85,0)) -> 6781744 | W85: 47.32097628 | Y85: 0 | Z85: 0 | AA85: 24009 | AB85: 0.1709762837 | AD85: 0.02368515486 | AE85: 1.120285415 | AF85: 0 | AH85: 0.0576 | AM85: 6541030 | AN85: 0
A86: 77 | B86: Douglas | C86: 939822500 | D86: 3423016.309 | E86: 305682000 | F86: 4332769.59 | G86: 7755786 | H86: 14407491.13 | I86: 11886180 | J86: 7755786 | K86: 53.83 | M86: 7543579 | N86: 0.0366 | O86: 7819674 | P86: 54.27505684 | Q86: 0 | R86: 0 | S86: 0 | T86: 63888 | U86: 54304.8 | V86: =MIN(H86*parameters!C$22,ROUND(O86+S86-U86,0)) -> 7765369 | W86: 53.89813487 | Y86: 0 | Z86: 0 | AA86: 9583 | AB86: 0.0681348701 | AD86: 0.008237462973 | AE86: 0.4450568443 | AF86: 0 | AH86: 0.0366 | AM86: 7543579 | AN86: 0
A87: 78 | B87: Dover | C87: 2504188200 | D87: 9120740.404 | E87: 1280937000 | F87: 18156139 | G87: 27276879 | H87: 11572726.03 | I87: 9547499 | J87: 9547499 | K87: 82.5 | M87: 9226511 | N87: 0.0448 | O87: 9639859 | P87: 83.29808354 | Q87: 0 | R87: 0 | S87: 0 | T87: 92360 | U87: 78506 | V87: =MIN(H87*parameters!C$22,ROUND(O87+S87-U87,0)) -> 9561353 | W87: 82.61971269 | Y87: 0 | Z87: 0 | AA87: 13854 | AB87: 0.119712687 | AD87: 0.009673737593 | AE87: 0.7980835373 | AF87: 0 | AH87: 0.0448 | AM87: 9226511 | AN87: 0
A88: 79 | B88: Dracut | C88: 3215541900 | D88: 11711628.91 | E88: 1032315000 | F88: 14632143.99 | G88: 26343773 | H88: 47477187.21 | I88: 39168679 | J88: 26343773 | K88: 55.49 | M88: 25394698 | N88: 0.0417 | O88: 26453657 | P88: 55.71866944 | Q88: 0 | R88: 0 | S88: 0 | T88: 109884 | U88: 93401.4 | V88: =MIN(H88*parameters!C$22,ROUND(O88+S88-U88,0)) -> 26360256 | W88: 55.52194127 | Y88: 0 | Z88: 0 | AA88: 16483 | AB88: 0.03194127046 | AD88: 0.004171156501 | AE88: 0.2286694372 | AF88: 0 | AH88: 0.0417 | AM88: 25394698 | AN88: 0
A89: 80 | B89: Dudley | C89: 933666600 | D89: 3400595.324 | E89: 316315000 | F89: 4483482.877 | G89: 7884078 | H89: 19942547.97 | I89: 16452602 | J89: 7884078 | K89: 39.53 | M89: 6478136 | N89: 0.0442 | O89: 6764470 | P89: 33.91978803 | Q89: 5.610211966 | R89: 0.01 | S89: 64781 | T89: 0 | U89: 0 | V89: =MIN(H89*parameters!C$22,ROUND(O89+S89-U89,0)) -> 6829251 | W89: 34.24462616 | Y89: -1119608 | Z89: 1054827 | AA89: 0 | AB89: -5.285373835 | AD89: -0.1420087422 | AE89: -5.610211966 | AF89: 129562.72 | AH89: 0.0442 | AM89: 6478136 | AN89: 0
A90: 81 | B90: Dunstable | C90: 512397400 | D90: 1866250.975 | E90: 176885000 | F90: 2507187.041 | G90: 4373438 | H90: 5554103.899 | I90: 4582136 | J90: 4373438 | K90: 78.74 | M90: 4369659 | N90: 0.0343 | O90: 4519538 | P90: 81.37294661 | Q90: 0 | R90: 0 | S90: 0 | T90: 146100 | U90: 124185 | V90: =MIN(H90*parameters!C$22,ROUND(O90+S90-U90,0)) -> 4395353 | W90: 79.13703237 | Y90: 0 | Z90: 0 | AA90: 21915 | AB90: 0.3970323676 | AD90: 0.03340621269 | AE90: 2.632946608 | AF90: 0 | AH90: 0.0343 | AM90: 4369659 | AN90: 0
A91: 82 | B91: Duxbury | C91: 3855499800 | D91: 14042480.04 | E91: 1303478000 | F91: 18475637.56 | G91: 32518118 | H91: 29922126.97 | I91: 24685755 | J91: 24685755 | K91: 82.5 | M91: 24357911 | N91: 0.044 | O91: 25429659 | P91: 84.98613427 | Q91: 0 | R91: 0 | S91: 0 | T91: 743904 | U91: 632318.4 | V91: =MIN(H91*parameters!C$22,ROUND(O91+S91-U91,0)) -> 24797341 | W91: 82.8729222 | Y91: 0 | Z91: 0 | AA91: 111586 | AB91: 0.3729221985 | AD91: 0.0301349503 | AE91: 2.486134273 | AF91: 0 | AH91: 0.044 | AM91: 24357911 | AN91: 0
A92: 83 | B92: East Bridgewater | C92: 1577500000 | D92: 5745561.77 | E92: 460302000 | F92: 6524370.123 | G92: 12269932 | H92: 23381752.2 | I92: 19289946 | J92: 12269932 | K92: 52.48 | M92: 12008273 | N92: 0.0334 | O92: 12409349 | P92: 53.07279322 | Q92: 0 | R92: 0 | S92: 0 | T92: 139417 | U92: 118504.45 | V92: =MIN(H92*parameters!C$22,ROUND(O92+S92-U92,0)) -> 12290845 | W92: 52.56597064 | Y92: 0 | Z92: 0 | AA92: 20913 | AB92: 0.08597064394 | AD92: 0.01136249166 | AE92: 0.5927932249 | AF92: 0 | AH92: 0.0334 | AM92: 12008273 | AN92: 0
A93: 84 | B93: East Brookfield | C93: 219179100 | D93: 798292.9051 | E93: 66344000 | F93: 940367.0013 | G93: 1738660 | H93: 3344461.899 | I93: 2759181 | J93: 1738660 | K93: 51.99 | M93: 1600257 | N93: 0.046 | O93: 1673869 | P93: 50.048978 | Q93: 1.941022001 | R93: 0 | S93: 0 | T93: 0 | U93: 0 | V93: =MIN(H93*parameters!C$22,ROUND(O93+S93-U93,0)) -> 1673869 | W93: 50.048978 | Y93: -64791 | Z93: 64791 | AA93: 0 | AB93: -1.941022001 | AD93: -0.03726490516 | AE93: -1.941022001 | AF93: 0 | AH93: 0.046 | AM93: 1600257 | AN93: 0
A94: 85 | B94: Eastham | C94: 2915139400 | D94: 10617504.59 | E94: 159865000 | F94: 2265943.727 | G94: 12883448 | H94: 4679503.09 | I94: 3860590 | J94: 3860590 | K94: 82.5 | M94: 3987165 | N94: 0.0352 | O94: 4127513 | P94: 88.2040875 | Q94: 0 | R94: 0 | S94: 0 | T94: 266923 | U94: 226884.55 | V94: =MIN(H94*parameters!C$22,ROUND(O94+S94-U94,0)) -> 3900628 | W94: 83.35560262 | Y94: 0 | Z94: 0 | AA94: 40038 | AB94: 0.8556026186 | AD94: 0.06914046817 | AE94: 5.704087504 | AF94: 0 | AH94: 0.0352 | AM94: 3987165 | AN94: 0
A95: 86 | B95: Easthampton | C95: 1523884600 | D95: 5550284.057 | E95: 458298000 | F95: 6495965.211 | G95: 12046249 | H95: 17867693.98 | I95: 14740848 | J95: 12046249 | K95: 67.42 | M95: 11761853 | N95: 0.0315 | O95: 12132351 | P95: 67.90104539 | Q95: 0 | R95: 0 | S95: 0 | T95: 86102 | U95: 73186.7 | V95: =MIN(H95*parameters!C$22,ROUND(O95+S95-U95,0)) -> 12059164 | W95: 67.49144021 | Y95: 0 | Z95: 0 | AA95: 12915 | AB95: 0.07144021326 | AD95: 0.007147619147 | AE95: 0.4810453928 | AF95: 0 | AH95: 0.0315 | AM95: 11761853 | AN95: 0
A96: 87 | B96: East Longmeadow | C96: 1924966600 | D96: 7011102.698 | E96: 675078000 | F96: 9568628.278 | G96: 16579731 | H96: 27670599.84 | I96: 22828245 | J96: 16579731 | K96: 59.92 | M96: 15918988 | N96: 0.0371 | O96: 16509582 | P96: 59.66470584 | Q96: 0.2552941553 | R96: 0 | S96: 0 | T96: 0 | U96: 0 | V96: =MIN(H96*parameters!C$22,ROUND(O96+S96-U96,0)) -> 16509582 | W96: 59.66470584 | Y96: -70149 | Z96: 70149 | AA96: 0 | AB96: -0.2552941553 | AD96: -0.004231009538 | AE96: -0.2552941553 | AF96: 0 | AH96: 0.0371 | AM96: 15918988 | AN96: 0
A97: 88 | B97: Easton | C97: 3347121200 | D97: 12190866.31 | E97: 1149658000 | F97: 16295376.31 | G97: 28486243 | H97: 37425491.08 | I97: 30876030 | J97: 28486243 | K97: 76.11 | M97: 27646316 | N97: 0.0417 | O97: 28799167 | P97: 76.9506723 | Q97: 0 | R97: 0 | S97: 0 | T97: 312924 | U97: 265985.4 | V97: =MIN(H97*parameters!C$22,ROUND(O97+S97-U97,0)) -> 28533182 | W97: 76.23996686 | Y97: 0 | Z97: 0 | AA97: 46939 | AB97: 0.1299668607 | AD97: 0.010985092 | AE97: 0.8406722978 | AF97: 0 | AH97: 0.0417 | AM97: 27646316 | AN97: 0
A98: 89 | B98: Edgartown | C98: 7747629000 | D98: 28218371.47 | E98: 227538000 | F98: 3225148.118 | G98: 31443520 | H98: 6491977.5 | I98: 5355881 | J98: 5355881 | K98: 82.5 | M98: 5226666 | N98: 0.041 | O98: 5440959 | P98: 83.81050304 | Q98: 0 | R98: 0 | S98: 0 | T98: 85078 | U98: 72316.3 | V98: =MIN(H98*parameters!C$22,ROUND(O98+S98-U98,0)) -> 5368643 | W98: 82.69657435 | Y98: 0 | Z98: 0 | AA98: 12762 | AB98: 0.1965743522 | AD98: 0.01588496832 | AE98: 1.310503043 | AF98: 0 | AH98: 0.041 | AM98: 5226666 | AN98: 0
A99: 90 | B99: Egremont | C99: 425211700 | D99: 1548703.701 | E99: 32681000 | F99: 463224.0138 | G99: 2011928 | H99: 815808.6312 | I99: 673042 | J99: 673042 | K99: 82.5 | M99: 721434 | N99: 0.0334 | O99: 745530 | P99: 91.38540235 | Q99: 0 | R99: 0 | S99: 0 | T99: 72488 | U99: 61614.8 | V99: =MIN(H99*parameters!C$22,ROUND(O99+S99-U99,0)) -> 683915 | W99: 83.83277326 | Y99: 0 | Z99: 0 | AA99: 10873 | AB99: 1.332773257 | AD99: 0.1077020453 | AE99: 8.885402348 | AF99: 0 | AH99: 0.0334 | AM99: 721434 | AN99: 0
A100: 91 | B100: Erving | C100: 887378000 | D100: 3232003.241 | E100: 33752000 | F100: 478404.4831 | G100: 3710408 | H100: 2792134.225 | I100: 2303511 | J100: 2303511 | K100: 82.5 | M100: 2269020 | N100: 0.0409 | O100: 2361823 | P100: 84.58844776 | Q100: 0 | R100: 0 | S100: 0 | T100: 58312 | U100: 49565.2 | V100: =MIN(H100*parameters!C$22,ROUND(O100+S100-U100,0)) -> 2312258 | W100: 82.81328238 | Y100: 0 | Z100: 0 | AA100: 8747 | AB100: 0.313282382 | AD100: 0.0253144005 | AE100: 2.088447758 | AF100: 0 | AH100: 0.0409 | AM100: 2269020 | AN100: 0
A101: 92 | B101: Essex | C101: 820482500 | D101: 2988356.821 | E101: 211512000 | F101: 2997993.868 | G101: 5986351 | H101: 5487236.602 | I101: 4526970 | J101: 4526970 | K101: 82.5 | M101: 4354580 | N101: 0.0366 | O101: 4513958 | P101: 82.2628643 | Q101: 0.2371356977 | R101: 0 | S101: 0 | T101: 0 | U101: 0 | V101: =MIN(H101*parameters!C$22,ROUND(O101+S101-U101,0)) -> 4513958 | W101: 82.2628643 | Y101: -13012 | Z101: 13012 | AA101: 0 | AB101: -0.2371356977 | AD101: -0.002874328745 | AE101: -0.2371356977 | AF101: 0 | AH101: 0.0366 | AM101: 4354580 | AN101: 0
A102: 93 | B102: Everett | C102: 4584699100 | D102: 16698365.69 | E102: 909445000 | F102: 12890571.38 | G102: 29588937 | H102: 95255826.12 | I102: 78586057 | J102: 29588937 | K102: 31.06 | M102: 27455803 | N102: 0.0495 | O102: 28814865 | P102: 30.24997648 | Q102: 0.8100235182 | R102: 0 | S102: 0 | T102: 0 | U102: 0 | V102: =MIN(H102*parameters!C$22,ROUND(O102+S102-U102,0)) -> 28814865 | W102: 30.24997648 | Y102: -774072 | Z102: 774072 | AA102: 0 | AB102: -0.8100235182 | AD102: -0.0261608587 | AE102: -0.8100235182 | AF102: 0 | AH102: 0.0495 | AM102: 27455803 | AN102: 0
A103: 94 | B103: Fairhaven | C103: 2013791800 | D103: 7334621.35 | E103: 442603000 | F103: 6273502.59 | G103: 13608124 | H103: 22747405.38 | I103: 18766609 | J103: 13608124 | K103: 59.82 | M103: 13597411 | N103: 0.0427 | O103: 14178020 | P103: 62.32807549 | Q103: 0 | R103: 0 | S103: 0 | T103: 569896 | U103: 484411.6 | V103: =MIN(H103*parameters!C$22,ROUND(O103+S103-U103,0)) -> 13693608 | W103: 60.1985491 | Y103: 0 | Z103: 0 | AA103: 85484 | AB103: 0.3785491022 | AD103: 0.04187910104 | AE103: 2.508075489 | AF103: 0 | AH103: 0.0427 | AM103: 13597411 | AN103: 0
A104: 95 | B104: Fall River | C104: 5421691200 | D104: 19746853.69 | E104: 1478168000 | F104: 20951712.43 | G104: 40698566 | H104: 166546527.2 | I104: 137400885 | J104: 40698566 | K104: 24.44 | M104: 31571959 | N104: 0.0461 | O104: 33027426 | P104: 19.83075033 | Q104: 4.609249665 | R104: 0.01 | S104: 315720 | T104: 0 | U104: 0 | V104: =MIN(H104*parameters!C$22,ROUND(O104+S104-U104,0)) -> 33343146 | W104: 20.02031898 | Y104: -7671140 | Z104: 7355420 | AA104: 0 | AB104: -4.419681017 | AD104: -0.1884867393 | AE104: -4.609249665 | AF104: 631439.18 | AH104: 0.0461 | AM104: 31571959 | AN104: 0
A105: 96 | B105: Falmouth | C105: 11892819800 | D105: 43315962.46 | E105: 1209012000 | F105: 17136666.3 | G105: 60452629 | H105: 39726408.75 | I105: 32774287 | J105: 32774287 | K105: 82.5 | M105: 31660572 | N105: 0.0365 | O105: 32816183 | P105: 82.60546078 | Q105: 0 | R105: 0 | S105: 0 | T105: 41896 | U105: 35611.6 | V105: =MIN(H105*parameters!C$22,ROUND(O105+S105-U105,0)) -> 32780571 | W105: 82.51581764 | Y105: 0 | Z105: 0 | AA105: 6284 | AB105: 0.01581763598 | AD105: 0.00127831919 | AE105: 0.1054607754 | AF105: 0 | AH105: 0.0365 | AM105: 31660572 | AN105: 0
A106: 97 | B106: Fitchburg | C106: 2306844100 | D106: 8401974.815 | E106: 767896000 | F106: 10884240.61 | G106: 19286215 | H106: 75894755.36 | I106: 62613173 | J106: 19286215 | K106: 25.41 | M106: 18642730 | N106: 0.0376 | O106: 19343697 | P106: 25.48752797 | Q106: 0 | R106: 0 | S106: 0 | T106: 57482 | U106: 48859.7 | V106: =MIN(H106*parameters!C$22,ROUND(O106+S106-U106,0)) -> 19294837 | W106: 25.42314935 | Y106: 0 | Z106: 0 | AA106: 8622 | AB106: 0.01314934574 | AD106: 0.002980470766 | AE106: 0.07752797081 | AF106: 0 | AH106: 0.0376 | AM106: 18642730 | AN106: 0
A107: 98 | B107: Florida | C107: 123349700 | D107: 449263.5947 | E107: 12329000 | F107: 174752.5738 | G107: 624016 | H107: 902557.2131 | I107: 744610 | J107: 624016 | K107: 69.14 | M107: 615568 | N107: 0.0276 | O107: 632558 | P107: 70.08508611 | Q107: 0 | R107: 0 | S107: 0 | T107: 8542 | U107: 7260.7 | V107: =MIN(H107*parameters!C$22,ROUND(O107+S107-U107,0)) -> 625297 | W107: 69.28059418 | Y107: 0 | Z107: 0 | AA107: 1281 | AB107: 0.1405941771 | AD107: 0.01368875157 | AE107: 0.9450861134 | AF107: 0 | AH107: 0.0276 | AM107: 615568 | AN107: 0
A108: 99 | B108: Foxborough | C108: 2963786200 | D108: 10794685.7 | E108: 858722000 | F108: 12171618.11 | G108: 22966304 | H108: 28495324.92 | I108: 23508643 | J108: 22966304 | K108: 80.6 | M108: 22405338 | N108: 0.0731 | O108: 24043168 | P108: 84.37583381 | Q108: 0 | R108: 0 | S108: 0 | T108: 1076864 | U108: 915334.4 | V108: =MIN(H108*parameters!C$22,ROUND(O108+S108-U108,0)) -> 23127834 | W108: 81.16360864 | Y108: 0 | Z108: 0 | AA108: 161530 | AB108: 0.5636086381 | AD108: 0.04688886814 | AE108: 3.77583381 | AF108: 0 | AH108: 0.0731 | AM108: 22405338 | AN108: 0
A109: 100 | B109: Framingham | C109: 8446149400 | D109: 30762518.6 | E109: 2441946000 | F109: 34612405.6 | G109: 65374924 | H109: 116199403.6 | I109: 95864508 | J109: 65374924 | K109: 56.26 | M109: 64518699 | N109: 0.0392 | O109: 67047832 | P109: 57.70066794 | Q109: 0 | R109: 0 | S109: 0 | T109: 1672908 | U109: 1421971.8 | V109: =MIN(H109*parameters!C$22,ROUND(O109+S109-U109,0)) -> 65625860 | W109: 56.4769336 | Y109: 0 | Z109: 0 | AA109: 250936 | AB109: 0.2169336005 | AD109: 0.02558944466 | AE109: 1.440667937 | AF109: 0 | AH109: 0.0392 | AM109: 64518699 | AN109: 0
A110: 101 | B110: Franklin | C110: 5001281700 | D110: 18215640.53 | E110: 1579926000 | F110: 22394041.28 | G110: 40609682 | H110: 61048485.59 | I110: 50365001 | J110: 40609682 | K110: 66.52 | M110: 39062307 | N110: 0.0428 | O110: 40734174 | P110: 66.72429891 | Q110: 0 | R110: 0 | S110: 0 | T110: 124492 | U110: 105818.2 | V110: =MIN(H110*parameters!C$22,ROUND(O110+S110-U110,0)) -> 40628356 | W110: 66.55096455 | Y110: 0 | Z110: 0 | AA110: 18674 | AB110: 0.03096454936 | AD110: 0.003065574362 | AE110: 0.2042989064 | AF110: 0 | AH110: 0.0428 | AM110: 39062307 | AN110: 0
A111: 102 | B111: Freetown | C111: 1281370100 | D111: 4666999.087 | E111: 311345000 | F111: 4413037.562 | G111: 9080037 | H111: 13793817.47 | I111: 11379899 | J111: 9080037 | K111: 65.83 | M111: 8825205 | N111: 0.0488 | O111: 9255875 | P111: 67.10162013 | Q111: 0 | R111: 0 | S111: 0 | T111: 175838 | U111: 149462.3 | V111: =MIN(H111*parameters!C$22,ROUND(O111+S111-U111,0)) -> 9106413 | W111: 66.01807672 | Y111: 0 | Z111: 0 | AA111: 26376 | AB111: 0.1880767184 | AD111: 0.01936533959 | AE111: 1.271620127 | AF111: 0 | AH111: 0.0488 | AM111: 8825205 | AN111: 0
A112: 103 | B112: Gardner | C112: 1186613100 | D112: 4321875.666 | E112: 413033000 | F112: 5854374.226 | G112: 10176250 | H112: 31542802.15 | I112: 26022812 | J112: 10176250 | K112: 32.26 | M112: 9568452 | N112: 0.0456 | O112: 10004773 | P112: 31.71808564 | Q112: 0.5419143616 | R112: 0 | S112: 0 | T112: 0 | U112: 0 | V112: =MIN(H112*parameters!C$22,ROUND(O112+S112-U112,0)) -> 10004773 | W112: 31.71808564 | Y112: -171477 | Z112: 171477 | AA112: 0 | AB112: -0.5419143616 | AD112: -0.0168507063 | AE112: -0.5419143616 | AF112: 0 | AH112: 0.0456 | AM112: 9568452 | AN112: 0
A113: 104 | B113: Aquinnah | C113: 724087400 | D113: 2637267.121 | E113: 5169000 | F113: 73265.9627 | G113: 2710533 | H113: 684479.9319 | I113: 564696 | J113: 564696 | K113: 82.5 | M113: 401513 | N113: 0.0314 | O113: 414121 | P113: 60.50155464 | Q113: 21.99844536 | R113: 0.02 | S113: 8030 | T113: 0 | U113: 0 | V113: =MIN(H113*parameters!C$22,ROUND(O113+S113-U113,0)) -> 422151 | W113: 61.6747081 | Y113: -150575 | Z113: 142545 | AA113: 0 | AB113: -20.8252919 | AD113: -0.2666478955 | AE113: -21.99844536 | AF113: 8030.26 | AH113: 0.0314 | AM113: 401513 | AN113: 0
A114: 105 | B114: Georgetown | C114: 1211493100 | D114: 4412493.465 | E114: 406041000 | F114: 5755268.865 | G114: 10167762 | H114: 13736963.7 | I114: 11332995 | J114: 10167762 | K114: 74.02 | M114: 9851756 | N114: 0.0407 | O114: 10252722 | P114: 74.63601289 | Q114: 0 | R114: 0 | S114: 0 | T114: 84960 | U114: 72216 | V114: =MIN(H114*parameters!C$22,ROUND(O114+S114-U114,0)) -> 10180506 | W114: 74.1103072 | Y114: 0 | Z114: 0 | AA114: 12744 | AB114: 0.09030720217 | AD114: 0.008355821074 | AE114: 0.6160128935 | AF114: 0 | AH114: 0.0407 | AM114: 9851756 | AN114: 0
A115: 106 | B115: Gill | C115: 159051900 | D115: 579297.95 | E115: 37581000 | F115: 532677.1415 | G115: 1111975 | H115: 1813572.675 | I115: 1496197 | J115: 1111975 | K115: 61.31 | M115: 1093410 | N115: 0.047 | O115: 1144800 | P115: 63.12402121 | Q115: 0 | R115: 0 | S115: 0 | T115: 32825 | U115: 27901.25 | V115: =MIN(H115*parameters!C$22,ROUND(O115+S115-U115,0)) -> 1116899 | W115: 61.58556618 | Y115: 0 | Z115: 0 | AA115: 4924 | AB115: 0.275566183 | AD115: 0.02951954855 | AE115: 1.814021211 | AF115: 0 | AH115: 0.047 | AM115: 1093410 | AN115: 0
A116: 107 | B116: Gloucester | C116: 6026476200 | D116: 21949598.27 | E116: 1159809000 | F116: 16439257.68 | G116: 38388856 | H116: 35440469.01 | I116: 29238387 | J116: 29238387 | K116: 82.5 | M116: 30638885 | N116: 0.0304 | O116: 31570307 | P116: 89.07982282 | Q116: 0 | R116: 0 | S116: 0 | T116: 2331920 | U116: 1982132 | V116: =MIN(H116*parameters!C$22,ROUND(O116+S116-U116,0)) -> 29588175 | W116: 83.48697358 | Y116: 0 | Z116: 0 | AA116: 349788 | AB116: 0.9869735841 | AD116: 0.07975542563 | AE116: 6.579822819 | AF116: 0 | AH116: 0.0304 | AM116: 30638885 | AN116: 0
A117: 108 | B117: Goshen | C117: 150096400 | D117: 546680.2775 | E117: 13671000 | F117: 193774.2264 | G117: 740455 | H117: 1169470.35 | I117: 964813 | J117: 740455 | K117: 63.32 | M117: 734231 | N117: 0.0373 | O117: 761618 | P117: 65.12503714 | Q117: 0 | R117: 0 | S117: 0 | T117: 21163 | U117: 17988.55 | V117: =MIN(H117*parameters!C$22,ROUND(O117+S117-U117,0)) -> 743629 | W117: 63.58681944 | Y117: 0 | Z117: 0 | AA117: 3174 | AB117: 0.2668194379 | AD117: 0.02858107515 | AE117: 1.805037144 | AF117: 0 | AH117: 0.0373 | AM117: 734231 | AN117: 0
A118: 109 | B118: Gosnold | C118: 232938000 | D118: 848405.4945 | E118: 1329000 | F118: 18837.38913 | G118: 867243 | H118: 22523.79 | I118: 18582 | J118: 18582 | K118: 82.5 | M118: 18105 | N118: 0.0259 | O118: 18574 | P118: 82.46391926 | Q118: 0.03608073952 | R118: 0 | S118: 0 | T118: 0 | U118: 0 | V118: =MIN(H118*parameters!C$22,ROUND(O118+S118-U118,0)) -> 18574 | W118: 82.46391926 | Y118: -8 | Z118: 8 | AA118: 0 | AB118: -0.03608073952 | AD118: -0.0004305241632 | AE118: -0.03608073952 | AF118: 0 | AH118: 0.0259 | AM118: 18105 | AN118: 0
A119: 110 | B119: Grafton | C119: 2333827700 | D119: 8500254.334 | E119: 874673000 | F119: 12397709.3 | G119: 20897964 | H119: 31499045.42 | I119: 25986712 | J119: 20897964 | K119: 66.34 | M119: 20520908 | N119: 0.0406 | O119: 21354057 | P119: 67.79271155 | Q119: 0 | R119: 0 | S119: 0 | T119: 456093 | U119: 387679.05 | V119: =MIN(H119*parameters!C$22,ROUND(O119+S119-U119,0)) -> 20966378 | W119: 66.56194727 | Y119: 0 | Z119: 0 | AA119: 68414 | AB119: 0.2219472681 | AD119: 0.02182475767 | AE119: 1.45271155 | AF119: 0 | AH119: 0.0406 | AM119: 20520908 | AN119: 0
A120: 111 | B120: Granby | C120: 601538100 | D120: 2190918.739 | E120: 195369000 | F120: 2769181.247 | G120: 4960100 | H120: 7310186.142 | I120: 6030904 | J120: 4960100 | K120: 67.85 | M120: 4874439 | N120: 0.0276 | O120: 5008974 | P120: 68.52047133 | Q120: 0 | R120: 0 | S120: 0 | T120: 48874 | U120: 41542.9 | V120: =MIN(H120*parameters!C$22,ROUND(O120+S120-U120,0)) -> 4967431 | W120: 67.95218211 | Y120: 0 | Z120: 0 | AA120: 7331 | AB120: 0.1021821106 | AD120: 0.009853430374 | AE120: 0.6704713332 | AF120: 0 | AH120: 0.0276 | AM120: 4874439 | AN120: 0
A121: 112 | B121: Granville | C121: 199372400 | D121: 726153.052 | E121: 53399000 | F121: 756883.1771 | G121: 1483036 | H121: 1861807.095 | I121: 1535991 | J121: 1483036 | K121: 79.66 | M121: 1448468 | N121: 0.0309 | O121: 1493226 | P121: 80.20304596 | Q121: 0 | R121: 0 | S121: 0 | T121: 10190 | U121: 8661.5 | V121: =MIN(H121*parameters!C$22,ROUND(O121+S121-U121,0)) -> 1484565 | W121: 79.73785276 | Y121: 0 | Z121: 0 | AA121: 1529 | AB121: 0.07785275668 | AD121: 0.006871040217 | AE121: 0.5430459565 | AF121: 0 | AH121: 0.0309 | AM121: 1448468 | AN121: 0
A122: 113 | B122: Great Barrington | C122: 1430331200 | D122: 5209544.381 | E122: 271655000 | F122: 3850467.227 | G122: 9060012 | H122: 8748700.768 | I122: 7217678 | J122: 7217678 | K122: 82.5 | M122: 6915917 | N122: 0.04 | O122: 7192554 | P122: 82.21282441 | Q122: 0.2871755928 | R122: 0 | S122: 0 | T122: 0 | U122: 0 | V122: =MIN(H122*parameters!C$22,ROUND(O122+S122-U122,0)) -> 7192554 | W122: 82.21282441 | Y122: -25124 | Z122: 25124 | AA122: 0 | AB122: -0.2871755928 | AD122: -0.003480897873 | AE122: -0.2871755928 | AF122: 0 | AH122: 0.04 | AM122: 6915917 | AN122: 0
A123: 114 | B123: Greenfield | C123: 1421720500 | D123: 5178182.537 | E123: 381541000 | F123: 5408003.226 | G123: 10586186 | H123: 23557699.89 | I123: 19435102 | J123: 10586186 | K123: 44.94 | M123: 10438560 | N123: 0.046 | O123: 10918734 | P123: 46.34889676 | Q123: 0 | R123: 0 | S123: 0 | T123: 332548 | U123: 282665.8 | V123: =MIN(H123*parameters!C$22,ROUND(O123+S123-U123,0)) -> 10636068 | W123: 45.14900882 | Y123: 0 | Z123: 0 | AA123: 49882 | AB123: 0.2090088197 | AD123: 0.031413391 | AE123: 1.40889676 | AF123: 0 | AH123: 0.046 | AM123: 10438560 | AN123: 0
A124: 115 | B124: Groton | C124: 1635643200 | D124: 5957330.612 | E124: 776471000 | F124: 11005783.58 | G124: 16963114 | H124: 18254341.97 | I124: 15059832 | J124: 15059832 | K124: 82.5 | M124: 14835762 | N124: 0.0442 | O124: 15491503 | P124: 84.86475724 | Q124: 0 | R124: 0 | S124: 0 | T124: 431671 | U124: 366920.35 | V124: =MIN(H124*parameters!C$22,ROUND(O124+S124-U124,0)) -> 15124583 | W124: 82.85471492 | Y124: 0 | Z124: 0 | AA124: 64751 | AB124: 0.3547149151 | AD124: 0.02866373277 | AE124: 2.364757241 | AF124: 0 | AH124: 0.0442 | AM124: 14835762 | AN124: 0
A125: 116 | B125: Groveland | C125: 892145100 | D125: 3249365.946 | E125: 255506000 | F125: 3621569.562 | G125: 6870936 | H125: 10077788.5 | I125: 8314176 | J125: 6870936 | K125: 68.18 | M125: 6768390 | N125: 0.034 | O125: 6998515 | P125: 69.44494814 | Q125: 0 | R125: 0 | S125: 0 | T125: 127579 | U125: 108442.15 | V125: =MIN(H125*parameters!C$22,ROUND(O125+S125-U125,0)) -> 6890073 | W125: 68.36889857 | Y125: 0 | Z125: 0 | AA125: 19137 | AB125: 0.1888985733 | AD125: 0.01856792146 | AE125: 1.264948145 | AF125: 0 | AH125: 0.034 | AM125: 6768390 | AN125: 0
A126: 117 | B126: Hadley | C126: 995766700 | D126: 3626775.964 | E126: 168287000 | F126: 2385318.063 | G126: 6012094 | H126: 5734422.42 | I126: 4730898 | J126: 4730898 | K126: 82.5 | M126: 4724445 | N126: 0.0304 | O126: 4868068 | P126: 84.89203696 | Q126: 0 | R126: 0 | S126: 0 | T126: 137170 | U126: 116594.5 | V126: =MIN(H126*parameters!C$22,ROUND(O126+S126-U126,0)) -> 4751474 | W126: 82.8588069 | Y126: 0 | Z126: 0 | AA126: 20576 | AB126: 0.3588069032 | AD126: 0.02899449534 | AE126: 2.392036956 | AF126: 0 | AH126: 0.0304 | AM126: 4724445 | AN126: 0
A127: 118 | B127: Halifax | C127: 842935900 | D127: 3070136.47 | E127: 256590000 | F127: 3636934.295 | G127: 6707071 | H127: 12680407.94 | I127: 10461337 | J127: 6707071 | K127: 52.89 | M127: 6532977 | N127: 0.045 | O127: 6826961 | P127: 53.83865435 | Q127: 0 | R127: 0 | S127: 0 | T127: 119890 | U127: 101906.5 | V127: =MIN(H127*parameters!C$22,ROUND(O127+S127-U127,0)) -> 6725055 | W127: 53.03500513 | Y127: 0 | Z127: 0 | AA127: 17984 | AB127: 0.1450051267 | AD127: 0.01787516488 | AE127: 0.9486543508 | AF127: 0 | AH127: 0.045 | AM127: 6532977 | AN127: 0
A128: 119 | B128: Hamilton | C128: 1461991200 | D128: 5324856.258 | E128: 546666000 | F128: 7748502.76 | G128: 13073359 | H128: 11425628.98 | I128: 9426144 | J128: 9426144 | K128: 82.5 | M128: 9156867 | N128: 0.0394 | O128: 9517648 | P128: 83.30086696 | Q128: 0 | R128: 0 | S128: 0 | T128: 91504 | U128: 77778.4 | V128: =MIN(H128*parameters!C$22,ROUND(O128+S128-U128,0)) -> 9439870 | W128: 82.6201342 | Y128: 0 | Z128: 0 | AA128: 13726 | AB128: 0.1201341979 | AD128: 0.009707468929 | AE128: 0.8008669619 | AF128: 0 | AH128: 0.0394 | AM128: 9156867 | AN128: 0
A129: 120 | B129: Hampden | C129: 592716700 | D129: 2158789.485 | E129: 206851000 | F129: 2931928.352 | G129: 5090718 | H129: 6661414.374 | I129: 5495667 | J129: 5090718 | K129: 76.42 | M129: 5284329 | N129: 0.0509 | O129: 5553301 | P129: 83.36519376 | Q129: 0 | R129: 0 | S129: 0 | T129: 462583 | U129: 393195.55 | V129: =MIN(H129*parameters!C$22,ROUND(O129+S129-U129,0)) -> 5160105 | W129: 77.46260344 | Y129: 0 | Z129: 0 | AA129: 69387 | AB129: 1.042603443 | AD129: 0.09086792865 | AE129: 6.945193763 | AF129: 0 | AH129: 0.0509 | AM129: 5284329 | AN129: 0
A130: 121 | B130: Hancock | C130: 309488700 | D130: 1127218.03 | E130: 8716000 | F130: 123541.5227 | G130: 1250760 | H130: 595189.52 | I130: 491031 | J130: 491031 | K130: 82.5 | M130: 562854 | N130: 0.006 | O130: 566231 | P130: 95.13457159 | Q130: 0 | R130: 0 | S130: 0 | T130: 75200 | U130: 63920 | V130: =MIN(H130*parameters!C$22,ROUND(O130+S130-U130,0)) -> 502311 | W130: 84.39513518 | Y130: 0 | Z130: 0 | AA130: 11280 | AB130: 1.895135183 | AD130: 0.1531471536 | AE130: 12.63457159 | AF130: 0 | AH130: 0.006 | AM130: 562854 | AN130: 0
A131: 122 | B131: Hanover | C131: 2595375300 | D131: 9452861.555 | E131: 774408000 | F131: 10976542.4 | G131: 20429404 | H131: 25895118.63 | I131: 21363473 | J131: 20429404 | K131: 78.89 | M131: 19630129 | N131: 0.0337 | O131: 20291664 | P131: 78.36096175 | Q131: 0.5290382544 | R131: 0 | S131: 0 | T131: 0 | U131: 0 | V131: =MIN(H131*parameters!C$22,ROUND(O131+S131-U131,0)) -> 20291664 | W131: 78.36096175 | Y131: -137740 | Z131: 137740 | AA131: 0 | AB131: -0.5290382544 | AD131: -0.006742242701 | AE131: -0.5290382544 | AF131: 0 | AH131: 0.0337 | AM131: 19630129 | AN131: 0
A132: 123 | B132: Hanson | C132: 1233299600 | D132: 4491916.978 | E132: 363219000 | F132: 5148305.225 | G132: 9640222 | H132: 16994175.93 | I132: 14020195 | J132: 9640222 | K132: 56.73 | M132: 8591885 | N132: 0.0493 | O132: 9015465 | P132: 53.05032169 | Q132: 3.679678312 | R132: 0.01 | S132: 85919 | T132: 0 | U132: 0 | V132: =MIN(H132*parameters!C$22,ROUND(O132+S132-U132,0)) -> 9101384 | W132: 53.55590078 | Y132: -624757 | Z132: 538838 | AA132: 0 | AB132: -3.174099222 | AD132: -0.06480732498 | AE132: -3.679678312 | AF132: 85918.85 | AH132: 0.0493 | AM132: 8591885 | AN132: 0
A133: 124 | B133: Hardwick | C133: 235348800 | D133: 857186.097 | E133: 49292000 | F133: 698670.1168 | G133: 1555856 | H133: 4102109.313 | I133: 3384240 | J133: 1555856 | K133: 37.93 | M133: 1529188 | N133: 0.036 | O133: 1584239 | P133: 38.62010686 | Q133: 0 | R133: 0 | S133: 0 | T133: 28383 | U133: 24125.55 | V133: =MIN(H133*parameters!C$22,ROUND(O133+S133-U133,0)) -> 1560113 | W133: 38.03197041 | Y133: 0 | Z133: 0 | AA133: 4257 | AB133: 0.1019704089 | AD133: 0.01824269084 | AE133: 0.6901068568 | AF133: 0 | AH133: 0.036 | AM133: 1529188 | AN133: 0
A134: 125 | B134: Harvard | C134: 1112579800 | D134: 4052231.991 | E134: 426558000 | F134: 6046079.032 | G134: 10098311 | H134: 9254455.025 | I134: 7634925 | J134: 7634925 | K134: 82.5 | M134: 7797020 | N134: 0.0342 | O134: 8063678 | P134: 87.13293196 | Q134: 0 | R134: 0 | S134: 0 | T134: 428753 | U134: 364440.05 | V134: =MIN(H134*parameters!C$22,ROUND(O134+S134-U134,0)) -> 7699238 | W134: 83.1949367 | Y134: 0 | Z134: 0 | AA134: 64313 | AB134: 0.6949367021 | AD134: 0.05615680573 | AE134: 4.63293196 | AF134: 0 | AH134: 0.0342 | AM134: 7797020 | AN134: 0
A135: 126 | B135: Harwich | C135: 5172756600 | D135: 18840185.46 | E135: 447370000 | F135: 6341070.562 | G135: 25181256 | H135: 16038649.49 | I135: 13231886 | J135: 13231886 | K135: 82.5 | M135: 12790359 | N135: 0.0375 | O135: 13269997 | P135: 82.73762082 | Q135: 0 | R135: 0 | S135: 0 | T135: 38111 | U135: 32394.35 | V135: =MIN(H135*parameters!C$22,ROUND(O135+S135-U135,0)) -> 13237603 | W135: 82.53564621 | Y135: 0 | Z135: 0 | AA135: 5717 | AB135: 0.03564620915 | AD135: 0.002880239446 | AE135: 0.2376208207 | AF135: 0 | AH135: 0.0375 | AM135: 12790359 | AN135: 0
A136: 127 | B136: Hatfield | C136: 535723900 | D136: 1951210.624 | E136: 112701000 | F136: 1597436.112 | G136: 3548647 | H136: 3430866.1 | I136: 2830465 | J136: 2830465 | K136: 82.5 | M136: 2864170 | N136: 0.0355 | O136: 2965848 | P136: 86.44604346 | Q136: 0 | R136: 0 | S136: 0 | T136: 135383 | U136: 115075.55 | V136: =MIN(H136*parameters!C$22,ROUND(O136+S136-U136,0)) -> 2850772 | W136: 83.09190499 | Y136: 0 | Z136: 0 | AA136: 20307 | AB136: 0.5919049857 | AD136: 0.0478306568 | AE136: 3.946043464 | AF136: 0 | AH136: 0.0355 | AM136: 2864170 | AN136: 0
A137: 128 | B137: Haverhill | C137: 5812453600 | D137: 21170086.34 | E137: 1749601000 | F137: 24799033.01 | G137: 45969119 | H137: 108116050.9 | I137: 89195742 | J137: 45969119 | K137: 42.52 | M137: 44582791 | N137: 0.0405 | O137: 46388394 | P137: 42.9061121 | Q137: 0 | R137: 0 | S137: 0 | T137: 419275 | U137: 356383.75 | V137: =MIN(H137*parameters!C$22,ROUND(O137+S137-U137,0)) -> 46032010 | W137: 42.57648112 | Y137: 0 | Z137: 0 | AA137: 62891 | AB137: 0.05648111956 | AD137: 0.009120796942 | AE137: 0.3861121013 | AF137: 0 | AH137: 0.0405 | AM137: 44582791 | AN137: 0
A138: 129 | B138: Hawley | C138: 52222400 | D138: 190204.1363 | E138: 5362000 | F138: 76001.56549 | G138: 266206 | H138: 355434.2459 | I138: 293233 | J138: 266206 | K138: 74.9 | M138: 256848 | N138: 0.0401 | O138: 267148 | P138: 75.1610187 | Q138: 0 | R138: 0 | S138: 0 | T138: 942 | U138: =MAX(T138*(U$5),0) -> 800.7 | V138: =MIN(H138*parameters!C$22,ROUND(O138+S138-U138,0)) -> 266347 | W138: 74.93566056 | Y138: 0 | Z138: =MAX(J138-(O138+S138),0) -> 0 | AA138: 141 | AB138: 0.03566055996 | AD138: =(O138-J138)/J138 -> 0.003538612954 | AE138: 0.2610186984 | AF138: =IF(AD138<$AF$5, $AF$6*(M138), IF(AND(AD138<$AF$4, AD138>$AF$5), $AF$7*(M138), 0)) -> 0 | AH138: 0.0401 | AM138: 256848 | AN138: 0
A139: 130 | B139: Heath | C139: 96911500 | D139: =D$5*C139 -> 352970.529 | E139: 8822000 | F139: 125043.9781 | G139: =ROUND(D139+F139,0) -> 478015 | H139: =(SUMIF(town1755,A139,found1755)/2) -> 1029856.45 | I139: =ROUND(H139*maxloc,0) -> 849632 | J139: =MIN(G139,I139) -> 478015 | K139: =IF(H139>0, ROUND((J139*100/H139), 2), 0) -> 46.42 | M139: 466025 | N139: =IF($N$5=1,AH139, IF( $N$5=2,AI139, IF( $N$5=3, AJ139, IF($N$5=4, AK139, 0)))) -> 0.0386 | O139: =ROUND(M139*(1+N139),0) -> 484014 | P139: =O139*100/H139 -> 46.99820059 | Q139: =IF(K139>P139,K139-P139,0) -> 0 | R139: =IF(AND(Q139>$S$4,Q139<=$S$5),$R$4,IF(Q139>$S$5,$R$5,0)) -> 0 | S139: =ROUND(R139*M139,0) -> 0 | T139: =MAX(O139-J139,0) -> 5999 | U139: 5099.15 | V139: =MIN(H139*parameters!C$22,ROUND(O139+S139-U139,0)) -> 478915 | W139: =V139*100/H139 -> 46.50308304 | Y139: =IF(P139<K139, O139-J139, 0) -> 0 | Z139: 0 | AA139: =IF(P139>K139, V139-J139,0) -> 900 | AB139: =W139-K139 -> 0.0830830401 | AD139: 0.01254981538 | AE139: =P139-K139 -> 0.5782005879 | AF139: 0 | AH139: 0.0386 | AM139: 466025 | AN139: =AM139-M139 -> 0
A140: 131 | B140: Hingham | C140: 6668867000 | D140: 24289310.48 | E140: 2610730000 | F140: =E140*F$5 -> 37004768.2 | G140: 61294079 | H140: 42684162.67 | I140: 35214434 | J140: 35214434 | K140: 82.5 | M140: 34293632 | N140: 0.0348 | O140: 35487050 | P140: 83.13868138 | Q140: 0 | R140: 0 | S140: 0 | T140: 272616 | U140: 231723.6 | V140: =MIN(H140*parameters!C$22,ROUND(O140+S140-U140,0)) -> 35255326 | W140: 82.59580087 | Y140: 0 | Z140: 0 | AA140: 40892 | AB140: 0.09580086915 | AD140: 0.007741598232 | AE140: 0.6386813792 | AF140: 0 | AH140: 0.0348 | AM140: 34293632 | AN140: 0
A141: 132 | B141: Hinsdale | C141: 303864800 | D141: 1106734.693 | E141: 62875000 | F141: 891197.0217 | G141: 1997932 | H141: 2114325.811 | I141: 1744319 | J141: 1744319 | K141: 82.5 | M141: 1935909 | N141: 0.0358 | O141: 2005215 | P141: 94.83945138 | Q141: 0 | R141: 0 | S141: 0 | T141: 260896 | U141: 221761.6 | V141: =MIN(H141*parameters!C$22,ROUND(O141+S141-U141,0)) -> 1783453 | W141: 84.35090706 | Y141: 0 | Z141: 0 | AA141: 39134 | AB141: 1.850907055 | AD141: 0.1495689722 | AE141: 12.33945138 | AF141: 0 | AH141: 0.0358 | AM141: 1935909 | AN141: 0
A142: 133 | B142: Holbrook | C142: 1127964100 | D142: 4108264.603 | E142: 322729000 | F142: 4574395.604 | G142: 8682660 | H142: 15934385.44 | I142: 13145868 | J142: 8682660 | K142: 54.49 | M142: 8486638 | N142: 0.0543 | O142: 8947462 | P142: 56.15191143 | Q142: 0 | R142: 0 | S142: 0 | T142: 264802 | U142: 225081.7 | V142: =MIN(H142*parameters!C$22,ROUND(O142+S142-U142,0)) -> 8722380 | W142: 54.73935616 | Y142: 0 | Z142: 0 | AA142: 39720 | AB142: 0.2493561646 | AD142: 0.03049779676 | AE142: 1.661911426 | AF142: 0 | AH142: 0.0543 | AM142: 8486638 | AN142: 0
A143: 134 | B143: Holden | C143: 2129003300 | D143: 7754244.038 | E143: 788965000 | F143: 11182874.88 | G143: 18937119 | H143: 31909829.75 | I143: 26325610 | J143: 18937119 | K143: 59.35 | M143: 18356208 | N143: 0.0448 | O143: 19178566 | P143: 60.10237646 | Q143: 0 | R143: 0 | S143: 0 | T143: 241447 | U143: 205229.95 | V143: =MIN(H143*parameters!C$22,ROUND(O143+S143-U143,0)) -> 18973336 | W143: 59.45922041 | Y143: 0 | Z143: 0 | AA143: 36217 | AB143: 0.1092204073 | AD143: 0.01274993308 | AE143: 0.7523764556 | AF143: 0 | AH143: 0.0448 | AM143: 18356208 | AN143: 0
A144: 135 | B144: Holland | C144: 340016400 | D144: 1238405.85 | E144: 73403000 | F144: 1040422.028 | G144: 2278828 | H144: 3932882.109 | I144: 3244628 | J144: 2278828 | K144: 57.94 | M144: 2213448 | N144: 0.0324 | O144: 2285164 | P144: 58.10405542 | Q144: 0 | R144: 0 | S144: 0 | T144: 6336 | U144: 5385.6 | V144: =MIN(H144*parameters!C$22,ROUND(O144+S144-U144,0)) -> 2279778 | W144: 57.96710751 | Y144: 0 | Z144: 0 | AA144: 950 | AB144: 0.02710750572 | AD144: 0.00278037658 | AE144: 0.1640554195 | AF144: 0 | AH144: 0.0324 | AM144: 2213448 | AN144: 0
A145: 136 | B145: Holliston | C145: 2407279400 | D145: 8767779.709 | E145: 819509000 | F145: 11615808.83 | G145: 20383589 | H145: 27707718.17 | I145: 22858867 | J145: 20383589 | K145: 73.57 | M145: 19250078 | N145: 0.0467 | O145: 20149057 | P145: 72.72001569 | Q145: 0.8499843088 | R145: 0 | S145: 0 | T145: 0 | U145: 0 | V145: =MIN(H145*parameters!C$22,ROUND(O145+S145-U145,0)) -> 20149057 | W145: 72.72001569 | Y145: -234532 | Z145: 234532 | AA145: 0 | AB145: -0.8499843088 | AD145: -0.01150592273 | AE145: -0.8499843088 | AF145: 0 | AH145: 0.0467 | AM145: 19250078 | AN145: 0
A146: 137 | B146: Holyoke | C146: 2101821200 | D146: 7655241.543 | E146: 663635000 | F146: 9406433.964 | G146: 17061676 | H146: 80272516.45 | I146: 66224826 | J146: 17061676 | K146: 21.25 | M146: 10580654 | N146: 0.0089 | O146: 10674822 | P146: 13.29822768 | Q146: 7.951772322 | R146: 0.02 | S146: 211613 | T146: 0 | U146: 0 | V146: =MIN(H146*parameters!C$22,ROUND(O146+S146-U146,0)) -> 10886435 | W146: 13.56184592 | Y146: -6386854 | Z146: 6175241 | AA146: 0 | AB146: -7.688154076 | AD146: -0.3743391915 | AE146: -7.951772322 | AF146: 211613.08 | AH146: 0.0089 | AM146: 10580654 | AN146: 0
A147: 138 | B147: Hopedale | C147: 708023100 | D147: 2578757.817 | E147: 240631000 | F147: 3410729.71 | G147: 5989488 | H147: 10624813.82 | I147: 8765471 | J147: 5989488 | K147: 56.37 | M147: 5784960 | N147: 0.0341 | O147: 5982227 | P147: 56.30429956 | Q147: 0.06570044343 | R147: 0 | S147: 0 | T147: 0 | U147: 0 | V147: =MIN(H147*parameters!C$22,ROUND(O147+S147-U147,0)) -> 5982227 | W147: 56.30429956 | Y147: -7261 | Z147: 7261 | AA147: 0 | AB147: -0.06570044343 | AD147: -0.0012122906 | AE147: -0.06570044343 | AF147: 0 | AH147: 0.0341 | AM147: 5784960 | AN147: 0
A148: 139 | B148: Hopkinton | C148: 3551620800 | D148: 12935693.62 | E148: 1402530000 | F148: 19879611.27 | G148: 32815305 | H148: 37464124.36 | I148: 30907903 | J148: 30907903 | K148: 82.5 | M148: 28687942 | N148: 0.0707 | O148: 30716179 | P148: 81.98824749 | Q148: 0.5117525149 | R148: 0 | S148: 0 | T148: 0 | U148: 0 | V148: =MIN(H148*parameters!C$22,ROUND(O148+S148-U148,0)) -> 30716179 | W148: 81.98824749 | Y148: -191724 | Z148: 191724 | AA148: 0 | AB148: -0.5117525149 | AD148: -0.006203073693 | AE148: -0.5117525149 | AF148: 0 | AH148: 0.0707 | AM148: 28687942 | AN148: 0
A149: 140 | B149: Hubbardston | C149: 417293300 | D149: 1519863.348 | E149: 152376000 | F149: 2159793.835 | G149: 3679657 | H149: 6706832.934 | I149: 5533137 | J149: 3679657 | K149: 54.86 | M149: 3557820 | N149: 0.0306 | O149: 3666689 | P149: 54.67094583 | Q149: 0.1890541708 | R149: 0 | S149: 0 | T149: 0 | U149: 0 | V149: =MIN(H149*parameters!C$22,ROUND(O149+S149-U149,0)) -> 3666689 | W149: 54.67094583 | Y149: -12968 | Z149: 12968 | AA149: 0 | AB149: -0.1890541708 | AD149: -0.003524241526 | AE149: -0.1890541708 | AF149: 0 | AH149: 0.0306 | AM149: 3557820 | AN149: 0
A150: 141 | B150: Hudson | C150: 2465036000 | D150: 8978140.478 | E150: 728402000 | F150: 10324448.4 | G150: 19302589 | H150: 32790983.26 | I150: 27052561 | J150: 19302589 | K150: 58.87 | M150: 18798300 | N150: 0.0526 | O150: 19787091 | P150: 60.34308529 | Q150: 0 | R150: 0 | S150: 0 | T150: 484502 | U150: 411826.7 | V150: =MIN(H150*parameters!C$22,ROUND(O150+S150-U150,0)) -> 19375264 | W150: 59.08716992 | Y150: 0 | Z150: 0 | AA150: 72675 | AB150: 0.2171699201 | AD150: 0.02510036348 | AE150: 1.473085294 | AF150: 0 | AH150: 0.0526 | AM150: 18798300 | AN150: 0
A151: 142 | B151: Hull | C151: 2074982700 | D151: 7557490.507 | E151: 390051000 | F151: 5528624.883 | G151: 13086115 | H151: 10148098.74 | I151: 8372181 | J151: 8372181 | K151: 82.5 | M151: 8510548 | N151: 0.0271 | O151: 8741184 | P151: 86.13617414 | Q151: 0 | R151: 0 | S151: 0 | T151: 369003 | U151: 313652.55 | V151: =MIN(H151*parameters!C$22,ROUND(O151+S151-U151,0)) -> 8427531 | W151: 83.04541785 | Y151: 0 | Z151: 0 | AA151: 55350 | AB151: 0.5454178521 | AD151: 0.04407489518 | AE151: 3.636174142 | AF151: 0 | AH151: 0.0271 | AM151: 8510548 | AN151: 0
A152: 143 | B152: Huntington | C152: 196611000 | D152: 716095.4962 | E152: 64031000 | F152: 907582.2902 | G152: 1623678 | H152: 2946052.293 | I152: 2430493 | J152: 1623678 | K152: 55.11 | M152: 1611888 | N152: 0.0326 | O152: 1664436 | P152: 56.49716416 | Q152: 0 | R152: 0 | S152: 0 | T152: 40758 | U152: 34644.3 | V152: =MIN(H152*parameters!C$22,ROUND(O152+S152-U152,0)) -> 1629792 | W152: 55.32121762 | Y152: 0 | Z152: 0 | AA152: 6114 | AB152: 0.2112176158 | AD152: 0.02510226781 | AE152: 1.387164156 | AF152: 0 | AH152: 0.0326 | AM152: 1611888 | AN152: 0
A153: 144 | B153: Ipswich | C153: 2656625000 | D153: 9675944.873 | E153: 662707000 | F153: 9393280.392 | G153: 19069225 | H153: 18190906.85 | I153: 15007498 | J153: 15007498 | K153: 82.5 | M153: 15037031 | N153: 0.0367 | O153: 15588890 | P153: 85.69605755 | Q153: 0 | R153: 0 | S153: 0 | T153: 581392 | U153: 494183.2 | V153: =MIN(H153*parameters!C$22,ROUND(O153+S153-U153,0)) -> 15094707 | W153: 82.97940904 | Y153: 0 | Z153: 0 | AA153: 87209 | AB153: 0.4794090356 | AD153: 0.03874010178 | AE153: 3.196057547 | AF153: 0 | AH153: 0.0367 | AM153: 15037031 | AN153: 0
A154: 145 | B154: Kingston | C154: 1801085800 | D154: 6559904.734 | E154: 528290000 | F154: 7488039.357 | G154: 14047944 | H154: 22450378.21 | I154: 18521562 | J154: 14047944 | K154: 62.57 | M154: 13421339 | N154: 0.0533 | O154: 14136696 | P154: 62.96863183 | Q154: 0 | R154: 0 | S154: 0 | T154: 88752 | U154: 75439.2 | V154: =MIN(H154*parameters!C$22,ROUND(O154+S154-U154,0)) -> 14061257 | W154: 62.63260631 | Y154: 0 | Z154: 0 | AA154: 13313 | AB154: 0.06260631275 | AD154: 0.006317792839 | AE154: 0.3986318322 | AF154: 0 | AH154: 0.0533 | AM154: 13421339 | AN154: 0
A155: 146 | B155: Lakeville | C155: 1560763600 | D155: 5684604.547 | E155: 420936000 | F155: 5966392.199 | G155: 11650997 | H155: 18159946.79 | I155: 14981956 | J155: 11650997 | K155: 64.16 | M155: 11478193 | N155: 0.0422 | O155: 11962573 | P155: 65.87339234 | Q155: 0 | R155: 0 | S155: 0 | T155: 311576 | U155: 264839.6 | V155: =MIN(H155*parameters!C$22,ROUND(O155+S155-U155,0)) -> 11697733 | W155: 64.41501803 | Y155: 0 | Z155: 0 | AA155: 46736 | AB155: 0.2550180256 | AD155: 0.02674243243 | AE155: 1.713392343 | AF155: 0 | AH155: 0.0422 | AM155: 11478193 | AN155: 0
A156: 147 | B156: Lancaster | C156: 892728400 | D156: 3251490.438 | E156: 273542000 | F156: 3877213.769 | G156: 7128704 | H156: 10251140.24 | I156: 8457191 | J156: 7128704 | K156: 69.54 | M156: 7002120 | N156: 0.0396 | O156: 7279404 | P156: 71.01067616 | Q156: 0 | R156: 0 | S156: 0 | T156: 150700 | U156: 128095 | V156: =MIN(H156*parameters!C$22,ROUND(O156+S156-U156,0)) -> 7151309 | W156: 69.76110785 | Y156: 0 | Z156: 0 | AA156: 22605 | AB156: 0.2211078453 | AD156: 0.02113988742 | AE156: 1.470676156 | AF156: 0 | AH156: 0.0396 | AM156: 7002120 | AN156: 0
A157: 148 | B157: Lanesborough | C157: 413758100 | D157: 1506987.462 | E157: 74735000 | F157: 1059301.939 | G157: 2566289 | H157: 3953845.806 | I157: 3261923 | J157: 2566289 | K157: 64.91 | M157: 2562146 | N157: 0.0265 | O157: 2630043 | P157: 66.51860313 | Q157: 0 | R157: 0 | S157: 0 | T157: 63754 | U157: 54190.9 | V157: =MIN(H157*parameters!C$22,ROUND(O157+S157-U157,0)) -> 2575852 | W157: 65.14801351 | Y157: 0 | Z157: 0 | AA157: 9563 | AB157: 0.2380135138 | AD157: 0.02484287623 | AE157: 1.608603129 | AF157: 0 | AH157: 0.0265 | AM157: 2562146 | AN157: 0
A158: 149 | B158: Lawrence | C158: 3559850600 | D158: 12965668.16 | E158: 1193179000 | F158: 16912247.65 | G158: 29877916 | H158: 216732850.4 | I158: 178804602 | J158: 29877916 | K158: 13.79 | M158: 10439402 | N158: 0.0614 | O158: 11080381 | P158: 5.112460332 | Q158: 8.677539668 | R158: 0.02 | S158: 208788 | T158: 0 | U158: 0 | V158: =MIN(H158*parameters!C$22,ROUND(O158+S158-U158,0)) -> 11289169 | W158: 5.208794597 | Y158: -18797535 | Z158: 18588747 | AA158: 0 | AB158: -8.581205403 | AD158: -0.6291447837 | AE158: -8.677539668 | AF158: 208788.04 | AH158: 0.0614 | AM158: 10439402 | AN158: 0
A159: 150 | B159: Lee | C159: 971502900 | D159: 3538402.486 | E159: 160153000 | F159: 2270025.871 | G159: 5808428 | H159: 6932523.87 | I159: 5719332 | J159: 5719332 | K159: 82.5 | M159: 5587191 | N159: 0.0459 | O159: 5843643 | P159: 84.29315369 | Q159: 0 | R159: 0 | S159: 0 | T159: 124311 | U159: 105664.35 | V159: =MIN(H159*parameters!C$22,ROUND(O159+S159-U159,0)) -> 5737979 | W159: 82.76897574 | Y159: 0 | Z159: 0 | AA159: 18647 | AB159: 0.2689757381 | AD159: 0.02173523062 | AE159: 1.793153685 | AF159: 0 | AH159: 0.0459 | AM159: 5587191 | AN159: 0
A160: 151 | B160: Leicester | C160: 938090200 | D160: 3416706.935 | E160: 322191000 | F160: 4566769.934 | G160: 7983477 | H160: 16915437.71 | I160: 13955236 | J160: 7983477 | K160: 47.2 | M160: 7799077 | N160: 0.0457 | O160: 8155495 | P160: 48.21332525 | Q160: 0 | R160: 0 | S160: 0 | T160: 172018 | U160: 146215.3 | V160: =MIN(H160*parameters!C$22,ROUND(O160+S160-U160,0)) -> 8009280 | W160: 47.34893733 | Y160: 0 | Z160: 0 | AA160: 25803 | AB160: 0.1489373276 | AD160: 0.02154675212 | AE160: 1.013325247 | AF160: 0 | AH160: 0.0457 | AM160: 7799077 | AN160: 0
A161: 152 | B161: Lenox | C161: 1236509800 | D161: 4503609.151 | E161: 236649000 | F161: 3354288.413 | G161: 7857898 | H161: 5262338.97 | I161: 4341430 | J161: 4341430 | K161: 82.5 | M161: 4429745 | N161: 0.0297 | O161: 4561308 | P161: 86.67833878 | Q161: 0 | R161: 0 | S161: 0 | T161: 219878 | U161: 186896.3 | V161: =MIN(H161*parameters!C$22,ROUND(O161+S161-U161,0)) -> 4374412 | W161: 83.12676217 | Y161: 0 | Z161: 0 | AA161: 32982 | AB161: 0.6267621667 | AD161: 0.05064644599 | AE161: 4.178338777 | AF161: 0 | AH161: 0.0297 | AM161: 4429745 | AN161: 0
A162: 153 | B162: Leominster | C162: 3443640600 | D162: 12542408.74 | E162: 1139293000 | F162: 16148461.68 | G162: 28690870 | H162: 71706672.16 | I162: 59158005 | J162: 28690870 | K162: 40.01 | M162: 27880085 | N162: 0.0421 | O162: 29053837 | P162: 40.51762008 | Q162: 0 | R162: 0 | S162: 0 | T162: 362967 | U162: 308521.95 | V162: =MIN(H162*parameters!C$22,ROUND(O162+S162-U162,0)) -> 28745315 | W162: 40.08736444 | Y162: 0 | Z162: 0 | AA162: 54445 | AB162: 0.07736444478 | AD162: 0.0126509583 | AE162: 0.5076200831 | AF162: 0 | AH162: 0.0421 | AM162: 27880085 | AN162: 0
A163: 154 | B163: Leverett | C163: 263543700 | D163: 959877.4057 | E163: 71918000 | F163: 1019373.478 | G163: 1979251 | H163: 2088232.921 | I163: 1722792 | J163: 1722792 | K163: 82.5 | M163: 1747951 | N163: 0.0322 | O163: 1804235 | P163: 86.40008411 | Q163: 0 | R163: 0 | S163: 0 | T163: 81443 | U163: 69226.55 | V163: =MIN(H163*parameters!C$22,ROUND(O163+S163-U163,0)) -> 1735008 | W163: 83.08498457 | Y163: 0 | Z163: 0 | AA163: 12216 | AB163: 0.5849845652 | AD163: 0.04727384385 | AE163: 3.900084107 | AF163: 0 | AH163: 0.0322 | AM163: 1747951 | AN163: 0
A164: 155 | B164: Lexington | C164: 10863785200 | D164: 39568018.34 | E164: 3748957000 | F164: 53138120.28 | G164: 92706139 | H164: 76797551.6 | I164: 63357980 | J164: 63357980 | K164: 82.5 | M164: 60800204 | N164: 0.0468 | O164: 63645654 | P164: 82.87458738 | Q164: 0 | R164: 0 | S164: 0 | T164: 287674 | U164: 244522.9 | V164: =MIN(H164*parameters!C$22,ROUND(O164+S164-U164,0)) -> 63401131 | W164: 82.5561879 | Y164: 0 | Z164: 0 | AA164: 43151 | AB164: 0.05618790316 | AD164: 0.004540454099 | AE164: 0.3745873767 | AF164: 0 | AH164: 0.0468 | AM164: 60800204 | AN164: 0
A165: 156 | B165: Leyden | C165: 84406000 | D165: 307423.0661 | E165: 27402000 | F165: 388398.8992 | G165: 695822 | H165: 690703.6435 | I165: 569831 | J165: 569831 | K165: 82.5 | M165: 555876 | N165: 0.0311 | O165: 573164 | P165: 82.98262293 | Q165: 0 | R165: 0 | S165: 0 | T165: 3333 | U165: 2833.05 | V165: =MIN(H165*parameters!C$22,ROUND(O165+S165-U165,0)) -> 570331 | W165: 82.57246149 | Y165: 0 | Z165: 0 | AA165: 500 | AB165: 0.07246149005 | AD165: 0.005849102629 | AE165: 0.4826229286 | AF165: 0 | AH165: 0.0311 | AM165: 555876 | AN165: 0
A166: 157 | B166: Lincoln | C166: 2091782100 | D166: 7618677.189 | E166: 907873000 | F166: 12868289.68 | G166: 20486967 | H166: 8387404.058 | I166: 6919608 | J166: 6919608 | K166: 82.5 | M166: 7022519 | N166: 0.0319 | O166: 7246537 | P166: 86.39785266 | Q166: 0 | R166: 0 | S166: 0 | T166: 326929 | U166: 277889.65 | V166: =MIN(H166*parameters!C$22,ROUND(O166+S166-U166,0)) -> 6968647 | W166: 83.0846702 | Y166: 0 | Z166: 0 | AA166: 49039 | AB166: 0.5846701974 | AD166: 0.04724675155 | AE166: 3.897852656 | AF166: 0 | AH166: 0.0319 | AM166: 7022519 | AN166: 0
A167: 158 | B167: Littleton | C167: 1710179700 | D167: 6228807.039 | E167: 467059000 | F167: 6620144.568 | G167: 12848952 | H167: 16391504.92 | I167: 13522992 | J167: 12848952 | K167: 78.39 | M167: 12622575 | N167: 0.073 | O167: 13544023 | P167: 82.62830694 | Q167: 0 | R167: 0 | S167: 0 | T167: 695071 | U167: 590810.35 | V167: =MIN(H167*parameters!C$22,ROUND(O167+S167-U167,0)) -> 12953213 | W167: 79.02393991 | Y167: 0 | Z167: 0 | AA167: 104261 | AB167: 0.6339399054 | AD167: 0.05409554024 | AE167: 4.23830694 | AF167: 0 | AH167: 0.073 | AM167: 12622575 | AN167: 0
A168: 159 | B168: Longmeadow | C168: 2077458300 | D168: 7566507.124 | E168: 1087266000 | F168: 15411025.38 | G168: 22977533 | H168: 27803260.72 | I168: 22937690 | J168: 22937690 | K168: 82.5 | M168: 22022317 | N168: 0.0293 | O168: 22667571 | P168: 81.52846254 | Q168: 0.9715374636 | R168: 0 | S168: 0 | T168: 0 | U168: 0 | V168: =MIN(H168*parameters!C$22,ROUND(O168+S168-U168,0)) -> 22667571 | W168: 81.52846254 | Y168: -270119 | Z168: 270119 | AA168: 0 | AB168: -0.9715374636 | AD168: -0.01177620763 | AE168: -0.9715374636 | AF168: 0 | AH168: 0.0293 | AM168: 22022317 | AN168: 0
A169: 160 | B169: Lowell | C169: 7154033100 | D169: 26056379.77 | E169: 2314118000 | F169: 32800557.76 | G169: 58856938 | H169: 226441450.6 | I169: 186814197 | J169: 58856938 | K169: 25.99 | M169: 52490284 | N169: 0.0396 | O169: 54568899 | P169: 24.0984585 | Q169: 1.891541499 | R169: 0 | S169: 0 | T169: 0 | U169: 0 | V169: =MIN(H169*parameters!C$22,ROUND(O169+S169-U169,0)) -> 54568899 | W169: 24.0984585 | Y169: -4288039 | Z169: 4288039 | AA169: 0 | AB169: -1.891541499 | AD169: =(O169-J169)/J169 -> -0.07285528513 | AE169: -1.891541499 | AF169: 524902.84 | AH169: 0.0396 | AM169: 52490284 | AN169: 0
A170: 161 | B170: Ludlow | C170: 2094585700 | D170: 7628888.445 | E170: 563460000 | F170: 7986542.725 | G170: 15615431 | H170: 27414757.55 | I170: 22617175 | J170: 15615431 | K170: 56.96 | M170: 15438923 | N170: 0.0367 | O170: 16005531 | P170: 58.38290188 | Q170: 0 | R170: 0 | S170: 0 | T170: 390100 | U170: 331585 | V170: =MIN(H170*parameters!C$22,ROUND(O170+S170-U170,0)) -> 15673946 | W170: 57.17338908 | Y170: 0 | Z170: 0 | AA170: 58515 | AB170: 0.2133890822 | AD170: =(O170-J170)/J170 -> 0.02498169919 | AE170: =P170-K170 -> 1.422901876 | AF170: 0 | AH170: 0.0367 | AM170: 15438923 | AN170: 0
A171: 162 | B171: Lunenburg | C171: 1293035700 | D171: 4709487.471 | E171: 396632000 | F171: 5621904.685 | G171: 10331392 | H171: 18436858.43 | I171: 15210408 | J171: 10331392 | K171: 56.04 | M171: 10087341 | N171: 0.0438 | O171: 10529167 | P171: 57.10933368 | Q171: 0 | R171: 0 | S171: 0 | T171: 197775 | U171: 168108.75 | V171: =MIN(H171*parameters!C$22,ROUND(O171+S171-U171,0)) -> 10361058 | W171: 56.19752432 | Y171: 0 | Z171: 0 | AA171: 29666 | AB171: 0.1575243244 | AD171: 0.01914311256 | AE171: 1.06933368 | AF171: 0 | AH171: 0.0438 | AM171: 10087341 | AN171: 0
A172: 163 | B172: Lynn | C172: 6738721300 | D172: 24543733.43 | E172: 1867148000 | F172: 26465156.84 | G172: 51008890 | H172: 214464891.4 | I172: 176933535 | J172: 51008890 | K172: 23.78 | M172: 48112261 | N172: 0.0546 | O172: 50739190 | P172: 23.65850637 | Q172: 0.1214936313 | R172: 0 | S172: 0 | T172: 0 | U172: 0 | V172: =MIN(H172*parameters!C$22,ROUND(O172+S172-U172,0)) -> 50739190 | W172: 23.65850637 | Y172: -269700 | Z172: 269700 | AA172: 0 | AB172: -0.1214936313 | AD172: -0.005287313643 | AE172: -0.1214936313 | AF172: 0 | AH172: 0.0546 | AM172: 48112261 | AN172: 0
A173: 164 | B173: Lynnfield | C173: 3007167600 | D173: 10952689.19 | E173: 965904000 | F173: 13690827.32 | G173: 24643517 | H173: 22428704.91 | I173: 18503682 | J173: 18503682 | K173: 82.5 | M173: 17698731 | N173: 0.0463 | O173: 18518182 | P173: 82.5646513 | Q173: 0 | R173: 0 | S173: 0 | T173: 14500 | U173: 12325 | V173: =MIN(H173*parameters!C$22,ROUND(O173+S173-U173,0)) -> 18505857 | W173: 82.5096994 | Y173: 0 | Z173: 0 | AA173: 2175 | AB173: 0.009699398626 | AD173: 0.0007836278207 | AE173: 0.06465130089 | AF173: 0 | AH173: 0.0463 | AM173: 17698731 | AN173: 0
A174: 165 | B174: Malden | C174: 6275190000 | D174: 22855462.29 | E174: 1537861000 | F174: 21797807.44 | G174: 44653270 | H174: 92256998.29 | I174: 76112024 | J174: 44653270 | K174: 48.4 | M174: 40155455 | N174: 0.0476 | O174: 42066855 | P174: 45.5974677 | Q174: 2.802532297 | R174: 0.01 | S174: 401555 | T174: 0 | U174: 0 | V174: =MIN(H174*parameters!C$22,ROUND(O174+S174-U174,0)) -> 42468410 | W174: 46.03272466 | Y174: -2586415 | Z174: 2184860 | AA174: 0 | AB174: -2.367275344 | AD174: -0.05792218577 | AE174: -2.802532297 | AF174: 401554.55 | AH174: 0.0476 | AM174: 40155455 | AN174: 0
A175: 166 | B175: Manchester | C175: 2394763100 | D175: 8722192.91 | E175: 685823000 | F175: 9720929.065 | G175: 18443122 | H175: 8370658.721 | I175: 6905793 | J175: 6905793 | K175: 82.5 | M175: 6850399 | N175: 0.041 | O175: 7131265 | P175: 85.19359393 | Q175: 0 | R175: 0 | S175: 0 | T175: 225472 | U175: 191651.2 | V175: =MIN(H175*parameters!C$22,ROUND(O175+S175-U175,0)) -> 6939614 | W175: 82.90403696 | Y175: 0 | Z175: 0 | AA175: 33821 | AB175: 0.4040369645 | AD175: 0.03264968991 | AE175: 2.693593932 | AF175: 0 | AH175: 0.041 | AM175: 6850399 | AN175: 0
A176: 167 | B176: Mansfield | C176: 3521948200 | D176: 12827620.24 | E176: 1101187000 | F176: 15608343.14 | G176: 28435963 | H176: 42788508.9 | I176: 35300520 | J176: 28435963 | K176: 66.46 | M176: 28120205 | N176: 0.0479 | O176: 29467163 | P176: 68.86700135 | Q176: 0 | R176: 0 | S176: 0 | T176: 1031200 | U176: 876520 | V176: =MIN(H176*parameters!C$22,ROUND(O176+S176-U176,0)) -> 28590643 | W176: 66.81850744 | Y176: 0 | Z176: 0 | AA176: 154680 | AB176: 0.3585074384 | AD176: 0.03626393803 | AE176: 2.407001351 | AF176: 0 | AH176: 0.0479 | AM176: 28120205 | AN176: 0
A177: 168 | B177: Marblehead | C177: 5735475100 | D177: 20889715.67 | E177: 1757135000 | F177: 24905820.73 | G177: 45795536 | H177: 31818119.22 | I177: 26249948 | J177: 26249948 | K177: 82.5 | M177: 25816390 | N177: 0.0388 | O177: 26818066 | P177: 84.2855161 | Q177: 0 | R177: 0 | S177: 0 | T177: 568118 | U177: 482900.3 | V177: =MIN(H177*parameters!C$22,ROUND(O177+S177-U177,0)) -> 26335166 | W177: 82.7678274 | Y177: 0 | Z177: 0 | AA177: 85218 | AB177: 0.267827401 | AD177: 0.02164263335 | AE177: 1.785516101 | AF177: 0 | AH177: 0.0388 | AM177: 25816390 | AN177: 0
A178: 169 | B178: Marion | C178: 1612928900 | D178: 5874600.714 | E178: 283774000 | F178: 4022243.239 | G178: 9896844 | H178: 8210086.742 | I178: 6773322 | J178: 6773322 | K178: 82.5 | M178: 6465560 | N178: 0.0392 | O178: 6719010 | P178: 81.83847761 | Q178: 0.6615223896 | R178: 0 | S178: 0 | T178: 0 | U178: 0 | V178: =MIN(H178*parameters!C$22,ROUND(O178+S178-U178,0)) -> 6719010 | W178: 81.83847761 | Y178: -54312 | Z178: 54312 | AA178: 0 | AB178: -0.6615223896 | AD178: -0.008018517354 | AE178: -0.6615223896 | AF178: 0 | AH178: 0.0392 | AM178: 6465560 | AN178: 0
A179: 170 | B179: Marlborough | C179: 5355166300 | D179: 19504557.06 | E179: 1386633000 | F179: 19654285.48 | G179: 39158843 | H179: 67657267.27 | I179: 55817246 | J179: 39158843 | K179: 57.88 | M179: 36068413 | N179: 0.0352 | O179: 37338021 | P179: 55.18700726 | Q179: 2.692992744 | R179: 0.01 | S179: 360684 | T179: 0 | U179: 0 | V179: =MIN(H179*parameters!C$22,ROUND(O179+S179-U179,0)) -> 37698705 | W179: 55.72011185 | Y179: -1820822 | Z179: 1460138 | AA179: 0 | AB179: -2.15988815 | AD179: -0.04649836054 | AE179: -2.692992744 | AF179: 0 | AH179: 0.0352 | AM179: 36068413 | AN179: 0
A180: 171 | B180: Marshfield | C180: 4661838100 | D180: 16979320.93 | E180: 1280045000 | F180: 18143495.69 | G180: 35122817 | H180: 41672969.69 | I180: 34380200 | J180: 34380200 | K180: 82.5 | M180: 33760457 | N180: 0.046 | O180: 35313438 | P180: 84.73943246 | Q180: 0 | R180: 0 | S180: 0 | T180: 933238 | U180: 793252.3 | V180: =MIN(H180*parameters!C$22,ROUND(O180+S180-U180,0)) -> 34520186 | W180: 82.83591561 | Y180: 0 | Z180: 0 | AA180: 139986 | AB180: 0.3359156059 | AD180: 0.02714463558 | AE180: 2.239432456 | AF180: 0 | AH180: 0.046 | AM180: 33760457 | AN180: 0
A181: 172 | B181: Mashpee | C181: 5088701800 | D181: 18534041.54 | E181: 501888000 | F181: 7113814.565 | G181: 25647856 | H181: 18255540.73 | I181: 15060821 | J181: 15060821 | K181: 82.5 | M181: 14530868 | N181: 0.0396 | O181: 15106290 | P181: 82.74906903 | Q181: 0 | R181: 0 | S181: 0 | T181: 45469 | U181: 38648.65 | V181: =MIN(H181*parameters!C$22,ROUND(O181+S181-U181,0)) -> 15067641 | W181: 82.53735796 | Y181: 0 | Z181: 0 | AA181: 6820 | AB181: 0.03735795965 | AD181: 0.003019025324 | AE181: 0.2490690263 | AF181: 0 | AH181: 0.0396 | AM181: 14530868 | AN181: 0
A182: 173 | B182: Mattapoisett | C182: 1699019800 | D182: 6188160.513 | E182: 355191000 | F182: 5034515.488 | G182: 11222676 | H182: 8994496.578 | I182: 7420460 | J182: 7420460 | K182: 82.5 | M182: 7293461 | N182: 0.0385 | O182: 7574259 | P182: 84.20992697 | Q182: 0 | R182: 0 | S182: 0 | T182: 153799 | U182: 130729.15 | V182: =MIN(H182*parameters!C$22,ROUND(O182+S182-U182,0)) -> 7443530 | W182: 82.75649376 | Y182: 0 | Z182: 0 | AA182: 23070 | AB182: 0.2564937633 | AD182: 0.02072634311 | AE182: 1.70992697 | AF182: 0 | AH182: 0.0385 | AM182: 7293461 | AN182: 0
A183: 174 | B183: Maynard | C183: 1322157600 | D183: 4815555.094 | E183: 399170000 | F183: 5657878.571 | G183: 10473434 | H183: 16288308.62 | I183: 13437855 | J183: 10473434 | K183: 64.3 | M183: 10347226 | N183: 0.0398 | O183: 10759046 | P183: 66.05379509 | Q183: 0 | R183: 0 | S183: 0 | T183: 285612 | U183: 242770.2 | V183: =MIN(H183*parameters!C$22,ROUND(O183+S183-U183,0)) -> 10516276 | W183: 64.56333954 | Y183: 0 | Z183: 0 | AA183: 42842 | AB183: 0.2633395373 | AD183: 0.02727013891 | AE183: 1.753795088 | AF183: 0 | AH183: 0.0398 | AM183: 10347226 | AN183: 0
A184: 175 | B184: Medfield | C184: 2639413000 | D184: 9613255.422 | E184: 1172354000 | F184: 16617071.86 | G184: 26230327 | H184: 25014992.47 | I184: 20637369 | J184: 20637369 | K184: 82.5 | M184: 19927119 | N184: 0.0417 | O184: 20758080 | P184: 82.98255547 | Q184: 0 | R184: 0 | S184: 0 | T184: 120711 | U184: 102604.35 | V184: =MIN(H184*parameters!C$22,ROUND(O184+S184-U184,0)) -> 20655476 | W184: 82.57238545 | Y184: 0 | Z184: 0 | AA184: 18107 | AB184: 0.07238545222 | AD184: 0.005849146759 | AE184: 0.4825554738 | AF184: 0 | AH184: 0.0417 | AM184: 19927119 | AN184: 0
A185: 176 | B185: Medford | C185: 8962552200 | D185: 32643358.02 | E185: 2092977000 | F185: 29666081.41 | G185: 62309439 | H185: 55101162.01 | I185: 45458459 | J185: 45458459 | K185: 82.5 | M185: 45337673 | N185: 0.0393 | O185: 47119444 | P185: 85.51442888 | Q185: 0 | R185: 0 | S185: 0 | T185: 1660985 | U185: 1411837.25 | V185: =MIN(H185*parameters!C$22,ROUND(O185+S185-U185,0)) -> 45707607 | W185: 82.95216531 | Y185: 0 | Z185: 0 | AA185: 249148 | AB185: 0.4521653123 | AD185: 0.03653852411 | AE185: 3.014428881 | AF185: 0 | AH185: 0.0393 | AM185: 45337673 | AN185: 0
A186: 177 | B186: Medway | C186: 1890229500 | D186: 6884583.425 | E186: 653874000 | F186: 9268080.498 | G186: 16152664 | H186: 23360353.76 | I186: 19272292 | J186: 16152664 | K186: 69.15 | M186: 15746758 | N186: 0.0463 | O186: 16475833 | P186: 70.52903894 | Q186: 0 | R186: 0 | S186: 0 | T186: 323169 | U186: 274693.65 | V186: =MIN(H186*parameters!C$22,ROUND(O186+S186-U186,0)) -> 16201139 | W186: 69.35314065 | Y186: 0 | Z186: 0 | AA186: 48475 | AB186: 0.2031406517 | AD186: 0.02000716414 | AE186: 1.37903894 | AF186: 0 | AH186: 0.0463 | AM186: 15746758 | AN186: 0
A187: 178 | B187: Melrose | C187: 4523617700 | D187: 16475895.35 | E187: 1331541000 | F187: 18873405.54 | G187: 35349301 | H187: 40231107.3 | I187: 33190664 | J187: 33190664 | K187: 82.5 | M187: 31714406 | N187: 0.0384 | O187: 32932239 | P187: 81.85764998 | Q187: 0.6423500166 | R187: 0 | S187: 0 | T187: 0 | U187: 0 | V187: =MIN(H187*parameters!C$22,ROUND(O187+S187-U187,0)) -> 32932239 | W187: 81.85764998 | Y187: -258425 | Z187: 258425 | AA187: 0 | AB187: -0.6423500166 | AD187: -0.007786075024 | AE187: -0.6423500166 | AF187: 0 | AH187: 0.0384 | AM187: 31714406 | AN187: 0
A188: 179 | B188: Mendon | C188: 901857400 | D188: 3284740.031 | E188: 339906000 | F188: 4817864.252 | G188: 8102604 | H188: 10806926.22 | I188: 8915714 | J188: 8102604 | K188: 74.98 | M188: 7330988 | N188: 0.0498 | O188: 7696071 | P188: 71.21424579 | Q188: 3.765754212 | R188: 0.01 | S188: 73310 | T188: 0 | U188: 0 | V188: =MIN(H188*parameters!C$22,ROUND(O188+S188-U188,0)) -> 7769381 | W188: 71.89260704 | Y188: -406533 | Z188: 333223 | AA188: 0 | AB188: -3.08739296 | AD188: -0.05017312953 | AE188: -3.765754212 | AF188: 73309.88 | AH188: 0.0498 | AM188: 7330988 | AN188: 0
A189: 180 | B189: Merrimac | C189: 746617400 | D189: 2719325.763 | E189: 230534000 | F189: 3267613.745 | G189: 5986940 | H189: 9425337.044 | I189: 7775903 | J189: 5986940 | K189: 63.52 | M189: 5839474 | N189: 0.0426 | O189: 6088236 | P189: 64.5943585 | Q189: 0 | R189: 0 | S189: 0 | T189: 101296 | U189: 86101.6 | V189: =MIN(H189*parameters!C$22,ROUND(O189+S189-U189,0)) -> 6002134 | W189: 63.68084209 | Y189: 0 | Z189: 0 | AA189: 15194 | AB189: 0.1608420944 | AD189: 0.01691949477 | AE189: 1.074358498 | AF189: 0 | AH189: 0.0426 | AM189: 5839474 | AN189: 0
A190: 181 | B190: Methuen | C190: 5170366300 | D190: 18831479.53 | E190: 1444949000 | F190: 20480862.75 | G190: 39312342 | H190: 86439228.74 | I190: 71312364 | J190: 39312342 | K190: 45.48 | M190: 38431856 | N190: 0.0304 | O190: 39600184 | P190: 45.81274565 | Q190: 0 | R190: 0 | S190: 0 | T190: 287842 | U190: 244665.7 | V190: =MIN(H190*parameters!C$22,ROUND(O190+S190-U190,0)) -> 39355518 | W190: 45.52969592 | Y190: 0 | Z190: 0 | AA190: 43176 | AB190: 0.04969592139 | AD190: 0.007321924499 | AE190: 0.3327456473 | AF190: 0 | AH190: 0.0304 | AM190: 38431856 | AN190: 0
A191: 182 | B191: Middleborough | C191: 2456342300 | D191: 8946476.332 | E191: 667042000 | F191: 9454725.149 | G191: 18401201 | H191: 36597977.1 | I191: 30193331 | J191: 18401201 | K191: 50.28 | M191: 18091163 | N191: 0.0416 | O191: 18843755 | P191: 51.4885152 | Q191: 0 | R191: 0 | S191: 0 | T191: 442554 | U191: 376170.9 | V191: =MIN(H191*parameters!C$22,ROUND(O191+S191-U191,0)) -> 18467584 | W191: 50.46066877 | Y191: 0 | Z191: 0 | AA191: 66383 | AB191: 0.1806687708 | AD191: 0.02405027802 | AE191: 1.208515198 | AF191: 0 | AH191: 0.0416 | AM191: 18091163 | AN191: 0
A192: 183 | B192: Middlefield | C192: 65947000 | D192: 240191.7985 | E192: 10204000 | F192: 144632.595 | G192: 384824 | H192: 468434.3111 | I192: 386458 | J192: 384824 | K192: 82.15 | M192: 359400 | N192: 0.0283 | O192: 369571 | P192: 78.89494669 | Q192: 3.255053307 | R192: 0.01 | S192: 3594 | T192: 0 | U192: 0 | V192: =MIN(H192*parameters!C$22,ROUND(O192+S192-U192,0)) -> 373165 | W192: 79.6621834 | Y192: -15253 | Z192: 11659 | AA192: 0 | AB192: -2.487816596 | AD192: -0.03963630127 | AE192: -3.255053307 | AF192: 0 | AH192: 0.0283 | AM192: 359400 | AN192: 0
A193: 184 | B193: Middleton | C193: 1895561200 | D193: 6904002.513 | E193: 479840000 | F193: 6801303.839 | G193: 13705306 | H193: 13756624.31 | I193: 11349215 | J193: 11349215 | K193: 82.5 | M193: 11327984 | N193: 0.0448 | O193: 11835478 | P193: 86.03475485 | Q193: 0 | R193: 0 | S193: 0 | T193: 486263 | U193: 413323.55 | V193: =MIN(H193*parameters!C$22,ROUND(O193+S193-U193,0)) -> 11422154 | W193: 83.03020961 | Y193: 0 | Z193: 0 | AA193: 72939 | AB193: 0.530209613 | AD193: 0.04284551839 | AE193: 3.534754847 | AF193: 0 | AH193: 0.0448 | AM193: 11327984 | AN193: 0
A194: 185 | B194: Milford | C194: 3206234500 | D194: 11677729.55 | E194: 941585000 | F194: 13346127.2 | G194: 25023857 | H194: 51052829.73 | I194: 42118585 | J194: 25023857 | K194: 49.02 | M194: 24461338 | N194: 0.0355 | O194: 25329715 | P194: 49.6147131 | Q194: 0 | R194: 0 | S194: 0 | T194: 305858 | U194: 259979.3 | V194: =MIN(H194*parameters!C$22,ROUND(O194+S194-U194,0)) -> 25069736 | W194: 49.10547786 | Y194: 0 | Z194: 0 | AA194: 45879 | AB194: 0.08547785943 | AD194: 0.01222265616 | AE194: 0.5947130994 | AF194: 0 | AH194: 0.0355 | AM194: 24461338 | AN194: 0
A195: 186 | B195: Millbury | C195: 1531502600 | D195: 5578030.295 | E195: 430244000 | F195: 6098324.793 | G195: 11676355 | H195: 19360971.34 | I195: 15972801 | J195: 11676355 | K195: 60.31 | M195: 11271347 | N195: 0.045 | O195: 11778558 | P195: 60.83660676 | Q195: 0 | R195: 0 | S195: 0 | T195: 102203 | U195: 86872.55 | V195: =MIN(H195*parameters!C$22,ROUND(O195+S195-U195,0)) -> 11691685 | W195: 60.3879051 | Y195: 0 | Z195: 0 | AA195: 15330 | AB195: 0.07790510177 | AD195: 0.008752988411 | AE195: 0.5266067628 | AF195: 0 | AH195: 0.045 | AM195: 11271347 | AN195: 0
A196: 187 | B196: Millis | C196: 1158638500 | D196: 4219986.733 | E196: 336387000 | F196: 4767985.567 | G196: 8987972 | H196: 12776384.06 | I196: 10540517 | J196: 8987972 | K196: 70.35 | M196: 8832394 | N196: 0.0441 | O196: 9221903 | P196: 72.17928762 | Q196: 0 | R196: 0 | S196: 0 | T196: 233931 | U196: 198841.35 | V196: =MIN(H196*parameters!C$22,ROUND(O196+S196-U196,0)) -> 9023062 | W196: 70.62297091 | Y196: 0 | Z196: 0 | AA196: 35090 | AB196: 0.2729709102 | AD196: 0.02602711713 | AE196: 1.829287619 | AF196: 0 | AH196: 0.0441 | AM196: 8832394 | AN196: 0
A197: 188 | B197: Millville | C197: 287812000 | D197: 1048267.274 | E197: 96628000 | F197: 1369615.679 | G197: 2417883 | H197: 5670069.938 | I197: 4677808 | J197: 2417883 | K197: 42.64 | M197: 2328106 | N197: 0.0418 | O197: 2425421 | P197: 42.77585685 | Q197: 0 | R197: 0 | S197: 0 | T197: 7538 | U197: 6407.3 | V197: =MIN(H197*parameters!C$22,ROUND(O197+S197-U197,0)) -> 2419014 | W197: 42.66286001 | Y197: 0 | Z197: 0 | AA197: 1131 | AB197: 0.02286001059 | AD197: 0.003117603292 | AE197: 0.1358568531 | AF197: 0 | AH197: 0.0418 | AM197: 2328106 | AN197: 0
A198: 189 | B198: Milton | C198: 5448423500 | D198: 19844217.92 | E198: 1805610000 | F198: 25592910.6 | G198: 45437129 | H198: 42699065.53 | I198: 35226729 | J198: 35226729 | K198: 82.5 | M198: 32822561 | N198: 0.0351 | O198: 33974633 | P198: 79.56762655 | Q198: 2.932373446 | R198: 0.01 | S198: 328226 | T198: 0 | U198: 0 | V198: =MIN(H198*parameters!C$22,ROUND(O198+S198-U198,0)) -> 34302859 | W198: 80.33632253 | Y198: -1252096 | Z198: 923870 | AA198: 0 | AB198: -2.163677466 | AD198: -0.03554391894 | AE198: -2.932373446 | AF198: 0 | AH198: 0.0351 | AM198: 32822561 | AN198: 0
A199: 190 | B199: Monroe | C199: 26041800 | D199: 94849.29985 | E199: 963000 | F199: 13649.66572 | G199: 108499 | H199: 103218.7835 | I199: 85155 | J199: 85155 | K199: 82.5 | M199: 93752 | N199: 0.0498 | O199: 98421 | P199: 95.35183099 | Q199: 0 | R199: 0 | S199: 0 | T199: 13266 | U199: 11276.1 | V199: =MIN(H199*parameters!C$22,ROUND(O199+S199-U199,0)) -> 87145 | W199: 84.42746275 | Y199: 0 | Z199: 0 | AA199: 1990 | AB199: 1.927462752 | AD199: 0.155786507 | AE199: 12.85183099 | AF199: 0 | AH199: 0.0498 | AM199: 93752 | AN199: 0
A200: 191 | B200: Monson | C200: 771423700 | D200: 2809675.131 | E200: 248153000 | F200: 3517347.348 | G200: 6327022 | H200: 11179142.4 | I200: 9222792 | J200: 6327022 | K200: 56.6 | M200: 6142173 | N200: 0.0333 | O200: 6346707 | P200: 56.77275389 | Q200: 0 | R200: 0 | S200: 0 | T200: 19685 | U200: 16732.25 | V200: =MIN(H200*parameters!C$22,ROUND(O200+S200-U200,0)) -> 6329975 | W200: 56.6230823 | Y200: 0 | Z200: 0 | AA200: 2953 | AB200: 0.02308230037 | AD200: 0.003111258346 | AE200: 0.1727538888 | AF200: 0 | AH200: 0.0333 | AM200: 6142173 | AN200: 0
... 164 more rows

Sheet Aid436
D1: disthist | E1: disthist | Q1: c70fy18
C2: disthist cell references | D2: 44 | E2: 46
A3: 1 | B3: 2 | C3: 3 | D3: 4 | E3: 5 | F3: 6 | G3: 7 | H3: 8 | I3: 9 | J3: 10 | K3: 11 | L3: 12 | M3: 13 | N3: 14 | O3: 15 | P3: 16 | Q3: 17 | R3: 18 | S3: 19 | T3: 20 | U3: 21 | V3: 22 | W3: 23 | X3: 24 | Y3: 25 | Z3: 26 | AA3: 27 | AB3: 28 | AC3: 29 | AD3: 30 | AE3: 31 | AF3: 32 | AG3: 33 | AH3: 34 | AI3: 35 | AJ3: 36 | AK3: 37 | AL3: 38 | AM3: 39 | AN3: 40 | AO3: 41 | AP3: 42 | AQ3: 43 | AR3: 44 | AS3: 45 | AT3: 46 | AU3: 47 | AV3: 48 | AW3: 49
A4: Return to Index | C4: nonop | E4: priorc70 | F4: found | G4: prelcont436 | H4: foundaid | I4: foundinc | M4: downaid | R4: enro | AF4: minaid | AH4: rednonop | AJ4: chapter70
A5: More about the data | E5: PY Base Aid | F5: Foundation Aid Calculation | L5: Downpayment Aid Calculation | AE5: Minimum Aid Calculation | AO5: Analysis
E6: =basecut -> 0 | L6: =downpct -> 0 | AE6: =mininc -> 20
D7: foundation | E7: chapter 70 | F7: foundation | G7: required | J7: district | K7: foundation aid | L7: increase over PY | M7: down-payment | Q7: foundation | R7: foundation | X7: operating dist | AG7: c70 prior | AM7: nss
D8: budget | E8: =PYr -> FY18 | F8: budget | G8: contribution | H8: foundation | I8: foundation | J8: target aid | K8: with effort | L8: to reach | M8: on full phase-in | Q8: enrollment | R8: enrollment | X8: foundation | AE8: Min Aid | AF8: Addl Aid | AG8: to non-op | AH8: non-op | AI8: Transitional Relief | AJ8: =CYr -> FY19 | AK8: c70 pct of | AL8: =CYr -> FY19 | AM8: percent of | AQ8: Aid Comp'd | AR8: Distance from | AS8: Foundation | AU8: Base Aid | AW8: ∆ in Aid
A9: LEA | B9: District | C9: Non-Op | D9: =PYr -> FY18 | E9: base | F9: =CYr -> FY19 | G9: =CYr -> FY19 | H9: aid | I9: aid increase | J9: percentage | K9: fully reduced | L9: full phase-in | M9: of foundation aid | N9: blank | O9: blank | P9: blank | Q9: =PYr -> FY18 | R9: =CYr -> FY19 | S9: blank | T9: blank | U9: blank | V9: blank | W9: blank | X9: aid? | Y9: blank | Z9: blank | AA9: blank | AB9: blank | AC9: blank | AD9: blank | AE9: Per Pupil | AF9: to Reach Min | AG9: reduction | AH9: reduction | AI9: Eco Dis | AJ9: Chapter 70 | AK9: foundation | AL9: Required NSS | AM9: foundation | AN9: blank | AO9: ∆ in Foundation Budget | AP9: ∆ in Aid | AQ9: to Target | AR9: Aid Target | AS9: Budget PP | AT9: blank | AU9: Reduction | AV9: blank | AW9: per pupil
A10: 1 | B10: Abington | C10: 1 | D10: =VLOOKUP(A10, disthist, D$2, FALSE) -> 19699144.43 | E10: =VLOOKUP(A10, disthist, E$2, FALSE)*(1-$E$6) -> 7637749 | F10: =SUMIF(dist1755,A10,found1755) -> 21210731.95 | G10: =SUMIF(dist1755,A10,prelcont1755) -> 13603424 | H10: =ROUND(MAX(found-prelcont436,0),0) -> 7607308 | I10: =IF(foundaid>priorc70,foundaid-priorc70,0) -> 0 | J10: =ROUND(100-'Townwide Contributions'!K10,2) -> 36.07 | K10: =ROUND(J10/100*F10,0) -> 7650711 | L10: =ROUND(IF(K10>priorc70,L$6*(K10-priorc70),0),0) -> 0 | M10: =IF(L10>I10,L10-I10,0) -> 0 | Q10: 1930 | R10: =SUMIF(dist1755,A10,enro1755) -> 2002 | X10: =IF(AND(C10=1,I10>0),1,0) -> 0 | AE10: =IF(nonop=1,enro*$AE$6,0) -> 40040 | AF10: =IF((foundinc+downaid)<AE10,AE10-(foundinc+downaid),0) -> 40040 | AG10: =priorc70+foundinc+downaid+minaid -> 7677789 | AH10: =IF(AND(C10=0,AG10>found),AG10-found,0) -> 0 | AI10: 0 | AJ10: =AG10+AI10-rednonop -> 7677789 | AK10: =IF(C10=1, AJ10/F10*100, 0) -> 36.19766172 | AL10: =prelcont436+chapter70 -> 21281213 | AM10: =IF(found>0,AL10*100/found,0) -> 100.3322896 | AO10: =F10-D10 -> 1511587.517 | AP10: =AJ10-E10 -> 40040 | AQ10: =AJ10-((J10/100)*F10) -> 27077.98574 | AR10: =IF(C10=1, (AJ10/F10*100)-J10, "") -> 0.1276617224 | AS10: =IFERROR(ROUND(F10/R10, 2), 0) -> 10594.77 | AU10: =VLOOKUP(A10, disthist, 37, FALSE)*$E$6 -> 0 | AW10: =IFERROR(AP10/R10, 0) -> 20
A11: 2 | B11: Acton | C11: 0 | D11: =VLOOKUP(A11, disthist, D$2, FALSE) -> 0 | E11: 0 | F11: 0 | G11: =SUMIF(dist1755,A11,prelcont1755) -> 0 | H11: =ROUND(MAX(found-prelcont436,0),0) -> 0 | I11: 0 | J11: =ROUND(100-'Townwide Contributions'!K11,2) -> 23.12 | K11: =ROUND(J11/100*F11,0) -> 0 | L11: =ROUND(IF(K11>priorc70,L$6*(K11-priorc70),0),0) -> 0 | M11: =IF(L11>I11,L11-I11,0) -> 0 | Q11: 0 | R11: 0 | X11: 0 | AE11: 0 | AF11: 0 | AG11: 0 | AH11: 0 | AI11: 0 | AJ11: 0 | AK11: 0 | AL11: 0 | AM11: 0 | AO11: 0 | AP11: 0 | AQ11: 0 | AS11: =IFERROR(ROUND(F11/R11, 2), 0) -> 0 | AU11: 0 | AW11: 0
A12: 3 | B12: Acushnet | C12: 1 | D12: 11736546.35 | E12: 6286522 | F12: 12201816.85 | G12: 7073504 | H12: 5128313 | I12: 0 | J12: =ROUND(100-'Townwide Contributions'!K12,2) -> 42.27 | K12: 5157708 | L12: 0 | M12: 0 | Q12: 1210 | R12: 1214 | X12: 0 | AE12: 24280 | AF12: 24280 | AG12: 6310802 | AH12: 0 | AI12: 0 | AJ12: 6310802 | AK12: 51.72018297 | AL12: 13384306 | AM12: 109.6910908 | AO12: 465270.5041 | AP12: 24280 | AQ12: 1153094.018 | AR12: 9.450182966 | AS12: 10050.92 | AU12: 0 | AW12: 20
A13: 4 | B13: Adams | C13: 0 | D13: 0 | E13: 0 | F13: 0 | G13: 0 | H13: 0 | I13: 0 | J13: =ROUND(100-'Townwide Contributions'!K13,2) -> 65.85 | K13: 0 | L13: 0 | M13: 0 | Q13: 0 | R13: 0 | X13: 0 | AE13: 0 | AF13: 0 | AG13: 0 | AH13: 0 | AI13: 0 | AJ13: 0 | AK13: 0 | AL13: 0 | AM13: 0 | AO13: 0 | AP13: 0 | AQ13: 0 | AS13: 0 | AU13: 0 | AW13: 0
A14: 5 | B14: Agawam | C14: 1 | D14: 40549530.34 | E14: 19253911.81 | F14: 41091729.2 | G14: 22358035 | H14: 18733694 | I14: 0 | J14: =ROUND(100-'Townwide Contributions'!K14,2) -> 45.81 | K14: 18824121 | L14: 0 | M14: 0 | Q14: 3831 | R14: 3765 | X14: 0 | AE14: 75300 | AF14: 75300 | AG14: 19329211.81 | AH14: 0 | AI14: 0 | AJ14: 19329211.81 | AK14: 47.03917841 | AL14: 41687246.81 | AM14: 101.4492396 | AO14: 542198.8635 | AP14: 75300 | AQ14: 505090.6655 | AR14: 1.229178415 | AS14: 10914.14 | AU14: 0 | AW14: 20
A15: 6 | B15: Alford | C15: 0 | D15: 0 | E15: 0 | F15: 0 | G15: 0 | H15: 0 | I15: 0 | J15: =ROUND(100-'Townwide Contributions'!K15,2) -> 17.5 | K15: 0 | L15: 0 | M15: 0 | Q15: 0 | R15: 0 | X15: 0 | AE15: 0 | AF15: 0 | AG15: 0 | AH15: 0 | AI15: 0 | AJ15: 0 | AK15: 0 | AL15: 0 | AM15: 0 | AO15: 0 | AP15: 0 | AQ15: 0 | AS15: 0 | AU15: 0 | AW15: 0
A16: 7 | B16: Amesbury | C16: 1 | D16: 22137199.05 | E16: 9061587 | F16: 22649795.19 | G16: 15041590 | H16: 7608205 | I16: 0 | J16: =ROUND(100-'Townwide Contributions'!K16,2) -> 33.72 | K16: 7637511 | L16: 0 | M16: 0 | Q16: 2217 | R16: 2191 | X16: 0 | AE16: 43820 | AF16: 43820 | AG16: 9105407 | AH16: 0 | AI16: 0 | AJ16: 9105407 | AK16: 40.20083592 | AL16: 24146997 | AM16: 106.6102223 | AO16: 512596.1397 | AP16: 43820 | AQ16: 1467896.062 | AR16: 6.480835918 | AS16: 10337.65 | AU16: 0 | AW16: 20
A17: 8 | B17: Amherst | C17: 1 | D17: 11871248.34 | E17: 6055023 | F17: 11780035.8 | G17: 8871384 | H17: 2908652 | I17: 0 | J17: =ROUND(100-'Townwide Contributions'!K17,2) -> 25.12 | K17: 2959145 | L17: 0 | M17: 0 | Q17: 1136 | R17: 1094 | X17: 0 | AE17: 21880 | AF17: 21880 | AG17: 6076903 | AH17: 0 | AI17: 0 | AJ17: 6076903 | AK17: 51.58645613 | AL17: 14948287 | AM17: 126.8950897 | AO17: -91212.54462 | AP17: 21880 | AQ17: 3117758.007 | AR17: 26.46645613 | AS17: 10767.86 | AU17: 0 | AW17: 20
A18: 9 | B18: Andover | C18: 1 | D18: 59213763.71 | E18: 10066835 | F18: 60272067.79 | G18: 49959399 | H18: 10312669 | I18: 245834 | J18: =ROUND(100-'Townwide Contributions'!K18,2) -> 17.5 | K18: 10547612 | L18: 0 | M18: 0 | Q18: 5911 | R18: 5800 | X18: 1 | AE18: 116000 | AF18: 0 | AG18: 10312669 | AH18: 0 | AI18: 0 | AJ18: 10312669 | AK18: 17.11019611 | AL18: 60272068 | AM18: 100.0000003 | AO18: 1058304.089 | AP18: 245834 | AQ18: -234942.864 | AR18: -0.3898038887 | AS18: 10391.74 | AU18: 0 | AW18: 42.38517241
A19: 10 | B19: Arlington | C19: 1 | D19: 54501493.56 | E19: 11180879 | F19: 57771939.9 | G19: 46237254 | H19: 11534686 | I19: 353807 | J19: =ROUND(100-'Townwide Contributions'!K19,2) -> 17.5 | K19: 10110089 | L19: 0 | M19: 0 | Q19: 5607 | R19: 5785 | X19: 1 | AE19: 115700 | AF19: 0 | AG19: 11534686 | AH19: 0 | AI19: 0 | AJ19: 11534686 | AK19: 19.96589697 | AL19: 57771940 | AM19: 100.0000002 | AO19: 3270446.342 | AP19: 353807 | AQ19: 1424596.517 | AR19: 2.465896972 | AS19: 9986.51 | AU19: 0 | AW19: 61.1593777
A20: 11 | B20: Ashburnham | C20: 0 | D20: 0 | E20: 0 | F20: 0 | G20: 0 | H20: 0 | I20: 0 | J20: =ROUND(100-'Townwide Contributions'!K20,2) -> 55.71 | K20: 0 | L20: 0 | M20: 0 | Q20: 0 | R20: 0 | X20: 0 | AE20: 0 | AF20: 0 | AG20: 0 | AH20: 0 | AI20: 0 | AJ20: 0 | AK20: 0 | AL20: 0 | AM20: 0 | AO20: 0 | AP20: 0 | AQ20: 0 | AS20: 0 | AU20: 0 | AW20: 0
A21: 12 | B21: Ashby | C21: 0 | D21: 0 | E21: 0 | F21: 0 | G21: 0 | H21: 0 | I21: 0 | J21: =ROUND(100-'Townwide Contributions'!K21,2) -> 41.63 | K21: 0 | L21: 0 | M21: 0 | Q21: 0 | R21: 0 | X21: 0 | AE21: 0 | AF21: 0 | AG21: 0 | AH21: 0 | AI21: 0 | AJ21: 0 | AK21: 0 | AL21: 0 | AM21: 0 | AO21: 0 | AP21: 0 | AQ21: 0 | AS21: 0 | AU21: 0 | AW21: 0
A22: 13 | B22: Ashfield | C22: 0 | D22: 226884.1827 | E22: 93413 | F22: 233471.35 | G22: 162853 | H22: 70618 | I22: 0 | J22: =ROUND(100-'Townwide Contributions'!K22,2) -> 30.8 | K22: 71909 | L22: 0 | M22: 0 | Q22: 15 | R22: 15 | X22: 0 | AE22: 0 | AF22: 0 | AG22: 93413 | AH22: 0 | AI22: 0 | AJ22: 93413 | AK22: 0 | AL22: 256266 | AM22: 109.7633607 | AO22: 6587.167302 | AP22: 0 | AQ22: 21503.8242 | AS22: 15564.76 | AU22: 0 | AW22: 0
A23: 14 | B23: Ashland | C23: 1 | D23: 24948345.56 | E23: 6012213 | F23: 26202162.06 | G23: 20109586 | H23: 6092576 | I23: 80363 | J23: =ROUND(100-'Townwide Contributions'!K23,2) -> 23.42 | K23: 6136546 | L23: 0 | M23: 0 | Q23: 2547 | R23: 2577 | X23: 1 | AE23: 51540 | AF23: 0 | AG23: 6092576 | AH23: 0 | AI23: 0 | AJ23: 6092576 | AK23: 23.25218807 | AL23: 26202162 | AM23: 99.99999978 | AO23: 1253816.499 | AP23: 80363 | AQ23: -43970.35416 | AR23: -0.1678119312 | AS23: 10167.7 | AU23: 0 | AW23: 31.1847109
A24: 15 | B24: Athol | C24: 0 | D24: 26833.66669 | E24: 22728 | F24: 13812.51 | G24: 2179 | H24: 11634 | I24: 0 | J24: =ROUND(100-'Townwide Contributions'!K24,2) -> 70.14 | K24: 9688 | L24: 0 | M24: 0 | Q24: 2 | R24: 1 | X24: 0 | AE24: 0 | AF24: 0 | AG24: 22728 | AH24: 8915.49 | AI24: 0 | AJ24: 13812.51 | AK24: 0 | AL24: 15991.51 | AM24: 115.7755542 | AO24: -13021.15669 | AP24: -8915.49 | AQ24: 4124.415486 | AS24: 13812.51 | AU24: 0 | AW24: -8915.49
A25: 16 | B25: Attleboro | C25: 1 | D25: 69495854.73 | E25: 35846981 | F25: 72430197.34 | G25: 34948759 | H25: 37481438 | I25: 1634457 | J25: =ROUND(100-'Townwide Contributions'!K25,2) -> 51.84 | K25: 37547814 | L25: 0 | M25: 0 | Q25: 6251 | R25: 6284 | X25: 1 | AE25: 125680 | AF25: 0 | AG25: 37481438 | AH25: 0 | AI25: 0 | AJ25: 37481438 | AK25: 51.74835825 | AL25: 72430197 | AM25: 99.99999953 | AO25: 2934342.605 | AP25: 1634457 | AQ25: -66376.30106 | AR25: -0.09164175095 | AS25: 11526.13 | AU25: 0 | AW25: 260.0981859
A26: 17 | B26: Auburn | C26: 1 | D26: 24064548.39 | E26: 10078534 | F26: 25472685.17 | G26: 14512608 | H26: 10960077 | I26: 881543 | J26: =ROUND(100-'Townwide Contributions'!K26,2) -> 43.13 | K26: 10986369 | L26: 0 | M26: 0 | Q26: 2431 | R26: 2486 | X26: 1 | AE26: 49720 | AF26: 0 | AG26: 10960077 | AH26: 0 | AI26: 0 | AJ26: 10960077 | AK26: 43.02678311 | AL26: 25472685 | AM26: 99.99999933 | AO26: 1408136.777 | AP26: 881543 | AQ26: -26292.11382 | AR26: -0.1032168915 | AS26: 10246.45 | AU26: 0 | AW26: 354.6029767
